Workbook

Sheet Tietokanta_KAIKKI
D1: Pirkanmaan ELY-keskuksen merkittävyysluokitus
D2: PISTEYTYSTEKIJÄT JA PAINOARVOT | N2: PALAUTUS- JA LAJITTELUTYÖKALUT
D3: OSA-ALUEET | J3: Taajama | P3: Tietokannan palauttaminen oletusarvoihin
D4: Säännöllinen henkilöliikenne | G4: Yhteensä | H4: Painotus | J4: tieosasta | K4: 0.5
D5: KVL | F5: 9 | G5: =SUM(F5:F7) -> 15 | H5: =1/3 -> 0.3333333333 | J5: Liikenne | K5: VÄHÄ/Vilkas
D6: Linja-autovuorot | F6: 3 | J6: KVL | K6: 500 | P6: Lajittele muutosten/ nollauksen jälkeen
D7: Työmatkat | F7: 3 | J7: KVLRAS | K7: 25
D8: Säännöllinen tavaraliikenne | G8: Yhteensä | H8: Painotus | J8: KKVL | K8: 500 | V8: ELOKUU 2023
D9: KVLRAS | F9: 8 | G9: =SUM(F9:F19) -> 20 | H9: 0.3333333333 | J9: Työmatkat
D10: Maito | F10: 2 | J10: Pisteet | L10: Työmatkoja
D11: Jäte | F11: 1 | J11: =F7 -> 3 | K11: =CONCATENATE("≥ ",L11,) -> ≥ 300 | L11: 300 | N11: SUODATUSTYÖKALUT | AB11: TYHJÄ PAIKKA
D12: Maa-aines | F12: 1 | J12: =CONCATENATE("0-",J11) -> 0-3 | K12: =CONCATENATE("0-",L11," lineaarisesti") -> 0-300 lineaarisesti | P12: KVL tekijät poistetaan käytöstä | T12: Tieverkon jakaumat ja osuudet | AC12: Järjestä tietokanta kokonaispisteiden perusteella
D13: Turve | F13: 1 | J13: Linja-autovuorot | T13: Merkittävyysluokka | W13: % max pisteistä
D14: Viljansäilytys ja kasvih. | F14: 1 | J14: Pisteet | L14: Vuoromäärä | T14: 1 luokka | W14: 0.75
D15: Eläintilat | F15: 2 | J15: =$F$6 -> 3 | K15: =CONCATENATE("≥ ",L15,) -> ≥ 60 | L15: 60 | P15: KVL-jaksot joiden KVL alle 100 | T15: 2 luokka | W15: 0.5
D16: Elintarvikelaitokset | F16: 1 | J16: =CONCATENATE("0-",J15) -> 0-3 | K16: =CONCATENATE("0-",L15," lineaarisesti") -> 0-60 lineaarisesti | T16: 3 luokka | W16: 0.2
D17: Tuotantolaitos | F17: 1 | J17: Koulubufferi (3 km tieverkkoa pitkin)
D18: Päivittäistavarakaupat | F18: 1 | J18: Pisteet | L18: Tieosasta | P18: KVL-jaksot joiden KVL alle 350 | T18: Pituus | U18: km | V18: Vähä | W18: Vilkas | X18: Vähä | Y18: Vilkas
D19: Puu | F19: 1 | J19: =$F$21 -> 1 | K19: =CONCATENATE("≥ ",L19*100," %") -> ≥ 50 % | L19: 0.5 | T19: Luokka | U19: 1 | V19: =SUMIFS(W37:W1308,N37:N1308,"Vähä",K37:K1308,1)/1000 -> 173.4 | W19: =SUMIFS(W37:W1308,N37:N1308,"Vilkas",K37:K1308,1)/1000 -> 864.109
D20: Muut tekijät | G20: Yhteensä | H20: Painotus | J20: =F21/2 -> 0.5 | K20: =CONCATENATE("1-",L19*100-1," %") -> 1-49 % | T20: Luokka | U20: 2 | V20: =SUMIFS(W37:W1308,N37:N1308,"Vähä",K37:K1308,2)/1000 -> 564.235 | W20: =SUMIFS(W37:W1308,N37:N1308,"Vilkas",K37:K1308,2)/1000 -> 1247.739
D21: Koulu | F21: 1 | G21: =SUM(F21:F29) -> 10 | H21: 0.3333333333 | J21: Eläintilat (tieosalle kumuloitunut lkm) | P21: KVL-jaksot, joilla sorapäällystettä | T21: Luokka | U21: 3 | V21: =SUMIFS(W37:W1308,N37:N1308,"Vähä",K37:K1308,3)/1000 -> 1560.123 | W21: =SUMIFS(W37:W1308,N37:N1308,"Vilkas",K37:K1308,3)/1000 -> 3.058
D22: Eriku-reitti | F22: 1 | J22: Pisteet (0-1 lineaarisesti) | L22: Eläinten lkm | T22: Luokka | U22: 4 | V22: =SUMIFS(W37:W1308,N37:N1308,"Vähä",K37:K1308,4)/1000 -> 833.111 | W22: =SUMIFS(W37:W1308,N37:N1308,"Vilkas",K37:K1308,4)/1000 -> 0 | CJ22: =$CI$18*W14 -> 0
D23: Varareitti | F23: 1 | J23: =$F$15/4 -> 0.5 | K23: Nauta | L23: 400 | T23: Yht. | V23: =SUM(V19:V22) -> 3130.869 | W23: =SUM(W19:W22) -> 2114.906 | X23: =SUM(V23:W23) -> 5245.775 | Y23: km | CJ23: =$CI$18*W15 -> 0
D24: Taajama | F24: 1 | J24: =$F$15/4 -> 0.5 | K24: LVH | L24: 200 | P24: Hae tienumero | CC24: Vähä max pisteet | CJ24: =$CI$18*W16 -> 0
D25: Asukastiheys | F25: 1 | J25: =$F$15/4 -> 0.5 | K25: Sika | L25: 1000 | T25: KVL-jaksoja (kpl) | V25: Vähä | X25: Vilkas | CC25: =MAX(IF(N37:N1308="Vähä",CB37:CB1308)) -> 10.152 | CJ25: =$CI$18*W17 -> 0
D26: KKVL + vapaa-ajanrak. | F26: 2 | J26: =$F$15/4 -> 0.5 | K26: Siipikarja | L26: 10000 | T26: Luokka 1 | V26: =COUNTIFS($K$37:$K$1308,1,N37:N1308,"Vähä") -> 38 | W26: =V26/V30 -> 0.05705705706 | X26: =COUNTIFS($K$37:$K$1308,1,N37:N1308,"Vilkas") -> 244 | Y26: =X26/X30 -> 0.402640264 | CC26: Vilkas max pisteet
D27: Matkailureitti | F27: 1 | P27: Vähäliikenteinen ja vilkastieverkko samassa | T27: Luokka 2 | V27: =COUNTIFS($K$37:$K$1308,2,N37:N1308,"Vähä") -> 130 | W27: =V27/V30 -> 0.1951951952 | X27: =COUNTIFS($K$37:$K$1308,2,N37:N1308,"Vilkas") -> 360 | Y27: =X27/X30 -> 0.5940594059 | AB27: TIEJAKSO-RAPORTTI | CC27: =MAX(IF(N37:N1308="Vilkas",CB37:CB1308)) -> 13.36358333
D28: Matkailukohde | F28: 1 | J28: Muunneltavat solut | T28: Luokka 3 | V28: =COUNTIFS($K$37:$K$1308,3,N37:N1308,"Vähä") -> 317 | W28: =V28/V30 -> 0.475975976 | X28: =COUNTIFS($K$37:$K$1308,3,N37:N1308,"Vilkas") -> 2 | Y28: =X28/X30 -> 0.003300330033
D29: Tien verkollinen asema | F29: 1 | L29: 5 | T29: Luokka 4 | V29: =COUNTIFS($K$37:$K$1308,4,N37:N1308,"Vähä") -> 181 | W29: =V29/V30 -> 0.2717717718 | X29: =COUNTIFS($K$37:$K$1308,4,N37:N1308,"Vilkas") -> 0 | Y29: =X29/X30 -> 0
D30: Yhteensä | F30: =SUM(F5:F29) -> 45 | G30: =SUM(G5:G29) -> 45 | H30: =SUM(H5:H29) -> 1 | P30: Järjestä tietokanta tienumeron perusteella | T30: Yht. | V30: =SUM(V26:V29) -> 666 | W30: =SUM(W26:W29) -> 1 | X30: =SUM(X26:X29) -> 606 | Y30: =SUM(Y26:Y29) -> 1 | CH30: Piilotetu solut CD–DL
I31: 5 | J31: 6 | K31: 7 | L31: 8 | M31: 9 | U31: 15 | V31: 16 | W31: 17 | AC31: 23 | AD31: 24 | AE31: 26 | AF31: 27 | AG31: 28 | AL31: 32 | AM31: 33 | AN31: 34 | AO31: 35 | AP31: 36 | AQ31: 37 | AR31: 38 | AS31: 39 | AT31: VALIO | AU31: 41 | AV31: 42 | AW31: 43 | AX31: 44 | AY31: 45 | AZ31: 46 | BA31: 47 | BB31: 48 | BG31: 50 | BH31: 51 | BI31: 52 | BJ31: 53 | BK31: 54 | BL31: 55 | BM31: 56 | BN31: 57 | BO31: 58 | BP31: 59 | BQ31: 60 | BR31: 61 | BS31: 62 | BT31: 63 | BU31: 64 | BV31: 65 | BW31: 66 | BX31: 67 | BY31: 68 | BZ31: 69 | CA31: 70 | CC31: 71 | CI31: 72 | CJ31: 73
A32: Lajittelu, ID | C32: ID_AKR | D32: Sija | E32: Herkkyys, sija ennen muutosta | F32: Herkkyys, sijamuutos | G32: Pisteet | H32: Sään. henkliik. pisteet | I32: Sään. tavaraliik. pisteet | J32: Muut tekijät pisteet | K32: Merk. luokka | L32: Luokan muutos | M32: Google Maps | R32: TIEOSAN OMINAISUUDET | AL32: SÄÄNNÖLLINEN HENKILÖLIIKENNE | AQ32: PISTEET YHTEENSÄ (max. 15) | AR32: PISTEET YHTEENSÄ, PAINOTETTU | AS32: SÄÄNNÖLLINEN TAVARALIIKENNE | BG32: PISTEET YHTEENSÄ (max. 20) | BH32: PISTEET YHTEENSÄ, PAINOTETTU | BI32: MUUT TEKIJÄT | BY32: PISTEET YHTEENSÄ (max. 10) | BZ32: PISTEET YHTEENSÄ, PAINOTETTU | CA32: PISTEET YHTEENSÄ (max. 45) | CB32: PISTEET YHTEENSÄ, PAINOTETTU | CC32: MERKITTÄVYYS-LUOKKA | CE32: Pistemuutokset placeholder
AL33: Liikennemäärä | AM33: Linja-autoliikenne | AO33: Työmatkareitti | AS33: Liikennemäärä | AX33: Maatilat | BI33: 3 km koulubufferi | BL33: Erikoiskuljetusreitti | BO33: Varareitti | BP33: Taajama | BS33: Väestö | BU33: Liikennemäärä | BV33: Matkailureitti | BW33: Matkailukohde | BX33: Tien verkollinen asema | CE33: Henkilö-liikenne | CF33: Tavara-liikenne | CG33: Muut tekijät | CH33: Kokonais-pisteet
A34: Lajittelu, ID | B34: PITxPIST | N34: LUOKKA | O34: TOIML | P34: Tien nimi | Q34: Kunta | R34: TIE | S34: AOSA | T34: AET | U34: LOSA | V34: LET | W34: PITUUS | X34: KVL | Y34: KVLRAS | Z34: KKVL | AA34: KVLYHD | AB34: Nopeusrajoitus | AC34: Hoitoluokka | AD34: Päällyste | AE34: Huonokunt.pääl. | AF34: Y3 (100 %) | AG34: HEVA 18-22 | AH34: kaikki onn. 18-22 | AI34: Päiväkoti 3km bufferi | AJ34: Painoraj.sillat (nro) | AK34: Puukuljetukset / vrk | AL34: KVL pisteet | AM34: Vuorot | AN34: Pisteet | AO34: Työmatkat | AP34: Pisteet | AS34: KVLRAS pisteet | AT34: Maito | AU34: Jäte | AV34: Maa-aines | AW34: Turve | AX34: Vilja + kasvih. | AY34: Nauta | AZ34: LVH | BA34: Sika | BB34: Siipikarja | BC34: Elintarvike | BD34: Tuotanto | BE34: PT-kaupat | BF34: Puu | BI34: Pituus | BJ34: Prosentti | BK34: Pisteet | BL34: Pituus | BM34: Prosentti | BN34: Pisteet | BO34: Pisteet | BP34: Pituus | BQ34: Prosentti | BR34: Pisteet | BS34: Asukastih. | BT34: Pisteet | BU34: KKVL + vpas. pisteet | BV34: Pisteet | BW34: Pisteet | BX34: Pisteet | CI34: Merkluokka | CJ34: Gmaps linkki | CK34: Tierek_taajama | CL34: PT-kaupat | CM34: PAALLYSTE | CN34: Maito | CO34: Jäte | CP34: Maa-aines | CQ34: Turve | CR34: Vilja | CS34: Nauta | CT34: Lammas/Vuohi/Hevonen | CU34: Sika | CV34: Siipikarja | CW34: Elintarvike | CX34: Tuotanto | CY34: Koulubufferi | CZ34: ERIKU | DA34: Varareitit | DB34: Taajama | DC34: jos kkvl > rajan | DD34: jos kkvl/kvl > 1,5 | DE34: Vapaa-ajan asun. | DF34: Vapaa-ajan pist | DG34: SORA | DH34: Matkailureitti | DI34: Matkailukohde/alue | DJ34: Tien verkollinen asema | DK34: Puuterminaalit | DL34: Puun kuormauspaikat | DM34: Maito eläintilat | DN34: Taajama pituus | DO34: Tien nimi | DP34: Kunta | DQ34: Sillat | DR34: Koulut pituus | DS34: Asukastiheys | DT34: Nopra | DU34: Hoitoluokka | DV34: Päällyste | DW34: Päällyste ylläpito | DX34: Puukuljetukset (pitxkluku)
AF35: Y3 (100 %)
A36: ID | B36: PITxPIST | C36: ID_AKR | D36: Sija | E36: Herkkyys | F36: muutos | G36: pisteet | H36: henkilö | I36: tavara | J36: muut | K36: merk.luokk | L36: luokkamuut | M36: Gmaps | N36: LUOKKA | O36: TOIML | P36: Tien nimi | Q36: Kunta | R36: TIE | S36: AOSA | T36: AET | U36: LOSA | V36: LET | W36: PITUUS | X36: KVL | Y36: KVLRAS | Z36: KKVL | AA36: KVL ketjutus | AB36: Nopeusrajoitus | AC36: Hoitoluokka | AD36: Päällyste | AE36: Huonokunt.pääl. | AF36: Y3 (100 %) | AG36: KVL 2013 | AH36: x1 | AI36: x2 | AJ36: x3 | AL36: KVL pisteet | AM36: Vuorot | AN36: Pisteet | AO36: Työmatkat | AP36: Pisteet | AQ36: PISTEET YHTEENSÄ (max. 15) | AR36: PISTEET YHTEENSÄ, PAINOTETTU | AS36: KVLRAS pisteet | AT36: Maito | AU36: Jäte | AV36: Maa-aines | AW36: Turve | AX36: Vilja + kasvih. | AY36: Nauta | AZ36: Lammas | BA36: Sika | BB36: Siipikarja | BC36: Elintarvike | BD36: Tuotanto | BE36: PT-kaupat | BF36: Puukulj. | BG36: PISTEET YHTEENSÄ (max. 15) | BH36: PISTEET YHTEENSÄ, PAINOTETTU | BI36: Pituus | BJ36: Prosentti | BK36: Koulu | BL36: Pituus | BM36: Prosentti | BN36: ERIKU | BO36: VARAREITTI | BP36: Pituus | BQ36: Prosentti | BR36: TAAJAMA | BS36: Asukkaat | BT36: KYLÄ | BU36: KKVL pisteet | BV36: MATKAILUREITTI | BW36: MATKAILUKOHDE | BX36: TIEN VERKOLLINEN ASEMA | BY36: PISTEET YHTEENSÄ (max. 15) | BZ36: PISTEET YHTEENSÄ, PAINOTETTU | CA36: PISTEET YHTEENSÄ (max. 45) | CB36: PISTEET YHTEENSÄ, PAINOTETTU | CC36: MERKITSEVYYS-LUOKKA | CD36: x4 | CE36: PITxHUONO | CF36: PITxKVL | CG36: x7
A37: =CONCATENATE(R37,"_",S37) -> 325_8 | B37: =G37*W37 -> 44496.216 | C37: =CONCATENATE(R37,"_",S37,"_",T37) -> 325_8_7459 | D37: =COUNTIFS($N$37:$N$1308,"Vähä",$G$37:$G$1308,">"&G37)+1 -> 1 | E37: 1 | F37: =E37-D37 -> 0 | G37: =CB37 -> 10.152 | H37: =AR37 -> 4.224 | I37: =BH37 -> 4.861333333 | J37: =BZ37 -> 1.066666667 | K37: =CC37 -> 1 | L37: =K37-CI37 -> 0 | M37: =HYPERLINK(CJ37,"Gmaps") -> Gmaps | N37: =IF(X37<$K$6,"Vähä","Vilkas") -> Vähä | O37: =IF(R37<40,"Valta",IF(R37<100,"Kanta",IF(R37<1000,"Seutu",IF(R37>999,"Yhdys")))) -> Seutu | P37: =DO37 -> Tampereentie, Vehkajärventie | Q37: =DP37 -> Kangasala, Kuhmoinen | R37: 325 | S37: 8 | T37: 7459 | U37: 8 | V37: 11842 | W37: =V37-T37 -> 4383 | X37: 499 | Y37: 44 | Z37: 977 | AA37: 15 | AB37: =+DT37 -> 80 (100 %) | AC37: =+DU37 -> Ib (100 %) | AD37: =+DV37 -> PAB (100 %) | AE37: 0.04038706757 | AF37: Y3 (100 %) | AG37: 0 | AH37: 1 | AI37: ei | AJ37: =+DQ37 -> 0 | AK37: =DY37 -> 1.79352042 | AL37: =+IF(X37>=$K$6,$F$5,($F$5/($K$6))*X37) -> 8.982 | AM37: 60 | AN37: =+IF(AM37>=$L$15,$J$15,IF(AM37<($L$15),AM37*($J$15/($L$15)),)) -> 3 | AO37: 69 | AP37: =+IF(AO37>=$L$11,$J$11,IF(AO37<($L$11),AO37*($J$11/($L$11)),)) -> 0.69 | AQ37: =SUM(AL37,AN37,AP37) -> 12.672 | AR37: =+AQ37*$H$5 -> 4.224 | AS37: =+IF(Y37=0,0,IF(Y37>$K$7,$F$9,($F$9/$K$7)*Y37)) -> 8 | AT37: =IF(CN37>0,$F$10,0) -> 2 | AU37: =IF(CO37>0,$F$11,0) -> 0 | AV37: =IF(CP37>0,$F$12,0) -> 1 | AW37: =IF(CQ37>0,$F$13,0) -> 0 | AX37: =IF(CR37>0,$F$14,0) -> 1 | AY37: =+IF(CS37>=$L$23,$J$23,IF(CS37<($L$23),CS37*($J$23/($L$23)),)) -> 0.5 | AZ37: =+IF(CT37>=$L$24,$J$24,IF(CT37<($L$24),CT37*($J$24/($L$24)),)) -> 0 | BA37: =+IF(CU37>=$L$25,$J$25,IF(CU37<($L$25),CU37*($J$25/($L$25)),)) -> 0.084 | BB37: =+IF(CV37>=$L$26,$J$26,IF(CV37<($L$26),CV37*($J$26/($L$26)),)) -> 0 | BC37: =IF(CW37>0,$F$16,0) -> 0 | BD37: =+IF(CX37>0,$F$17,0) -> 1 | BE37: =+IF(CL37>0,$F$18,0) -> 0 | BF37: =+IF(SUM(DK37:DL37)>0,$F$19,0) -> 1 | BG37: =SUM(AS37:BF37) -> 14.584 | BH37: =+BG37*$H$9 -> 4.861333333 | BI37: =+DR37 -> 0 | BJ37: =BI37/W37 -> 0 | BK37: =IF(BJ37>0,IF(BJ37>=$L$19,$J$19,IF(BJ37<$L$19,$J$20,0)),0) -> 0 | BL37: 0 | BM37: =BL37/W37 -> 0 | BN37: =IF(BM37,$F$22,0) -> 0 | BO37: =IF(DA37=1,$F$23,0) -> 0 | BP37: =+DN37 -> 0 | BQ37: =BP37/W37 -> 0 | BR37: =+IF(BQ37>=$K$4,$F$24,0) -> 0 | BS37: =DS37 -> 20 | BT37: =IF(BS37>0,IF(BS37>100,$F$25,BS37*$F$25/100),0) -> 0.2 | BU37: =DC37+DD37+DF37 -> 2 | BV37: =IF(DH37>0,$F$27,0) -> 0 | BW37: =IF(DI37>0,$F$28,0) -> 0 | BX37: =IF(DJ37=0,$F$29,0) -> 1 | BY37: =SUM(BK37,BN37,BT37,BO37,BR37,BU37,BV37,BW37,BX37) -> 3.2 | BZ37: =+BY37*$H$21 -> 1.066666667 | CA37: =SUM(AQ37,BG37,BY37) -> 30.456 | CB37: =SUM(AR37,BH37,BZ37) -> 10.152 | CC37: =+IF(CB37>=$W$14*$CC$25,1,IF(CB37>=$W$15*$CC$25,2,IF(CB37>=$W$16*$CC$25,3,IF(CB37>=0,4,"Ei pisteitä")))) -> 1 | CE37: =AE37*W37 -> 177.0165171 | CF37: =X37*W37 -> 2187117 | CI37: 1 | CJ37: https://www.google.com/maps/@61.51635661,24.90795763,3a,75y,90t/data=!3m3!1e1!3m1!2e0 | CK37: 0 | CL37: 0 | CN37: 1 | CO37: 0 | CP37: 1 | CQ37: 0 | CR37: 1 | CS37: 464 | CT37: 0 | CU37: 168 | CV37: 0 | CW37: 0 | CX37: 2 | CY37: 0 | CZ37: 0 | DA37: 0 | DB37: 0 | DC37: =+IF(Z37>$K$8,$F$26/4,0) -> 0.5 | DD37: =+IF(Z37/X37>1.5,$F$26/4,0) -> 0.5 | DE37: 459 | DF37: =IF(DE37>200,$F$26/2,$F$26/2/200*DE37) -> 1 | DH37: 0 | DI37: 0 | DJ37: 0 | DK37: 1 | DL37: 1 | DN37: 0 | DO37: Tampereentie, Vehkajärventie | DP37: Kangasala, Kuhmoinen | DQ37: 0 | DR37: 0 | DS37: 20 | DT37: 80 (100 %) | DU37: Ib (100 %) | DV37: PAB (100 %) | DW37: Y3 (100 %) | DX37: 7861 | DY37: =DX37/W37 -> 1.79352042
A38: 2310_2 | B38: 56365.308 | C38: 2310_2_0 | D38: 2 | E38: 2 | F38: 0 | G38: 10.134 | H38: 3.974 | I38: 5 | J38: 1.16 | K38: 1 | L38: 0 | M38: Gmaps | N38: Vähä | O38: Yhdys | P38: Kanteenmaantie | Q38: Punkalaidun | R38: 2310 | S38: 2 | T38: 0 | U38: 2 | V38: 5562 | W38: 5562 | X38: 454 | Y38: 54 | Z38: 544 | AA38: 23 | AB38: 50 (20 %), 60 (13 %), 80 (67 %) | AC38: II (100 %) | AD38: PAB (100 %) | AE38: 0.2655647935 | AF38: Y3 (100 %) | AG38: 0 | AH38: 1 | AI38: ei | AJ38: 0 | AK38: 1.026429342 | AL38: 8.172 | AM38: 76 | AN38: 3 | AO38: 75 | AP38: 0.75 | AQ38: 11.922 | AR38: 3.974 | AS38: 8 | AT38: 2 | AU38: 0 | AV38: 1 | AW38: 1 | AX38: 1 | AY38: 0.5 | AZ38: 0 | BA38: 0.5 | BB38: 0 | BC38: 0 | BD38: 0 | BE38: 0 | BF38: 1 | BG38: 15 | BH38: 5 | BI38: 0 | BJ38: 0 | BK38: 0 | BL38: 0 | BM38: 0 | BN38: 0 | BO38: 1 | BP38: 0 | BQ38: 0 | BR38: 0 | BS38: 65 | BT38: 0.65 | BU38: 0.83 | BV38: 0 | BW38: 0 | BX38: 1 | BY38: 3.48 | BZ38: 1.16 | CA38: 30.402 | CB38: 10.134 | CC38: 1 | CE38: 1477.071381 | CF38: 2525148 | CI38: 1 | CJ38: https://www.google.com/maps/@61.06276731,23.06788511,3a,75y,90t/data=!3m3!1e1!3m1!2e0 | CK38: 0 | CL38: 0 | CN38: 1 | CO38: 0 | CP38: 1 | CQ38: 2 | CR38: 1 | CS38: 1239 | CT38: 0 | CU38: 11197 | CV38: 0 | CW38: 0 | CX38: 0 | CY38: 0 | CZ38: 0 | DA38: 1 | DB38: 0 | DC38: 0.5 | DD38: 0 | DE38: 66 | DF38: 0.33 | DH38: 0 | DI38: 0 | DJ38: 0 | DK38: 1 | DL38: 0 | DN38: 0 | DO38: Kanteenmaantie | DP38: Punkalaidun | DQ38: 0 | DR38: 0 | DS38: 65 | DT38: 50 (20 %), 60 (13 %), 80 (67 %) | DU38: II (100 %) | DV38: PAB (100 %) | DW38: Y3 (100 %) | DX38: 5709 | DY38: 1.026429342
A39: 3071_1 | B39: 45887.26433 | C39: 3071_1_926 | D39: 3 | E39: 3 | F39: 0 | G39: 10.00158333 | H39: 4.525333333 | I39: 4.069583333 | J39: 1.406666667 | K39: 1 | L39: 0 | M39: Gmaps | N39: Vähä | O39: Yhdys | P39: Huittulantie, Ritvalanraitti | Q39: Valkeakoski | R39: 3071 | S39: 1 | T39: 926 | U39: 1 | V39: 5514 | W39: 4588 | X39: 487 | Y39: 33 | Z39: 681 | AA39: 5 | AB39: 40 (16 %), 50 (32 %), 60 (7 %), 80 (46 %) | AC39: II (100 %) | AD39: AB (100 %) | AE39: 0.02182602194 | AF39: Y3 (100 %) | AG39: 1 | AH39: 3 | AI39: kyllä | AJ39: 0 | AK39: 0.9967306016 | AL39: 8.766 | AM39: 82 | AN39: 3 | AO39: 181 | AP39: 1.81 | AQ39: 13.576 | AR39: 4.525333333 | AS39: 8 | AT39: 2 | AU39: 0 | AV39: 1 | AW39: 0 | AX39: 1 | AY39: 0.20875 | AZ39: 0 | BA39: 0 | BB39: 0 | BC39: 0 | BD39: 0 | BE39: 0 | BF39: 0 | BG39: 12.20875 | BH39: 4.069583333 | BI39: 3272 | BJ39: 0.7131647777 | BK39: 1 | BL39: 0 | BM39: 0 | BN39: 0 | BO39: 0 | BP39: 2084 | BQ39: 0.454228422 | BR39: 0 | BS39: 120 | BT39: 1 | BU39: 1.22 | BV39: 0 | BW39: 0 | BX39: 1 | BY39: 4.22 | BZ39: 1.406666667 | CA39: 30.00475 | CB39: 10.00158333 | CC39: 1 | CE39: 100.1377886 | CF39: 2234356 | CI39: 1 | CJ39: https://www.google.com/maps/@61.20024171,24.07159484,3a,75y,90t/data=!3m3!1e1!3m1!2e0 | CK39: 0 | CL39: 0 | CN39: 1 | CO39: 0 | CP39: 1 | CQ39: 0 | CR39: 1 | CS39: 167 | CT39: 0 | CU39: 0 | CV39: 0 | CW39: 0 | CX39: 0 | CY39: 0 | CZ39: 0 | DA39: 0 | DB39: 1 | DC39: 0.5 | DD39: 0 | DE39: 144 | DF39: 0.72 | DH39: 0 | DI39: 0 | DJ39: 0 | DK39: 0 | DL39: 0 | DN39: 2084 | DO39: Huittulantie, Ritvalanraitti | DP39: Valkeakoski | DQ39: 0 | DR39: 3272 | DS39: 120 | DT39: 40 (16 %), 50 (32 %), 60 (7 %), 80 (46 %) | DU39: II (100 %) | DV39: AB (100 %) | DW39: Y3 (100 %) | DX39: 4573 | DY39: 0.9967306016
A40: 3231_1 | B40: 33084.07058 | C40: 3231_1_0 | D40: 4 | E40: 4 | F40: 0 | G40: 9.791083333 | H40: 4.266666667 | I40: 4.62775 | J40: 0.8966666667 | K40: 1 | L40: 0 | M40: Gmaps | N40: Vähä | O40: Yhdys | P40: Iharintie | Q40: Pälkäne, Kangasala | R40: 3231 | S40: 1 | T40: 0 | U40: 1 | V40: 3379 | W40: 3379 | X40: 445 | Y40: 24 | Z40: 527 | AA40: 5 | AB40: 60 (18 %), 80 (82 %) | AC40: II (100 %) | AD40: AB (18 %), PAB (82 %) | AE40: 0.468472646 | AF40: Y2 (100 %) | AG40: 0 | AH40: 0 | AI40: ei | AJ40: 0 | AK40: 0.8111867416 | AL40: 8.01 | AM40: 70 | AN40: 3 | AO40: 179 | AP40: 1.79 | AQ40: 12.8 | AR40: 4.266666667 | AS40: 7.68 | AT40: 2 | AU40: 0 | AV40: 1 | AW40: 0 | AX40: 1 | AY40: 0.28125 | AZ40: 0.0275 | BA40: 0.3945 | BB40: 0.5 | BC40: 0 | BD40: 1 | BE40: 0 | BF40: 0 | BG40: 13.88325 | BH40: 4.62775 | BI40: 0 | BJ40: 0 | BK40: 0 | BL40: 0 | BM40: 0 | BN40: 0 | BO40: 0 | BP40: 0 | BQ40: 0 | BR40: 0 | BS40: 19 | BT40: 0.19 | BU40: 1.5 | BV40: 0 | BW40: 0 | BX40: 1 | BY40: 2.69 | BZ40: 0.8966666667 | CA40: 29.37325 | CB40: 9.791083333 | CC40: 1 | CE40: 1582.969071 | CF40: 1503655 | CI40: 1 | CJ40: https://www.google.com/maps/@61.38116133,24.24295076,3a,75y,90t/data=!3m3!1e1!3m1!2e0 | CK40: 0 | CL40: 0 | CN40: 1 | CO40: 0 | CP40: 1 | CQ40: 0 | CR40: 7 | CS40: 225 | CT40: 11 | CU40: 789 | CV40: 600843 | CW40: 0 | CX40: 1 | CY40: 0 | CZ40: 0 | DA40: 0 | DB40: 0 | DC40: 0.5 | DD40: 0 | DE40: 492 | DF40: 1 | DH40: 0 | DI40: 0 | DJ40: 0 | DK40: 0 | DL40: 0 | DN40: 0 | DO40: Iharintie | DP40: Pälkäne, Kangasala | DQ40: 0 | DR40: 0 | DS40: 19 | DT40: 60 (18 %), 80 (82 %) | DU40: II (100 %) | DV40: AB (18 %), PAB (82 %) | DW40: Y3 (100 %) | DX40: 2741 | DY40: 0.8111867416
A41: 3230_4 | B41: 13247.884 | C41: 3230_4_0 | D41: 5 | E41: 5 | F41: 0 | G41: 9.524 | H41: 4.404 | I41: 4.166666667 | J41: 0.9533333333 | K41: 1 | L41: 0 | M41: Gmaps | N41: Vähä | O41: Yhdys | P41: Pakkalantie, Tursolantie | Q41: Kangasala | R41: 3230 | S41: 4 | T41: 0 | U41: 4 | V41: 1391 | W41: 1391 | X41: 419 | Y41: 36 | Z41: 586 | AA41: 4 | AB41: 50 (36 %), 60 (64 %) | AC41: II (100 %) | AD41: PAB (100 %) | AE41: 0.1375248436 | AF41: Y3 (100 %) | AG41: 0 | AH41: 0 | AI41: ei | AJ41: 0 | AK41: 0.179007908 | AL41: 7.542 | AM41: 59 | AN41: 2.95 | AO41: 272 | AP41: 2.72 | AQ41: 13.212 | AR41: 4.404 | AS41: 8 | AT41: 2 | AU41: 0 | AV41: 1 | AW41: 0 | AX41: 0 | AY41: 0 | AZ41: 0 | BA41: 0 | BB41: 0.5 | BC41: 0 | BD41: 0 | BE41: 1 | BF41: 0 | BG41: 12.5 | BH41: 4.166666667 | BI41: 0 | BJ41: 0 | BK41: 0 | BL41: 0 | BM41: 0 | BN41: 0 | BO41: 1 | BP41: 0 | BQ41: 0 | BR41: 0 | BS41: 26 | BT41: 0.26 | BU41: 0.6 | BV41: 0 | BW41: 0 | BX41: 1 | BY41: 2.86 | BZ41: 0.9533333333 | CA41: 28.572 | CB41: 9.524 | CC41: 1 | CE41: 191.2970575 | CF41: 582829 | CI41: 1 | CJ41: https://www.google.com/maps/@61.44143114,24.40147865,3a,75y,90t/data=!3m3!1e1!3m1!2e0 | CK41: 0 | CL41: 1 | CN41: 1 | CO41: 0 | CP41: 1 | CQ41: 0 | CR41: 0 | CS41: 0 | CT41: 0 | CU41: 0 | CV41: 544313 | CW41: 0 | CX41: 0 | CY41: 0 | CZ41: 0 | DA41: 1 | DB41: 0 | DC41: 0.5 | DD41: 0 | DE41: 20 | DF41: 0.1 | DH41: 0 | DI41: 0 | DJ41: 0 | DK41: 0 | DL41: 0 | DN41: 0 | DO41: Pakkalantie, Tursolantie | DP41: Kangasala | DQ41: 0 | DR41: 0 | DS41: 26 | DT41: 50 (36 %), 60 (64 %) | DU41: II (100 %) | DV41: PAB (100 %) | DW41: Y3 (100 %) | DX41: 249 | DY41: 0.179007908
A42: 2310_1 | B42: 52950.09 | C42: 2310_1_0 | D42: 6 | E42: 6 | F42: 0 | G42: 9.314 | H42: 3.100666667 | I42: 5 | J42: 1.213333333 | K42: 1 | L42: 0 | M42: Gmaps | N42: Vähä | O42: Yhdys | P42: Kanteenmaantie | Q42: Punkalaidun | R42: 2310 | S42: 1 | T42: 0 | U42: 1 | V42: 5685 | W42: 5685 | X42: 454 | Y42: 54 | Z42: 544 | AA42: 23 | AB42: 50 (19 %), 80 (81 %) | AC42: II (100 %) | AD42: PAB (100 %) | AE42: 0.1144208711 | AF42: Y3 (100 %) | AG42: 2 | AH42: 2 | AI42: kyllä | AJ42: 0 | AK42: 0.9947229551 | AL42: 8.172 | AM42: 0 | AN42: 0 | AO42: 113 | AP42: 1.13 | AQ42: 9.302 | AR42: 3.100666667 | AS42: 8 | AT42: 2 | AU42: 0 | AV42: 1 | AW42: 1 | AX42: 0 | AY42: 0.5 | AZ42: 0 | BA42: 0.5 | BB42: 0 | BC42: 0 | BD42: 0 | BE42: 1 | BF42: 1 | BG42: 15 | BH42: 5 | BI42: 1691 | BJ42: 0.2974494283 | BK42: 0.5 | BL42: 0 | BM42: 0 | BN42: 0 | BO42: 1 | BP42: 1211 | BQ42: 0.2130167106 | BR42: 0 | BS42: 38 | BT42: 0.38 | BU42: 0.76 | BV42: 0 | BW42: 0 | BX42: 1 | BY42: 3.64 | BZ42: 1.213333333 | CA42: 27.942 | CB42: 9.314 | CC42: 1 | CE42: 650.4826522 | CF42: 2580990 | CI42: 1 | CJ42: https://www.google.com/maps/@61.10870988,23.10425122,3a,75y,90t/data=!3m3!1e1!3m1!2e0 | CK42: 0 | CL42: 1 | CN42: 1 | CO42: 0 | CP42: 1 | CQ42: 2 | CR42: 0 | CS42: 1175 | CT42: 0 | CU42: 4284 | CV42: 0 | CW42: 0 | CX42: 0 | CY42: 152 | CZ42: 0 | DA42: 1 | DB42: 1 | DC42: 0.5 | DD42: 0 | DE42: 52 | DF42: 0.26 | DH42: 0 | DI42: 0 | DJ42: 0 | DK42: 1 | DL42: 0 | DN42: 1211 | DO42: Kanteenmaantie | DP42: Punkalaidun | DQ42: 0 | DR42: 1691 | DS42: 38 | DT42: 50 (19 %), 80 (81 %) | DU42: II (100 %) | DV42: PAB (100 %) | DW42: Y3 (100 %) | DX42: 5655 | DY42: 0.9947229551
A43: 12949_1 | B43: 21792.93867 | C43: 12949_1_0 | D43: 7 | E43: 7 | F43: 0 | G43: 9.141333333 | H43: 3.538 | I43: 4.008333333 | J43: 1.595 | K43: 1 | L43: 0 | M43: Gmaps | N43: Vähä | O43: Yhdys | P43: Tyrväänkyläntie | Q43: Sastamala | R43: 12949 | S43: 1 | T43: 0 | U43: 1 | V43: 2384 | W43: 2384 | X43: 403 | Y43: 40 | Z43: 491 | AA43: 6 | AB43: 40 (33 %), 50 (67 %) | AC43: II (100 %) | AD43: PAB (100 %) | AE43: 0.01390516123 | AF43: Y3 (100 %) | AG43: 0 | AH43: 0 | AI43: kyllä | AJ43: 0 | AK43: 0 | AL43: 7.254 | AM43: 53 | AN43: 2.65 | AO43: 71 | AP43: 0.71 | AQ43: 10.614 | AR43: 3.538 | AS43: 8 | AT43: 2 | AU43: 0 | AV43: 1 | AW43: 0 | AX43: 1 | AY43: 0.025 | AZ43: 0 | BA43: 0 | BB43: 0 | BC43: 0 | BD43: 0 | BE43: 0 | BF43: 0 | BG43: 12.025 | BH43: 4.008333333 | BI43: 2374 | BJ43: 0.9958053691 | BK43: 1 | BL43: 0 | BM43: 0 | BN43: 0 | BO43: 1 | BP43: 2374 | BQ43: 0.9958053691 | BR43: 1 | BS43: 78 | BT43: 0.78 | BU43: 0.005 | BV43: 0 | BW43: 0 | BX43: 1 | BY43: 4.785 | BZ43: 1.595 | CA43: 27.424 | CB43: 9.141333333 | CC43: 1 | CE43: 33.14990436 | CF43: 960752 | CI43: 1 | CJ43: https://www.google.com/maps/@61.31819066,22.86806611,3a,75y,90t/data=!3m3!1e1!3m1!2e0 | CK43: 0 | CL43: 0 | CN43: 1 | CO43: 0 | CP43: 1 | CQ43: 0 | CR43: 2 | CS43: 20 | CT43: 0 | CU43: 0 | CV43: 0 | CW43: 0 | CX43: 0 | CY43: 2374 | CZ43: 0 | DA43: 1 | DB43: 1 | DC43: 0 | DD43: 0 | DE43: 1 | DF43: 0.005 | DH43: 0 | DI43: 0 | DJ43: 0 | DK43: 0 | DL43: 0 | DN43: 2374 | DO43: Tyrväänkyläntie | DP43: Sastamala | DQ43: 0 | DR43: 2374 | DS43: 78 | DT43: 40 (33 %), 50 (67 %) | DU43: II (100 %) | DV43: PAB (100 %) | DW43: Y3 (100 %) | DX43: 0 | DY43: 0
A44: 3231_2 | B44: 39938.68083 | C44: 3231_2_0 | D44: 8 | E44: 8 | F44: 0 | G44: 8.944833333 | H44: 3.443333333 | I44: 4.578166667 | J44: 0.9233333333 | K44: 1 | L44: 0 | M44: Gmaps | N44: Vähä | O44: Yhdys | P44: Pohjalahdentie | Q44: Pälkäne, Kangasala | R44: 3231 | S44: 2 | T44: 0 | U44: 2 | V44: 4465 | W44: 4465 | X44: 445 | Y44: 24 | Z44: 527 | AA44: 5 | AB44: 50 (9 %), 60 (23 %), 80 (68 %) | AC44: II (100 %) | AD44: AB (18 %), PAB (82 %) | AE44: 0.5220939744 | AF44: Y3 (100 %) | AG44: 0 | AH44: 0 | AI44: ei | AJ44: 0 | AK44: 0.7664053751 | AL44: 8.01 | AM44: 0 | AN44: 0 | AO44: 232 | AP44: 2.32 | AQ44: 10.33 | AR44: 3.443333333 | AS44: 7.68 | AT44: 2 | AU44: 0 | AV44: 1 | AW44: 0 | AX44: 1 | AY44: 0.1425 | AZ44: 0.0175 | BA44: 0.3945 | BB44: 0.5 | BC44: 0 | BD44: 1 | BE44: 0 | BF44: 0 | BG44: 13.7345 | BH44: 4.578166667 | BI44: 0 | BJ44: 0 | BK44: 0 | BL44: 0 | BM44: 0 | BN44: 0 | BO44: 0 | BP44: 0 | BQ44: 0 | BR44: 0 | BS44: 27 | BT44: 0.27 | BU44: 1.5 | BV44: 0 | BW44: 0 | BX44: 1 | BY44: 2.77 | BZ44: 0.9233333333 | CA44: 26.8345 | CB44: 8.944833333 | CC44: 1 | CE44: 2331.149596 | CF44: 1986925 | CI44: 1 | CJ44: https://www.google.com/maps/@61.40594044,24.25512705,3a,75y,90t/data=!3m3!1e1!3m1!2e0 | CK44: 0 | CL44: 0 | CN44: 1 | CO44: 0 | CP44: 1 | CQ44: 0 | CR44: 7 | CS44: 114 | CT44: 7 | CU44: 789 | CV44: 600843 | CW44: 0 | CX44: 1 | CY44: 0 | CZ44: 0 | DA44: 0 | DB44: 0 | DC44: 0.5 | DD44: 0 | DE44: 468 | DF44: 1 | DH44: 0 | DI44: 0 | DJ44: 0 | DK44: 0 | DL44: 0 | DN44: 0 | DO44: Pohjalahdentie | DP44: Pälkäne, Kangasala | DQ44: 0 | DR44: 0 | DS44: 27 | DT44: 50 (9 %), 60 (23 %), 80 (68 %) | DU44: II (100 %) | DV44: AB (18 %), PAB (82 %) | DW44: Y3 (100 %) | DX44: 3422 | DY44: 0.7664053751
A45: 232_2 | B45: 55280.5 | C45: 232_2_0 | D45: 9 | E45: 9 | F45: 0 | G45: 8.74 | H45: 3.124666667 | I45: 4.080333333 | J45: 1.535 | K45: 1 | L45: 0 | M45: Gmaps | N45: Vähä | O45: Seutu | P45: Murronharjuntie | Q45: Punkalaidun | R45: 232 | S45: 2 | T45: 0 | U45: 2 | V45: 6325 | W45: 6325 | X45: 463 | Y45: 32 | Z45: 615 | AA45: 8 | AB45: 80 (100 %) | AC45: II (100 %) | AD45: PAB (100 %) | AE45: 0.3790012553 | AF45: Y3 (100 %) | AG45: 1 | AH45: 1 | AI45: ei | AJ45: 0 | AK45: 1.259288538 | AL45: 8.334 | AM45: 0 | AN45: 0 | AO45: 104 | AP45: 1.04 | AQ45: 9.374 | AR45: 3.124666667 | AS45: 8 | AT45: 2 | AU45: 0 | AV45: 0 | AW45: 0 | AX45: 1 | AY45: 0.095 | AZ45: 0 | BA45: 0.146 | BB45: 0 | BC45: 1 | BD45: 0 | BE45: 0 | BF45: 0 | BG45: 12.241 | BH45: 4.080333333 | BI45: 0 | BJ45: 0 | BK45: 0 | BL45: 0 | BM45: 0 | BN45: 0 | BO45: 1 | BP45: 0 | BQ45: 0 | BR45: 0 | BS45: 23 | BT45: 0.23 | BU45: 1.375 | BV45: 1 | BW45: 0 | BX45: 1 | BY45: 4.605 | BZ45: 1.535 | CA45: 26.22 | CB45: 8.74 | CC45: 1 | CE45: 2397.18294 | CF45: 2928475 | CI45: 1 | CJ45: https://www.google.com/maps/@61.00664874,23.25466925,3a,75y,90t/data=!3m3!1e1!3m1!2e0 | CK45: 0 | CL45: 0 | CN45: 1 | CO45: 0 | CP45: 0 | CQ45: 0 | CR45: 5 | CS45: 76 | CT45: 0 | CU45: 292 | CV45: 0 | CW45: 1 | CX45: 0 | CY45: 0 | CZ45: 0 | DA45: 1 | DB45: 0 | DC45: 0.5 | DD45: 0 | DE45: 175 | DF45: 0.875 | DH45: 1 | DI45: 0 | DJ45: 0 | DK45: 0 | DL45: 0 | DN45: 0 | DO45: Murronharjuntie | DP45: Punkalaidun | DQ45: 0 | DR45: 0 | DS45: 23 | DT45: 80 (100 %) | DU45: II (100 %) | DV45: PAB (100 %) | DW45: Y3 (100 %) | DX45: 7965 | DY45: 1.259288538
A46: 301_4 | B46: 52814.73067 | C46: 301_4_0 | D46: 10 | E46: 10 | F46: 0 | G46: 8.686633333 | H46: 3.386666667 | I46: 4.036633333 | J46: 1.263333333 | K46: 1 | L46: 0 | M46: Gmaps | N46: Vähä | O46: Seutu | P46: Rämsööntie | Q46: Vesilahti | R46: 301 | S46: 4 | T46: 0 | U46: 4 | V46: 6080 | W46: 6080 | X46: 495 | Y46: 42 | Z46: 717 | AA46: 10 | AB46: 50 (48 %), 80 (52 %) | AC46: II (100 %) | AD46: PAB (100 %) | AE46: 0.1644783717 | AF46: Y3 (100 %) | AG46: 0 | AH46: 1 | AI46: ei | AJ46: 0 | AK46: 2.627302632 | AL46: 8.91 | AM46: 0 | AN46: 0 | AO46: 125 | AP46: 1.25 | AQ46: 10.16 | AR46: 3.386666667 | AS46: 8 | AT46: 2 | AU46: 0 | AV46: 0 | AW46: 0 | AX46: 1 | AY46: 0 | AZ46: 0.1075 | BA46: 0 | BB46: 0.0024 | BC46: 0 | BD46: 0 | BE46: 0 | BF46: 1 | BG46: 12.1099 | BH46: 4.036633333 | BI46: 0 | BJ46: 0 | BK46: 0 | BL46: 0 | BM46: 0 | BN46: 0 | BO46: 1 | BP46: 0 | BQ46: 0 | BR46: 0 | BS46: 45 | BT46: 0.45 | BU46: 1.34 | BV46: 0 | BW46: 0 | BX46: 1 | BY46: 3.79 | BZ46: 1.263333333 | CA46: 26.0599 | CB46: 8.686633333 | CC46: 1 | CE46: 1000.0285 | CF46: 3009600 | CI46: 1 | CJ46: https://www.google.com/maps/@61.34270185,23.2910416,3a,75y,90t/data=!3m3!1e1!3m1!2e0 | CK46: 0 | CL46: 0 | CN46: 1 | CO46: 0 | CP46: 0 | CQ46: 0 | CR46: 1 | CS46: 0 | CT46: 43 | CU46: 0 | CV46: 48 | CW46: 0 | CX46: 0 | CY46: 0 | CZ46: 0 | DA46: 1 | DB46: 0 | DC46: 0.5 | DD46: 0 | DE46: 168 | DF46: 0.84 | DH46: 0 | DI46: 0 | DJ46: 0 | DK46: 0 | DL46: 1 | DN46: 0 | DO46: Rämsööntie | DP46: Vesilahti | DQ46: 0 | DR46: 0 | DS46: 45 | DT46: 50 (48 %), 80 (52 %) | DU46: II (100 %) | DV46: PAB (100 %) | DW46: Y2 (100 %) | DX46: 15974 | DY46: 2.627302632
A47: 2594_6 | B47: 49879.5895 | C47: 2594_6_0 | D47: 11 | E47: 11 | F47: 0 | G47: 8.68075 | H47: 3.238666667 | I47: 4.427083333 | J47: 1.015 | K47: 1 | L47: 0 | M47: Gmaps | N47: Vähä | O47: Yhdys | P47: Vatulantie | Q47: Ikaalinen | R47: 2594 | S47: 6 | T47: 0 | U47: 6 | V47: 5746 | W47: 5746 | X47: 482 | Y47: 28 | Z47: 530 | AA47: 4 | AB47: 40 (4 %), 50 (34 %), 60 (46 %), 80 (16 %) | AC47: II (100 %) | AD47: PAB (100 %) | AE47: 0.6263647989 | AF47: Y3 (100 %) | AG47: 0 | AH47: 1 | AI47: kyllä | AJ47: 0 | AK47: 2.097459102 | AL47: 8.676 | AM47: 4 | AN47: 0.2 | AO47: 84 | AP47: 0.84 | AQ47: 9.716 | AR47: 3.238666667 | AS47: 8 | AT47: 2 | AU47: 0 | AV47: 1 | AW47: 0 | AX47: 1 | AY47: 0.02625 | AZ47: 0.255 | BA47: 0 | BB47: 0 | BC47: 0 | BD47: 1 | BE47: 0 | BF47: 0 | BG47: 13.28125 | BH47: 4.427083333 | BI47: 2289 | BJ47: 0.3983640794 | BK47: 0.5 | BL47: 0 | BM47: 0 | BN47: 0 | BO47: 0 | BP47: 553 | BQ47: 0.09624086321 | BR47: 0 | BS47: 71 | BT47: 0.71 | BU47: 0.835 | BV47: 0 | BW47: 0 | BX47: 1 | BY47: 3.045 | BZ47: 1.015 | CA47: 26.04225 | CB47: 8.68075 | CC47: 1 | CE47: 3599.092134 | CF47: 2769572 | CI47: 1 | CJ47: https://www.google.com/maps/@61.72861276,22.92919915,3a,75y,90t/data=!3m3!1e1!3m1!2e0 | CK47: 0 | CL47: 0 | CN47: 1 | CO47: 0 | CP47: 1 | CQ47: 0 | CR47: 1 | CS47: 21 | CT47: 102 | CU47: 0 | CV47: 0 | CW47: 0 | CX47: 2 | CY47: 2289 | CZ47: 0 | DA47: 0 | DB47: 1 | DC47: 0.5 | DD47: 0 | DE47: 67 | DF47: 0.335 | DH47: 0 | DI47: 0 | DJ47: 0 | DK47: 0 | DL47: 0 | DN47: 553 | DO47: Vatulantie | DP47: Ikaalinen | DQ47: 0 | DR47: 2289 | DS47: 71 | DT47: 40 (4 %), 50 (34 %), 60 (46 %), 80 (16 %) | DU47: II (100 %) | DV47: PAB (100 %) | DW47: Y3 (100 %) | DX47: 12052 | DY47: 2.097459102
A48: 231_1 | B48: 6841.608 | C48: 231_1_0 | D48: 12 | E48: 12 | F48: 0 | G48: 8.541333333 | H48: 4.138 | I48: 3.833333333 | J48: 0.57 | K48: 1 | L48: 0 | M48: Gmaps | N48: Vähä | O48: Seutu | P48: Kanteenmaantie | Q48: Punkalaidun | R48: 231 | S48: 1 | T48: 0 | U48: 1 | V48: 801 | W48: 801 | X48: 498 | Y48: 50 | Z48: 575 | AA48: 18 | AB48: 60 (100 %) | AC48: Ib (100 %) | AD48: PAB (100 %) | AE48: 0.001246151969 | AF48: Y3 (100 %) | AG48: 0 | AH48: 0 | AI48: ei | AJ48: 0 | AK48: 0.1011235955 | AL48: 8.964 | AM48: 76 | AN48: 3 | AO48: 45 | AP48: 0.45 | AQ48: 12.414 | AR48: 4.138 | AS48: 8 | AT48: 2 | AU48: 0 | AV48: 0 | AW48: 0 | AX48: 1 | AY48: 0 | AZ48: 0 | BA48: 0.5 | BB48: 0 | BC48: 0 | BD48: 0 | BE48: 0 | BF48: 0 | BG48: 11.5 | BH48: 3.833333333 | BI48: 0 | BJ48: 0 | BK48: 0 | BL48: 0 | BM48: 0 | BN48: 0 | BO48: 0 | BP48: 0 | BQ48: 0 | BR48: 0 | BS48: 20 | BT48: 0.2 | BU48: 0.51 | BV48: 0 | BW48: 0 | BX48: 1 | BY48: 1.71 | BZ48: 0.57 | CA48: 25.624 | CB48: 8.541333333 | CC48: 1 | CE48: 0.9981677268 | CF48: 398898 | CI48: 1 | CJ48: https://www.google.com/maps/@61.0405782,22.99518145,3a,75y,90t/data=!3m3!1e1!3m1!2e0 | CK48: 0 | CL48: 0 | CN48: 1 | CO48: 0 | CP48: 0 | CQ48: 0 | CR48: 1 | CS48: 0 | CT48: 0 | CU48: 11171 | CV48: 0 | CW48: 0 | CX48: 0 | CY48: 0 | CZ48: 0 | DA48: 0 | DB48: 0 | DC48: 0.5 | DD48: 0 | DE48: 2 | DF48: 0.01 | DH48: 0 | DI48: 0 | DJ48: 0 | DK48: 0 | DL48: 0 | DN48: 0 | DO48: Kanteenmaantie | DP48: Punkalaidun | DQ48: 0 | DR48: 0 | DS48: 20 | DT48: 60 (100 %) | DU48: Ib (100 %) | DV48: PAB (100 %) | DW48: Y3 (100 %) | DX48: 81 | DY48: 0.1011235955
A49: 13149_1 | B49: 15456.8425 | C49: 13149_1_0 | D49: 13 | E49: 13 | F49: 0 | G49: 8.516166667 | H49: 4.372 | I49: 3.340833333 | J49: 0.8033333333 | K49: 1 | L49: 0 | M49: Gmaps | N49: Vähä | O49: Yhdys | P49: Rokkakoskentie | Q49: Hämeenkyrö | R49: 13149 | S49: 1 | T49: 0 | U49: 1 | V49: 1815 | W49: 1815 | X49: 412 | Y49: 35 | Z49: 419 | AA49: 3 | AB49: 60 (99 %), 80 (1 %) | AC49: II (100 %) | AD49: AB (100 %) | AE49: 0.05550995168 | AF49: Y3 (100 %) | AG49: 0 | AH49: 0 | AI49: kyllä | AJ49: 0 | AK49: 0.9801652893 | AL49: 7.416 | AM49: 54 | AN49: 2.7 | AO49: 353 | AP49: 3 | AQ49: 13.116 | AR49: 4.372 | AS49: 8 | AT49: 0 | AU49: 0 | AV49: 1 | AW49: 0 | AX49: 1 | AY49: 0 | AZ49: 0.0225 | BA49: 0 | BB49: 0 | BC49: 0 | BD49: 0 | BE49: 0 | BF49: 0 | BG49: 10.0225 | BH49: 3.340833333 | BI49: 0 | BJ49: 0 | BK49: 0 | BL49: 0 | BM49: 0 | BN49: 0 | BO49: 1 | BP49: 0 | BQ49: 0 | BR49: 0 | BS49: 32 | BT49: 0.32 | BU49: 0.09 | BV49: 0 | BW49: 0 | BX49: 1 | BY49: 2.41 | BZ49: 0.8033333333 | CA49: 25.5485 | CB49: 8.516166667 | CC49: 1 | CE49: 100.7505623 | CF49: 747780 | CI49: 1 | CJ49: https://www.google.com/maps/@61.60810503,23.34927144,3a,75y,90t/data=!3m3!1e1!3m1!2e0 | CK49: 0 | CL49: 0 | CN49: 0 | CO49: 0 | CP49: 1 | CQ49: 0 | CR49: 2 | CS49: 0 | CT49: 9 | CU49: 0 | CV49: 0 | CW49: 0 | CX49: 0 | CY49: 0 | CZ49: 0 | DA49: 1 | DB49: 0 | DC49: 0 | DD49: 0 | DE49: 18 | DF49: 0.09 | DH49: 0 | DI49: 0 | DJ49: 0 | DK49: 0 | DL49: 0 | DN49: 0 | DO49: Rokkakoskentie | DP49: Hämeenkyrö | DQ49: 0 | DR49: 0 | DS49: 32 | DT49: 60 (99 %), 80 (1 %) | DU49: II (100 %) | DV49: AB (100 %) | DW49: Y3 (100 %) | DX49: 1779 | DY49: 0.9801652893
A50: 14195_1 | B50: 23613.616 | C50: 14195_1_0 | D50: 14 | E50: 14 | F50: 0 | G50: 8.488 | H50: 4.074666667 | I50: 3.666666667 | J50: 0.7466666667 | K50: 1 | L50: 0 | M50: Gmaps | N50: Vähä | O50: Yhdys | P50: Eerolansuorantie | Q50: Tampere | R50: 14195 | S50: 1 | T50: 0 | U50: 1 | V50: 2782 | W50: 2782 | X50: 483 | Y50: 66 | Z50: 589 | AA50: 46 | AB50: 50 (100 %) | AC50: III (100 %) | AD50: AB (4 %), PAB (96 %) | AE50: 0.8626190393 | AF50: Y3 (100 %) | AG50: 0 | AH50: 1 | AI50: kyllä | AJ50: 0 | AK50: 0 | AL50: 8.694 | AM50: 604 | AN50: 3 | AO50: 53 | AP50: 0.53 | AQ50: 12.224 | AR50: 4.074666667 | AS50: 8 | AT50: 0 | AU50: 0 | AV50: 0 | AW50: 0 | AX50: 1 | AY50: 0 | AZ50: 0 | BA50: 0 | BB50: 0 | BC50: 0 | BD50: 1 | BE50: 1 | BF50: 0 | BG50: 11 | BH50: 3.666666667 | BI50: 0 | BJ50: 0 | BK50: 0 | BL50: 0 | BM50: 0 | BN50: 0 | BO50: 0 | BP50: 0 | BQ50: 0 | BR50: 0 | BS50: 36 | BT50: 0.36 | BU50: 0.88 | BV50: 0 | BW50: 0 | BX50: 1 | BY50: 2.24 | BZ50: 0.7466666667 | CA50: 25.464 | CB50: 8.488 | CC50: 1 | CE50: 2399.806167 | CF50: 1343706 | CI50: 1 | CJ50: https://www.google.com/maps/@61.56298599,23.9076079,3a,75y,90t/data=!3m3!1e1!3m1!2e0 | CK50: 0 | CL50: 1 | CN50: 0 | CO50: 0 | CP50: 0 | CQ50: 0 | CR50: 2 | CS50: 0 | CT50: 0 | CU50: 0 | CV50: 0 | CW50: 0 | CX50: 1 | CY50: 0 | CZ50: 0 | DA50: 0 | DB50: 0 | DC50: 0.5 | DD50: 0 | DE50: 76 | DF50: 0.38 | DH50: 0 | DI50: 0 | DJ50: 0 | DK50: 0 | DL50: 0 | DN50: 0 | DO50: Eerolansuorantie | DP50: Tampere | DQ50: 0 | DR50: 0 | DS50: 36 | DT50: 50 (100 %) | DU50: III (100 %) | DV50: AB (4 %), PAB (96 %) | DW50: Y3 (100 %) | DX50: 0 | DY50: 0
A51: 346_7 | B51: 23026.16492 | C51: 346_7_0 | D51: 15 | E51: 15 | F51: 0 | G51: 8.437583333 | H51: 2.864666667 | I51: 4.35625 | J51: 1.216666667 | K51: 1 | L51: 0 | M51: Gmaps | N51: Vähä | O51: Seutu | P51: Kaakkolantie | Q51: Virrat | R51: 346 | S51: 7 | T51: 0 | U51: 7 | V51: 2729 | W51: 2729 | X51: 458 | Y51: 48 | Z51: 558 | AA51: 24 | AB51: 80 (100 %) | AC51: II (100 %) | AD51: AB (100 %) | AE51: 0.04734033997 | AF51: Y3 (100 %) | AG51: 1 | AH51: 2 | AI51: ei | AJ51: 0 | AK51: 2.992304874 | AL51: 8.244 | AM51: 2 | AN51: 0.1 | AO51: 25 | AP51: 0.25 | AQ51: 8.594 | AR51: 2.864666667 | AS51: 8 | AT51: 2 | AU51: 0 | AV51: 1 | AW51: 0 | AX51: 1 | AY51: 0.00125 | AZ51: 0.0675 | BA51: 0 | BB51: 0 | BC51: 0 | BD51: 0 | BE51: 0 | BF51: 1 | BG51: 13.06875 | BH51: 4.35625 | BI51: 1930 | BJ51: 0.7072187615 | BK51: 1 | BL51: 0 | BM51: 0 | BN51: 0 | BO51: 0 | BP51: 0 | BQ51: 0 | BR51: 0 | BS51: 22 | BT51: 0.22 | BU51: 1.43 | BV51: 0 | BW51: 0 | BX51: 1 | BY51: 3.65 | BZ51: 1.216666667 | CA51: 25.31275 | CB51: 8.437583333 | CC51: 1 | CE51: 129.1917878 | CF51: 1249882 | CI51: 1 | CJ51: https://www.google.com/maps/@62.23945625,24.06138903,3a,75y,90t/data=!3m3!1e1!3m1!2e0 | CK51: 0 | CL51: 0 | CN51: 1 | CO51: 0 | CP51: 1 | CQ51: 0 | CR51: 1 | CS51: 1 | CT51: 27 | CU51: 0 | CV51: 0 | CW51: 0 | CX51: 0 | CY51: 1930 | CZ51: 0 | DA51: 0 | DB51: 0 | DC51: 0.5 | DD51: 0 | DE51: 186 | DF51: 0.93 | DH51: 0 | DI51: 0 | DJ51: 0 | DK51: 0 | DL51: 1 | DN51: 0 | DO51: Kaakkolantie | DP51: Virrat | DQ51: 0 | DR51: 1930 | DS51: 22 | DT51: 80 (100 %) | DU51: II (100 %) | DV51: AB (100 %) | DW51: Y3 (100 %) | DX51: 8166 | DY51: 2.992304874
A52: 13087_1 | B52: 23823.34 | C52: 13087_1_2310 | D52: 16 | E52: 16 | F52: 0 | G52: 8.3885 | H52: 3.256 | I52: 4.3525 | J52: 0.78 | K52: 1 | L52: 0 | M52: Gmaps | N52: Vähä | O52: Yhdys | P52: Vesajärventie | Q52: Hämeenkyrö | R52: 13087 | S52: 1 | T52: 2310 | U52: 1 | V52: 5150 | W52: 2840 | X52: 461 | Y52: 26 | Z52: 507 | AA52: 6 | AB52: 40 (22 %), 60 (36 %), 80 (43 %) | AC52: Ib (8 %), II (92 %) | AD52: AB (100 %), PAB (0 %) | AE52: 0.06858390804 | AF52: Y2 (100 %) | AG52: 0 | AH52: 0 | AI52: ei | AJ52: 0 | AK52: 1.026056338 | AL52: 8.298 | AM52: 5 | AN52: 0.25 | AO52: 122 | AP52: 1.22 | AQ52: 9.768 | AR52: 3.256 | AS52: 8 | AT52: 2 | AU52: 0 | AV52: 1 | AW52: 0 | AX52: 1 | AY52: 0.0575 | AZ52: 0 | BA52: 0 | BB52: 0 | BC52: 0 | BD52: 1 | BE52: 0 | BF52: 0 | BG52: 13.0575 | BH52: 4.3525 | BI52: 0 | BJ52: 0 | BK52: 0 | BL52: 0 | BM52: 0 | BN52: 0 | BO52: 0 | BP52: 1098 | BQ52: 0.3866197183 | BR52: 0 | BS52: 52 | BT52: 0.52 | BU52: 0.82 | BV52: 0 | BW52: 0 | BX52: 1 | BY52: 2.34 | BZ52: 0.78 | CA52: 25.1655 | CB52: 8.3885 | CC52: 1 | CE52: 194.7782988 | CF52: 1309240 | CI52: 1 | CJ52: https://www.google.com/maps/@61.69058037,23.13848166,3a,75y,90t/data=!3m3!1e1!3m1!2e0 | CK52: 0 | CL52: 0 | CN52: 1 | CO52: 0 | CP52: 1 | CQ52: 0 | CR52: 3 | CS52: 46 | CT52: 0 | CU52: 0 | CV52: 0 | CW52: 0 | CX52: 1 | CY52: 0 | CZ52: 0 | DA52: 0 | DB52: 1 | DC52: 0.5 | DD52: 0 | DE52: 64 | DF52: 0.32 | DH52: 0 | DI52: 0 | DJ52: 0 | DK52: 0 | DL52: 0 | DN52: 1098 | DO52: Vesajärventie | DP52: Hämeenkyrö | DQ52: 0 | DR52: 0 | DS52: 52 | DT52: 40 (22 %), 60 (36 %), 80 (43 %) | DU52: Ib (8 %), II (92 %) | DV52: AB (100 %), PAB (0 %) | DW52: Y3 (100 %) | DX52: 2914 | DY52: 1.026056338
A53: 301_5 | B53: 49535.65 | C53: 301_5_0 | D53: 17 | E53: 17 | F53: 0 | G53: 8.381666667 | H53: 3.286666667 | I53: 4.02 | J53: 1.075 | K53: 1 | L53: 0 | M53: Gmaps | N53: Vähä | O53: Seutu | P53: Rämsööntie | Q53: Vesilahti | R53: 301 | S53: 5 | T53: 0 | U53: 5 | V53: 5910 | W53: 5910 | X53: 495 | Y53: 42 | Z53: 717 | AA53: 10 | AB53: 80 (100 %) | AC53: II (100 %) | AD53: PAB (100 %) | AE53: 0.1031514088 | AF53: Y3 (100 %) | AG53: 0 | AH53: 1 | AI53: kyllä | AJ53: 0 | AK53: 2.395600677 | AL53: 8.91 | AM53: 0 | AN53: 0 | AO53: 95 | AP53: 0.95 | AQ53: 9.86 | AR53: 3.286666667 | AS53: 8 | AT53: 2 | AU53: 0 | AV53: 0 | AW53: 0 | AX53: 1 | AY53: 0 | AZ53: 0.06 | BA53: 0 | BB53: 0 | BC53: 0 | BD53: 0 | BE53: 0 | BF53: 1 | BG53: 12.06 | BH53: 4.02 | BI53: 943 | BJ53: 0.1595600677 | BK53: 0.5 | BL53: 0 | BM53: 0 | BN53: 0 | BO53: 1 | BP53: 0 | BQ53: 0 | BR53: 0 | BS53: 16 | BT53: 0.16 | BU53: 0.565 | BV53: 0 | BW53: 0 | BX53: 1 | BY53: 3.225 | BZ53: 1.075 | CA53: 25.145 | CB53: 8.381666667 | CC53: 1 | CE53: 609.6248258 | CF53: 2925450 | CI53: 1 | CJ53: https://www.google.com/maps/@61.31276193,23.37423068,3a,75y,90t/data=!3m3!1e1!3m1!2e0 | CK53: 0 | CL53: 0 | CN53: 1 | CO53: 0 | CP53: 0 | CQ53: 0 | CR53: 1 | CS53: 0 | CT53: 24 | CU53: 0 | CV53: 0 | CW53: 0 | CX53: 0 | CY53: 943 | CZ53: 0 | DA53: 1 | DB53: 0 | DC53: 0.5 | DD53: 0 | DE53: 13 | DF53: 0.065 | DH53: 0 | DI53: 0 | DJ53: 0 | DK53: 0 | DL53: 1 | DN53: 0 | DO53: Rämsööntie | DP53: Vesilahti | DQ53: 0 | DR53: 943 | DS53: 16 | DT53: 80 (100 %) | DU53: II (100 %) | DV53: PAB (100 %) | DW53: Y2 (100 %) | DX53: 14158 | DY53: 2.395600677
A54: 2846_7 | B54: 41358.50333 | C54: 2846_7_0 | D54: 18 | E54: 18 | F54: 0 | G54: 8.328333333 | H54: 4.246666667 | I54: 2.61 | J54: 1.471666667 | K54: 1 | L54: 0 | M54: Gmaps | N54: Vähä | O54: Yhdys | P54: Kuurilantie | Q54: Hämeenlinna, Valkeakoski | R54: 2846 | S54: 7 | T54: 0 | U54: 7 | V54: 4966 | W54: 4966 | X54: 485 | Y54: 23 | Z54: 591 | AA54: 2 | AB54: 60 (57 %), 80 (43 %) | AC54: II (100 %) | AD54: AB (13 %), PAB (87 %) | AE54: 0.7283286502 | AF54: Y3 (100 %) | AG54: 0 | AH54: 0 | AI54: ei | AJ54: 0 | AK54: 1.920056383 | AL54: 8.73 | AM54: 72 | AN54: 3 | AO54: 101 | AP54: 1.01 | AQ54: 12.74 | AR54: 4.246666667 | AS54: 7.36 | AT54: 0 | AU54: 0 | AV54: 0 | AW54: 0 | AX54: 0 | AY54: 0 | AZ54: 0.47 | BA54: 0 | BB54: 0 | BC54: 0 | BD54: 0 | BE54: 0 | BF54: 0 | BG54: 7.83 | BH54: 2.61 | BI54: 3377 | BJ54: 0.6800241643 | BK54: 1 | BL54: 0 | BM54: 0 | BN54: 0 | BO54: 1 | BP54: 0 | BQ54: 0 | BR54: 0 | BS54: 86 | BT54: 0.86 | BU54: 0.555 | BV54: 0 | BW54: 0 | BX54: 1 | BY54: 4.415 | BZ54: 1.471666667 | CA54: 24.985 | CB54: 8.328333333 | CC54: 1 | CE54: 3616.880077 | CF54: 2408510 | CI54: 1 | CJ54: https://www.google.com/maps/@61.12247502,24.02700168,3a,75y,90t/data=!3m3!1e1!3m1!2e0 | CK54: 0 | CL54: 0 | CN54: 0 | CO54: 0 | CP54: 0 | CQ54: 0 | CR54: 0 | CS54: 0 | CT54: 188 | CU54: 0 | CV54: 0 | CW54: 0 | CX54: 0 | CY54: 3377 | CZ54: 0 | DA54: 1 | DB54: 0 | DC54: 0.5 | DD54: 0 | DE54: 11 | DF54: 0.055 | DH54: 0 | DI54: 0 | DJ54: 0 | DK54: 0 | DL54: 0 | DN54: 0 | DO54: Kuurilantie | DP54: Hämeenlinna, Valkeakoski | DQ54: 0 | DR54: 3377 | DS54: 86 | DT54: 60 (57 %), 80 (43 %) | DU54: II (100 %) | DV54: AB (13 %), PAB (87 %) | DW54: Y3 (100 %) | DX54: 9535 | DY54: 1.920056383
A55: 2621_2 | B55: 6844.2 | C55: 2621_2_2622 | D55: 19 | E55: 19 | F55: 0 | G55: 8.296 | H55: 3.402666667 | I55: 3.715 | J55: 1.178333333 | K55: 1 | L55: 0 | M55: Gmaps | N55: Vähä | O55: Yhdys | P55: Trossitie | Q55: Hämeenkyrö | R55: 2621 | S55: 2 | T55: 2622 | U55: 2 | V55: 3447 | W55: 825 | X55: 496 | Y55: 31 | Z55: 776 | AA55: 2 | AB55: 50 (53 %), 60 (47 %) | AC55: II (100 %) | AD55: PAB (100 %) | AE55: 0.2996438851 | AF55: Y3 (100 %) | AG55: 0 | AH55: 0 | AI55: kyllä | AJ55: H-2958 | AK55: 0 | AL55: 8.928 | AM55: 2 | AN55: 0.1 | AO55: 118 | AP55: 1.18 | AQ55: 10.208 | AR55: 3.402666667 | AS55: 8 | AT55: 2 | AU55: 0 | AV55: 0 | AW55: 0 | AX55: 1 | AY55: 0.145 | AZ55: 0 | BA55: 0 | BB55: 0 | BC55: 0 | BD55: 0 | BE55: 0 | BF55: 0 | BG55: 11.145 | BH55: 3.715 | BI55: 732 | BJ55: 0.8872727273 | BK55: 1 | BL55: 0 | BM55: 0 | BN55: 0 | BO55: 0 | BP55: 0 | BQ55: 0 | BR55: 0 | BS55: 39 | BT55: 0.39 | BU55: 1.145 | BV55: 0 | BW55: 0 | BX55: 1 | BY55: 3.535 | BZ55: 1.178333333 | CA55: 24.888 | CB55: 8.296 | CC55: 1 | CE55: 247.2062052 | CF55: 409200 | CI55: 1 | CJ55: https://www.google.com/maps/@61.60138244,23.22853192,3a,75y,90t/data=!3m3!1e1!3m1!2e0 | CK55: 0 | CL55: 0 | CN55: 1 | CO55: 0 | CP55: 0 | CQ55: 0 | CR55: 2 | CS55: 116 | CT55: 0 | CU55: 0 | CV55: 0 | CW55: 0 | CX55: 0 | CY55: 732 | CZ55: 0 | DA55: 0 | DB55: 0 | DC55: 0.5 | DD55: 0.5 | DE55: 29 | DF55: 0.145 | DH55: 0 | DI55: 0 | DJ55: 0 | DK55: 0 | DL55: 0 | DN55: 0 | DO55: Trossitie | DP55: Hämeenkyrö | DQ55: H-2958 | DR55: 732 | DS55: 39 | DT55: 50 (53 %), 60 (47 %) | DU55: II (100 %) | DV55: PAB (100 %) | DW55: Y3 (100 %) | DX55: 0 | DY55: 0
A56: 2622_1 | B56: 56401.00167 | C56: 2622_1_0 | D56: 20 | E56: 20 | F56: 0 | G56: 8.257833333 | H56: 3.202 | I56: 4.155833333 | J56: 0.9 | K56: 1 | L56: 0 | M56: Gmaps | N56: Vähä | O56: Yhdys | P56: Jumesniementie | Q56: Hämeenkyrö, Nokia | R56: 2622 | S56: 1 | T56: 0 | U56: 1 | V56: 6830 | W56: 6830 | X56: 402 | Y56: 29 | Z56: 481 | AA56: 7 | AB56: 40 (6 %), 50 (17 %), 80 (77 %) | AC56: III (100 %) | AD56: PAB (100 %) | AE56: 0.2840491523 | AF56: Y3 (39 %) | AG56: 0 | AH56: 1 | AI56: ei | AJ56: 0 | AK56: 0.6787701318 | AL56: 7.236 | AM56: 14 | AN56: 0.7 | AO56: 167 | AP56: 1.67 | AQ56: 9.606 | AR56: 3.202 | AS56: 8 | AT56: 2 | AU56: 0 | AV56: 0 | AW56: 0 | AX56: 1 | AY56: 0.3675 | AZ56: 0.1 | BA56: 0 | BB56: 0 | BC56: 0 | BD56: 1 | BE56: 0 | BF56: 0 | BG56: 12.4675 | BH56: 4.155833333 | BI56: 0 | BJ56: 0 | BK56: 0 | BL56: 0 | BM56: 0 | BN56: 0 | BO56: 1 | BP56: 0 | BQ56: 0 | BR56: 0 | BS56: 24 | BT56: 0.24 | BU56: 0.46 | BV56: 0 | BW56: 0 | BX56: 1 | BY56: 2.7 | BZ56: 0.9 | CA56: 24.7735 | CB56: 8.257833333 | CC56: 1 | CE56: 1940.05571 | CF56: 2745660 | CI56: 1 | CJ56: https://www.google.com/maps/@61.50014948,23.26298226,3a,75y,90t/data=!3m3!1e1!3m1!2e0 | CK56: 0 | CL56: 0 | CN56: 1 | CO56: 0 | CP56: 0 | CQ56: 0 | CR56: 5 | CS56: 294 | CT56: 40 | CU56: 0 | CV56: 0 | CW56: 0 | CX56: 1 | CY56: 0 | CZ56: 0 | DA56: 1 | DB56: 0 | DC56: 0 | DD56: 0 | DE56: 92 | DF56: 0.46 | DH56: 0 | DI56: 0 | DJ56: 0 | DK56: 0 | DL56: 0 | DN56: 0 | DO56: Jumesniementie | DP56: Hämeenkyrö, Nokia | DQ56: 0 | DR56: 0 | DS56: 24 | DT56: 40 (6 %), 50 (17 %), 80 (77 %) | DU56: III (100 %) | DV56: PAB (100 %) | DW56: Y3 (100 %) | DX56: 4636 | DY56: 0.6787701318
A57: 276_6 | B57: 53482.338 | C57: 276_6_0 | D57: 21 | E57: 21 | F57: 0 | G57: 8.242 | H57: 2.705333333 | I57: 4.103333333 | J57: 1.433333333 | K57: 1 | L57: 0 | M57: Gmaps | N57: Vähä | O57: Seutu | P57: Luhalahdentie | Q57: Ikaalinen | R57: 276 | S57: 6 | T57: 0 | U57: 6 | V57: 6489 | W57: 6489 | X57: 412 | Y57: 30 | Z57: 516 | AA57: 9 | AB57: 60 (20 %), 80 (80 %) | AC57: II (100 %) | AD57: PAB (100 %) | AE57: 0.2926907154 | AF57: Y3 (100 %) | AG57: 1 | AH57: 3 | AI57: ei | AJ57: 0 | AK57: 3.170596394 | AL57: 7.416 | AM57: 0 | AN57: 0 | AO57: 70 | AP57: 0.7 | AQ57: 8.116 | AR57: 2.705333333 | AS57: 8 | AT57: 2 | AU57: 0 | AV57: 1 | AW57: 0 | AX57: 1 | AY57: 0.2375 | AZ57: 0.0725 | BA57: 0 | BB57: 0 | BC57: 0 | BD57: 0 | BE57: 0 | BF57: 0 | BG57: 12.31 | BH57: 4.103333333 | BI57: 1048 | BJ57: 0.1615040838 | BK57: 0.5 | BL57: 0 | BM57: 0 | BN57: 0 | BO57: 1 | BP57: 0 | BQ57: 0 | BR57: 0 | BS57: 30 | BT57: 0.3 | BU57: 1.5 | BV57: 0 | BW57: 0 | BX57: 1 | BY57: 4.3 | BZ57: 1.433333333 | CA57: 24.726 | CB57: 8.242 | CC57: 1 | CE57: 1899.270052 | CF57: 2673468 | CI57: 1 | CJ57: https://www.google.com/maps/@61.81085932,23.17697482,3a,75y,90t/data=!3m3!1e1!3m1!2e0 | CK57: 0 | CL57: 0 | CN57: 1 | CO57: 0 | CP57: 1 | CQ57: 0 | CR57: 2 | CS57: 190 | CT57: 29 | CU57: 0 | CV57: 0 | CW57: 0 | CX57: 0 | CY57: 1048 | CZ57: 0 | DA57: 1 | DB57: 0 | DC57: 0.5 | DD57: 0 | DE57: 275 | DF57: 1 | DH57: 0 | DI57: 0 | DJ57: 0 | DK57: 0 | DL57: 0 | DN57: 0 | DO57: Luhalahdentie | DP57: Ikaalinen | DQ57: 0 | DR57: 1048 | DS57: 30 | DT57: 60 (20 %), 80 (80 %) | DU57: II (100 %) | DV57: PAB (100 %) | DW57: Y3 (100 %) | DX57: 20574 | DY57: 3.170596394
A58: 13341_2 | B58: 37900.49042 | C58: 13341_2_2240 | D58: 22 | E58: 22 | F58: 0 | G58: 8.159416667 | H58: 3.347333333 | I58: 3.670416667 | J58: 1.141666667 | K58: 1 | L58: 0 | M58: Gmaps | N58: Vähä | O58: Yhdys | P58: Kankarintie | Q58: Kihniö | R58: 13341 | S58: 2 | T58: 2240 | U58: 2 | V58: 6885 | W58: 4645 | X58: 429 | Y58: 36 | Z58: 523 | AA58: 9 | AB58: 40 (12 %), 50 (13 %), 60 (24 %), 80 (51 %) | AC58: II (100 %) | AD58: AB (10 %), PAB (90 %) | AE58: 0.2957406272 | AF58: Y3 (100 %) | AG58: 0 | AH58: 0 | AI58: ei | AJ58: 0 | AK58: 2.040043057 | AL58: 7.722 | AM58: 10 | AN58: 0.5 | AO58: 182 | AP58: 1.82 | AQ58: 10.042 | AR58: 3.347333333 | AS58: 8 | AT58: 0 | AU58: 1 | AV58: 1 | AW58: 0 | AX58: 1 | AY58: 0.01125 | AZ58: 0 | BA58: 0 | BB58: 0 | BC58: 0 | BD58: 0 | BE58: 0 | BF58: 0 | BG58: 11.01125 | BH58: 3.670416667 | BI58: 1794 | BJ58: 0.3862217438 | BK58: 0.5 | BL58: 0 | BM58: 0 | BN58: 0 | BO58: 1 | BP58: 873 | BQ58: 0.1879440258 | BR58: 0 | BS58: 20 | BT58: 0.2 | BU58: 0.725 | BV58: 0 | BW58: 0 | BX58: 1 | BY58: 3.425 | BZ58: 1.141666667 | CA58: 24.47825 | CB58: 8.159416667 | CC58: 1 | CE58: 1373.715213 | CF58: 1992705 | CI58: 1 | CJ58: https://www.google.com/maps/@62.20788766,23.09096777,3a,75y,90t/data=!3m3!1e1!3m1!2e0 | CK58: 0 | CL58: 0 | CN58: 0 | CO58: 1 | CP58: 1 | CQ58: 0 | CR58: 1 | CS58: 9 | CT58: 0 | CU58: 0 | CV58: 0 | CW58: 0 | CX58: 0 | CY58: 1794 | CZ58: 0 | DA58: 1 | DB58: 1 | DC58: 0.5 | DD58: 0 | DE58: 45 | DF58: 0.225 | DH58: 0 | DI58: 0 | DJ58: 0 | DK58: 0 | DL58: 0 | DN58: 873 | DO58: Kankarintie | DP58: Kihniö | DQ58: 0 | DR58: 1794 | DS58: 20 | DT58: 40 (12 %), 50 (13 %), 60 (24 %), 80 (51 %) | DU58: II (100 %) | DV58: AB (10 %), PAB (90 %) | DW58: Y3 (100 %) | DX58: 9476 | DY58: 2.040043057
A59: 13709_1 | B59: 15936.76 | C59: 13709_1_0 | D59: 23 | E59: 23 | F59: 0 | G59: 8.131 | H59: 4.262666667 | I59: 3.24 | J59: 0.6283333333 | K59: 1 | L59: 0 | M59: Gmaps | N59: Vähä | O59: Yhdys | P59: Asemanraitti | Q59: Akaa | R59: 13709 | S59: 1 | T59: 0 | U59: 1 | V59: 1960 | W59: 1960 | X59: 491 | Y59: 21 | Z59: 561 | AA59: 1 | AB59: 40 (23 %), 50 (11 %), 80 (65 %) | AC59: II (100 %) | AD59: PAB (100 %) | AE59: 0.1530445337 | AF59: Y3 (100 %) | AG59: 0 | AH59: 0 | AI59: ei | AJ59: 0 | AK59: 0.02142857143 | AL59: 8.838 | AM59: 56 | AN59: 2.8 | AO59: 115 | AP59: 1.15 | AQ59: 12.788 | AR59: 4.262666667 | AS59: 6.72 | AT59: 2 | AU59: 0 | AV59: 0 | AW59: 0 | AX59: 1 | AY59: 0 | AZ59: 0 | BA59: 0 | BB59: 0 | BC59: 0 | BD59: 0 | BE59: 0 | BF59: 0 | BG59: 9.72 | BH59: 3.24 | BI59: 0 | BJ59: 0 | BK59: 0 | BL59: 0 | BM59: 0 | BN59: 0 | BO59: 0 | BP59: 0 | BQ59: 0 | BR59: 0 | BS59: 30 | BT59: 0.3 | BU59: 0.585 | BV59: 0 | BW59: 0 | BX59: 1 | BY59: 1.885 | BZ59: 0.6283333333 | CA59: 24.393 | CB59: 8.131 | CC59: 1 | CE59: 299.9672861 | CF59: 962360 | CI59: 1 | CJ59: https://www.google.com/maps/@61.11950827,23.65494628,3a,75y,90t/data=!3m3!1e1!3m1!2e0 | CK59: 0 | CL59: 0 | CN59: 1 | CO59: 0 | CP59: 0 | CQ59: 0 | CR59: 1 | CS59: 0 | CT59: 0 | CU59: 0 | CV59: 0 | CW59: 0 | CX59: 0 | CY59: 0 | CZ59: 0 | DA59: 0 | DB59: 0 | DC59: 0.5 | DD59: 0 | DE59: 17 | DF59: 0.085 | DH59: 0 | DI59: 0 | DJ59: 0 | DK59: 0 | DL59: 0 | DN59: 0 | DO59: Asemanraitti | DP59: Akaa | DQ59: 0 | DR59: 0 | DS59: 30 | DT59: 40 (23 %), 50 (11 %), 80 (65 %) | DU59: II (100 %) | DV59: PAB (100 %) | DW59: Y3 (100 %) | DX59: 42 | DY59: 0.02142857143
A60: 13286_1 | B60: 66900.56 | C60: 13286_1_0 | D60: 24 | E60: 24 | F60: 0 | G60: 8.119 | H60: 4.070666667 | I60: 3.158333333 | J60: 0.89 | K60: 1 | L60: 0 | M60: Gmaps | N60: Vähä | O60: Yhdys | P60: Karhentie | Q60: Hämeenkyrö, Ylöjärvi | R60: 13286 | S60: 1 | T60: 0 | U60: 1 | V60: 8240 | W60: 8240 | X60: 444 | Y60: 22 | Z60: 488 | AA60: 1 | AB60: 60 (29 %), 80 (71 %) | AC60: II (100 %) | AD60: AB (3 %), PAB (97 %) | AE60: 0.1266837799 | AF60: Y3 (100 %) | AG60: 1 | AH60: 3 | AI60: ei | AJ60: H-3618 | AK60: 1.199393204 | AL60: 7.992 | AM60: 200 | AN60: 3 | AO60: 122 | AP60: 1.22 | AQ60: 12.212 | AR60: 4.070666667 | AS60: 7.04 | AT60: 0 | AU60: 0 | AV60: 1 | AW60: 0 | AX60: 0 | AY60: 0.365 | AZ60: 0.07 | BA60: 0 | BB60: 0 | BC60: 0 | BD60: 0 | BE60: 0 | BF60: 1 | BG60: 9.475 | BH60: 3.158333333 | BI60: 574 | BJ60: 0.06966019417 | BK60: 0.5 | BL60: 0 | BM60: 0 | BN60: 0 | BO60: 0 | BP60: 0 | BQ60: 0 | BR60: 0 | BS60: 17 | BT60: 0.17 | BU60: 1 | BV60: 0 | BW60: 0 | BX60: 1 | BY60: 2.67 | BZ60: 0.89 | CA60: 24.357 | CB60: 8.119 | CC60: 1 | CE60: 1043.874347 | CF60: 3658560 | CI60: 1 | CJ60: https://www.google.com/maps/@61.72804442,23.43938305,3a,75y,90t/data=!3m3!1e1!3m1!2e0 | CK60: 0 | CL60: 0 | CN60: 0 | CO60: 0 | CP60: 1 | CQ60: 0 | CR60: 0 | CS60: 292 | CT60: 28 | CU60: 0 | CV60: 0 | CW60: 0 | CX60: 0 | CY60: 574 | CZ60: 0 | DA60: 0 | DB60: 0 | DC60: 0 | DD60: 0 | DE60: 385 | DF60: 1 | DH60: 0 | DI60: 0 | DJ60: 0 | DK60: 1 | DL60: 0 | DN60: 0 | DO60: Karhentie | DP60: Hämeenkyrö, Ylöjärvi | DQ60: H-3618 | DR60: 574 | DS60: 17 | DT60: 60 (29 %), 80 (71 %) | DU60: II (100 %) | DV60: AB (3 %), PAB (97 %) | DW60: Y3 (100 %) | DX60: 9883 | DY60: 1.199393204
A61: 3222_4 | B61: 32103.72 | C61: 3222_4_0 | D61: 25 | E61: 25 | F61: 0 | G61: 8.107 | H61: 2.365333333 | I61: 4.333333333 | J61: 1.408333333 | K61: 1 | L61: 0 | M61: Gmaps | N61: Vähä | O61: Yhdys | P61: Puutikkalanraitti, Puutikkalantie | Q61: Pälkäne | R61: 3222 | S61: 4 | T61: 0 | U61: 4 | V61: 3960 | W61: 3960 | X61: 372 | Y61: 28 | Z61: 650 | AA61: 8 | AB61: 40 (35 %), 50 (29 %), 60 (20 %), 80 (16 %) | AC61: II (100 %) | AD61: PAB (100 %) | AE61: 0.2238248479 | AF61: Y3 (100 %) | AG61: 0 | AH61: 1 | AI61: ei | AJ61: 0 | AK61: 1.36489899 | AL61: 6.696 | AM61: 2 | AN61: 0.1 | AO61: 30 | AP61: 0.3 | AQ61: 7.096 | AR61: 2.365333333 | AS61: 8 | AT61: 2 | AU61: 0 | AV61: 0 | AW61: 0 | AX61: 1 | AY61: 0 | AZ61: 0 | BA61: 0 | BB61: 0 | BC61: 0 | BD61: 0 | BE61: 1 | BF61: 1 | BG61: 13 | BH61: 4.333333333 | BI61: 0 | BJ61: 0 | BK61: 0 | BL61: 0 | BM61: 0 | BN61: 0 | BO61: 1 | BP61: 0 | BQ61: 0 | BR61: 0 | BS61: 24 | BT61: 0.24 | BU61: 1.985 | BV61: 0 | BW61: 0 | BX61: 1 | BY61: 4.225 | BZ61: 1.408333333 | CA61: 24.321 | CB61: 8.107 | CC61: 1 | CE61: 886.3463977 | CF61: 1473120 | CI61: 1 | CJ61: https://www.google.com/maps/@61.27258705,24.70403714,3a,75y,90t/data=!3m3!1e1!3m1!2e0 | CK61: 0 | CL61: 1 | CN61: 1 | CO61: 0 | CP61: 0 | CQ61: 0 | CR61: 1 | CS61: 0 | CT61: 0 | CU61: 0 | CV61: 0 | CW61: 0 | CX61: 0 | CY61: 0 | CZ61: 0 | DA61: 1 | DB61: 0 | DC61: 0.5 | DD61: 0.5 | DE61: 197 | DF61: 0.985 | DH61: 0 | DI61: 0 | DJ61: 0 | DK61: 1 | DL61: 1 | DN61: 0 | DO61: Puutikkalanraitti, Puutikkalantie | DP61: Pälkäne | DQ61: 0 | DR61: 0 | DS61: 24 | DT61: 40 (35 %), 50 (29 %), 60 (20 %), 80 (16 %) | DU61: II (100 %) | DV61: PAB (100 %) | DW61: Y3 (100 %) | DX61: 5405 | DY61: 1.36489899
A62: 2594_1 | B62: 14366.40625 | C62: 2594_1_0 | D62: 26 | E62: 26 | F62: 0 | G62: 8.09375 | H62: 3.42 | I62: 3.675416667 | J62: 0.9983333333 | K62: 1 | L62: 0 | M62: Gmaps | N62: Vähä | O62: Yhdys | P62: Sävintie | Q62: Sastamala | R62: 2594 | S62: 1 | T62: 0 | U62: 1 | V62: 1775 | W62: 1775 | X62: 495 | Y62: 36 | Z62: 585 | AA62: 7 | AB62: 50 (18 %), 80 (82 %) | AC62: II (100 %) | AD62: PAB (100 %) | AE62: 0.775226495 | AF62: Y3 (100 %) | AG62: 0 | AH62: 1 | AI62: ei | AJ62: 0 | AK62: 3.170704225 | AL62: 8.91 | AM62: 4 | AN62: 0.2 | AO62: 115 | AP62: 1.15 | AQ62: 10.26 | AR62: 3.42 | AS62: 8 | AT62: 2 | AU62: 0 | AV62: 0 | AW62: 0 | AX62: 1 | AY62: 0.02625 | AZ62: 0 | BA62: 0 | BB62: 0 | BC62: 0 | BD62: 0 | BE62: 0 | BF62: 0 | BG62: 11.02625 | BH62: 3.675416667 | BI62: 1772 | BJ62: 0.9983098592 | BK62: 1 | BL62: 0 | BM62: 0 | BN62: 0 | BO62: 0 | BP62: 487 | BQ62: 0.2743661972 | BR62: 0 | BS62: 48 | BT62: 0.48 | BU62: 0.515 | BV62: 0 | BW62: 0 | BX62: 1 | BY62: 2.995 | BZ62: 0.9983333333 | CA62: 24.28125 | CB62: 8.09375 | CC62: 1 | CE62: 1376.027029 | CF62: 878625 | CI62: 1 | CJ62: https://www.google.com/maps/@61.55853939,22.79522657,3a,75y,90t/data=!3m3!1e1!3m1!2e0 | CK62: 0 | CL62: 0 | CN62: 1 | CO62: 0 | CP62: 0 | CQ62: 0 | CR62: 2 | CS62: 21 | CT62: 0 | CU62: 0 | CV62: 0 | CW62: 0 | CX62: 0 | CY62: 1772 | CZ62: 0 | DA62: 0 | DB62: 1 | DC62: 0.5 | DD62: 0 | DE62: 3 | DF62: 0.015 | DH62: 0 | DI62: 0 | DJ62: 0 | DK62: 0 | DL62: 0 | DN62: 487 | DO62: Sävintie | DP62: Sastamala | DQ62: 0 | DR62: 1772 | DS62: 48 | DT62: 50 (18 %), 80 (82 %) | DU62: II (100 %) | DV62: PAB (100 %) | DW62: Y3 (100 %) | DX62: 5628 | DY62: 3.170704225
A63: 322_8 | B63: 35289.727 | C63: 322_8_0 | D63: 27 | E63: 27 | F63: 0 | G63: 8.081 | H63: 4.139333333 | I63: 3.333333333 | J63: 0.6083333333 | K63: 1 | L63: 0 | M63: Gmaps | N63: Vähä | O63: Seutu | P63: Rautajärventie | Q63: Kangasala | R63: 322 | S63: 8 | T63: 0 | U63: 8 | V63: 4367 | W63: 4367 | X63: 481 | Y63: 53 | Z63: 616 | AA63: 22 | AB63: 40 (11 %), 60 (12 %), 80 (77 %) | AC63: Ib (100 %) | AD63: AB (100 %) | AE63: 0 | AF63: Y3 (100 %) | AG63: 1 | AH63: 2 | AI63: ei | AJ63: 0 | AK63: 1.386993359 | AL63: 8.658 | AM63: 122 | AN63: 3 | AO63: 76 | AP63: 0.76 | AQ63: 12.418 | AR63: 4.139333333 | AS63: 8 | AT63: 0 | AU63: 0 | AV63: 1 | AW63: 0 | AX63: 0 | AY63: 0 | AZ63: 0 | BA63: 0 | BB63: 0 | BC63: 0 | BD63: 0 | BE63: 0 | BF63: 1 | BG63: 10 | BH63: 3.333333333 | BI63: 0 | BJ63: 0 | BK63: 0 | BL63: 0 | BM63: 0 | BN63: 0 | BO63: 0 | BP63: 0 | BQ63: 0 | BR63: 0 | BS63: 29 | BT63: 0.29 | BU63: 0.535 | BV63: 0 | BW63: 0 | BX63: 1 | BY63: 1.825 | BZ63: 0.6083333333 | CA63: 24.243 | CB63: 8.081 | CC63: 1 | CE63: 0 | CF63: 2100527 | CI63: 1 | CJ63: https://www.google.com/maps/@61.44839263,24.69023974,3a,75y,90t/data=!3m3!1e1!3m1!2e0 | CK63: 0 | CL63: 0 | CN63: 0 | CO63: 0 | CP63: 1 | CQ63: 0 | CR63: 0 | CS63: 0 | CT63: 0 | CU63: 0 | CV63: 0 | CW63: 0 | CX63: 0 | CY63: 0 | CZ63: 0 | DA63: 0 | DB63: 0 | DC63: 0.5 | DD63: 0 | DE63: 7 | DF63: 0.035 | DH63: 0 | DI63: 0 | DJ63: 0 | DK63: 1 | DL63: 1 | DN63: 0 | DO63: Rautajärventie | DP63: Kangasala | DQ63: 0 | DR63: 0 | DS63: 29 | DT63: 40 (11 %), 60 (12 %), 80 (77 %) | DU63: Ib (100 %) | DV63: AB (100 %) | DW63: Y3 (100 %) | DX63: 6057 | DY63: 1.386993359
A64: 3282_1 | B64: 58810.86467 | C64: 3282_1_0 | D64: 28 | E64: 28 | F64: 0 | G64: 8.049666667 | H64: 3.544666667 | I64: 3.005 | J64: 1.5 | K64: 1 | L64: 0 | M64: Gmaps | N64: Vähä | O64: Yhdys | P64: Orivedentie | Q64: Kuhmoinen | R64: 3282 | S64: 1 | T64: 0 | U64: 1 | V64: 7306 | W64: 7306 | X64: 353 | Y64: 30 | Z64: 626 | AA64: 7 | AB64: 50 (19 %), 80 (81 %) | AC64: II (100 %) | AD64: AB (11 %), PAB (89 %) | AE64: 0.4517408243 | AF64: Y3 (100 %) | AG64: 0 | AH64: 2 | AI64: kyllä | AJ64: 0 | AK64: 5.464139064 | AL64: 6.354 | AM64: 75 | AN64: 3 | AO64: 128 | AP64: 1.28 | AQ64: 10.634 | AR64: 3.544666667 | AS64: 8 | AT64: 0 | AU64: 0 | AV64: 0 | AW64: 0 | AX64: 1 | AY64: 0 | AZ64: 0.015 | BA64: 0 | BB64: 0 | BC64: 0 | BD64: 0 | BE64: 0 | BF64: 0 | BG64: 9.015 | BH64: 3.005 | BI64: 1385 | BJ64: 0.1895702163 | BK64: 0.5 | BL64: 0 | BM64: 0 | BN64: 0 | BO64: 0 | BP64: 1011 | BQ64: 0.1383794142 | BR64: 0 | BS64: 130 | BT64: 1 | BU64: 2 | BV64: 0 | BW64: 0 | BX64: 1 | BY64: 4.5 | BZ64: 1.5 | CA64: 24.149 | CB64: 8.049666667 | CC64: 1 | CE64: 3300.418463 | CF64: 2579018 | CI64: 1 | CJ64: https://www.google.com/maps/@61.55917038,25.16410111,3a,75y,90t/data=!3m3!1e1!3m1!2e0 | CK64: 0 | CL64: 0 | CN64: 0 | CO64: 0 | CP64: 0 | CQ64: 0 | CR64: 1 | CS64: 0 | CT64: 6 | CU64: 0 | CV64: 0 | CW64: 0 | CX64: 0 | CY64: 1405 | CZ64: 0 | DA64: 0 | DB64: 1 | DC64: 0.5 | DD64: 0.5 | DE64: 280 | DF64: 1 | DH64: 0 | DI64: 0 | DJ64: 0 | DK64: 0 | DL64: 0 | DN64: 1011 | DO64: Orivedentie | DP64: Kuhmoinen | DQ64: 0 | DR64: 1385 | DS64: 130 | DT64: 50 (19 %), 80 (81 %) | DU64: II (100 %) | DV64: AB (11 %), PAB (89 %) | DW64: Y3 (100 %) | DX64: 39921 | DY64: 5.464139064
A65: 3230_1 | B65: 37032.694 | C65: 3230_1_0 | D65: 29 | E65: 29 | F65: 0 | G65: 8.014 | H65: 3.067333333 | I65: 3.666666667 | J65: 1.28 | K65: 1 | L65: 0 | M65: Gmaps | N65: Vähä | O65: Yhdys | P65: Sappeentie | Q65: Pälkäne | R65: 3230 | S65: 1 | T65: 0 | U65: 1 | V65: 4621 | W65: 4621 | X65: 419 | Y65: 36 | Z65: 586 | AA65: 4 | AB65: 60 (20 %), 80 (80 %) | AC65: II (100 %) | AD65: AB (1 %), PAB (99 %) | AE65: 0.6683738196 | AF65: Y3 (100 %) | AG65: 0 | AH65: 0 | AI65: ei | AJ65: 0 | AK65: 0.7351222679 | AL65: 7.542 | AM65: 10 | AN65: 0.5 | AO65: 116 | AP65: 1.16 | AQ65: 9.202 | AR65: 3.067333333 | AS65: 8 | AT65: 2 | AU65: 0 | AV65: 0 | AW65: 0 | AX65: 1 | AY65: 0 | AZ65: 0 | BA65: 0 | BB65: 0 | BC65: 0 | BD65: 0 | BE65: 0 | BF65: 0 | BG65: 11 | BH65: 3.666666667 | BI65: 0 | BJ65: 0 | BK65: 0 | BL65: 0 | BM65: 0 | BN65: 0 | BO65: 1 | BP65: 0 | BQ65: 0 | BR65: 0 | BS65: 0 | BT65: 0 | BU65: 0.84 | BV65: 0 | BW65: 1 | BX65: 1 | BY65: 3.84 | BZ65: 1.28 | CA65: 24.042 | CB65: 8.014 | CC65: 1 | CE65: 3088.55542 | CF65: 1936199 | CI65: 1 | CJ65: https://www.google.com/maps/@61.34991825,24.55716971,3a,75y,90t/data=!3m3!1e1!3m1!2e0 | CK65: 0 | CL65: 0 | CN65: 1 | CO65: 0 | CP65: 0 | CQ65: 0 | CR65: 1 | CS65: 0 | CT65: 0 | CU65: 0 | CV65: 0 | CW65: 0 | CX65: 0 | CY65: 0 | CZ65: 0 | DA65: 1 | DB65: 0 | DC65: 0.5 | DD65: 0 | DE65: 68 | DF65: 0.34 | DH65: 0 | DI65: 1 | DJ65: 0 | DK65: 0 | DL65: 0 | DN65: 0 | DO65: Sappeentie | DP65: Pälkäne | DQ65: 0 | DR65: 0 | DS65: 0 | DT65: 60 (20 %), 80 (80 %) | DU65: II (100 %) | DV65: AB (1 %), PAB (99 %) | DW65: Y3 (100 %) | DX65: 3397 | DY65: 0.7351222679
A66: 3200_5 | B66: 36672.74042 | C66: 3200_5_0 | D66: 30 | E66: 30 | F66: 0 | G66: 7.998416667 | H66: 2.588 | I66: 4.42875 | J66: 0.9816666667 | K66: 1 | L66: 0 | M66: Gmaps | N66: Vähä | O66: Yhdys | P66: Porasantie, Rautajärventie | Q66: Pälkäne | R66: 3200 | S66: 5 | T66: 0 | U66: 5 | V66: 4585 | W66: 4585 | X66: 368 | Y66: 27 | Z66: 565 | AA66: 9 | AB66: 50 (20 %), 60 (4 %), 80 (76 %) | AC66: II (100 %) | AD66: AB (100 %) | AE66: 0 | AF66: Y3 (100 %) | AG66: 0 | AH66: 0 | AI66: ei | AJ66: 0 | AK66: 1.581679389 | AL66: 6.624 | AM66: 7 | AN66: 0.35 | AO66: 79 | AP66: 0.79 | AQ66: 7.764 | AR66: 2.588 | AS66: 8 | AT66: 2 | AU66: 0 | AV66: 0 | AW66: 0 | AX66: 1 | AY66: 0.07625 | AZ66: 0.21 | BA66: 0 | BB66: 0 | BC66: 0 | BD66: 1 | BE66: 1 | BF66: 0 | BG66: 13.28625 | BH66: 4.42875 | BI66: 0 | BJ66: 0 | BK66: 0 | BL66: 0 | BM66: 0 | BN66: 0 | BO66: 0 | BP66: 0 | BQ66: 0 | BR66: 0 | BS66: 33 | BT66: 0.33 | BU66: 1.615 | BV66: 0 | BW66: 0 | BX66: 1 | BY66: 2.945 | BZ66: 0.9816666667 | CA66: 23.99525 | CB66: 7.998416667 | CC66: 1 | CE66: 0 | CF66: 1687280 | CI66: 1 | CJ66: https://www.google.com/maps/@61.406388,24.81013068,3a,75y,90t/data=!3m3!1e1!3m1!2e0 | CK66: 0 | CL66: 1 | CN66: 1 | CO66: 0 | CP66: 0 | CQ66: 0 | CR66: 3 | CS66: 61 | CT66: 84 | CU66: 0 | CV66: 0 | CW66: 0 | CX66: 1 | CY66: 0 | CZ66: 0 | DA66: 0 | DB66: 0 | DC66: 0.5 | DD66: 0.5 | DE66: 123 | DF66: 0.615 | DH66: 0 | DI66: 0 | DJ66: 0 | DK66: 0 | DL66: 0 | DN66: 0 | DO66: Porasantie, Rautajärventie | DP66: Pälkäne | DQ66: 0 | DR66: 0 | DS66: 33 | DT66: 50 (20 %), 60 (4 %), 80 (76 %) | DU66: II (100 %) | DV66: AB (100 %) | DW66: Y3 (100 %) | DX66: 7252 | DY66: 1.581679389
A67: 346_6 | B67: 54333.43942 | C67: 346_6_0 | D67: 31 | E67: 31 | F67: 0 | G67: 7.928416667 | H67: 2.798 | I67: 4.35375 | J67: 0.7766666667 | K67: 1 | L67: 0 | M67: Gmaps | N67: Vähä | O67: Seutu | P67: Kaakkolantie, Pohjaslahdentie | Q67: Virrat, Mänttä-Vilppula | R67: 346 | S67: 6 | T67: 0 | U67: 6 | V67: 6853 | W67: 6853 | X67: 458 | Y67: 48 | Z67: 558 | AA67: 24 | AB67: 80 (100 %) | AC67: II (100 %) | AD67: AB (100 %) | AE67: 0.02920466671 | AF67: Y3 (100 %) | AG67: 0 | AH67: 1 | AI67: ei | AJ67: 0 | AK67: 3.001313293 | AL67: 8.244 | AM67: 0 | AN67: 0 | AO67: 15 | AP67: 0.15 | AQ67: 8.394 | AR67: 2.798 | AS67: 8 | AT67: 2 | AU67: 0 | AV67: 1 | AW67: 0 | AX67: 1 | AY67: 0.00125 | AZ67: 0.06 | BA67: 0 | BB67: 0 | BC67: 0 | BD67: 0 | BE67: 0 | BF67: 1 | BG67: 13.06125 | BH67: 4.35375 | BI67: 0 | BJ67: 0 | BK67: 0 | BL67: 0 | BM67: 0 | BN67: 0 | BO67: 0 | BP67: 0 | BQ67: 0 | BR67: 0 | BS67: 0 | BT67: 0 | BU67: 1.33 | BV67: 0 | BW67: 0 | BX67: 1 | BY67: 2.33 | BZ67: 0.7766666667 | CA67: 23.78525 | CB67: 7.928416667 | CC67: 1 | CE67: 200.139581 | CF67: 3138674 | CI67: 1 | CJ67: https://www.google.com/maps/@62.1834754,24.11527227,3a,75y,90t/data=!3m3!1e1!3m1!2e0 | CK67: 0 | CL67: 0 | CN67: 1 | CO67: 0 | CP67: 1 | CQ67: 0 | CR67: 1 | CS67: 1 | CT67: 24 | CU67: 0 | CV67: 0 | CW67: 0 | CX67: 0 | CY67: 0 | CZ67: 0 | DA67: 0 | DB67: 0 | DC67: 0.5 | DD67: 0 | DE67: 166 | DF67: 0.83 | DH67: 0 | DI67: 0 | DJ67: 0 | DK67: 0 | DL67: 1 | DN67: 0 | DO67: Kaakkolantie, Pohjaslahdentie | DP67: Virrat, Mänttä-Vilppula | DQ67: 0 | DR67: 0 | DS67: 0 | DT67: 80 (100 %) | DU67: II (100 %) | DV67: AB (100 %) | DW67: Y3 (100 %) | DX67: 20568 | DY67: 3.001313293
A68: 2986_5 | B68: 59882.18917 | C68: 2986_5_0 | D68: 32 | E68: 32 | F68: 0 | G68: 7.926166667 | H68: 3.488666667 | I68: 3.684166667 | J68: 0.7533333333 | K68: 1 | L68: 0 | M68: Gmaps | N68: Vähä | O68: Yhdys | P68: Punkalaitumentie | Q68: Vesilahti | R68: 2986 | S68: 5 | T68: 0 | U68: 5 | V68: 7555 | W68: 7555 | X68: 402 | Y68: 39 | Z68: 490 | AA68: 13 | AB68: 80 (100 %) | AC68: II (100 %) | AD68: AB (73 %), PAB (27 %) | AE68: 0.06122241349 | AF68: Y3 (100 %) | AG68: 2 | AH68: 4 | AI68: kyllä | AJ68: 0 | AK68: 0.9228325612 | AL68: 7.236 | AM68: 40 | AN68: 2 | AO68: 123 | AP68: 1.23 | AQ68: 10.466 | AR68: 3.488666667 | AS68: 8 | AT68: 0 | AU68: 0 | AV68: 1 | AW68: 0 | AX68: 1 | AY68: 0.0525 | AZ68: 0 | BA68: 0 | BB68: 0 | BC68: 0 | BD68: 0 | BE68: 0 | BF68: 1 | BG68: 11.0525 | BH68: 3.684166667 | BI68: 1927 | BJ68: 0.2550628723 | BK68: 0.5 | BL68: 0 | BM68: 0 | BN68: 0 | BO68: 0 | BP68: 0 | BQ68: 0 | BR68: 0 | BS68: 22 | BT68: 0.22 | BU68: 0.54 | BV68: 0 | BW68: 0 | BX68: 1 | BY68: 2.26 | BZ68: 0.7533333333 | CA68: 23.7785 | CB68: 7.926166667 | CC68: 1 | CE68: 462.5353339 | CF68: 3037110 | CI68: 1 | CJ68: https://www.google.com/maps/@61.24597944,23.42115254,3a,75y,90t/data=!3m3!1e1!3m1!2e0 | CK68: 0 | CL68: 0 | CN68: 0 | CO68: 0 | CP68: 1 | CQ68: 0 | CR68: 2 | CS68: 42 | CT68: 0 | CU68: 0 | CV68: 0 | CW68: 0 | CX68: 0 | CY68: 1927 | CZ68: 0 | DA68: 0 | DB68: 0 | DC68: 0 | DD68: 0 | DE68: 108 | DF68: 0.54 | DH68: 0 | DI68: 0 | DJ68: 0 | DK68: 0 | DL68: 1 | DN68: 0 | DO68: Punkalaitumentie | DP68: Vesilahti | DQ68: 0 | DR68: 1927 | DS68: 22 | DT68: 80 (100 %) | DU68: II (100 %) | DV68: AB (73 %), PAB (27 %) | DW68: Y3 (100 %) | DX68: 6972 | DY68: 0.9228325612
A69: 2591_1 | B69: 56207.74167 | C69: 2591_1_0 | D69: 33 | E69: 33 | F69: 0 | G69: 7.916583333 | H69: 3.498666667 | I69: 3.499583333 | J69: 0.9183333333 | K69: 1 | L69: 0 | M69: Gmaps | N69: Vähä | O69: Yhdys | P69: Putajantie | Q69: Sastamala | R69: 2591 | S69: 1 | T69: 0 | U69: 1 | V69: 7100 | W69: 7100 | X69: 427 | Y69: 24 | Z69: 469 | AA69: 7 | AB69: 60 (25 %), 80 (75 %) | AC69: II (100 %) | AD69: PAB (100 %) | AE69: 0.7886521667 | AF69: Y3 (100 %) | AG69: 0 | AH69: 0 | AI69: ei | AJ69: 0 | AK69: 3.005492958 | AL69: 7.686 | AM69: 14 | AN69: 0.7 | AO69: 211 | AP69: 2.11 | AQ69: 10.496 | AR69: 3.498666667 | AS69: 7.68 | AT69: 2 | AU69: 0 | AV69: 0 | AW69: 0 | AX69: 0 | AY69: 0.31875 | AZ69: 0 | BA69: 0.5 | BB69: 0 | BC69: 0 | BD69: 0 | BE69: 0 | BF69: 0 | BG69: 10.49875 | BH69: 3.499583333 | BI69: 0 | BJ69: 0 | BK69: 0 | BL69: 0 | BM69: 0 | BN69: 0 | BO69: 1 | BP69: 0 | BQ69: 0 | BR69: 0 | BS69: 26 | BT69: 0.26 | BU69: 0.495 | BV69: 0 | BW69: 0 | BX69: 1 | BY69: 2.755 | BZ69: 0.9183333333 | CA69: 23.74975 | CB69: 7.916583333 | CC69: 1 | CE69: 5599.430384 | CF69: 3031700 | CI69: 1 | CJ69: https://www.google.com/maps/@61.48844223,22.69808285,3a,75y,90t/data=!3m3!1e1!3m1!2e0 | CK69: 0 | CL69: 0 | CN69: 1 | CO69: 0 | CP69: 0 | CQ69: 0 | CR69: 0 | CS69: 255 | CT69: 0 | CU69: 1960 | CV69: 0 | CW69: 0 | CX69: 0 | CY69: 0 | CZ69: 0 | DA69: 1 | DB69: 0 | DC69: 0 | DD69: 0 | DE69: 99 | DF69: 0.495 | DH69: 0 | DI69: 0 | DJ69: 0 | DK69: 0 | DL69: 0 | DN69: 0 | DO69: Putajantie | DP69: Sastamala | DQ69: 0 | DR69: 0 | DS69: 26 | DT69: 60 (25 %), 80 (75 %) | DU69: II (100 %) | DV69: PAB (100 %) | DW69: Y3 (100 %) | DX69: 21339 | DY69: 3.005492958
A70: 13783_1 | B70: 32980.999 | C70: 13783_1_0 | D70: 34 | E70: 34 | F70: 0 | G70: 7.877 | H70: 3.905333333 | I70: 2.466666667 | J70: 1.505 | K70: 1 | L70: 0 | M70: Gmaps | N70: Vähä | O70: Yhdys | P70: Sorkkalantie | Q70: Pirkkala | R70: 13783 | S70: 1 | T70: 0 | U70: 1 | V70: 4187 | W70: 4187 | X70: 382 | Y70: 20 | Z70: 529 | AA70: 1 | AB70: 40 (31 %), 50 (69 %) | AC70: II (100 %) | AD70: AB (12 %), PAB (88 %) | AE70: 0.47449352 | AF70: Y3 (100 %) | AG70: 1 | AH70: 1 | AI70: kyllä | AJ70: 0 | AK70: 0 | AL70: 6.876 | AM70: 271 | AN70: 3 | AO70: 184 | AP70: 1.84 | AQ70: 11.716 | AR70: 3.905333333 | AS70: 6.4 | AT70: 0 | AU70: 0 | AV70: 0 | AW70: 0 | AX70: 1 | AY70: 0 | AZ70: 0 | BA70: 0 | BB70: 0 | BC70: 0 | BD70: 0 | BE70: 0 | BF70: 0 | BG70: 7.4 | BH70: 2.466666667 | BI70: 2182 | BJ70: 0.5211368522 | BK70: 1 | BL70: 0 | BM70: 0 | BN70: 0 | BO70: 0 | BP70: 4186 | BQ70: 0.9997611655 | BR70: 1 | BS70: 170 | BT70: 1 | BU70: 0.515 | BV70: 0 | BW70: 0 | BX70: 1 | BY70: 4.515 | BZ70: 1.505 | CA70: 23.631 | CB70: 7.877 | CC70: 1 | CE70: 1986.704368 | CF70: 1599434 | CI70: 1 | CJ70: https://www.google.com/maps/@61.46028785,23.57825856,3a,75y,90t/data=!3m3!1e1!3m1!2e0 | CK70: 0 | CL70: 0 | CN70: 0 | CO70: 0 | CP70: 0 | CQ70: 0 | CR70: 1 | CS70: 0 | CT70: 0 | CU70: 0 | CV70: 0 | CW70: 0 | CX70: 0 | CY70: 2182 | CZ70: 0 | DA70: 0 | DB70: 1 | DC70: 0.5 | DD70: 0 | DE70: 3 | DF70: 0.015 | DH70: 0 | DI70: 0 | DJ70: 0 | DK70: 0 | DL70: 0 | DN70: 4186 | DO70: Sorkkalantie | DP70: Pirkkala | DQ70: 0 | DR70: 2182 | DS70: 170 | DT70: 40 (31 %), 50 (69 %) | DU70: II (100 %) | DV70: AB (12 %), PAB (88 %) | DW70: Y3 (100 %) | DX70: 0 | DY70: 0
A71: 2611_1 | B71: 24387.03575 | C71: 2611_1_0 | D71: 35 | E71: 35 | F71: 0 | G71: 7.72475 | H71: 2.839333333 | I71: 4.077083333 | J71: 0.8083333333 | K71: 1 | L71: 0 | M71: Gmaps | N71: Vähä | O71: Yhdys | P71: Raivalantie | Q71: Ikaalinen | R71: 2611 | S71: 1 | T71: 0 | U71: 1 | V71: 3157 | W71: 3157 | X71: 361 | Y71: 29 | Z71: 419 | AA71: 3 | AB71: 50 (5 %), 60 (40 %), 80 (60 %) | AC71: II (100 %) | AD71: PAB (100 %) | AE71: 0.2427503467 | AF71: Y3 (100 %) | AG71: 0 | AH71: 0 | AI71: ei | AJ71: 0 | AK71: 2.189737092 | AL71: 6.498 | AM71: 23 | AN71: 1.15 | AO71: 87 | AP71: 0.87 | AQ71: 8.518 | AR71: 2.839333333 | AS71: 8 | AT71: 2 | AU71: 0 | AV71: 0 | AW71: 0 | AX71: 1 | AY71: 0.23125 | AZ71: 0 | BA71: 0 | BB71: 0 | BC71: 0 | BD71: 1 | BE71: 0 | BF71: 0 | BG71: 12.23125 | BH71: 4.077083333 | BI71: 0 | BJ71: 0 | BK71: 0 | BL71: 0 | BM71: 0 | BN71: 0 | BO71: 1 | BP71: 0 | BQ71: 0 | BR71: 0 | BS71: 19 | BT71: 0.19 | BU71: 0.235 | BV71: 0 | BW71: 0 | BX71: 1 | BY71: 2.425 | BZ71: 0.8083333333 | CA71: 23.17425 | CB71: 7.72475 | CC71: 1 | CE71: 766.3628445 | CF71: 1139677 | CI71: 1 | CJ71: https://www.google.com/maps/@61.84551611,22.93108646,3a,75y,90t/data=!3m3!1e1!3m1!2e0 | CK71: 0 | CL71: 0 | CN71: 1 | CO71: 0 | CP71: 0 | CQ71: 0 | CR71: 4 | CS71: 185 | CT71: 0 | CU71: 0 | CV71: 0 | CW71: 0 | CX71: 1 | CY71: 0 | CZ71: 0 | DA71: 1 | DB71: 0 | DC71: 0 | DD71: 0 | DE71: 47 | DF71: 0.235 | DH71: 0 | DI71: 0 | DJ71: 0 | DK71: 0 | DL71: 0 | DN71: 0 | DO71: Raivalantie | DP71: Ikaalinen | DQ71: 0 | DR71: 0 | DS71: 19 | DT71: 50 (5 %), 60 (40 %), 80 (60 %) | DU71: II (100 %) | DV71: PAB (100 %) | DW71: Y3 (100 %) | DX71: 6913 | DY71: 2.189737092
A72: 2847_1 | B72: 27560.71867 | C72: 2847_1_1420 | D72: 36 | E72: 36 | F72: 0 | G72: 7.724416667 | H72: 3.414 | I72: 3.077083333 | J72: 1.233333333 | K72: 1 | L72: 0 | M72: Gmaps | N72: Vähä | O72: Yhdys | P72: Huhmarinmäentie, Toijalantie | Q72: Urjala | R72: 2847 | S72: 1 | T72: 1420 | U72: 1 | V72: 4988 | W72: 3568 | X72: 499 | Y72: 26 | Z72: 610 | AA72: 5 | AB72: 80 (100 %) | AC72: II (100 %) | AD72: AB (1 %), PAB (99 %) | AE72: 0.192880678 | AF72: Y3 (100 %) | AG72: 1 | AH72: 1 | AI72: ei | AJ72: 0 | AK72: 2.343329596 | AL72: 8.982 | AM72: 2 | AN72: 0.1 | AO72: 116 | AP72: 1.16 | AQ72: 10.242 | AR72: 3.414 | AS72: 8 | AT72: 0 | AU72: 0 | AV72: 0 | AW72: 0 | AX72: 1 | AY72: 0.20875 | AZ72: 0.0225 | BA72: 0 | BB72: 0 | BC72: 0 | BD72: 0 | BE72: 0 | BF72: 0 | BG72: 9.23125 | BH72: 3.077083333 | BI72: 1233 | BJ72: 0.3455717489 | BK72: 0.5 | BL72: 0 | BM72: 0 | BN72: 0 | BO72: 1 | BP72: 0 | BQ72: 0 | BR72: 0 | BS72: 27 | BT72: 0.27 | BU72: 0.93 | BV72: 0 | BW72: 0 | BX72: 1 | BY72: 3.7 | BZ72: 1.233333333 | CA72: 23.17325 | CB72: 7.724416667 | CC72: 1 | CE72: 688.1982593 | CF72: 1780432 | CI72: 1 | CJ72: https://www.google.com/maps/@61.06286201,23.65547824,3a,75y,90t/data=!3m3!1e1!3m1!2e0 | CK72: 0 | CL72: 0 | CN72: 0 | CO72: 0 | CP72: 0 | CQ72: 0 | CR72: 2 | CS72: 167 | CT72: 9 | CU72: 0 | CV72: 0 | CW72: 0 | CX72: 0 | CY72: 769 | CZ72: 0 | DA72: 1 | DB72: 0 | DC72: 0.5 | DD72: 0 | DE72: 86 | DF72: 0.43 | DH72: 0 | DI72: 0 | DJ72: 0 | DK72: 0 | DL72: 0 | DN72: 0 | DO72: Huhmarinmäentie, Toijalantie | DP72: Urjala | DQ72: 0 | DR72: 1233 | DS72: 27 | DT72: 80 (100 %) | DU72: II (100 %) | DV72: AB (1 %), PAB (99 %) | DW72: Y3 (100 %) | DX72: 8361 | DY72: 2.343329596
A73: 2847_3 | B73: 20853.4745 | C73: 2847_3_0 | D73: 37 | E73: 37 | F73: 0 | G73: 7.6865 | H73: 3.247333333 | I73: 3.349166667 | J73: 1.09 | K73: 1 | L73: 0 | M73: Gmaps | N73: Vähä | O73: Yhdys | P73: Riisikkalantie | Q73: Akaa | R73: 2847 | S73: 3 | T73: 0 | U73: 3 | V73: 2713 | W73: 2713 | X73: 499 | Y73: 26 | Z73: 610 | AA73: 5 | AB73: 60 (46 %), 80 (54 %) | AC73: II (100 %) | AD73: PAB (100 %) | AE73: 0.4842163863 | AF73: Y3 (100 %) | AG73: 1 | AH73: 4 | AI73: ei | AJ73: 0 | AK73: 1.707335053 | AL73: 8.982 | AM73: 2 | AN73: 0.1 | AO73: 66 | AP73: 0.66 | AQ73: 9.742 | AR73: 3.247333333 | AS73: 8 | AT73: 0 | AU73: 0 | AV73: 1 | AW73: 0 | AX73: 1 | AY73: 0.0475 | AZ73: 0 | BA73: 0 | BB73: 0 | BC73: 0 | BD73: 0 | BE73: 0 | BF73: 0 | BG73: 10.0475 | BH73: 3.349166667 | BI73: 0 | BJ73: 0 | BK73: 0 | BL73: 0 | BM73: 0 | BN73: 0 | BO73: 1 | BP73: 0 | BQ73: 0 | BR73: 0 | BS73: 67 | BT73: 0.67 | BU73: 0.6 | BV73: 0 | BW73: 0 | BX73: 1 | BY73: 3.27 | BZ73: 1.09 | CA73: 23.0595 | CB73: 7.6865 | CC73: 1 | CE73: 1313.679056 | CF73: 1353787 | CI73: 1 | CJ73: https://www.google.com/maps/@61.07654203,23.76614855,3a,75y,90t/data=!3m3!1e1!3m1!2e0 | CK73: 0 | CL73: 0 | CN73: 0 | CO73: 0 | CP73: 1 | CQ73: 0 | CR73: 1 | CS73: 38 | CT73: 0 | CU73: 0 | CV73: 0 | CW73: 0 | CX73: 0 | CY73: 0 | CZ73: 0 | DA73: 1 | DB73: 0 | DC73: 0.5 | DD73: 0 | DE73: 20 | DF73: 0.1 | DH73: 0 | DI73: 0 | DJ73: 0 | DK73: 0 | DL73: 0 | DN73: 0 | DO73: Riisikkalantie | DP73: Akaa | DQ73: 0 | DR73: 0 | DS73: 67 | DT73: 60 (46 %), 80 (54 %) | DU73: II (100 %) | DV73: PAB (100 %) | DW73: Y3 (100 %) | DX73: 4632 | DY73: 1.707335053
A74: 14199_2 | B74: 82521.28025 | C74: 14199_2_0 | D74: 38 | E74: 38 | F74: 0 | G74: 7.617583333 | H74: 2.708 | I74: 4.022916667 | J74: 0.8866666667 | K74: 1 | L74: 0 | M74: Gmaps | N74: Vähä | O74: Yhdys | P74: Peräpohjantie, Viitapohjanraitti | Q74: Orivesi, Tampere | R74: 14199 | S74: 2 | T74: 0 | U74: 2 | V74: 10833 | W74: 10833 | X74: 218 | Y74: 27 | Z74: 336 | AA74: 13 | AB74: 50 (15 %), 80 (85 %) | AC74: II (100 %) | AD74: AB (10 %), PAB (28 %), sora (61 %) | AE74: 0.3233324508 | AF74: Y3 (100 %) | AG74: 2 | AH74: 5 | AI74: ei | AJ74: 0 | AK74: 2.059355672 | AL74: 3.924 | AM74: 230 | AN74: 3 | AO74: 120 | AP74: 1.2 | AQ74: 8.124 | AR74: 2.708 | AS74: 8 | AT74: 2 | AU74: 0 | AV74: 1 | AW74: 0 | AX74: 1 | AY74: 0.06875 | AZ74: 0 | BA74: 0 | BB74: 0 | BC74: 0 | BD74: 0 | BE74: 0 | BF74: 0 | BG74: 12.06875 | BH74: 4.022916667 | BI74: 0 | BJ74: 0 | BK74: 0 | BL74: 0 | BM74: 0 | BN74: 0 | BO74: 0 | BP74: 0 | BQ74: 0 | BR74: 0 | BS74: 16 | BT74: 0.16 | BU74: 1.5 | BV74: 0 | BW74: 0 | BX74: 1 | BY74: 2.66 | BZ74: 0.8866666667 | CA74: 22.85275 | CB74: 7.617583333 | CC74: 1 | CE74: 3502.66044 | CF74: 2361594 | CI74: 1 | CJ74: https://www.google.com/maps/@61.65081558,24.03618814,3a,75y,90t/data=!3m3!1e1!3m1!2e0 | CK74: 0 | CL74: 0 | CN74: 1 | CO74: 0 | CP74: 1 | CQ74: 0 | CR74: 1 | CS74: 55 | CT74: 0 | CU74: 0 | CV74: 0 | CW74: 0 | CX74: 0 | CY74: 0 | CZ74: 0 | DA74: 0 | DB74: 0 | DC74: 0 | DD74: 0.5 | DE74: 439 | DF74: 1 | DH74: 0 | DI74: 0 | DJ74: 0 | DK74: 0 | DL74: 0 | DN74: 0 | DO74: Peräpohjantie, Viitapohjanraitti | DP74: Orivesi, Tampere | DQ74: 0 | DR74: 0 | DS74: 16 | DT74: 50 (15 %), 80 (85 %) | DU74: II (100 %) | DV74: AB (10 %), PAB (28 %), sora (61 %) | DW74: Y3 (39 %) | DX74: 22309 | DY74: 2.059355672
A75: 14010_1 | B75: 35981.11 | C75: 14010_1_0 | D75: 39 | E75: 39 | F75: 0 | G75: 7.607 | H75: 2.852 | I75: 4.286666667 | J75: 0.4683333333 | K75: 2 | L75: 0 | M75: Gmaps | N75: Vähä | O75: Yhdys | P75: Moltsiantie | Q75: Kangasala | R75: 14010 | S75: 1 | T75: 0 | U75: 1 | V75: 4730 | W75: 4730 | X75: 242 | Y75: 23 | Z75: 326 | AA75: 6 | AB75: 50 (30 %), 80 (70 %) | AC75: III (100 %) | AD75: PAB (100 %) | AE75: 0.06338309888 | AF75: Y3 (100 %) | AG75: 0 | AH75: 1 | AI75: ei | AJ75: 0 | AK75: 0.8128964059 | AL75: 4.356 | AM75: 135 | AN75: 3 | AO75: 120 | AP75: 1.2 | AQ75: 8.556 | AR75: 2.852 | AS75: 7.36 | AT75: 2 | AU75: 0 | AV75: 1 | AW75: 0 | AX75: 1 | AY75: 0 | AZ75: 0 | BA75: 0 | BB75: 0.5 | BC75: 0 | BD75: 0 | BE75: 1 | BF75: 0 | BG75: 12.86 | BH75: 4.286666667 | BI75: 0 | BJ75: 0 | BK75: 0 | BL75: 0 | BM75: 0 | BN75: 0 | BO75: 0 | BP75: 0 | BQ75: 0 | BR75: 0 | BS75: 31 | BT75: 0.31 | BU75: 0.095 | BV75: 0 | BW75: 0 | BX75: 1 | BY75: 1.405 | BZ75: 0.4683333333 | CA75: 22.821 | CB75: 7.607 | CC75: 2 | CE75: 299.8020577 | CF75: 1144660 | CI75: 2 | CJ75: https://www.google.com/maps/@61.45210237,24.3897463,3a,75y,90t/data=!3m3!1e1!3m1!2e0 | CK75: 0 | CL75: 1 | CN75: 1 | CO75: 0 | CP75: 1 | CQ75: 0 | CR75: 1 | CS75: 0 | CT75: 0 | CU75: 0 | CV75: 345790 | CW75: 0 | CX75: 0 | CY75: 0 | CZ75: 0 | DA75: 0 | DB75: 0 | DC75: 0 | DD75: 0 | DE75: 19 | DF75: 0.095 | DH75: 0 | DI75: 0 | DJ75: 0 | DK75: 0 | DL75: 0 | DN75: 0 | DO75: Moltsiantie | DP75: Kangasala | DQ75: 0 | DR75: 0 | DS75: 31 | DT75: 50 (30 %), 80 (70 %) | DU75: III (100 %) | DV75: PAB (100 %) | DW75: Y3 (100 %) | DX75: 3845 | DY75: 0.8128964059
A76: 2742_1 | B76: 2269.5 | C76: 2742_1_0 | D76: 40 | E76: 40 | F76: 0 | G76: 7.565 | H76: 2.95 | I76: 3.666666667 | J76: 0.9483333333 | K76: 2 | L76: 0 | M76: Gmaps | N76: Vähä | O76: Yhdys | P76: Uudenasemantie | Q76: Parkano | R76: 2742 | S76: 1 | T76: 0 | U76: 1 | V76: 300 | W76: 300 | X76: 440 | Y76: 54 | Z76: 484 | AA76: 39 | AB76: 50 (100 %) | AC76: Ib (100 %) | AD76: AB (100 %) | AE76: 0 | AF76: Y3 (100 %) | AG76: 0 | AH76: 0 | AI76: kyllä | AJ76: 0 | AK76: 8.873333333 | AL76: 7.92 | AM76: 11 | AN76: 0.55 | AO76: 38 | AP76: 0.38 | AQ76: 8.85 | AR76: 2.95 | AS76: 8 | AT76: 0 | AU76: 0 | AV76: 1 | AW76: 0 | AX76: 0 | AY76: 0 | AZ76: 0 | BA76: 0 | BB76: 0 | BC76: 0 | BD76: 1 | BE76: 0 | BF76: 1 | BG76: 11 | BH76: 3.666666667 | BI76: 98 | BJ76: 0.3266666667 | BK76: 0.5 | BL76: 0 | BM76: 0 | BN76: 0 | BO76: 1 | BP76: 0 | BQ76: 0 | BR76: 0 | BS76: 28 | BT76: 0.28 | BU76: 0.065 | BV76: 0 | BW76: 0 | BX76: 1 | BY76: 2.845 | BZ76: 0.9483333333 | CA76: 22.695 | CB76: 7.565 | CC76: 2 | CE76: 0 | CF76: 132000 | CI76: 2 | CJ76: https://www.google.com/maps/@62.03585652,23.02941647,3a,75y,90t/data=!3m3!1e1!3m1!2e0 | CK76: 0 | CL76: 0 | CN76: 0 | CO76: 0 | CP76: 1 | CQ76: 0 | CR76: 0 | CS76: 0 | CT76: 0 | CU76: 0 | CV76: 0 | CW76: 0 | CX76: 1 | CY76: 98 | CZ76: 0 | DA76: 1 | DB76: 0 | DC76: 0 | DD76: 0 | DE76: 13 | DF76: 0.065 | DH76: 0 | DI76: 0 | DJ76: 0 | DK76: 1 | DL76: 0 | DN76: 0 | DO76: Uudenasemantie | DP76: Parkano | DQ76: 0 | DR76: 98 | DS76: 28 | DT76: 50 (100 %) | DU76: Ib (100 %) | DV76: AB (100 %) | DW76: Y3 (100 %) | DX76: 2662 | DY76: 8.873333333
A77: 2622_3 | B77: 47777.72133 | C77: 2622_3_0 | D77: 41 | E77: 41 | F77: 0 | G77: 7.531166667 | H77: 2.882 | I77: 3.7075 | J77: 0.9416666667 | K77: 2 | L77: 0 | M77: Gmaps | N77: Vähä | O77: Yhdys | P77: Harjakankaantie, Heinijärventie, Jumesniementie | Q77: Hämeenkyrö | R77: 2622 | S77: 3 | T77: 0 | U77: 3 | V77: 6344 | W77: 6344 | X77: 402 | Y77: 29 | Z77: 481 | AA77: 7 | AB77: 50 (2 %), 80 (98 %) | AC77: III (100 %) | AD77: PAB (100 %) | AE77: 0.4717420993 | AF77: Y3 (100 %) | AG77: 1 | AH77: 2 | AI77: kyllä | AJ77: 0 | AK77: 0.4700504414 | AL77: 7.236 | AM77: 4 | AN77: 0.2 | AO77: 121 | AP77: 1.21 | AQ77: 8.646 | AR77: 2.882 | AS77: 8 | AT77: 2 | AU77: 0 | AV77: 0 | AW77: 0 | AX77: 0 | AY77: 0.1075 | AZ77: 0.015 | BA77: 0 | BB77: 0 | BC77: 0 | BD77: 1 | BE77: 0 | BF77: 0 | BG77: 11.1225 | BH77: 3.7075 | BI77: 2593 | BJ77: 0.4087326608 | BK77: 0.5 | BL77: 0 | BM77: 0 | BN77: 0 | BO77: 1 | BP77: 0 | BQ77: 0 | BR77: 0 | BS77: 15 | BT77: 0.15 | BU77: 0.175 | BV77: 0 | BW77: 0 | BX77: 1 | BY77: 2.825 | BZ77: 0.9416666667 | CA77: 22.5935 | CB77: 7.531166667 | CC77: 2 | CE77: 2992.731878 | CF77: 2550288 | CI77: 2 | CJ77: https://www.google.com/maps/@61.55308906,23.23958183,3a,75y,90t/data=!3m3!1e1!3m1!2e0 | CK77: 0 | CL77: 0 | CN77: 1 | CO77: 0 | CP77: 0 | CQ77: 0 | CR77: 0 | CS77: 86 | CT77: 6 | CU77: 0 | CV77: 0 | CW77: 0 | CX77: 1 | CY77: 2593 | CZ77: 0 | DA77: 1 | DB77: 0 | DC77: 0 | DD77: 0 | DE77: 35 | DF77: 0.175 | DH77: 0 | DI77: 0 | DJ77: 0 | DK77: 0 | DL77: 0 | DN77: 0 | DO77: Harjakankaantie, Heinijärventie, Jumesniementie | DP77: Hämeenkyrö | DQ77: 0 | DR77: 2593 | DS77: 15 | DT77: 50 (2 %), 80 (98 %) | DU77: III (100 %) | DV77: PAB (100 %) | DW77: Y3 (100 %) | DX77: 2982 | DY77: 0.4700504414
A78: 2852_1 | B78: 66133.06833 | C78: 2852_1_0 | D78: 42 | E78: 42 | F78: 0 | G78: 7.502333333 | H78: 3.527333333 | I78: 2.94 | J78: 1.035 | K78: 2 | L78: 0 | M78: Gmaps | N78: Vähä | O78: Yhdys | P78: Sotkiantie | Q78: Akaa | R78: 2852 | S78: 1 | T78: 0 | U78: 1 | V78: 8815 | W78: 8815 | X78: 354 | Y78: 17 | Z78: 425 | AA78: 3 | AB78: 30 (3 %), 50 (16 %), 60 (25 %), 80 (57 %) | AC78: II (34 %), III (66 %) | AD78: AB (3 %), PAB (97 %) | AE78: 0.2620390246 | AF78: Y3 (100 %) | AG78: 2 | AH78: 3 | AI78: kyllä | AJ78: 0 | AK78: 0 | AL78: 6.372 | AM78: 58 | AN78: 2.9 | AO78: 131 | AP78: 1.31 | AQ78: 10.582 | AR78: 3.527333333 | AS78: 5.44 | AT78: 2 | AU78: 0 | AV78: 0 | AW78: 0 | AX78: 1 | AY78: 0.38 | AZ78: 0 | BA78: 0 | BB78: 0 | BC78: 0 | BD78: 0 | BE78: 0 | BF78: 0 | BG78: 8.82 | BH78: 2.94 | BI78: 2494 | BJ78: 0.2829268293 | BK78: 0.5 | BL78: 0 | BM78: 0 | BN78: 0 | BO78: 1 | BP78: 2747 | BQ78: 0.311627907 | BR78: 0 | BS78: 39 | BT78: 0.39 | BU78: 0.215 | BV78: 0 | BW78: 0 | BX78: 1 | BY78: 3.105 | BZ78: 1.035 | CA78: 22.507 | CB78: 7.502333333 | CC78: 2 | CE78: 2309.874002 | CF78: 3120510 | CI78: 2 | CJ78: https://www.google.com/maps/@61.14992899,23.69376344,3a,75y,90t/data=!3m3!1e1!3m1!2e0 | CK78: 0 | CL78: 0 | CN78: 1 | CO78: 0 | CP78: 0 | CQ78: 0 | CR78: 7 | CS78: 304 | CT78: 0 | CU78: 0 | CV78: 0 | CW78: 0 | CX78: 0 | CY78: 2084 | CZ78: 0 | DA78: 1 | DB78: 1 | DC78: 0 | DD78: 0 | DE78: 43 | DF78: 0.215 | DH78: 0 | DI78: 0 | DJ78: 0 | DK78: 0 | DL78: 0 | DN78: 2747 | DO78: Sotkiantie | DP78: Akaa | DQ78: 0 | DR78: 2494 | DS78: 39 | DT78: 30 (3 %), 50 (16 %), 60 (25 %), 80 (57 %) | DU78: II (34 %), III (66 %) | DV78: AB (3 %), PAB (97 %) | DW78: Y3 (100 %) | DX78: 0 | DY78: 0
A79: 14354_1 | B79: 15541.24 | C79: 14354_1_0 | D79: 43 | E79: 43 | F79: 0 | G79: 7.436 | H79: 3.084 | I79: 2.795333333 | J79: 1.556666667 | K79: 2 | L79: 0 | M79: Gmaps | N79: Vähä | O79: Yhdys | P79: Kankaanpääntie, Kastarintie | Q79: Mänttä-Vilppula | R79: 14354 | S79: 1 | T79: 0 | U79: 1 | V79: 2090 | W79: 2090 | X79: 449 | Y79: 23 | Z79: 572 | AA79: 6 | AB79: 50 (100 %) | AC79: II (100 %) | AD79: PAB (100 %) | AE79: 0.7605684078 | AF79: Y3 (100 %) | AG79: 0 | AH79: 0 | AI79: kyllä | AJ79: 0 | AK79: 2.662200957 | AL79: 8.082 | AM79: 5 | AN79: 0.25 | AO79: 92 | AP79: 0.92 | AQ79: 9.252 | AR79: 3.084 | AS79: 7.36 | AT79: 0 | AU79: 0 | AV79: 0 | AW79: 0 | AX79: 0 | AY79: 0 | AZ79: 0 | BA79: 0.026 | BB79: 0 | BC79: 0 | BD79: 1 | BE79: 0 | BF79: 0 | BG79: 8.386 | BH79: 2.795333333 | BI79: 2090 | BJ79: 1 | BK79: 1 | BL79: 0 | BM79: 0 | BN79: 0 | BO79: 0 | BP79: 2040 | BQ79: 0.976076555 | BR79: 1 | BS79: 230 | BT79: 1 | BU79: 0.67 | BV79: 0 | BW79: 0 | BX79: 1 | BY79: 4.67 | BZ79: 1.556666667 | CA79: 22.308 | CB79: 7.436 | CC79: 2 | CE79: 1589.587972 | CF79: 938410 | CI79: 2 | CJ79: https://www.google.com/maps/@62.14455694,24.50867529,3a,75y,90t/data=!3m3!1e1!3m1!2e0 | CK79: 0 | CL79: 0 | CN79: 0 | CO79: 0 | CP79: 0 | CQ79: 0 | CR79: 0 | CS79: 0 | CT79: 0 | CU79: 52 | CV79: 0 | CW79: 0 | CX79: 1 | CY79: 2090 | CZ79: 0 | DA79: 0 | DB79: 1 | DC79: 0.5 | DD79: 0 | DE79: 34 | DF79: 0.17 | DH79: 0 | DI79: 0 | DJ79: 0 | DK79: 0 | DL79: 0 | DN79: 2040 | DO79: Kankaanpääntie, Kastarintie | DP79: Mänttä-Vilppula | DQ79: 0 | DR79: 2090 | DS79: 230 | DT79: 50 (100 %) | DU79: II (100 %) | DV79: PAB (100 %) | DW79: Y3 (100 %) | DX79: 5564 | DY79: 2.662200957
A80: 3221_1 | B80: 6280.787333 | C80: 3221_1_12999 | D80: 44 | E80: 44 | F80: 0 | G80: 7.415333333 | H80: 2.758666667 | I80: 3.003333333 | J80: 1.653333333 | K80: 2 | L80: 0 | M80: Gmaps | N80: Vähä | O80: Yhdys | P80: Miemolantie | Q80: Pälkäne | R80: 3221 | S80: 1 | T80: 12999 | U80: 1 | V80: 13846 | W80: 847 | X80: 352 | Y80: 39 | Z80: 429 | AA80: 4 | AB80: 40 (42 %), 50 (24 %), 80 (34 %) | AC80: II (100 %) | AD80: PAB (100 %) | AE80: 0.8080442628 | AF80: Y3 (100 %) | AG80: 0 | AH80: 0 | AI80: ei | AJ80: 0 | AK80: 1.195985832 | AL80: 6.336 | AM80: 9 | AN80: 0.45 | AO80: 149 | AP80: 1.49 | AQ80: 8.276 | AR80: 2.758666667 | AS80: 8 | AT80: 0 | AU80: 0 | AV80: 0 | AW80: 0 | AX80: 0 | AY80: 0.01 | AZ80: 0 | BA80: 0 | BB80: 0 | BC80: 0 | BD80: 0 | BE80: 1 | BF80: 0 | BG80: 9.01 | BH80: 3.003333333 | BI80: 847 | BJ80: 1 | BK80: 1 | BL80: 0 | BM80: 0 | BN80: 0 | BO80: 1 | BP80: 477 | BQ80: 0.5631641086 | BR80: 1 | BS80: 85 | BT80: 0.85 | BU80: 0.11 | BV80: 0 | BW80: 0 | BX80: 1 | BY80: 4.96 | BZ80: 1.653333333 | CA80: 22.246 | CB80: 7.415333333 | CC80: 2 | CE80: 684.4134906 | CF80: 298144 | CI80: 2 | CJ80: https://www.google.com/maps/@61.33892048,24.49185455,3a,75y,90t/data=!3m3!1e1!3m1!2e0 | CK80: 0 | CL80: 1 | CN80: 0 | CO80: 0 | CP80: 0 | CQ80: 0 | CR80: 0 | CS80: 8 | CT80: 0 | CU80: 0 | CV80: 0 | CW80: 0 | CX80: 0 | CY80: 847 | CZ80: 0 | DA80: 1 | DB80: 1 | DC80: 0 | DD80: 0 | DE80: 22 | DF80: 0.11 | DH80: 0 | DI80: 0 | DJ80: 0 | DK80: 0 | DL80: 0 | DN80: 477 | DO80: Miemolantie | DP80: Pälkäne | DQ80: 0 | DR80: 847 | DS80: 85 | DT80: 40 (42 %), 50 (24 %), 80 (34 %) | DU80: II (100 %) | DV80: PAB (100 %) | DW80: Y3 (100 %) | DX80: 1013 | DY80: 1.195985832
A81: 301_2 | B81: 77293.85417 | C81: 301_2_0 | D81: 45 | E81: 45 | F81: 0 | G81: 7.395833333 | H81: 2.75 | I81: 3.729166667 | J81: 0.9166666667 | K81: 2 | L81: 0 | M81: Gmaps | N81: Vähä | O81: Seutu | P81: Rämsööntie, Vesilahdentie | Q81: Sastamala, Vesilahti | R81: 301 | S81: 2 | T81: 0 | U81: 2 | V81: 10451 | W81: 10451 | X81: 400 | Y81: 30 | Z81: 480 | AA81: 10 | AB81: 50 (7 %), 60 (3 %), 80 (90 %) | AC81: II (100 %) | AD81: AB (95 %), PAB (5 %) | AE81: 0.2286071818 | AF81: Y3 (100 %) | AG81: 1 | AH81: 3 | AI81: ei | AJ81: 0 | AK81: 2.113864702 | AL81: 7.2 | AM81: 0 | AN81: 0 | AO81: 105 | AP81: 1.05 | AQ81: 8.25 | AR81: 2.75 | AS81: 8 | AT81: 2 | AU81: 0 | AV81: 0 | AW81: 0 | AX81: 1 | AY81: 0.13 | AZ81: 0.0575 | BA81: 0 | BB81: 0 | BC81: 0 | BD81: 0 | BE81: 0 | BF81: 0 | BG81: 11.1875 | BH81: 3.729166667 | BI81: 0 | BJ81: 0 | BK81: 0 | BL81: 0 | BM81: 0 | BN81: 0 | BO81: 1 | BP81: 0 | BQ81: 0 | BR81: 0 | BS81: 20 | BT81: 0.2 | BU81: 0.55 | BV81: 0 | BW81: 0 | BX81: 1 | BY81: 2.75 | BZ81: 0.9166666667 | CA81: 22.1875 | CB81: 7.395833333 | CC81: 2 | CE81: 2389.173657 | CF81: 4180400 | CI81: 2 | CJ81: https://www.google.com/maps/@61.33051561,23.12273163,3a,75y,90t/data=!3m3!1e1!3m1!2e0 | CK81: 0 | CL81: 0 | CN81: 1 | CO81: 0 | CP81: 0 | CQ81: 0 | CR81: 1 | CS81: 104 | CT81: 23 | CU81: 0 | CV81: 0 | CW81: 0 | CX81: 0 | CY81: 0 | CZ81: 0 | DA81: 1 | DB81: 0 | DC81: 0 | DD81: 0 | DE81: 110 | DF81: 0.55 | DH81: 0 | DI81: 0 | DJ81: 0 | DK81: 0 | DL81: 0 | DN81: 0 | DO81: Rämsööntie, Vesilahdentie | DP81: Sastamala, Vesilahti | DQ81: 0 | DR81: 0 | DS81: 20 | DT81: 50 (7 %), 60 (3 %), 80 (90 %) | DU81: II (100 %) | DV81: AB (95 %), PAB (5 %) | DW81: Y2 (100 %) | DX81: 22092 | DY81: 2.113864702
A82: 3413_1 | B82: 52525.284 | C82: 3413_1_0 | D82: 46 | E82: 46 | F82: 0 | G82: 7.3668 | H82: 2.579333333 | I82: 3.9558 | J82: 0.8316666667 | K82: 2 | L82: 0 | M82: Gmaps | N82: Vähä | O82: Yhdys | P82: Salokunnantie, Savon kylätie | Q82: Orivesi, Juupajoki | R82: 3413 | S82: 1 | T82: 0 | U82: 1 | V82: 7130 | W82: 7130 | X82: 236 | Y82: 28 | Z82: 293 | AA82: 15 | AB82: 50 (8 %), 60 (28 %), 80 (64 %) | AC82: III (100 %) | AD82: AB (4 %), PAB (96 %) | AE82: 0.8543070609 | AF82: Y3 (49 %) | AG82: 0 | AH82: 1 | AI82: ei | AJ82: H-505 | AK82: 1.981486676 | AL82: 4.248 | AM82: 50 | AN82: 2.5 | AO82: 99 | AP82: 0.99 | AQ82: 7.738 | AR82: 2.579333333 | AS82: 8 | AT82: 2 | AU82: 0 | AV82: 0 | AW82: 0 | AX82: 1 | AY82: 0.4075 | AZ82: 0.4575 | BA82: 0 | BB82: 0.0024 | BC82: 0 | BD82: 0 | BE82: 0 | BF82: 0 | BG82: 11.8674 | BH82: 3.9558 | BI82: 0 | BJ82: 0 | BK82: 0 | BL82: 0 | BM82: 0 | BN82: 0 | BO82: 1 | BP82: 0 | BQ82: 0 | BR82: 0 | BS82: 30 | BT82: 0.3 | BU82: 0.195 | BV82: 0 | BW82: 0 | BX82: 1 | BY82: 2.495 | BZ82: 0.8316666667 | CA82: 22.1004 | CB82: 7.3668 | CC82: 2 | CE82: 6091.209344 | CF82: 1682680 | CI82: 2 | CJ82: https://www.google.com/maps/@61.70709663,24.45573494,3a,75y,90t/data=!3m3!1e1!3m1!2e0 | CK82: 0 | CL82: 0 | CN82: 1 | CO82: 0 | CP82: 0 | CQ82: 0 | CR82: 1 | CS82: 326 | CT82: 183 | CU82: 0 | CV82: 48 | CW82: 0 | CX82: 0 | CY82: 0 | CZ82: 0 | DA82: 1 | DB82: 0 | DC82: 0 | DD82: 0 | DE82: 39 | DF82: 0.195 | DH82: 0 | DI82: 0 | DJ82: 0 | DK82: 0 | DL82: 0 | DN82: 0 | DO82: Salokunnantie, Savon kylätie | DP82: Orivesi, Juupajoki | DQ82: H-505 | DR82: 0 | DS82: 30 | DT82: 50 (8 %), 60 (28 %), 80 (64 %) | DU82: III (100 %) | DV82: AB (4 %), PAB (96 %) | DW82: Y3 (100 %) | DX82: 14128 | DY82: 1.981486676
A83: 13153_1 | B83: 35522.20867 | C83: 13153_1_0 | D83: 47 | E83: 47 | F83: 0 | G83: 7.342333333 | H83: 4.007333333 | I83: 3 | J83: 0.335 | K83: 2 | L83: 0 | M83: Gmaps | N83: Vähä | O83: Yhdys | P83: Lintuharjuntie | Q83: Hämeenkyrö, Ylöjärvi | R83: 13153 | S83: 1 | T83: 0 | U83: 1 | V83: 4838 | W83: 4838 | X83: 454 | Y83: 30 | Z83: 499 | AA83: 6 | AB83: 80 (100 %) | AC83: II (100 %) | AD83: PAB (100 %) | AE83: 0.06193780614 | AF83: Y3 (100 %) | AG83: 0 | AH83: 0 | AI83: kyllä | AJ83: 0 | AK83: 1.683960314 | AL83: 8.172 | AM83: 17 | AN83: 0.85 | AO83: 347 | AP83: 3 | AQ83: 12.022 | AR83: 4.007333333 | AS83: 8 | AT83: 0 | AU83: 0 | AV83: 0 | AW83: 0 | AX83: 1 | AY83: 0 | AZ83: 0 | BA83: 0 | BB83: 0 | BC83: 0 | BD83: 0 | BE83: 0 | BF83: 0 | BG83: 9 | BH83: 3 | BI83: 0 | BJ83: 0 | BK83: 0 | BL83: 0 | BM83: 0 | BN83: 0 | BO83: 0 | BP83: 0 | BQ83: 0 | BR83: 0 | BS83: 0 | BT83: 0 | BU83: 0.005 | BV83: 0 | BW83: 0 | BX83: 1 | BY83: 1.005 | BZ83: 0.335 | CA83: 22.027 | CB83: 7.342333333 | CC83: 2 | CE83: 299.6551061 | CF83: 2196452 | CI83: 2 | CJ83: https://www.google.com/maps/@61.67306597,23.35734598,3a,75y,90t/data=!3m3!1e1!3m1!2e0 | CK83: 0 | CL83: 0 | CN83: 0 | CO83: 0 | CP83: 0 | CQ83: 0 | CR83: 1 | CS83: 0 | CT83: 0 | CU83: 0 | CV83: 0 | CW83: 0 | CX83: 0 | CY83: 0 | CZ83: 0 | DA83: 0 | DB83: 0 | DC83: 0 | DD83: 0 | DE83: 1 | DF83: 0.005 | DH83: 0 | DI83: 0 | DJ83: 0 | DK83: 0 | DL83: 0 | DN83: 0 | DO83: Lintuharjuntie | DP83: Hämeenkyrö, Ylöjärvi | DQ83: 0 | DR83: 0 | DS83: 0 | DT83: 80 (100 %) | DU83: II (100 %) | DV83: PAB (100 %) | DW83: Y3 (100 %) | DX83: 8147 | DY83: 1.683960314
A84: 3481_2 | B84: 8935.5525 | C84: 3481_2_0 | D84: 48 | E84: 48 | F84: 0 | G84: 7.33625 | H84: 2.506666667 | I84: 3.912916667 | J84: 0.9166666667 | K84: 2 | L84: 0 | M84: Gmaps | N84: Vähä | O84: Yhdys | P84: Tuuhoskyläntie | Q84: Ruovesi | R84: 3481 | S84: 2 | T84: 0 | U84: 2 | V84: 1218 | W84: 1218 | X84: 375 | Y84: 24 | Z84: 535 | AA84: 5 | AB84: 60 (100 %) | AC84: II (100 %) | AD84: PAB (100 %) | AE84: 0.08623951826 | AF84: Y3 (100 %) | AG84: 0 | AH84: 0 | AI84: ei | AJ84: 0 | AK84: 1.976190476 | AL84: 6.75 | AM84: 0 | AN84: 0 | AO84: 77 | AP84: 0.77 | AQ84: 7.52 | AR84: 2.506666667 | AS84: 7.68 | AT84: 2 | AU84: 0 | AV84: 1 | AW84: 0 | AX84: 1 | AY84: 0.02375 | AZ84: 0.035 | BA84: 0 | BB84: 0 | BC84: 0 | BD84: 0 | BE84: 0 | BF84: 0 | BG84: 11.73875 | BH84: 3.912916667 | BI84: 0 | BJ84: 0 | BK84: 0 | BL84: 0 | BM84: 0 | BN84: 0 | BO84: 0 | BP84: 0 | BQ84: 0 | BR84: 0 | BS84: 25 | BT84: 0.25 | BU84: 1.5 | BV84: 0 | BW84: 0 | BX84: 1 | BY84: 2.75 | BZ84: 0.9166666667 | CA84: 22.00875 | CB84: 7.33625 | CC84: 2 | CE84: 105.0397332 | CF84: 456750 | CI84: 2 | CJ84: https://www.google.com/maps/@62.0631833,24.12474549,3a,75y,90t/data=!3m3!1e1!3m1!2e0 | CK84: 0 | CL84: 0 | CN84: 1 | CO84: 0 | CP84: 1 | CQ84: 0 | CR84: 6 | CS84: 19 | CT84: 14 | CU84: 0 | CV84: 0 | CW84: 0 | CX84: 0 | CY84: 0 | CZ84: 0 | DA84: 0 | DB84: 0 | DC84: 0.5 | DD84: 0 | DE84: 207 | DF84: 1 | DH84: 0 | DI84: 0 | DJ84: 0 | DK84: 0 | DL84: 0 | DN84: 0 | DO84: Tuuhoskyläntie | DP84: Ruovesi | DQ84: 0 | DR84: 0 | DS84: 25 | DT84: 60 (100 %) | DU84: II (100 %) | DV84: PAB (100 %) | DW84: Y3 (100 %) | DX84: 2407 | DY84: 1.976190476
A85: 13695_1 | B85: 20845.07792 | C85: 13695_1_0 | D85: 49 | E85: 49 | F85: 0 | G85: 7.326916667 | H85: 2.554 | I85: 4.139583333 | J85: 0.6333333333 | K85: 2 | L85: 0 | M85: Gmaps | N85: Vähä | O85: Yhdys | P85: Ilomäentie | Q85: Akaa | R85: 13695 | S85: 1 | T85: 0 | U85: 1 | V85: 2845 | W85: 2845 | X85: 359 | Y85: 38 | Z85: 489 | AA85: 17 | AB85: 50 (6 %), 60 (94 %) | AC85: III (100 %) | AD85: PAB (100 %) | AE85: 0.4377613849 | AF85: Y3 (100 %) | AG85: 1 | AH85: 2 | AI85: kyllä | AJ85: 0 | AK85: 2.115641476 | AL85: 6.462 | AM85: 0 | AN85: 0 | AO85: 120 | AP85: 1.2 | AQ85: 7.662 | AR85: 2.554 | AS85: 8 | AT85: 0 | AU85: 0 | AV85: 1 | AW85: 0 | AX85: 1 | AY85: 0.41875 | AZ85: 0 | BA85: 0 | BB85: 0 | BC85: 0 | BD85: 1 | BE85: 0 | BF85: 1 | BG85: 12.41875 | BH85: 4.139583333 | BI85: 674 | BJ85: 0.2369068541 | BK85: 0.5 | BL85: 0 | BM85: 0 | BN85: 0 | BO85: 0 | BP85: 111 | BQ85: 0.03901581722 | BR85: 0 | BS85: 30 | BT85: 0.3 | BU85: 0.1 | BV85: 0 | BW85: 0 | BX85: 1 | BY85: 1.9 | BZ85: 0.6333333333 | CA85: 21.98075 | CB85: 7.326916667 | CC85: 2 | CE85: 1245.43114 | CF85: 1021355 | CI85: 2 | CJ85: https://www.google.com/maps/@61.16015401,23.93896991,3a,75y,90t/data=!3m3!1e1!3m1!2e0 | CK85: 0 | CL85: 0 | CN85: 0 | CO85: 0 | CP85: 1 | CQ85: 0 | CR85: 5 | CS85: 335 | CT85: 0 | CU85: 0 | CV85: 0 | CW85: 0 | CX85: 4 | CY85: 303 | CZ85: 0 | DA85: 0 | DB85: 1 | DC85: 0 | DD85: 0 | DE85: 20 | DF85: 0.1 | DH85: 0 | DI85: 0 | DJ85: 0 | DK85: 1 | DL85: 0 | DN85: 111 | DO85: Ilomäentie | DP85: Akaa | DQ85: 0 | DR85: 674 | DS85: 30 | DT85: 50 (6 %), 60 (94 %) | DU85: III (100 %) | DV85: PAB (100 %) | DW85: Y3 (100 %) | DX85: 6019 | DY85: 2.115641476
A86: 3481_1 | B86: 29949.2085 | C86: 3481_1_0 | D86: 50 | E86: 50 | F86: 0 | G86: 7.30825 | H86: 3.055333333 | I86: 3.36625 | J86: 0.8866666667 | K86: 2 | L86: 0 | M86: Gmaps | N86: Vähä | O86: Yhdys | P86: Syvinkisalmentie | Q86: Ruovesi | R86: 3481 | S86: 1 | T86: 0 | U86: 1 | V86: 4098 | W86: 4098 | X86: 427 | Y86: 22 | Z86: 520 | AA86: 2 | AB86: 80 (100 %) | AC86: II (100 %) | AD86: AB (1 %), PAB (99 %) | AE86: 0.1460101363 | AF86: Y3 (100 %) | AG86: 1 | AH86: 1 | AI86: ei | AJ86: 0 | AK86: 1.983894583 | AL86: 7.686 | AM86: 19 | AN86: 0.95 | AO86: 53 | AP86: 0.53 | AQ86: 9.166 | AR86: 3.055333333 | AS86: 7.04 | AT86: 0 | AU86: 0 | AV86: 1 | AW86: 0 | AX86: 1 | AY86: 0.02375 | AZ86: 0.035 | BA86: 0 | BB86: 0 | BC86: 0 | BD86: 0 | BE86: 0 | BF86: 1 | BG86: 10.09875 | BH86: 3.36625 | BI86: 0 | BJ86: 0 | BK86: 0 | BL86: 0 | BM86: 0 | BN86: 0 | BO86: 0 | BP86: 0 | BQ86: 0 | BR86: 0 | BS86: 16 | BT86: 0.16 | BU86: 1.5 | BV86: 0 | BW86: 0 | BX86: 1 | BY86: 2.66 | BZ86: 0.8866666667 | CA86: 21.92475 | CB86: 7.30825 | CC86: 2 | CE86: 598.3495385 | CF86: 1749846 | CI86: 2 | CJ86: https://www.google.com/maps/@62.04327997,24.00393666,3a,75y,90t/data=!3m3!1e1!3m1!2e0 | CK86: 0 | CL86: 0 | CN86: 0 | CO86: 0 | CP86: 1 | CQ86: 0 | CR86: 6 | CS86: 19 | CT86: 14 | CU86: 0 | CV86: 0 | CW86: 0 | CX86: 0 | CY86: 0 | CZ86: 0 | DA86: 0 | DB86: 0 | DC86: 0.5 | DD86: 0 | DE86: 259 | DF86: 1 | DH86: 0 | DI86: 0 | DJ86: 0 | DK86: 1 | DL86: 1 | DN86: 0 | DO86: Syvinkisalmentie | DP86: Ruovesi | DQ86: 0 | DR86: 0 | DS86: 16 | DT86: 80 (100 %) | DU86: II (100 %) | DV86: AB (1 %), PAB (99 %) | DW86: Y3 (100 %) | DX86: 8130 | DY86: 1.983894583
A87: 3312_1 | B87: 25445.0565 | C87: 3312_1_0 | D87: 51 | E87: 51 | F87: 0 | G87: 7.3055 | H87: 3.534666667 | I87: 3.135833333 | J87: 0.635 | K87: 2 | L87: 0 | M87: Gmaps | N87: Vähä | O87: Yhdys | P87: Länsi-Teiskontie | Q87: Ylöjärvi | R87: 3312 | S87: 1 | T87: 0 | U87: 1 | V87: 3483 | W87: 3483 | X87: 378 | Y87: 20 | Z87: 416 | AA87: 3 | AB87: 80 (100 %) | AC87: II (100 %) | AD87: AB (1 %), PAB (46 %), sora (53 %) | AE87: 0.8124818331 | AF87: Y3 (100 %) | AG87: 0 | AH87: 0 | AI87: ei | AJ87: 0 | AK87: 1.427505024 | AL87: 6.804 | AM87: 147 | AN87: 3 | AO87: 80 | AP87: 0.8 | AQ87: 10.604 | AR87: 3.534666667 | AS87: 6.4 | AT87: 2 | AU87: 0 | AV87: 0 | AW87: 0 | AX87: 0 | AY87: 0.0075 | AZ87: 0 | BA87: 0 | BB87: 0 | BC87: 0 | BD87: 0 | BE87: 1 | BF87: 0 | BG87: 9.4075 | BH87: 3.135833333 | BI87: 0 | BJ87: 0 | BK87: 0 | BL87: 0 | BM87: 0 | BN87: 0 | BO87: 0 | BP87: 0 | BQ87: 0 | BR87: 0 | BS87: 16 | BT87: 0.16 | BU87: 0.745 | BV87: 0 | BW87: 0 | BX87: 1 | BY87: 1.905 | BZ87: 0.635 | CA87: 21.9165 | CB87: 7.3055 | CC87: 2 | CE87: 2829.874225 | CF87: 1316574 | CI87: 2 | CJ87: https://www.google.com/maps/@61.71710256,23.54858098,3a,75y,90t/data=!3m3!1e1!3m1!2e0 | CK87: 0 | CL87: 1 | CN87: 1 | CO87: 0 | CP87: 0 | CQ87: 0 | CR87: 0 | CS87: 6 | CT87: 0 | CU87: 0 | CV87: 0 | CW87: 0 | CX87: 0 | CY87: 0 | CZ87: 0 | DA87: 0 | DB87: 0 | DC87: 0 | DD87: 0 | DE87: 149 | DF87: 0.745 | DH87: 0 | DI87: 0 | DJ87: 0 | DK87: 0 | DL87: 0 | DN87: 0 | DO87: Länsi-Teiskontie | DP87: Ylöjärvi | DQ87: 0 | DR87: 0 | DS87: 16 | DT87: 80 (100 %) | DU87: II (100 %) | DV87: AB (1 %), PAB (46 %), sora (53 %) | DW87: Y3 (47 %) | DX87: 4972 | DY87: 1.427505024
A88: 3413_2 | B88: 36361.236 | C88: 3413_2_0 | D88: 52 | E88: 52 | F88: 0 | G88: 7.292666667 | H88: 2.189333333 | I88: 3.78 | J88: 1.323333333 | K88: 2 | L88: 0 | M88: Gmaps | N88: Vähä | O88: Yhdys | P88: Kopsamontie | Q88: Juupajoki | R88: 3413 | S88: 2 | T88: 0 | U88: 2 | V88: 4986 | W88: 4986 | X88: 236 | Y88: 28 | Z88: 293 | AA88: 15 | AB88: 50 (52 %), 80 (48 %) | AC88: III (100 %) | AD88: AB (21 %), PAB (79 %) | AE88: 0.7666265284 | AF88: Y3 (100 %) | AG88: 0 | AH88: 0 | AI88: ei | AJ88: 0 | AK88: 2.669474529 | AL88: 4.248 | AM88: 14 | AN88: 0.7 | AO88: 162 | AP88: 1.62 | AQ88: 6.568 | AR88: 2.189333333 | AS88: 8 | AT88: 2 | AU88: 0 | AV88: 0 | AW88: 0 | AX88: 1 | AY88: 0.1275 | AZ88: 0.2125 | BA88: 0 | BB88: 0 | BC88: 0 | BD88: 0 | BE88: 0 | BF88: 0 | BG88: 11.34 | BH88: 3.78 | BI88: 4157 | BJ88: 0.8337344565 | BK88: 1 | BL88: 0 | BM88: 0 | BN88: 0 | BO88: 1 | BP88: 0 | BQ88: 0 | BR88: 0 | BS88: 65 | BT88: 0.65 | BU88: 0.32 | BV88: 0 | BW88: 0 | BX88: 1 | BY88: 3.97 | BZ88: 1.323333333 | CA88: 21.878 | CB88: 7.292666667 | CC88: 2 | CE88: 3822.399871 | CF88: 1176696 | CI88: 2 | CJ88: https://www.google.com/maps/@61.76226276,24.45838883,3a,75y,90t/data=!3m3!1e1!3m1!2e0 | CK88: 0 | CL88: 0 | CN88: 1 | CO88: 0 | CP88: 0 | CQ88: 0 | CR88: 1 | CS88: 102 | CT88: 85 | CU88: 0 | CV88: 0 | CW88: 0 | CX88: 0 | CY88: 4151 | CZ88: 0 | DA88: 1 | DB88: 0 | DC88: 0 | DD88: 0 | DE88: 64 | DF88: 0.32 | DH88: 0 | DI88: 0 | DJ88: 0 | DK88: 0 | DL88: 0 | DN88: 0 | DO88: Kopsamontie | DP88: Juupajoki | DQ88: 0 | DR88: 4157 | DS88: 65 | DT88: 50 (52 %), 80 (48 %) | DU88: III (100 %) | DV88: AB (21 %), PAB (79 %) | DW88: Y3 (100 %) | DX88: 13310 | DY88: 2.669474529
A89: 3230_2 | B89: 34178.121 | C89: 3230_2_0 | D89: 53 | E89: 53 | F89: 0 | G89: 7.289 | H89: 2.884 | I89: 3.333333333 | J89: 1.071666667 | K89: 2 | L89: 0 | M89: Gmaps | N89: Vähä | O89: Yhdys | P89: Sappeentie | Q89: Pälkäne | R89: 3230 | S89: 2 | T89: 0 | U89: 2 | V89: 4689 | W89: 4689 | X89: 419 | Y89: 36 | Z89: 586 | AA89: 4 | AB89: 60 (70 %), 80 (30 %) | AC89: II (100 %) | AD89: PAB (100 %) | AE89: 0.1052312087 | AF89: Y3 (100 %) | AG89: 0 | AH89: 1 | AI89: ei | AJ89: 0 | AK89: 0.04819791 | AL89: 7.542 | AM89: 1 | AN89: 0.05 | AO89: 106 | AP89: 1.06 | AQ89: 8.652 | AR89: 2.884 | AS89: 8 | AT89: 2 | AU89: 0 | AV89: 0 | AW89: 0 | AX89: 0 | AY89: 0 | AZ89: 0 | BA89: 0 | BB89: 0 | BC89: 0 | BD89: 0 | BE89: 0 | BF89: 0 | BG89: 10 | BH89: 3.333333333 | BI89: 0 | BJ89: 0 | BK89: 0 | BL89: 0 | BM89: 0 | BN89: 0 | BO89: 1 | BP89: 0 | BQ89: 0 | BR89: 0 | BS89: 35 | BT89: 0.35 | BU89: 0.865 | BV89: 0 | BW89: 0 | BX89: 1 | BY89: 3.215 | BZ89: 1.071666667 | CA89: 21.867 | CB89: 7.289 | CC89: 2 | CE89: 493.4291377 | CF89: 1964691 | CI89: 2 | CJ89: https://www.google.com/maps/@61.37528571,24.5056331,3a,75y,90t/data=!3m3!1e1!3m1!2e0 | CK89: 0 | CL89: 0 | CN89: 1 | CO89: 0 | CP89: 0 | CQ89: 0 | CR89: 0 | CS89: 0 | CT89: 0 | CU89: 0 | CV89: 0 | CW89: 0 | CX89: 0 | CY89: 0 | CZ89: 0 | DA89: 1 | DB89: 0 | DC89: 0.5 | DD89: 0 | DE89: 73 | DF89: 0.365 | DH89: 0 | DI89: 0 | DJ89: 0 | DK89: 0 | DL89: 0 | DN89: 0 | DO89: Sappeentie | DP89: Pälkäne | DQ89: 0 | DR89: 0 | DS89: 35 | DT89: 60 (70 %), 80 (30 %) | DU89: II (100 %) | DV89: PAB (100 %) | DW89: Y3 (100 %) | DX89: 226 | DY89: 0.04819791
A90: 3073_1 | B90: 18979.359 | C90: 3073_1_0 | D90: 54 | E90: 54 | F90: 0 | G90: 7.269 | H90: 3.277333333 | I90: 3.026666667 | J90: 0.965 | K90: 2 | L90: 0 | M90: Gmaps | N90: Vähä | O90: Yhdys | P90: Uskilantie | Q90: Valkeakoski | R90: 3073 | S90: 1 | T90: 0 | U90: 1 | V90: 2611 | W90: 2611 | X90: 419 | Y90: 19 | Z90: 501 | AA90: 2 | AB90: 50 (4 %), 60 (11 %), 80 (84 %) | AC90: II (100 %) | AD90: AB (8 %), PAB (92 %) | AE90: 0.3831633417 | AF90: Y2 (100 %) | AG90: 0 | AH90: 2 | AI90: ei | AJ90: 0 | AK90: 0.3140559173 | AL90: 7.542 | AM90: 27 | AN90: 1.35 | AO90: 94 | AP90: 0.94 | AQ90: 9.832 | AR90: 3.277333333 | AS90: 6.08 | AT90: 2 | AU90: 0 | AV90: 0 | AW90: 0 | AX90: 1 | AY90: 0 | AZ90: 0 | BA90: 0 | BB90: 0 | BC90: 0 | BD90: 0 | BE90: 0 | BF90: 0 | BG90: 9.08 | BH90: 3.026666667 | BI90: 0 | BJ90: 0 | BK90: 0 | BL90: 0 | BM90: 0 | BN90: 0 | BO90: 1 | BP90: 0 | BQ90: 0 | BR90: 0 | BS90: 39 | BT90: 0.39 | BU90: 0.505 | BV90: 0 | BW90: 0 | BX90: 1 | BY90: 2.895 | BZ90: 0.965 | CA90: 21.807 | CB90: 7.269 | CC90: 2 | CE90: 1000.439485 | CF90: 1094009 | CI90: 2 | CJ90: https://www.google.com/maps/@61.24907246,24.21934572,3a,75y,90t/data=!3m3!1e1!3m1!2e0 | CK90: 0 | CL90: 0 | CN90: 1 | CO90: 0 | CP90: 0 | CQ90: 0 | CR90: 1 | CS90: 0 | CT90: 0 | CU90: 0 | CV90: 0 | CW90: 0 | CX90: 0 | CY90: 0 | CZ90: 0 | DA90: 1 | DB90: 0 | DC90: 0.5 | DD90: 0 | DE90: 1 | DF90: 0.005 | DH90: 0 | DI90: 0 | DJ90: 0 | DK90: 0 | DL90: 0 | DN90: 0 | DO90: Uskilantie | DP90: Valkeakoski | DQ90: 0 | DR90: 0 | DS90: 39 | DT90: 50 (4 %), 60 (11 %), 80 (84 %) | DU90: II (100 %) | DV90: AB (8 %), PAB (92 %) | DW90: Y3 (100 %) | DX90: 820 | DY90: 0.3140559173
A91: 276_5 | B91: 54178.59125 | C91: 276_5_0 | D91: 55 | E91: 55 | F91: 0 | G91: 7.267416667 | H91: 2.878666667 | I91: 3.050416667 | J91: 1.338333333 | K91: 2 | L91: 0 | M91: Gmaps | N91: Vähä | O91: Seutu | P91: Luhalahdentie | Q91: Ikaalinen | R91: 276 | S91: 5 | T91: 0 | U91: 5 | V91: 7455 | W91: 7455 | X91: 412 | Y91: 30 | Z91: 516 | AA91: 9 | AB91: 40 (10 %), 60 (40 %), 80 (50 %) | AC91: II (100 %) | AD91: AB (1 %), PAB (99 %) | AE91: 0.161035875 | AF91: Y3 (100 %) | AG91: 0 | AH91: 0 | AI91: ei | AJ91: 0 | AK91: 2.838900067 | AL91: 7.416 | AM91: 0 | AN91: 0 | AO91: 122 | AP91: 1.22 | AQ91: 8.636 | AR91: 2.878666667 | AS91: 8 | AT91: 0 | AU91: 0 | AV91: 1 | AW91: 0 | AX91: 0 | AY91: 0.15125 | AZ91: 0 | BA91: 0 | BB91: 0 | BC91: 0 | BD91: 0 | BE91: 0 | BF91: 0 | BG91: 9.15125 | BH91: 3.050416667 | BI91: 3469 | BJ91: 0.465325285 | BK91: 0.5 | BL91: 0 | BM91: 0 | BN91: 0 | BO91: 1 | BP91: 0 | BQ91: 0 | BR91: 0 | BS91: 25 | BT91: 0.25 | BU91: 1.265 | BV91: 0 | BW91: 0 | BX91: 1 | BY91: 4.015 | BZ91: 1.338333333 | CA91: 21.80225 | CB91: 7.267416667 | CC91: 2 | CE91: 1200.522448 | CF91: 3071460 | CI91: 2 | CJ91: https://www.google.com/maps/@61.77454783,23.27805466,3a,75y,90t/data=!3m3!1e1!3m1!2e0 | CK91: 0 | CL91: 0 | CN91: 0 | CO91: 0 | CP91: 1 | CQ91: 0 | CR91: 0 | CS91: 121 | CT91: 0 | CU91: 0 | CV91: 0 | CW91: 0 | CX91: 0 | CY91: 3469 | CZ91: 0 | DA91: 1 | DB91: 0 | DC91: 0.5 | DD91: 0 | DE91: 153 | DF91: 0.765 | DH91: 0 | DI91: 0 | DJ91: 0 | DK91: 0 | DL91: 0 | DN91: 0 | DO91: Luhalahdentie | DP91: Ikaalinen | DQ91: 0 | DR91: 3469 | DS91: 25 | DT91: 40 (10 %), 60 (40 %), 80 (50 %) | DU91: II (100 %) | DV91: AB (1 %), PAB (99 %) | DW91: Y3 (100 %) | DX91: 21164 | DY91: 2.838900067
A92: 3381_5 | B92: 64634.85 | C92: 3381_5_0 | D92: 56 | E92: 56 | F92: 0 | G92: 7.242 | H92: 3.688666667 | I92: 1.72 | J92: 1.833333333 | K92: 2 | L92: 0 | M92: Gmaps | N92: Vähä | O92: Yhdys | P92: Enokunnantie | Q92: Orivesi | R92: 3381 | S92: 5 | T92: 0 | U92: 5 | V92: 8925 | W92: 8925 | X92: 332 | Y92: 13 | Z92: 464 | AA92: 4 | AB92: 50 (13 %), 80 (87 %) | AC92: II (42 %), III (58 %) | AD92: AB (13 %), PAB (41 %), sora (46 %) | AE92: 0.651313447 | AF92: Y3 (100 %) | AG92: 0 | AH92: 2 | AI92: kyllä | AJ92: 0 | AK92: 2.143529412 | AL92: 5.976 | AM92: 71 | AN92: 3 | AO92: 209 | AP92: 2.09 | AQ92: 11.066 | AR92: 3.688666667 | AS92: 4.16 | AT92: 0 | AU92: 0 | AV92: 0 | AW92: 0 | AX92: 0 | AY92: 0 | AZ92: 0 | BA92: 0 | BB92: 0 | BC92: 0 | BD92: 1 | BE92: 0 | BF92: 0 | BG92: 5.16 | BH92: 1.72 | BI92: 1587 | BJ92: 0.1778151261 | BK92: 0.5 | BL92: 282 | BM92: 0.03159663866 | BN92: 1 | BO92: 0 | BP92: 996 | BQ92: 0.1115966387 | BR92: 0 | BS92: 460 | BT92: 1 | BU92: 1 | BV92: 0 | BW92: 1 | BX92: 1 | BY92: 5.5 | BZ92: 1.833333333 | CA92: 21.726 | CB92: 7.242 | CC92: 2 | CE92: 5812.972514 | CF92: 2963100 | CI92: 2 | CJ92: https://www.google.com/maps/@61.71200651,24.2056609,3a,75y,90t/data=!3m3!1e1!3m1!2e0 | CK92: 0 | CL92: 0 | CN92: 0 | CO92: 0 | CP92: 0 | CQ92: 0 | CR92: 0 | CS92: 0 | CT92: 0 | CU92: 0 | CV92: 0 | CW92: 0 | CX92: 1 | CY92: 364 | CZ92: 282 | DA92: 0 | DB92: 1 | DC92: 0 | DD92: 0 | DE92: 243 | DF92: 1 | DH92: 0 | DI92: 1 | DJ92: 0 | DK92: 0 | DL92: 0 | DN92: 996 | DO92: Enokunnantie | DP92: Orivesi | DQ92: 0 | DR92: 1587 | DS92: 460 | DT92: 50 (13 %), 80 (87 %) | DU92: II (42 %), III (58 %) | DV92: AB (13 %), PAB (41 %), sora (46 %) | DW92: Y3 (54 %) | DX92: 19131 | DY92: 2.143529412
A93: 3280_5 | B93: 87721.68125 | C93: 3280_5_1460 | D93: 57 | E93: 57 | F93: 0 | G93: 7.20625 | H93: 2.852 | I93: 3.297583333 | J93: 1.056666667 | K93: 2 | L93: 0 | M93: Gmaps | N93: Vähä | O93: Yhdys | P93: Leväslahdentie, Vinkiäntie | Q93: Orivesi | R93: 3280 | S93: 5 | T93: 1460 | U93: 5 | V93: 13633 | W93: 12173 | X93: 417 | Y93: 21 | Z93: 652 | AA93: 4 | AB93: 50 (15 %), 60 (14 %), 80 (71 %) | AC93: III (100 %) | AD93: PAB (100 %) | AE93: 0.5386814062 | AF93: Y3 (100 %) | AG93: 1 | AH93: 2 | AI93: ei | AJ93: 0 | AK93: 3.779429886 | AL93: 7.506 | AM93: 8 | AN93: 0.4 | AO93: 65 | AP93: 0.65 | AQ93: 8.556 | AR93: 2.852 | AS93: 6.72 | AT93: 2 | AU93: 0 | AV93: 0 | AW93: 0 | AX93: 1 | AY93: 0.02375 | AZ93: 0 | BA93: 0.149 | BB93: 0 | BC93: 0 | BD93: 0 | BE93: 0 | BF93: 0 | BG93: 9.89275 | BH93: 3.297583333 | BI93: 0 | BJ93: 0 | BK93: 0 | BL93: 0 | BM93: 0 | BN93: 0 | BO93: 0 | BP93: 0 | BQ93: 0 | BR93: 0 | BS93: 17 | BT93: 0.17 | BU93: 2 | BV93: 0 | BW93: 0 | BX93: 1 | BY93: 3.17 | BZ93: 1.056666667 | CA93: 21.61875 | CB93: 7.20625 | CC93: 2 | CE93: 6557.368758 | CF93: 5076141 | CI93: 2 | CJ93: https://www.google.com/maps/@61.64488466,24.7288015,3a,75y,90t/data=!3m3!1e1!3m1!2e0 | CK93: 0 | CL93: 0 | CN93: 1 | CO93: 0 | CP93: 0 | CQ93: 0 | CR93: 4 | CS93: 19 | CT93: 0 | CU93: 298 | CV93: 0 | CW93: 0 | CX93: 0 | CY93: 0 | CZ93: 0 | DA93: 0 | DB93: 0 | DC93: 0.5 | DD93: 0.5 | DE93: 316 | DF93: 1 | DH93: 0 | DI93: 0 | DJ93: 0 | DK93: 0 | DL93: 0 | DN93: 0 | DO93: Leväslahdentie, Vinkiäntie | DP93: Orivesi | DQ93: 0 | DR93: 0 | DS93: 17 | DT93: 50 (15 %), 60 (14 %), 80 (71 %) | DU93: III (100 %) | DV93: PAB (100 %) | DW93: Y3 (100 %) | DX93: 46007 | DY93: 3.779429886
A94: 3350_6 | B94: 43918.6365 | C94: 3350_6_0 | D94: 58 | E94: 58 | F94: 0 | G94: 7.197416667 | H94: 3.062 | I94: 3.152083333 | J94: 0.9833333333 | K94: 2 | L94: 0 | M94: Gmaps | N94: Vähä | O94: Yhdys | P94: Kuruntie | Q94: Kihniö | R94: 3350 | S94: 6 | T94: 0 | U94: 6 | V94: 6102 | W94: 6102 | X94: 462 | Y94: 19 | Z94: 534 | AA94: 4 | AB94: 60 (11 %), 80 (89 %) | AC94: II (100 %) | AD94: PAB (100 %) | AE94: 0.1474916315 | AF94: Y3 (100 %) | AG94: 0 | AH94: 0 | AI94: ei | AJ94: 0 | AK94: 1.168469354 | AL94: 8.316 | AM94: 2 | AN94: 0.1 | AO94: 77 | AP94: 0.77 | AQ94: 9.186 | AR94: 3.062 | AS94: 6.08 | AT94: 2 | AU94: 0 | AV94: 0 | AW94: 0 | AX94: 0 | AY94: 0.16375 | AZ94: 0.2125 | BA94: 0 | BB94: 0 | BC94: 0 | BD94: 0 | BE94: 0 | BF94: 1 | BG94: 9.45625 | BH94: 3.152083333 | BI94: 1226 | BJ94: 0.2009177319 | BK94: 0.5 | BL94: 0 | BM94: 0 | BN94: 0 | BO94: 0 | BP94: 0 | BQ94: 0 | BR94: 0 | BS94: 25 | BT94: 0.25 | BU94: 1.2 | BV94: 0 | BW94: 0 | BX94: 1 | BY94: 2.95 | BZ94: 0.9833333333 | CA94: 21.59225 | CB94: 7.197416667 | CC94: 2 | CE94: 899.9939353 | CF94: 2819124 | CI94: 2 | CJ94: https://www.google.com/maps/@62.17296184,23.28335174,3a,75y,90t/data=!3m3!1e1!3m1!2e0 | CK94: 0 | CL94: 0 | CN94: 1 | CO94: 0 | CP94: 0 | CQ94: 0 | CR94: 0 | CS94: 131 | CT94: 85 | CU94: 0 | CV94: 0 | CW94: 0 | CX94: 0 | CY94: 1226 | CZ94: 0 | DA94: 0 | DB94: 0 | DC94: 0.5 | DD94: 0 | DE94: 140 | DF94: 0.7 | DH94: 0 | DI94: 0 | DJ94: 0 | DK94: 1 | DL94: 0 | DN94: 0 | DO94: Kuruntie | DP94: Kihniö | DQ94: 0 | DR94: 1226 | DS94: 25 | DT94: 60 (11 %), 80 (89 %) | DU94: II (100 %) | DV94: PAB (100 %) | DW94: Y3 (100 %) | DX94: 7130 | DY94: 1.168469354
A95: 2495_2 | B95: 17174.545 | C95: 2495_2_0 | D95: 59 | E95: 59 | F95: 0 | G95: 7.171 | H95: 3.189333333 | I95: 3.333333333 | J95: 0.6483333333 | K95: 2 | L95: 0 | M95: Gmaps | N95: Vähä | O95: Yhdys | P95: Kiuralantie | Q95: Sastamala | R95: 2495 | S95: 2 | T95: 0 | U95: 2 | V95: 2395 | W95: 2395 | X95: 496 | Y95: 29 | Z95: 694 | AA95: 2 | AB95: 50 (13 %), 60 (87 %) | AC95: III (100 %) | AD95: AB (6 %), PAB (94 %) | AE95: 0.4666315491 | AF95: Y3 (100 %) | AG95: 0 | AH95: 2 | AI95: ei | AJ95: 0 | AK95: 0 | AL95: 8.928 | AM95: 0 | AN95: 0 | AO95: 64 | AP95: 0.64 | AQ95: 9.568 | AR95: 3.189333333 | AS95: 8 | AT95: 2 | AU95: 0 | AV95: 0 | AW95: 0 | AX95: 0 | AY95: 0 | AZ95: 0 | BA95: 0 | BB95: 0 | BC95: 0 | BD95: 0 | BE95: 0 | BF95: 0 | BG95: 10 | BH95: 3.333333333 | BI95: 0 | BJ95: 0 | BK95: 0 | BL95: 0 | BM95: 0 | BN95: 0 | BO95: 0 | BP95: 0 | BQ95: 0 | BR95: 0 | BS95: 22 | BT95: 0.22 | BU95: 0.725 | BV95: 0 | BW95: 0 | BX95: 1 | BY95: 1.945 | BZ95: 0.6483333333 | CA95: 21.513 | CB95: 7.171 | CC95: 2 | CE95: 1117.58256 | CF95: 1187920 | CI95: 2 | CJ95: https://www.google.com/maps/@61.40419787,23.06852045,3a,75y,90t/data=!3m3!1e1!3m1!2e0 | CK95: 0 | CL95: 0 | CN95: 1 | CO95: 0 | CP95: 0 | CQ95: 0 | CR95: 0 | CS95: 0 | CT95: 0 | CU95: 0 | CV95: 0 | CW95: 0 | CX95: 0 | CY95: 0 | CZ95: 0 | DA95: 0 | DB95: 0 | DC95: 0.5 | DD95: 0 | DE95: 45 | DF95: 0.225 | DH95: 0 | DI95: 0 | DJ95: 0 | DK95: 0 | DL95: 0 | DN95: 0 | DO95: Kiuralantie | DP95: Sastamala | DQ95: 0 | DR95: 0 | DS95: 22 | DT95: 50 (13 %), 60 (87 %) | DU95: III (100 %) | DV95: AB (6 %), PAB (94 %) | DW95: Y3 (100 %) | DX95: 0 | DY95: 0
A96: 2771_1 | B96: 28791.587 | C96: 2771_1_0 | D96: 60 | E96: 60 | F96: 0 | G96: 7.139 | H96: 2.410666667 | I96: 4 | J96: 0.7283333333 | K96: 2 | L96: 0 | M96: Gmaps | N96: Vähä | O96: Yhdys | P96: Kyrönlahdentie | Q96: Ylöjärvi | R96: 2771 | S96: 1 | T96: 0 | U96: 1 | V96: 4033 | W96: 4033 | X96: 334 | Y96: 36 | Z96: 505 | AA96: 8 | AB96: 80 (100 %) | AC96: II (100 %) | AD96: PAB (100 %) | AE96: 0.2477512767 | AF96: Y3 (100 %) | AG96: 2 | AH96: 2 | AI96: ei | AJ96: 0 | AK96: 0.9241259608 | AL96: 6.012 | AM96: 16 | AN96: 0.8 | AO96: 42 | AP96: 0.42 | AQ96: 7.232 | AR96: 2.410666667 | AS96: 8 | AT96: 2 | AU96: 0 | AV96: 0 | AW96: 0 | AX96: 1 | AY96: 0 | AZ96: 0 | BA96: 0 | BB96: 0 | BC96: 0 | BD96: 1 | BE96: 0 | BF96: 0 | BG96: 12 | BH96: 4 | BI96: 0 | BJ96: 0 | BK96: 0 | BL96: 0 | BM96: 0 | BN96: 0 | BO96: 0 | BP96: 0 | BQ96: 0 | BR96: 0 | BS96: 0 | BT96: 0 | BU96: 1.185 | BV96: 0 | BW96: 0 | BX96: 1 | BY96: 2.185 | BZ96: 0.7283333333 | CA96: 21.417 | CB96: 7.139 | CC96: 2 | CE96: 999.180899 | CF96: 1347022 | CI96: 2 | CJ96: https://www.google.com/maps/@61.69022417,23.31944969,3a,75y,90t/data=!3m3!1e1!3m1!2e0 | CK96: 0 | CL96: 0 | CN96: 1 | CO96: 0 | CP96: 0 | CQ96: 0 | CR96: 2 | CS96: 0 | CT96: 0 | CU96: 0 | CV96: 0 | CW96: 0 | CX96: 1 | CY96: 0 | CZ96: 0 | DA96: 0 | DB96: 0 | DC96: 0.5 | DD96: 0.5 | DE96: 37 | DF96: 0.185 | DH96: 0 | DI96: 0 | DJ96: 0 | DK96: 0 | DL96: 0 | DN96: 0 | DO96: Kyrönlahdentie | DP96: Ylöjärvi | DQ96: 0 | DR96: 0 | DS96: 0 | DT96: 80 (100 %) | DU96: II (100 %) | DV96: PAB (100 %) | DW96: Y3 (100 %) | DX96: 3727 | DY96: 0.9241259608
A97: 2986_3 | B97: 25725.72517 | C97: 2986_3_2183 | D97: 61 | E97: 61 | F97: 0 | G97: 7.132166667 | H97: 2.774666667 | I97: 3.675833333 | J97: 0.6816666667 | K97: 2 | L97: 0 | M97: Gmaps | N97: Vähä | O97: Yhdys | P97: Vesilahdentie | Q97: Urjala | R97: 2986 | S97: 3 | T97: 2183 | U97: 3 | V97: 5790 | W97: 3607 | X97: 413 | Y97: 36 | Z97: 503 | AA97: 12 | AB97: 60 (40 %), 80 (60 %) | AC97: II (100 %) | AD97: AB (100 %) | AE97: 0 | AF97: Y3 (100 %) | AG97: 0 | AH97: 0 | AI97: ei | AJ97: 0 | AK97: 2.091211533 | AL97: 7.434 | AM97: 0 | AN97: 0 | AO97: 89 | AP97: 0.89 | AQ97: 8.324 | AR97: 2.774666667 | AS97: 8 | AT97: 2 | AU97: 0 | AV97: 0 | AW97: 0 | AX97: 1 | AY97: 0.0275 | AZ97: 0 | BA97: 0 | BB97: 0 | BC97: 0 | BD97: 0 | BE97: 0 | BF97: 0 | BG97: 11.0275 | BH97: 3.675833333 | BI97: 0 | BJ97: 0 | BK97: 0 | BL97: 0 | BM97: 0 | BN97: 0 | BO97: 0 | BP97: 0 | BQ97: 0 | BR97: 0 | BS97: 24 | BT97: 0.24 | BU97: 0.805 | BV97: 0 | BW97: 0 | BX97: 1 | BY97: 2.045 | BZ97: 0.6816666667 | CA97: 21.3965 | CB97: 7.132166667 | CC97: 2 | CE97: 0 | CF97: 1489691 | CI97: 2 | CJ97: https://www.google.com/maps/@61.19135038,23.29658234,3a,75y,90t/data=!3m3!1e1!3m1!2e0 | CK97: 0 | CL97: 0 | CN97: 1 | CO97: 0 | CP97: 0 | CQ97: 0 | CR97: 2 | CS97: 22 | CT97: 0 | CU97: 0 | CV97: 0 | CW97: 0 | CX97: 0 | CY97: 0 | CZ97: 0 | DA97: 0 | DB97: 0 | DC97: 0.5 | DD97: 0 | DE97: 61 | DF97: 0.305 | DH97: 0 | DI97: 0 | DJ97: 0 | DK97: 0 | DL97: 0 | DN97: 0 | DO97: Vesilahdentie | DP97: Urjala | DQ97: 0 | DR97: 0 | DS97: 24 | DT97: 60 (40 %), 80 (60 %) | DU97: II (100 %) | DV97: AB (100 %) | DW97: Y3 (100 %) | DX97: 7543 | DY97: 2.091211533
A98: 13943_1 | B98: 11755.7 | C98: 13943_1_0 | D98: 62 | E98: 62 | F98: 0 | G98: 7.124666667 | H98: 3.444666667 | I98: 2.346666667 | J98: 1.333333333 | K98: 2 | L98: 0 | M98: Gmaps | N98: Vähä | O98: Yhdys | P98: Viuhantie | Q98: Valkeakoski | R98: 13943 | S98: 1 | T98: 0 | U98: 1 | V98: 1650 | W98: 1650 | X98: 363 | Y98: 22 | Z98: 432 | AA98: 6 | AB98: 30 (21 %), 50 (79 %) | AC98: III (100 %) | AD98: PAB (100 %) | AE98: 0.9697752222 | AF98: Y3 (100 %) | AG98: 0 | AH98: 0 | AI98: kyllä | AJ98: 0 | AK98: 0 | AL98: 6.534 | AM98: 82 | AN98: 3 | AO98: 80 | AP98: 0.8 | AQ98: 10.334 | AR98: 3.444666667 | AS98: 7.04 | AT98: 0 | AU98: 0 | AV98: 0 | AW98: 0 | AX98: 0 | AY98: 0 | AZ98: 0 | BA98: 0 | BB98: 0 | BC98: 0 | BD98: 0 | BE98: 0 | BF98: 0 | BG98: 7.04 | BH98: 2.346666667 | BI98: 1254 | BJ98: 0.76 | BK98: 1 | BL98: 0 | BM98: 0 | BN98: 0 | BO98: 0 | BP98: 1610 | BQ98: 0.9757575758 | BR98: 1 | BS98: 220 | BT98: 1 | BU98: 0 | BV98: 0 | BW98: 0 | BX98: 1 | BY98: 4 | BZ98: 1.333333333 | CA98: 21.374 | CB98: 7.124666667 | CC98: 2 | CE98: 1600.129117 | CF98: 598950 | CI98: 2 | CJ98: https://www.google.com/maps/@61.24030189,24.0400797,3a,75y,90t/data=!3m3!1e1!3m1!2e0 | CK98: 0 | CL98: 0 | CN98: 0 | CO98: 0 | CP98: 0 | CQ98: 0 | CR98: 0 | CS98: 0 | CT98: 0 | CU98: 0 | CV98: 0 | CW98: 0 | CX98: 0 | CY98: 0 | CZ98: 0 | DA98: 0 | DB98: 1 | DC98: 0 | DD98: 0 | DE98: 0 | DF98: 0 | DH98: 0 | DI98: 0 | DJ98: 0 | DK98: 0 | DL98: 0 | DN98: 1610 | DO98: Viuhantie | DP98: Valkeakoski | DQ98: 0 | DR98: 1254 | DS98: 220 | DT98: 30 (21 %), 50 (79 %) | DU98: III (100 %) | DV98: PAB (100 %) | DW98: Y3 (100 %) | DX98: 0 | DY98: 0
A99: 3382_1 | B99: 46342.92567 | C99: 3382_1_0 | D99: 63 | E99: 63 | F99: 0 | G99: 7.120916667 | H99: 3.058 | I99: 3.169583333 | J99: 0.8933333333 | K99: 2 | L99: 0 | M99: Gmaps | N99: Vähä | O99: Yhdys | P99: Muroleenkyläntie, Muroleentie | Q99: Ruovesi, Tampere | R99: 3382 | S99: 1 | T99: 0 | U99: 1 | V99: 6508 | W99: 6508 | X99: 308 | Y99: 16 | Z99: 490 | AA99: 3 | AB99: 50 (6 %), 80 (94 %) | AC99: II (100 %) | AD99: PAB (100 %) | AE99: 0 | AF99: Y3 (100 %) | AG99: 1 | AH99: 1 | AI99: ei | AJ99: 0 | AK99: 0.246004917 | AL99: 5.544 | AM99: 234 | AN99: 3 | AO99: 63 | AP99: 0.63 | AQ99: 9.174 | AR99: 3.058 | AS99: 5.12 | AT99: 2 | AU99: 0 | AV99: 1 | AW99: 0 | AX99: 1 | AY99: 0.38625 | AZ99: 0.0025 | BA99: 0 | BB99: 0 | BC99: 0 | BD99: 0 | BE99: 0 | BF99: 0 | BG99: 9.50875 | BH99: 3.169583333 | BI99: 0 | BJ99: 0 | BK99: 0 | BL99: 0 | BM99: 0 | BN99: 0 | BO99: 0 | BP99: 0 | BQ99: 0 | BR99: 0 | BS99: 18 | BT99: 0.18 | BU99: 1.5 | BV99: 0 | BW99: 0 | BX99: 1 | BY99: 2.68 | BZ99: 0.8933333333 | CA99: 21.36275 | CB99: 7.120916667 | CC99: 2 | CE99: 0 | CF99: 2004464 | CI99: 2 | CJ99: https://www.google.com/maps/@61.77012278,23.97969835,3a,75y,90t/data=!3m3!1e1!3m1!2e0 | CK99: 0 | CL99: 0 | CN99: 1 | CO99: 0 | CP99: 1 | CQ99: 0 | CR99: 2 | CS99: 309 | CT99: 1 | CU99: 0 | CV99: 0 | CW99: 0 | CX99: 0 | CY99: 0 | CZ99: 0 | DA99: 0 | DB99: 0 | DC99: 0 | DD99: 0.5 | DE99: 225 | DF99: 1 | DH99: 0 | DI99: 0 | DJ99: 0 | DK99: 0 | DL99: 0 | DN99: 0 | DO99: Muroleenkyläntie, Muroleentie | DP99: Ruovesi, Tampere | DQ99: 0 | DR99: 0 | DS99: 18 | DT99: 50 (6 %), 80 (94 %) | DU99: II (100 %) | DV99: PAB (100 %) | DW99: Y3 (100 %) | DX99: 1601 | DY99: 0.246004917
A100: 3254_1 | B100: 15039.98667 | C100: 3254_1_0 | D100: 64 | E100: 64 | F100: 0 | G100: 7.094333333 | H100: 3.049333333 | I100: 3.333333333 | J100: 0.7116666667 | K100: 2 | L100: 0 | M100: Gmaps | N100: Vähä | O100: Yhdys | P100: Korkeentie | Q100: Kangasala, Kuhmoinen | R100: 3254 | S100: 1 | T100: 0 | U100: 1 | V100: 2120 | W100: 2120 | X100: 331 | Y100: 27 | Z100: 523 | AA100: 9 | AB100: 80 (100 %) | AC100: II (100 %) | AD100: PAB (100 %) | AE100: 0.1416229256 | AF100: Y3 (100 %) | AG100: 0 | AH100: 0 | AI100: ei | AJ100: 0 | AK100: 1.261320755 | AL100: 5.958 | AM100: 60 | AN100: 3 | AO100: 19 | AP100: 0.19 | AQ100: 9.148 | AR100: 3.049333333 | AS100: 8 | AT100: 2 | AU100: 0 | AV100: 0 | AW100: 0 | AX100: 0 | AY100: 0 | AZ100: 0 | BA100: 0 | BB100: 0 | BC100: 0 | BD100: 0 | BE100: 0 | BF100: 0 | BG100: 10 | BH100: 3.333333333 | BI100: 0 | BJ100: 0 | BK100: 0 | BL100: 0 | BM100: 0 | BN100: 0 | BO100: 0 | BP100: 0 | BQ100: 0 | BR100: 0 | BS100: 0 | BT100: 0 | BU100: 1.135 | BV100: 0 | BW100: 0 | BX100: 1 | BY100: 2.135 | BZ100: 0.7116666667 | CA100: 21.283 | CB100: 7.094333333 | CC100: 2 | CE100: 300.2406022 | CF100: 701720 | CI100: 2 | CJ100: https://www.google.com/maps/@61.51635224,24.90799412,3a,75y,90t/data=!3m3!1e1!3m1!2e0 | CK100: 0 | CL100: 0 | CN100: 1 | CO100: 0 | CP100: 0 | CQ100: 0 | CR100: 0 | CS100: 0 | CT100: 0 | CU100: 0 | CV100: 0 | CW100: 0 | CX100: 0 | CY100: 0 | CZ100: 0 | DA100: 0 | DB100: 0 | DC100: 0.5 | DD100: 0.5 | DE100: 27 | DF100: 0.135 | DH100: 0 | DI100: 0 | DJ100: 0 | DK100: 0 | DL100: 0 | DN100: 0 | DO100: Korkeentie | DP100: Kangasala, Kuhmoinen | DQ100: 0 | DR100: 0 | DS100: 0 | DT100: 80 (100 %) | DU100: II (100 %) | DV100: PAB (100 %) | DW100: Y3 (100 %) | DX100: 2674 | DY100: 1.261320755
A101: =CONCATENATE(R101,"_",S101) -> 14375_1 | B101: =G101*W101 -> 22247.94667 | C101: =CONCATENATE(R101,"_",S101,"_",T101) -> 14375_1_0 | D101: =COUNTIFS($N$37:$N$1308,"Vähä",$G$37:$G$1308,">"&G101)+1 -> 65 | E101: 65 | F101: =E101-D101 -> 0 | G101: =CB101 -> 7.085333333 | H101: =AR101 -> 3.185333333 | I101: =BH101 -> 3.333333333 | J101: =BZ101 -> 0.5666666667 | K101: =CC101 -> 2 | L101: =K101-CI101 -> 0 | M101: =HYPERLINK(CJ101,"Gmaps") -> Gmaps | N101: =IF(X101<$K$6,"Vähä","Vilkas") -> Vähä | O101: =IF(R101<40,"Valta",IF(R101<100,"Kanta",IF(R101<1000,"Seutu",IF(R101>999,"Yhdys")))) -> Yhdys | P101: =DO101 -> Koivumäentie | Q101: =DP101 -> Virrat | R101: 14375 | S101: 1 | T101: 0 | U101: 1 | V101: 3140 | W101: =V101-T101 -> 3140 | X101: 487 | Y101: 35 | Z101: 566 | AA101: 12 | AB101: =+DT101 -> 80 (100 %) | AC101: =+DU101 -> II (100 %) | AD101: =+DV101 -> PAB (100 %) | AE101: 0.7770960917 | AG101: 0 | AH101: 0 | AI101: ei | AJ101: =+DQ101 -> 0 | AK101: =DY101 -> 2.988216561 | AL101: =+IF(X101>=$K$6,$F$5,($F$5/($K$6))*X101) -> 8.766 | AM101: 2 | AN101: =+IF(AM101>=$L$15,$J$15,IF(AM101<($L$15),AM101*($J$15/($L$15)),)) -> 0.1 | AO101: 69 | AP101: =+IF(AO101>=$L$11,$J$11,IF(AO101<($L$11),AO101*($J$11/($L$11)),)) -> 0.69 | AQ101: =SUM(AL101,AN101,AP101) -> 9.556 | AR101: =+AQ101*$H$5 -> 3.185333333 | AS101: =+IF(Y101=0,0,IF(Y101>$K$7,$F$9,($F$9/$K$7)*Y101)) -> 8 | AT101: =IF(CN101>0,$F$10,0) -> 2 | AU101: =IF(CO101>0,$F$11,0) -> 0 | AV101: =IF(CP101>0,$F$12,0) -> 0 | AW101: =IF(CQ101>0,$F$13,0) -> 0 | AX101: =IF(CR101>0,$F$14,0) -> 0 | AY101: =+IF(CS101>=$L$23,$J$23,IF(CS101<($L$23),CS101*($J$23/($L$23)),)) -> 0 | AZ101: =+IF(CT101>=$L$24,$J$24,IF(CT101<($L$24),CT101*($J$24/($L$24)),)) -> 0 | BA101: =+IF(CU101>=$L$25,$J$25,IF(CU101<($L$25),CU101*($J$25/($L$25)),)) -> 0 | BB101: =+IF(CV101>=$L$26,$J$26,IF(CV101<($L$26),CV101*($J$26/($L$26)),)) -> 0 | BC101: =IF(CW101>0,$F$16,0) -> 0 | BD101: =+IF(CX101>0,$F$17,0) -> 0 | BE101: =+IF(CL101>0,$F$18,0) -> 0 | BF101: =+IF(SUM(DK101:DL101)>0,$F$19,0) -> 0 | BG101: =SUM(AS101:BF101) -> 10 | BH101: =+BG101*$H$9 -> 3.333333333 | BI101: =+DR101 -> 0 | BJ101: =BI101/W101 -> 0 | BK101: =IF(BJ101>0,IF(BJ101>=$L$19,$J$19,IF(BJ101<$L$19,$J$20,0)),0) -> 0 | BL101: 0 | BM101: =BL101/W101 -> 0 | BN101: =IF(BM101,$F$22,0) -> 0 | BO101: =IF(DA101=1,$F$23,0) -> 0 | BP101: =+DN101 -> 0 | BQ101: =BP101/W101 -> 0 | BR101: =+IF(BQ101>=$K$4,$F$24,0) -> 0 | BS101: =DS101 -> 18 | BT101: =IF(BS101>0,IF(BS101>100,$F$25,BS101*$F$25/100),0) -> 0.18 | BU101: =DC101+DD101+DF101 -> 0.52 | BV101: =IF(DH101>0,$F$27,0) -> 0 | BW101: =IF(DI101>0,$F$28,0) -> 0 | BX101: =IF(DJ101=0,$F$29,0) -> 1 | BY101: =SUM(BK101,BN101,BT101,BO101,BR101,BU101,BV101,BW101,BX101) -> 1.7 | BZ101: =+BY101*$H$21 -> 0.5666666667 | CA101: =SUM(AQ101,BG101,BY101) -> 21.256 | CB101: =SUM(AR101,BH101,BZ101) -> 7.085333333 | CC101: =+IF(CB101>=$W$14*$CC$25,1,IF(CB101>=$W$15*$CC$25,2,IF(CB101>=$W$16*$CC$25,3,IF(CB101>=0,4,"Ei pisteitä")))) -> 2 | CE101: =AE101*W101 -> 2440.081728 | CF101: =X101*W101 -> 1529180 | CI101: 2 | CJ101: https://www.google.com/maps/@62.25703035,23.47902686,3a,75y,90t/data=!3m3!1e1!3m1!2e0 | CK101: 0 | CL101: 0 | CN101: 1 | CO101: 0 | CP101: 0 | CQ101: 0 | CR101: 0 | CS101: 0 | CT101: 0 | CU101: 0 | CV101: 0 | CW101: 0 | CX101: 0 | CY101: 0 | CZ101: 0 | DA101: 0 | DB101: 0 | DC101: =+IF(Z101>$K$8,$F$26/4,0) -> 0.5 | DD101: =+IF(Z101/X101>1.5,$F$26/4,0) -> 0 | DE101: 4 | DF101: =IF(DE101>200,$F$26/2,$F$26/2/200*DE101) -> 0.02 | DH101: 0 | DI101: 0 | DJ101: 0 | DK101: 0 | DL101: 0 | DN101: 0 | DO101: Koivumäentie | DP101: Virrat | DQ101: 0 | DR101: 0 | DS101: 18 | DT101: 80 (100 %) | DU101: II (100 %) | DV101: PAB (100 %) | DW101: Y3 (100 %) | DX101: 9383 | DY101: =DX101/W101 -> 2.988216561
A102: 3230_3 | B102: 35875.175 | C102: 3230_3_0 | D102: 66 | E102: 66 | F102: 0 | G102: 7.069 | H102: 2.770666667 | I102: 3.333333333 | J102: 0.965 | K102: 2 | L102: 0 | M102: Gmaps | N102: Vähä | O102: Yhdys | P102: Sappeentie, Tursolantie | Q102: Pälkäne, Kangasala | R102: 3230 | S102: 3 | T102: 0 | U102: 3 | V102: 5075 | W102: 5075 | X102: 419 | Y102: 36 | Z102: 586 | AA102: 4 | AB102: 40 (25 %), 60 (4 %), 80 (75 %) | AC102: II (100 %) | AD102: PAB (100 %) | AE102: 0 | AF102: Y3 (100 %) | AG102: 0 | AH102: 0 | AI102: ei | AJ102: 0 | AK102: 0 | AL102: 7.542 | AM102: 1 | AN102: 0.05 | AO102: 72 | AP102: 0.72 | AQ102: 8.312 | AR102: 2.770666667 | AS102: 8 | AT102: 0 | AU102: 0 | AV102: 1 | AW102: 0 | AX102: 1 | AY102: 0 | AZ102: 0 | BA102: 0 | BB102: 0 | BC102: 0 | BD102: 0 | BE102: 0 | BF102: 0 | BG102: 10 | BH102: 3.333333333 | BI102: 0 | BJ102: 0 | BK102: 0 | BL102: 0 | BM102: 0 | BN102: 0 | BO102: 1 | BP102: 0 | BQ102: 0 | BR102: 0 | BS102: 20 | BT102: 0.2 | BU102: 0.695 | BV102: 0 | BW102: 0 | BX102: 1 | BY102: 2.895 | BZ102: 0.965 | CA102: 21.207 | CB102: 7.069 | CC102: 2 | CE102: 0 | CF102: 2126425 | CI102: 2 | CJ102: https://www.google.com/maps/@61.40564462,24.45313894,3a,75y,90t/data=!3m3!1e1!3m1!2e0 | CK102: 0 | CL102: 0 | CN102: 0 | CO102: 0 | CP102: 1 | CQ102: 0 | CR102: 1 | CS102: 0 | CT102: 0 | CU102: 0 | CV102: 0 | CW102: 0 | CX102: 0 | CY102: 0 | CZ102: 0 | DA102: 1 | DB102: 0 | DC102: 0.5 | DD102: 0 | DE102: 39 | DF102: 0.195 | DH102: 0 | DI102: 0 | DJ102: 0 | DK102: 0 | DL102: 0 | DN102: 0 | DO102: Sappeentie, Tursolantie | DP102: Pälkäne, Kangasala | DQ102: 0 | DR102: 0 | DS102: 20 | DT102: 40 (25 %), 60 (4 %), 80 (75 %) | DU102: II (100 %) | DV102: PAB (100 %) | DW102: Y3 (100 %) | DX102: 0 | DY102: 0
A103: 2611_3 | B103: 35511.42 | C103: 2611_3_0 | D103: 67 | E103: 67 | F103: 0 | G103: 7.045916667 | H103: 2.506 | I103: 3.751583333 | J103: 0.7883333333 | K103: 2 | L103: 0 | M103: Gmaps | N103: Vähä | O103: Yhdys | P103: Raivalantie | Q103: Parkano, Ikaalinen | R103: 2611 | S103: 3 | T103: 0 | U103: 3 | V103: 5040 | W103: 5040 | X103: 361 | Y103: 29 | Z103: 419 | AA103: 3 | AB103: 60 (8 %), 80 (92 %) | AC103: II (100 %) | AD103: PAB (100 %) | AE103: 0.325307693 | AF103: Y3 (100 %) | AG103: 0 | AH103: 1 | AI103: ei | AJ103: 0 | AK103: 0.4843253968 | AL103: 6.498 | AM103: 6 | AN103: 0.3 | AO103: 72 | AP103: 0.72 | AQ103: 7.518 | AR103: 2.506 | AS103: 8 | AT103: 2 | AU103: 0 | AV103: 0 | AW103: 0 | AX103: 1 | AY103: 0.04625 | AZ103: 0 | BA103: 0.2085 | BB103: 0 | BC103: 0 | BD103: 0 | BE103: 0 | BF103: 0 | BG103: 11.25475 | BH103: 3.751583333 | BI103: 0 | BJ103: 0 | BK103: 0 | BL103: 0 | BM103: 0 | BN103: 0 | BO103: 1 | BP103: 0 | BQ103: 0 | BR103: 0 | BS103: 29 | BT103: 0.29 | BU103: 0.075 | BV103: 0 | BW103: 0 | BX103: 1 | BY103: 2.365 | BZ103: 0.7883333333 | CA103: 21.13775 | CB103: 7.045916667 | CC103: 2 | CE103: 1639.550773 | CF103: 1819440 | CI103: 2 | CJ103: https://www.google.com/maps/@61.90693697,22.83957329,3a,75y,90t/data=!3m3!1e1!3m1!2e0 | CK103: 0 | CL103: 0 | CN103: 1 | CO103: 0 | CP103: 0 | CQ103: 0 | CR103: 2 | CS103: 37 | CT103: 0 | CU103: 417 | CV103: 0 | CW103: 0 | CX103: 0 | CY103: 0 | CZ103: 0 | DA103: 1 | DB103: 0 | DC103: 0 | DD103: 0 | DE103: 15 | DF103: 0.075 | DH103: 0 | DI103: 0 | DJ103: 0 | DK103: 0 | DL103: 0 | DN103: 0 | DO103: Raivalantie | DP103: Parkano, Ikaalinen | DQ103: 0 | DR103: 0 | DS103: 29 | DT103: 60 (8 %), 80 (92 %) | DU103: II (100 %) | DV103: PAB (100 %) | DW103: Y3 (100 %) | DX103: 2441 | DY103: 0.4843253968
A104: 2611_2 | B104: 42387.35525 | C104: 2611_2_0 | D104: 68 | E104: 68 | F104: 0 | G104: 7.025916667 | H104: 2.472666667 | I104: 3.764916667 | J104: 0.7883333333 | K104: 2 | L104: 0 | M104: Gmaps | N104: Vähä | O104: Yhdys | P104: Raivalantie | Q104: Ikaalinen | R104: 2611 | S104: 2 | T104: 0 | U104: 2 | V104: 6033 | W104: 6033 | X104: 361 | Y104: 29 | Z104: 419 | AA104: 3 | AB104: 60 (20 %), 80 (80 %) | AC104: II (100 %) | AD104: PAB (100 %) | AE104: 0.4970818008 | AF104: Y3 (100 %) | AG104: 0 | AH104: 0 | AI104: ei | AJ104: 0 | AK104: 0.564727333 | AL104: 6.498 | AM104: 0 | AN104: 0 | AO104: 92 | AP104: 0.92 | AQ104: 7.418 | AR104: 2.472666667 | AS104: 8 | AT104: 2 | AU104: 0 | AV104: 0 | AW104: 0 | AX104: 1 | AY104: 0.08625 | AZ104: 0 | BA104: 0.2085 | BB104: 0 | BC104: 0 | BD104: 0 | BE104: 0 | BF104: 0 | BG104: 11.29475 | BH104: 3.764916667 | BI104: 0 | BJ104: 0 | BK104: 0 | BL104: 0 | BM104: 0 | BN104: 0 | BO104: 1 | BP104: 0 | BQ104: 0 | BR104: 0 | BS104: 21 | BT104: 0.21 | BU104: 0.155 | BV104: 0 | BW104: 0 | BX104: 1 | BY104: 2.365 | BZ104: 0.7883333333 | CA104: 21.07775 | CB104: 7.025916667 | CC104: 2 | CE104: 2998.894504 | CF104: 2177913 | CI104: 2 | CJ104: https://www.google.com/maps/@61.86097436,22.88583971,3a,75y,90t/data=!3m3!1e1!3m1!2e0 | CK104: 0 | CL104: 0 | CN104: 1 | CO104: 0 | CP104: 0 | CQ104: 0 | CR104: 2 | CS104: 69 | CT104: 0 | CU104: 417 | CV104: 0 | CW104: 0 | CX104: 0 | CY104: 0 | CZ104: 0 | DA104: 1 | DB104: 0 | DC104: 0 | DD104: 0 | DE104: 31 | DF104: 0.155 | DH104: 0 | DI104: 0 | DJ104: 0 | DK104: 0 | DL104: 0 | DN104: 0 | DO104: Raivalantie | DP104: Ikaalinen | DQ104: 0 | DR104: 0 | DS104: 21 | DT104: 60 (20 %), 80 (80 %) | DU104: II (100 %) | DV104: PAB (100 %) | DW104: Y3 (100 %) | DX104: 3407 | DY104: 0.564727333
A105: 13257_1 | B105: 12422.528 | C105: 13257_1_1760 | D105: 69 | E105: 69 | F105: 0 | G105: 6.994666667 | H105: 2.661333333 | I105: 2.666666667 | J105: 1.666666667 | K105: 2 | L105: 0 | M105: Gmaps | N105: Vähä | O105: Yhdys | P105: Teikankaantie | Q105: Ikaalinen | R105: 13257 | S105: 1 | T105: 1760 | U105: 1 | V105: 3536 | W105: 1776 | X105: 408 | Y105: 42 | Z105: 438 | AA105: 12 | AB105: 40 (24 %), 50 (34 %), 60 (42 %) | AC105: II (100 %) | AD105: PAB (100 %) | AE105: 0.7748993556 | AF105: Y3 (100 %) | AG105: 0 | AH105: 0 | AI105: kyllä | AJ105: 0 | AK105: 2.444256757 | AL105: 7.344 | AM105: 4 | AN105: 0.2 | AO105: 44 | AP105: 0.44 | AQ105: 7.984 | AR105: 2.661333333 | AS105: 8 | AT105: 0 | AU105: 0 | AV105: 0 | AW105: 0 | AX105: 0 | AY105: 0 | AZ105: 0 | BA105: 0 | BB105: 0 | BC105: 0 | BD105: 0 | BE105: 0 | BF105: 0 | BG105: 8 | BH105: 2.666666667 | BI105: 1770 | BJ105: 0.9966216216 | BK105: 1 | BL105: 0 | BM105: 0 | BN105: 0 | BO105: 1 | BP105: 1758 | BQ105: 0.9898648649 | BR105: 1 | BS105: 240 | BT105: 1 | BU105: 0 | BV105: 0 | BW105: 0 | BX105: 1 | BY105: 5 | BZ105: 1.666666667 | CA105: 20.984 | CB105: 6.994666667 | CC105: 2 | CE105: 1376.221256 | CF105: 724608 | CI105: 2 | CJ105: https://www.google.com/maps/@61.77366914,22.99073648,3a,75y,90t/data=!3m3!1e1!3m1!2e0 | CK105: 0 | CL105: 0 | CN105: 0 | CO105: 0 | CP105: 0 | CQ105: 0 | CR105: 0 | CS105: 0 | CT105: 0 | CU105: 0 | CV105: 0 | CW105: 0 | CX105: 0 | CY105: 1770 | CZ105: 0 | DA105: 1 | DB105: 1 | DC105: 0 | DD105: 0 | DE105: 0 | DF105: 0 | DH105: 0 | DI105: 0 | DJ105: 0 | DK105: 0 | DL105: 0 | DN105: 1758 | DO105: Teikankaantie | DP105: Ikaalinen | DQ105: 0 | DR105: 1770 | DS105: 240 | DT105: 40 (24 %), 50 (34 %), 60 (42 %) | DU105: II (100 %) | DV105: PAB (100 %) | DW105: Y3 (100 %) | DX105: 4341 | DY105: 2.444256757
A106: 13767_1 | B106: 6367.248 | C106: 13767_1_1052 | D106: 70 | E106: 70 | F106: 0 | G106: 6.936 | H106: 3.322666667 | I106: 2.81 | J106: 0.8033333333 | K106: 2 | L106: 0 | M106: Gmaps | N106: Vähä | O106: Yhdys | P106: Huhtaantie, Pajulahdentie | Q106: Nokia | R106: 13767 | S106: 1 | T106: 1052 | U106: 1 | V106: 1970 | W106: 918 | X106: 486 | Y106: 32 | Z106: 666 | AA106: 2 | AB106: 50 (100 %) | AC106: III (100 %) | AD106: sora (100 %) | AE106: 0 | AF106: Y3 (100 %) | AG106: 0 | AH106: 0 | AI106: ei | AJ106: 0 | AK106: 0 | AL106: 8.748 | AM106: 12 | AN106: 0.6 | AO106: 62 | AP106: 0.62 | AQ106: 9.968 | AR106: 3.322666667 | AS106: 8 | AT106: 0 | AU106: 0 | AV106: 0 | AW106: 0 | AX106: 0 | AY106: 0.04 | AZ106: 0.39 | BA106: 0 | BB106: 0 | BC106: 0 | BD106: 0 | BE106: 0 | BF106: 0 | BG106: 8.43 | BH106: 2.81 | BI106: 919 | BJ106: 1.001089325 | BK106: 1 | BL106: 0 | BM106: 0 | BN106: 0 | BO106: 0 | BP106: 0 | BQ106: 0 | BR106: 0 | BS106: 28 | BT106: 0.28 | BU106: 1.13 | BV106: 0 | BW106: 0 | BX106: 0 | BY106: 2.41 | BZ106: 0.8033333333 | CA106: 20.808 | CB106: 6.936 | CC106: 2 | CE106: 0 | CF106: 446148 | CI106: 2 | CJ106: https://www.google.com/maps/@61.40130206,23.36081146,3a,75y,90t/data=!3m3!1e1!3m1!2e0 | CK106: 0 | CL106: 0 | CN106: 0 | CO106: 0 | CP106: 0 | CQ106: 0 | CR106: 0 | CS106: 32 | CT106: 156 | CU106: 0 | CV106: 0 | CW106: 0 | CX106: 0 | CY106: 919 | CZ106: 0 | DA106: 0 | DB106: 0 | DC106: 0.5 | DD106: 0 | DE106: 126 | DF106: 0.63 | DH106: 0 | DI106: 0 | DJ106: 1 | DK106: 0 | DL106: 0 | DN106: 0 | DO106: Huhtaantie, Pajulahdentie | DP106: Nokia | DQ106: 0 | DR106: 919 | DS106: 28 | DT106: 50 (100 %) | DU106: III (100 %) | DV106: sora (100 %) | DX106: 0 | DY106: 0
A107: 3222_5 | B107: 36037.73333 | C107: 3222_5_0 | D107: 71 | E107: 71 | F107: 0 | G107: 6.930333333 | H107: 2.368666667 | I107: 3.333333333 | J107: 1.228333333 | K107: 2 | L107: 0 | M107: Gmaps | N107: Vähä | O107: Yhdys | P107: Puutikkalantie | Q107: Pälkäne | R107: 3222 | S107: 5 | T107: 0 | U107: 5 | V107: 5200 | W107: 5200 | X107: 372 | Y107: 28 | Z107: 650 | AA107: 8 | AB107: 60 (26 %), 80 (74 %) | AC107: II (100 %) | AD107: PAB (100 %) | AE107: 0.6923952909 | AF107: Y3 (100 %) | AG107: 0 | AH107: 0 | AI107: ei | AJ107: 0 | AK107: 1.844423077 | AL107: 6.696 | AM107: 2 | AN107: 0.1 | AO107: 31 | AP107: 0.31 | AQ107: 7.106 | AR107: 2.368666667 | AS107: 8 | AT107: 2 | AU107: 0 | AV107: 0 | AW107: 0 | AX107: 0 | AY107: 0 | AZ107: 0 | BA107: 0 | BB107: 0 | BC107: 0 | BD107: 0 | BE107: 0 | BF107: 0 | BG107: 10 | BH107: 3.333333333 | BI107: 0 | BJ107: 0 | BK107: 0 | BL107: 0 | BM107: 0 | BN107: 0 | BO107: 1 | BP107: 0 | BQ107: 0 | BR107: 0 | BS107: 30 | BT107: 0.3 | BU107: 1.385 | BV107: 0 | BW107: 0 | BX107: 1 | BY107: 3.685 | BZ107: 1.228333333 | CA107: 20.791 | CB107: 6.930333333 | CC107: 2 | CE107: 3600.455513 | CF107: 1934400 | CI107: 2 | CJ107: https://www.google.com/maps/@61.29663713,24.66726588,3a,75y,90t/data=!3m3!1e1!3m1!2e0 | CK107: 0 | CL107: 0 | CN107: 1 | CO107: 0 | CP107: 0 | CQ107: 0 | CR107: 0 | CS107: 0 | CT107: 0 | CU107: 0 | CV107: 0 | CW107: 0 | CX107: 0 | CY107: 0 | CZ107: 0 | DA107: 1 | DB107: 0 | DC107: 0.5 | DD107: 0.5 | DE107: 77 | DF107: 0.385 | DH107: 0 | DI107: 0 | DJ107: 0 | DK107: 0 | DL107: 0 | DN107: 0 | DO107: Puutikkalantie | DP107: Pälkäne | DQ107: 0 | DR107: 0 | DS107: 30 | DT107: 60 (26 %), 80 (74 %) | DU107: II (100 %) | DV107: PAB (100 %) | DW107: Y3 (100 %) | DX107: 9591 | DY107: 1.844423077
A108: 3413_4 | B108: 14687.814 | C108: 3413_4_0 | D108: 72 | E108: 72 | F108: 0 | G108: 6.915166667 | H108: 2.536 | I108: 4.010833333 | J108: 0.3683333333 | K108: 2 | L108: 0 | M108: Gmaps | N108: Vähä | O108: Yhdys | P108: Asemantie | Q108: Juupajoki | R108: 3413 | S108: 4 | T108: 0 | U108: 4 | V108: 2124 | W108: 2124 | X108: 341 | Y108: 53 | Z108: 404 | AA108: 33 | AB108: 80 (100 %) | AC108: Ib (100 %) | AD108: PAB (100 %) | AE108: 0.5764963102 | AF108: Y3 (100 %) | AG108: 0 | AH108: 0 | AI108: kyllä | AJ108: 0 | AK108: 5.985875706 | AL108: 6.138 | AM108: 18 | AN108: 0.9 | AO108: 57 | AP108: 0.57 | AQ108: 7.608 | AR108: 2.536 | AS108: 8 | AT108: 2 | AU108: 0 | AV108: 1 | AW108: 0 | AX108: 1 | AY108: 0.0325 | AZ108: 0 | BA108: 0 | BB108: 0 | BC108: 0 | BD108: 0 | BE108: 0 | BF108: 0 | BG108: 12.0325 | BH108: 4.010833333 | BI108: 0 | BJ108: 0 | BK108: 0 | BL108: 0 | BM108: 0 | BN108: 0 | BO108: 0 | BP108: 0 | BQ108: 0 | BR108: 0 | BS108: 0 | BT108: 0 | BU108: 0.105 | BV108: 0 | BW108: 0 | BX108: 1 | BY108: 1.105 | BZ108: 0.3683333333 | CA108: 20.7455 | CB108: 6.915166667 | CC108: 2 | CE108: 1224.478163 | CF108: 724284 | CI108: 2 | CJ108: https://www.google.com/maps/@61.80798283,24.33449679,3a,75y,90t/data=!3m3!1e1!3m1!2e0 | CK108: 0 | CL108: 0 | CN108: 1 | CO108: 0 | CP108: 1 | CQ108: 0 | CR108: 1 | CS108: 26 | CT108: 0 | CU108: 0 | CV108: 0 | CW108: 0 | CX108: 0 | CY108: 0 | CZ108: 0 | DA108: 0 | DB108: 0 | DC108: 0 | DD108: 0 | DE108: 21 | DF108: 0.105 | DH108: 0 | DI108: 0 | DJ108: 0 | DK108: 0 | DL108: 0 | DN108: 0 | DO108: Asemantie | DP108: Juupajoki | DQ108: 0 | DR108: 0 | DS108: 0 | DT108: 80 (100 %) | DU108: Ib (100 %) | DV108: PAB (100 %) | DW108: Y3 (100 %) | DX108: 12714 | DY108: 5.985875706
A109: 14269_1 | B109: 27808.9875 | C109: 14269_1_0 | D109: 73 | E109: 73 | F109: 0 | G109: 6.866416667 | H109: 2.649333333 | I109: 3.095416667 | J109: 1.121666667 | K109: 2 | L109: 0 | M109: Gmaps | N109: Vähä | O109: Yhdys | P109: Niemikyläntie | Q109: Ylöjärvi | R109: 14269 | S109: 1 | T109: 0 | U109: 1 | V109: 4050 | W109: 4050 | X109: 241 | Y109: 16 | Z109: 338 | AA109: 2 | AB109: 50 (11 %), 60 (89 %) | AC109: II (100 %) | AD109: PAB (100 %) | AE109: 0.2468770351 | AF109: Y3 (100 %) | AG109: 0 | AH109: 0 | AI109: kyllä | AJ109: 0 | AK109: 0.4239506173 | AL109: 4.338 | AM109: 105 | AN109: 3 | AO109: 61 | AP109: 0.61 | AQ109: 7.948 | AR109: 2.649333333 | AS109: 5.12 | AT109: 2 | AU109: 1 | AV109: 1 | AW109: 0 | AX109: 0 | AY109: 0.16625 | AZ109: 0 | BA109: 0 | BB109: 0 | BC109: 0 | BD109: 0 | BE109: 0 | BF109: 0 | BG109: 9.28625 | BH109: 3.095416667 | BI109: 2393 | BJ109: 0.5908641975 | BK109: 1 | BL109: 0 | BM109: 0 | BN109: 0 | BO109: 0 | BP109: 410 | BQ109: 0.1012345679 | BR109: 0 | BS109: 180 | BT109: 1 | BU109: 0.365 | BV109: 0 | BW109: 0 | BX109: 1 | BY109: 3.365 | BZ109: 1.121666667 | CA109: 20.59925 | CB109: 6.866416667 | CC109: 2 | CE109: 999.8519922 | CF109: 976050 | CI109: 2 | CJ109: https://www.google.com/maps/@61.8723317,23.72654903,3a,75y,90t/data=!3m3!1e1!3m1!2e0 | CK109: 0 | CL109: 0 | CN109: 1 | CO109: 1 | CP109: 1 | CQ109: 0 | CR109: 0 | CS109: 133 | CT109: 0 | CU109: 0 | CV109: 0 | CW109: 0 | CX109: 0 | CY109: 2393 | CZ109: 0 | DA109: 0 | DB109: 1 | DC109: 0 | DD109: 0 | DE109: 73 | DF109: 0.365 | DH109: 0 | DI109: 0 | DJ109: 0 | DK109: 0 | DL109: 0 | DN109: 410 | DO109: Niemikyläntie | DP109: Ylöjärvi | DQ109: 0 | DR109: 2393 | DS109: 180 | DT109: 50 (11 %), 60 (89 %) | DU109: II (100 %) | DV109: PAB (100 %) | DW109: Y3 (100 %) | DX109: 1717 | DY109: 0.4239506173
A110: 322_7 | B110: 31379.138 | C110: 322_7_0 | D110: 74 | E110: 74 | F110: 0 | G110: 6.854333333 | H110: 3.209333333 | I110: 3 | J110: 0.645 | K110: 2 | L110: 0 | M110: Gmaps | N110: Vähä | O110: Seutu | P110: Pohjantie | Q110: Pälkäne, Kangasala | R110: 322 | S110: 7 | T110: 0 | U110: 7 | V110: 4578 | W110: 4578 | X110: 481 | Y110: 53 | Z110: 616 | AA110: 22 | AB110: 40 (12 %), 60 (45 %), 80 (43 %) | AC110: Ib (100 %) | AD110: AB (100 %) | AE110: 0.02179639361 | AF110: Y3 (100 %) | AG110: 0 | AH110: 1 | AI110: ei | AJ110: 0 | AK110: 1.562691131 | AL110: 8.658 | AM110: 7 | AN110: 0.35 | AO110: 62 | AP110: 0.62 | AQ110: 9.628 | AR110: 3.209333333 | AS110: 8 | AT110: 0 | AU110: 0 | AV110: 0 | AW110: 0 | AX110: 0 | AY110: 0 | AZ110: 0 | BA110: 0 | BB110: 0 | BC110: 0 | BD110: 0 | BE110: 0 | BF110: 1 | BG110: 9 | BH110: 3 | BI110: 0 | BJ110: 0 | BK110: 0 | BL110: 0 | BM110: 0 | BN110: 0 | BO110: 0 | BP110: 0 | BQ110: 0 | BR110: 0 | BS110: 36 | BT110: 0.36 | BU110: 0.575 | BV110: 0 | BW110: 0 | BX110: 1 | BY110: 1.935 | BZ110: 0.645 | CA110: 20.563 | CB110: 6.854333333 | CC110: 2 | CE110: 99.78388996 | CF110: 2202018 | CI110: 2 | CJ110: https://www.google.com/maps/@61.40980465,24.7174578,3a,75y,90t/data=!3m3!1e1!3m1!2e0 | CK110: 0 | CL110: 0 | CN110: 0 | CO110: 0 | CP110: 0 | CQ110: 0 | CR110: 0 | CS110: 0 | CT110: 0 | CU110: 0 | CV110: 0 | CW110: 0 | CX110: 0 | CY110: 0 | CZ110: 0 | DA110: 0 | DB110: 0 | DC110: 0.5 | DD110: 0 | DE110: 15 | DF110: 0.075 | DH110: 0 | DI110: 0 | DJ110: 0 | DK110: 0 | DL110: 1 | DN110: 0 | DO110: Pohjantie | DP110: Pälkäne, Kangasala | DQ110: 0 | DR110: 0 | DS110: 36 | DT110: 40 (12 %), 60 (45 %), 80 (43 %) | DU110: Ib (100 %) | DV110: AB (100 %) | DW110: Y3 (100 %) | DX110: 7154 | DY110: 1.562691131
A111: 13137_1 | B111: 8835.425 | C111: 13137_1_0 | D111: 75 | E111: 75 | F111: 0 | G111: 6.849166667 | H111: 3.533333333 | I111: 3.124166667 | J111: 0.1916666667 | K111: 2 | L111: 0 | M111: Gmaps | N111: Vähä | O111: Yhdys | P111: Osarantie | Q111: Hämeenkyrö | R111: 13137 | S111: 1 | T111: 0 | U111: 1 | V111: 1290 | W111: 1290 | X111: 405 | Y111: 19 | Z111: 493 | AA111: 2 | AB111: 40 (30 %), 50 (16 %), 80 (70 %) | AC111: II (100 %) | AD111: AB (100 %) | AE111: 0.07784203632 | AF111: Y3 (100 %) | AG111: 0 | AH111: 1 | AI111: ei | AJ111: 0 | AK111: 0 | AL111: 7.29 | AM111: 52 | AN111: 2.6 | AO111: 71 | AP111: 0.71 | AQ111: 10.6 | AR111: 3.533333333 | AS111: 6.08 | AT111: 2 | AU111: 0 | AV111: 0 | AW111: 0 | AX111: 1 | AY111: 0.2525 | AZ111: 0.04 | BA111: 0 | BB111: 0 | BC111: 0 | BD111: 0 | BE111: 0 | BF111: 0 | BG111: 9.3725 | BH111: 3.124166667 | BI111: 0 | BJ111: 0 | BK111: 0 | BL111: 0 | BM111: 0 | BN111: 0 | BO111: 0 | BP111: 0 | BQ111: 0 | BR111: 0 | BS111: 23 | BT111: 0.23 | BU111: 0.345 | BV111: 0 | BW111: 0 | BX111: 0 | BY111: 0.575 | BZ111: 0.1916666667 | CA111: 20.5475 | CB111: 6.849166667 | CC111: 2 | CE111: 100.4162269 | CF111: 522450 | CI111: 2 | CJ111: https://www.google.com/maps/@61.7070325,23.14928426,3a,75y,90t/data=!3m3!1e1!3m1!2e0 | CK111: 0 | CL111: 0 | CN111: 1 | CO111: 0 | CP111: 0 | CQ111: 0 | CR111: 1 | CS111: 202 | CT111: 16 | CU111: 0 | CV111: 0 | CW111: 0 | CX111: 0 | CY111: 0 | CZ111: 0 | DA111: 0 | DB111: 0 | DC111: 0 | DD111: 0 | DE111: 69 | DF111: 0.345 | DH111: 0 | DI111: 0 | DJ111: 1 | DK111: 0 | DL111: 0 | DN111: 0 | DO111: Osarantie | DP111: Hämeenkyrö | DQ111: 0 | DR111: 0 | DS111: 23 | DT111: 40 (30 %), 50 (16 %), 80 (70 %) | DU111: II (100 %) | DV111: AB (100 %) | DW111: Y3 (100 %) | DX111: 0 | DY111: 0
A112: 2847_2 | B112: 29767.1445 | C112: 2847_2_0 | D112: 76 | E112: 76 | F112: 0 | G112: 6.7915 | H112: 3.170666667 | I112: 2.6825 | J112: 0.9383333333 | K112: 2 | L112: 0 | M112: Gmaps | N112: Vähä | O112: Yhdys | P112: Riisikkalantie, Toijalantie | Q112: Akaa, Urjala | R112: 2847 | S112: 2 | T112: 0 | U112: 2 | V112: 4383 | W112: 4383 | X112: 499 | Y112: 26 | Z112: 610 | AA112: 5 | AB112: 60 (5 %), 80 (95 %) | AC112: II (100 %) | AD112: AB (7 %), PAB (93 %) | AE112: 0.7262576495 | AF112: Y3 (100 %) | AG112: 0 | AH112: 3 | AI112: ei | AJ112: 0 | AK112: 1.678986995 | AL112: 8.982 | AM112: 2 | AN112: 0.1 | AO112: 43 | AP112: 0.43 | AQ112: 9.512 | AR112: 3.170666667 | AS112: 8 | AT112: 0 | AU112: 0 | AV112: 0 | AW112: 0 | AX112: 0 | AY112: 0.0475 | AZ112: 0 | BA112: 0 | BB112: 0 | BC112: 0 | BD112: 0 | BE112: 0 | BF112: 0 | BG112: 8.0475 | BH112: 2.6825 | BI112: 0 | BJ112: 0 | BK112: 0 | BL112: 0 | BM112: 0 | BN112: 0 | BO112: 1 | BP112: 0 | BQ112: 0 | BR112: 0 | BS112: 20 | BT112: 0.2 | BU112: 0.615 | BV112: 0 | BW112: 0 | BX112: 1 | BY112: 2.815 | BZ112: 0.9383333333 | CA112: 20.3745 | CB112: 6.7915 | CC112: 2 | CE112: 3183.187278 | CF112: 2187117 | CI112: 2 | CJ112: https://www.google.com/maps/@61.05614752,23.7158589,3a,75y,90t/data=!3m3!1e1!3m1!2e0 | CK112: 0 | CL112: 0 | CN112: 0 | CO112: 0 | CP112: 0 | CQ112: 0 | CR112: 0 | CS112: 38 | CT112: 0 | CU112: 0 | CV112: 0 | CW112: 0 | CX112: 0 | CY112: 0 | CZ112: 0 | DA112: 1 | DB112: 0 | DC112: 0.5 | DD112: 0 | DE112: 23 | DF112: 0.115 | DH112: 0 | DI112: 0 | DJ112: 0 | DK112: 0 | DL112: 0 | DN112: 0 | DO112: Riisikkalantie, Toijalantie | DP112: Akaa, Urjala | DQ112: 0 | DR112: 0 | DS112: 20 | DT112: 60 (5 %), 80 (95 %) | DU112: II (100 %) | DV112: AB (7 %), PAB (93 %) | DW112: Y3 (100 %) | DX112: 7359 | DY112: 1.678986995
A113: 3493_1 | B113: 5611.77 | C113: 3493_1_0 | D113: 77 | E113: 77 | F113: 0 | G113: 6.7775 | H113: 2.126666667 | I113: 3.810833333 | J113: 0.84 | K113: 2 | L113: 0 | M113: Gmaps | N113: Vähä | O113: Yhdys | P113: Itämerentie | Q113: Virrat | R113: 3493 | S113: 1 | T113: 0 | U113: 1 | V113: 828 | W113: 828 | X113: 320 | Y113: 31 | Z113: 408 | AA113: 9 | AB113: 80 (100 %) | AC113: II (100 %) | AD113: PAB (100 %) | AE113: 0 | AF113: Y3 (6 %) | AG113: 0 | AH113: 0 | AI113: ei | AJ113: 0 | AK113: 2.200483092 | AL113: 5.76 | AM113: 2 | AN113: 0.1 | AO113: 52 | AP113: 0.52 | AQ113: 6.38 | AR113: 2.126666667 | AS113: 8 | AT113: 2 | AU113: 0 | AV113: 0 | AW113: 0 | AX113: 1 | AY113: 0.4325 | AZ113: 0 | BA113: 0 | BB113: 0 | BC113: 0 | BD113: 0 | BE113: 0 | BF113: 0 | BG113: 11.4325 | BH113: 3.810833333 | BI113: 823 | BJ113: 0.9939613527 | BK113: 1 | BL113: 0 | BM113: 0 | BN113: 0 | BO113: 0 | BP113: 0 | BQ113: 0 | BR113: 0 | BS113: 43 | BT113: 0.43 | BU113: 0.09 | BV113: 0 | BW113: 0 | BX113: 1 | BY113: 2.52 | BZ113: 0.84 | CA113: 20.3325 | CB113: 6.7775 | CC113: 2 | CE113: 0 | CF113: 264960 | CI113: 2 | CJ113: https://www.google.com/maps/@62.26194233,24.04232036,3a,75y,90t/data=!3m3!1e1!3m1!2e0 | CK113: 0 | CL113: 0 | CN113: 1 | CO113: 0 | CP113: 0 | CQ113: 0 | CR113: 1 | CS113: 346 | CT113: 0 | CU113: 0 | CV113: 0 | CW113: 0 | CX113: 0 | CY113: 823 | CZ113: 0 | DA113: 0 | DB113: 0 | DC113: 0 | DD113: 0 | DE113: 18 | DF113: 0.09 | DH113: 0 | DI113: 0 | DJ113: 0 | DK113: 0 | DL113: 0 | DN113: 0 | DO113: Itämerentie | DP113: Virrat | DQ113: 0 | DR113: 823 | DS113: 43 | DT113: 80 (100 %) | DU113: II (100 %) | DV113: PAB (100 %) | DW113: Y3 (100 %) | DX113: 1822 | DY113: 2.200483092
A114: 13257_1 | B114: 9450.933333 | C114: 13257_1_0 | D114: 78 | E114: 78 | F114: 0 | G114: 6.750666667 | H114: 2.250666667 | I114: 3.666666667 | J114: 0.8333333333 | K114: 2 | L114: 0 | M114: Gmaps | N114: Vähä | O114: Yhdys | P114: Teikankaantie | Q114: Ikaalinen | R114: 13257 | S114: 1 | T114: 0 | U114: 1 | V114: 1400 | W114: 1400 | X114: 269 | Y114: 49 | Z114: 285 | AA114: 21 | AB114: 60 (100 %) | AC114: II (100 %) | AD114: PAB (100 %) | AE114: 0 | AF114: Y3 (100 %) | AG114: 0 | AH114: 0 | AI114: kyllä | AJ114: 0 | AK114: 0.7728571429 | AL114: 4.842 | AM114: 23 | AN114: 1.15 | AO114: 76 | AP114: 0.76 | AQ114: 6.752 | AR114: 2.250666667 | AS114: 8 | AT114: 0 | AU114: 1 | AV114: 1 | AW114: 0 | AX114: 0 | AY114: 0 | AZ114: 0 | BA114: 0 | BB114: 0 | BC114: 0 | BD114: 0 | BE114: 0 | BF114: 1 | BG114: 11 | BH114: 3.666666667 | BI114: 604 | BJ114: 0.4314285714 | BK114: 0.5 | BL114: 0 | BM114: 0 | BN114: 0 | BO114: 1 | BP114: 408 | BQ114: 0.2914285714 | BR114: 0 | BS114: 0 | BT114: 0 | BU114: 0 | BV114: 0 | BW114: 0 | BX114: 1 | BY114: 2.5 | BZ114: 0.8333333333 | CA114: 20.252 | CB114: 6.750666667 | CC114: 2 | CE114: 0 | CF114: 376600 | CI114: 2 | CJ114: https://www.google.com/maps/@61.78846009,22.99144403,3a,75y,90t/data=!3m3!1e1!3m1!2e0 | CK114: 0 | CL114: 0 | CN114: 0 | CO114: 1 | CP114: 1 | CQ114: 0 | CR114: 0 | CS114: 0 | CT114: 0 | CU114: 0 | CV114: 0 | CW114: 0 | CX114: 0 | CY114: 604 | CZ114: 0 | DA114: 1 | DB114: 1 | DC114: 0 | DD114: 0 | DE114: 0 | DF114: 0 | DH114: 0 | DI114: 0 | DJ114: 0 | DK114: 1 | DL114: 0 | DN114: 408 | DO114: Teikankaantie | DP114: Ikaalinen | DQ114: 0 | DR114: 604 | DS114: 0 | DT114: 60 (100 %) | DU114: II (100 %) | DV114: PAB (100 %) | DW114: Y3 (100 %) | DX114: 1082 | DY114: 0.7728571429
A115: 2771_2 | B115: 5684.902667 | C115: 2771_2_0 | D115: 79 | E115: 79 | F115: 0 | G115: 6.735666667 | H115: 2.414 | I115: 3.358333333 | J115: 0.9633333333 | K115: 2 | L115: 0 | M115: Gmaps | N115: Vähä | O115: Yhdys | P115: Kyrönlahdentie | Q115: Ylöjärvi | R115: 2771 | S115: 2 | T115: 0 | U115: 2 | V115: 844 | W115: 844 | X115: 334 | Y115: 36 | Z115: 505 | AA115: 8 | AB115: 60 (97 %), 80 (3 %) | AC115: II (100 %) | AD115: PAB (100 %) | AE115: 0.5925573037 | AF115: Y3 (100 %) | AG115: 0 | AH115: 0 | AI115: ei | AJ115: 0 | AK115: 1.996445498 | AL115: 6.012 | AM115: 4 | AN115: 0.2 | AO115: 103 | AP115: 1.03 | AQ115: 7.242 | AR115: 2.414 | AS115: 8 | AT115: 0 | AU115: 0 | AV115: 1 | AW115: 0 | AX115: 0 | AY115: 0.0325 | AZ115: 0.0425 | BA115: 0 | BB115: 0 | BC115: 0 | BD115: 0 | BE115: 0 | BF115: 1 | BG115: 10.075 | BH115: 3.358333333 | BI115: 0 | BJ115: 0 | BK115: 0 | BL115: 0 | BM115: 0 | BN115: 0 | BO115: 0 | BP115: 0 | BQ115: 0 | BR115: 0 | BS115: 17 | BT115: 0.17 | BU115: 1.72 | BV115: 0 | BW115: 0 | BX115: 1 | BY115: 2.89 | BZ115: 0.9633333333 | CA115: 20.207 | CB115: 6.735666667 | CC115: 2 | CE115: 500.1183644 | CF115: 281896 | CI115: 2 | CJ115: https://www.google.com/maps/@61.70787393,23.38042983,3a,75y,90t/data=!3m3!1e1!3m1!2e0 | CK115: 0 | CL115: 0 | CN115: 0 | CO115: 0 | CP115: 1 | CQ115: 0 | CR115: 0 | CS115: 26 | CT115: 17 | CU115: 0 | CV115: 0 | CW115: 0 | CX115: 0 | CY115: 0 | CZ115: 0 | DA115: 0 | DB115: 0 | DC115: 0.5 | DD115: 0.5 | DE115: 144 | DF115: 0.72 | DH115: 0 | DI115: 0 | DJ115: 0 | DK115: 1 | DL115: 0 | DN115: 0 | DO115: Kyrönlahdentie | DP115: Ylöjärvi | DQ115: 0 | DR115: 0 | DS115: 17 | DT115: 60 (97 %), 80 (3 %) | DU115: II (100 %) | DV115: PAB (100 %) | DW115: Y3 (100 %) | DX115: 1685 | DY115: 1.996445498
A116: 13113_1 | B116: 42087.6399 | C116: 13113_1_0 | D116: 80 | E116: 80 | F116: 0 | G116: 6.7351 | H116: 2.832 | I116: 3.254766667 | J116: 0.6483333333 | K116: 2 | L116: 0 | M116: Gmaps | N116: Vähä | O116: Yhdys | P116: Palinperäntie | Q116: Ikaalinen | R116: 13113 | S116: 1 | T116: 0 | U116: 1 | V116: 6249 | W116: 6249 | X116: 367 | Y116: 21 | Z116: 447 | AA116: 2 | AB116: 50 (8 %), 60 (69 %), 80 (23 %) | AC116: II (100 %) | AD116: AB (6 %), PAB (93 %), sora (0 %) | AE116: 0.5323939748 | AF116: Y3 (100 %) | AG116: 0 | AH116: 0 | AI116: kyllä | AJ116: 0 | AK116: 0.4661545847 | AL116: 6.606 | AM116: 18 | AN116: 0.9 | AO116: 99 | AP116: 0.99 | AQ116: 8.496 | AR116: 2.832 | AS116: 6.72 | AT116: 0 | AU116: 0 | AV116: 1 | AW116: 0 | AX116: 1 | AY116: 0.01625 | AZ116: 0.005 | BA116: 0 | BB116: 0.02305 | BC116: 1 | BD116: 0 | BE116: 0 | BF116: 0 | BG116: 9.7643 | BH116: 3.254766667 | BI116: 365 | BJ116: 0.0584093455 | BK116: 0.5 | BL116: 0 | BM116: 0 | BN116: 0 | BO116: 0 | BP116: 359 | BQ116: 0.05744919187 | BR116: 0 | BS116: 16 | BT116: 0.16 | BU116: 0.285 | BV116: 0 | BW116: 0 | BX116: 1 | BY116: 1.945 | BZ116: 0.6483333333 | CA116: 20.2053 | CB116: 6.7351 | CC116: 2 | CE116: 3326.929948 | CF116: 2293383 | CI116: 2 | CJ116: https://www.google.com/maps/@61.75217238,23.06640233,3a,75y,90t/data=!3m3!1e1!3m1!2e0 | CK116: 0 | CL116: 0 | CN116: 0 | CO116: 0 | CP116: 1 | CQ116: 0 | CR116: 1 | CS116: 13 | CT116: 2 | CU116: 0 | CV116: 461 | CW116: 1 | CX116: 0 | CY116: 150 | CZ116: 0 | DA116: 0 | DB116: 1 | DC116: 0 | DD116: 0 | DE116: 57 | DF116: 0.285 | DH116: 0 | DI116: 0 | DJ116: 0 | DK116: 0 | DL116: 0 | DN116: 359 | DO116: Palinperäntie | DP116: Ikaalinen | DQ116: 0 | DR116: 365 | DS116: 16 | DT116: 50 (8 %), 60 (69 %), 80 (23 %) | DU116: II (100 %) | DV116: AB (6 %), PAB (93 %), sora (0 %) | DW116: Y3 (100 %) | DX116: 2913 | DY116: 0.4661545847
A117: 13125_1 | B117: 9807.48 | C117: 13125_1_2747 | D117: 81 | E117: 81 | F117: 0 | G117: 6.726666667 | H117: 2.916666667 | I117: 3.333333333 | J117: 0.4766666667 | K117: 2 | L117: 0 | M117: Gmaps | N117: Vähä | O117: Yhdys | P117: Nikkari-Tuomisentie | Q117: Hämeenkyrö | R117: 13125 | S117: 1 | T117: 2747 | U117: 1 | V117: 4205 | W117: 1458 | X117: 440 | Y117: 25 | Z117: 497 | AA117: 1 | AB117: 60 (100 %) | AC117: II (100 %) | AD117: PAB (100 %) | AE117: 0.2049883851 | AF117: Y3 (100 %) | AG117: 0 | AH117: 0 | AI117: ei | AJ117: 0 | AK117: 0.9698216735 | AL117: 7.92 | AM117: 11 | AN117: 0.55 | AO117: 28 | AP117: 0.28 | AQ117: 8.75 | AR117: 2.916666667 | AS117: 8 | AT117: 2 | AU117: 0 | AV117: 0 | AW117: 0 | AX117: 0 | AY117: 0 | AZ117: 0 | BA117: 0 | BB117: 0 | BC117: 0 | BD117: 0 | BE117: 0 | BF117: 0 | BG117: 10 | BH117: 3.333333333 | BI117: 0 | BJ117: 0 | BK117: 0 | BL117: 0 | BM117: 0 | BN117: 0 | BO117: 0 | BP117: 0 | BQ117: 0 | BR117: 0 | BS117: 42 | BT117: 0.42 | BU117: 0.01 | BV117: 0 | BW117: 0 | BX117: 1 | BY117: 1.43 | BZ117: 0.4766666667 | CA117: 20.18 | CB117: 6.726666667 | CC117: 2 | CE117: 298.8730655 | CF117: 641520 | CI117: 2 | CJ117: https://www.google.com/maps/@61.62475652,23.16318717,3a,75y,90t/data=!3m3!1e1!3m1!2e0 | CK117: 0 | CL117: 0 | CN117: 1 | CO117: 0 | CP117: 0 | CQ117: 0 | CR117: 0 | CS117: 0 | CT117: 0 | CU117: 0 | CV117: 0 | CW117: 0 | CX117: 0 | CY117: 0 | CZ117: 0 | DA117: 0 | DB117: 0 | DC117: 0 | DD117: 0 | DE117: 2 | DF117: 0.01 | DH117: 0 | DI117: 0 | DJ117: 0 | DK117: 0 | DL117: 0 | DN117: 0 | DO117: Nikkari-Tuomisentie | DP117: Hämeenkyrö | DQ117: 0 | DR117: 0 | DS117: 42 | DT117: 60 (100 %) | DU117: II (100 %) | DV117: PAB (100 %) | DW117: Y3 (100 %) | DX117: 1414 | DY117: 0.9698216735
A118: 2986_4 | B118: 40884.96 | C118: 2986_4_0 | D118: 82 | E118: 82 | F118: 0 | G118: 6.7245 | H118: 2.772 | I118: 3.3425 | J118: 0.61 | K118: 2 | L118: 0 | M118: Gmaps | N118: Vähä | O118: Yhdys | P118: Punkalaitumentie, Vesilahdentie | Q118: Vesilahti, Urjala | R118: 2986 | S118: 4 | T118: 0 | U118: 4 | V118: 6080 | W118: 6080 | X118: 402 | Y118: 39 | Z118: 490 | AA118: 13 | AB118: 60 (20 %), 80 (80 %) | AC118: II (100 %) | AD118: AB (100 %) | AE118: 0 | AF118: Y3 (39 %) | AG118: 0 | AH118: 0 | AI118: ei | AJ118: 0 | AK118: 1.478947368 | AL118: 7.236 | AM118: 0 | AN118: 0 | AO118: 108 | AP118: 1.08 | AQ118: 8.316 | AR118: 2.772 | AS118: 8 | AT118: 2 | AU118: 0 | AV118: 0 | AW118: 0 | AX118: 0 | AY118: 0.0275 | AZ118: 0 | BA118: 0 | BB118: 0 | BC118: 0 | BD118: 0 | BE118: 0 | BF118: 0 | BG118: 10.0275 | BH118: 3.3425 | BI118: 0 | BJ118: 0 | BK118: 0 | BL118: 0 | BM118: 0 | BN118: 0 | BO118: 0 | BP118: 0 | BQ118: 0 | BR118: 0 | BS118: 58 | BT118: 0.58 | BU118: 0.25 | BV118: 0 | BW118: 0 | BX118: 1 | BY118: 1.83 | BZ118: 0.61 | CA118: 20.1735 | CB118: 6.7245 | CC118: 2 | CE118: 0 | CF118: 2444160 | CI118: 2 | CJ118: https://www.google.com/maps/@61.21484797,23.33346223,3a,75y,90t/data=!3m3!1e1!3m1!2e0 | CK118: 0 | CL118: 0 | CN118: 1 | CO118: 0 | CP118: 0 | CQ118: 0 | CR118: 0 | CS118: 22 | CT118: 0 | CU118: 0 | CV118: 0 | CW118: 0 | CX118: 0 | CY118: 0 | CZ118: 0 | DA118: 0 | DB118: 0 | DC118: 0 | DD118: 0 | DE118: 50 | DF118: 0.25 | DH118: 0 | DI118: 0 | DJ118: 0 | DK118: 0 | DL118: 0 | DN118: 0 | DO118: Punkalaitumentie, Vesilahdentie | DP118: Vesilahti, Urjala | DQ118: 0 | DR118: 0 | DS118: 58 | DT118: 60 (20 %), 80 (80 %) | DU118: II (100 %) | DV118: AB (100 %) | DW118: Y3 (100 %) | DX118: 8992 | DY118: 1.478947368
A119: 2501_4 | B119: 41661.38767 | C119: 2501_4_4024 | D119: 83 | E119: 83 | F119: 0 | G119: 6.723916667 | H119: 3.052666667 | I119: 2.789583333 | J119: 0.8816666667 | K119: 2 | L119: 0 | M119: Gmaps | N119: Vähä | O119: Yhdys | P119: Sarkolantie, Taivalkunnantie | Q119: Nokia | R119: 2501 | S119: 4 | T119: 4024 | U119: 4 | V119: 10220 | W119: 6196 | X119: 416 | Y119: 23 | Z119: 580 | AA119: 4 | AB119: 50 (10 %), 80 (90 %) | AC119: II (6 %), III (94 %) | AD119: PAB (6 %), sora (94 %) | AE119: 1 | AF119: Y3 (100 %) | AG119: 1 | AH119: 1 | AI119: ei | AJ119: 0 | AK119: 0 | AL119: 7.488 | AM119: 16 | AN119: 0.8 | AO119: 87 | AP119: 0.87 | AQ119: 9.158 | AR119: 3.052666667 | AS119: 7.36 | AT119: 0 | AU119: 0 | AV119: 0 | AW119: 0 | AX119: 1 | AY119: 0.00375 | AZ119: 0.005 | BA119: 0 | BB119: 0 | BC119: 0 | BD119: 0 | BE119: 0 | BF119: 0 | BG119: 8.36875 | BH119: 2.789583333 | BI119: 1290 | BJ119: 0.208198838 | BK119: 0.5 | BL119: 0 | BM119: 0 | BN119: 0 | BO119: 0 | BP119: 0 | BQ119: 0 | BR119: 0 | BS119: 48 | BT119: 0.48 | BU119: 0.665 | BV119: 0 | BW119: 0 | BX119: 1 | BY119: 2.645 | BZ119: 0.8816666667 | CA119: 20.17175 | CB119: 6.723916667 | CC119: 2 | CE119: 6196 | CF119: 2577536 | CI119: 2 | CJ119: https://www.google.com/maps/@61.43581782,23.27318542,3a,75y,90t/data=!3m3!1e1!3m1!2e0 | CK119: 0 | CL119: 0 | CN119: 0 | CO119: 0 | CP119: 0 | CQ119: 0 | CR119: 1 | CS119: 3 | CT119: 2 | CU119: 0 | CV119: 0 | CW119: 0 | CX119: 0 | CY119: 1288 | CZ119: 0 | DA119: 0 | DB119: 0 | DC119: 0.5 | DD119: 0 | DE119: 33 | DF119: 0.165 | DH119: 0 | DI119: 0 | DJ119: 0 | DK119: 0 | DL119: 0 | DN119: 0 | DO119: Sarkolantie, Taivalkunnantie | DP119: Nokia | DQ119: 0 | DR119: 1290 | DS119: 48 | DT119: 50 (10 %), 80 (90 %) | DU119: II (6 %), III (94 %) | DV119: PAB (6 %), sora (94 %) | DW119: Y3 (6 %) | DX119: 0 | DY119: 0
A120: 2594_1 | B120: 16180.9025 | C120: 2594_1_1775 | D120: 84 | E120: 84 | F120: 0 | G120: 6.700166667 | H120: 2.612666667 | I120: 3.349166667 | J120: 0.7383333333 | K120: 2 | L120: 0 | M120: Gmaps | N120: Vähä | O120: Yhdys | P120: Sävintie | Q120: Sastamala | R120: 2594 | S120: 1 | T120: 1775 | U120: 1 | V120: 4190 | W120: 2415 | X120: 371 | Y120: 34 | Z120: 452 | AA120: 5 | AB120: 50 (33 %), 80 (67 %) | AC120: II (100 %) | AD120: PAB (100 %) | AE120: 0.5070210853 | AF120: Y3 (100 %) | AG120: 0 | AH120: 1 | AI120: ei | AJ120: 0 | AK120: 2.164389234 | AL120: 6.678 | AM120: 4 | AN120: 0.2 | AO120: 96 | AP120: 0.96 | AQ120: 7.838 | AR120: 2.612666667 | AS120: 8 | AT120: 2 | AU120: 0 | AV120: 0 | AW120: 0 | AX120: 0 | AY120: 0.0475 | AZ120: 0 | BA120: 0 | BB120: 0 | BC120: 0 | BD120: 0 | BE120: 0 | BF120: 0 | BG120: 10.0475 | BH120: 3.349166667 | BI120: 220 | BJ120: 0.09109730849 | BK120: 0.5 | BL120: 0 | BM120: 0 | BN120: 0 | BO120: 0 | BP120: 0 | BQ120: 0 | BR120: 0 | BS120: 31 | BT120: 0.31 | BU120: 0.405 | BV120: 0 | BW120: 0 | BX120: 1 | BY120: 2.215 | BZ120: 0.7383333333 | CA120: 20.1005 | CB120: 6.700166667 | CC120: 2 | CE120: 1224.455921 | CF120: 895965 | CI120: 2 | CJ120: https://www.google.com/maps/@61.57145631,22.78114381,3a,75y,90t/data=!3m3!1e1!3m1!2e0 | CK120: 0 | CL120: 0 | CN120: 1 | CO120: 0 | CP120: 0 | CQ120: 0 | CR120: 0 | CS120: 38 | CT120: 0 | CU120: 0 | CV120: 0 | CW120: 0 | CX120: 0 | CY120: 220 | CZ120: 0 | DA120: 0 | DB120: 0 | DC120: 0 | DD120: 0 | DE120: 81 | DF120: 0.405 | DH120: 0 | DI120: 0 | DJ120: 0 | DK120: 0 | DL120: 0 | DN120: 0 | DO120: Sävintie | DP120: Sastamala | DQ120: 0 | DR120: 220 | DS120: 31 | DT120: 50 (33 %), 80 (67 %) | DU120: II (100 %) | DV120: PAB (100 %) | DW120: Y3 (100 %) | DX120: 5227 | DY120: 2.164389234
A121: 346_5 | B121: 32870.55475 | C121: 346_5_0 | D121: 85 | E121: 85 | F121: 0 | G121: 6.685083333 | H121: 2.888 | I121: 3.020416667 | J121: 0.7766666667 | K121: 2 | L121: 0 | M121: Gmaps | N121: Vähä | O121: Seutu | P121: Pohjaslahdentie | Q121: Mänttä-Vilppula | R121: 346 | S121: 5 | T121: 0 | U121: 5 | V121: 4917 | W121: 4917 | X121: 458 | Y121: 48 | Z121: 558 | AA121: 24 | AB121: 50 (16 %), 60 (19 %), 80 (67 %) | AC121: II (100 %) | AD121: AB (100 %) | AE121: 0 | AF121: Y3 (100 %) | AG121: 0 | AH121: 1 | AI121: ei | AJ121: 0 | AK121: 2.892007322 | AL121: 8.244 | AM121: 2 | AN121: 0.1 | AO121: 32 | AP121: 0.32 | AQ121: 8.664 | AR121: 2.888 | AS121: 8 | AT121: 0 | AU121: 0 | AV121: 0 | AW121: 0 | AX121: 0 | AY121: 0.00125 | AZ121: 0.06 | BA121: 0 | BB121: 0 | BC121: 0 | BD121: 0 | BE121: 0 | BF121: 1 | BG121: 9.06125 | BH121: 3.020416667 | BI121: 0 | BJ121: 0 | BK121: 0 | BL121: 0 | BM121: 0 | BN121: 0 | BO121: 0 | BP121: 0 | BQ121: 0 | BR121: 0 | BS121: 21 | BT121: 0.21 | BU121: 1.12 | BV121: 0 | BW121: 0 | BX121: 1 | BY121: 2.33 | BZ121: 0.7766666667 | CA121: 20.05525 | CB121: 6.685083333 | CC121: 2 | CE121: 0 | CF121: 2251986 | CI121: 2 | CJ121: https://www.google.com/maps/@62.14169714,24.13505593,3a,75y,90t/data=!3m3!1e1!3m1!2e0 | CK121: 0 | CL121: 0 | CN121: 0 | CO121: 0 | CP121: 0 | CQ121: 0 | CR121: 0 | CS121: 1 | CT121: 24 | CU121: 0 | CV121: 0 | CW121: 0 | CX121: 0 | CY121: 0 | CZ121: 0 | DA121: 0 | DB121: 0 | DC121: 0.5 | DD121: 0 | DE121: 124 | DF121: 0.62 | DH121: 0 | DI121: 0 | DJ121: 0 | DK121: 0 | DL121: 1 | DN121: 0 | DO121: Pohjaslahdentie | DP121: Mänttä-Vilppula | DQ121: 0 | DR121: 0 | DS121: 21 | DT121: 50 (16 %), 60 (19 %), 80 (67 %) | DU121: II (100 %) | DV121: AB (100 %) | DW121: Y3 (100 %) | DX121: 14220 | DY121: 2.892007322
A122: 2592_1 | B122: 29443.75417 | C122: 2592_1_1085 | D122: 86 | E122: 86 | F122: 0 | G122: 6.684166667 | H122: 1.873333333 | I122: 3.490833333 | J122: 1.32 | K122: 2 | L122: 0 | M122: Gmaps | N122: Vähä | O122: Yhdys | P122: Vanhankirkontie | Q122: Sastamala | R122: 2592 | S122: 1 | T122: 1085 | U122: 1 | V122: 5490 | W122: 4405 | X122: 265 | Y122: 30 | Z122: 277 | AA122: 8 | AB122: 60 (100 %) | AC122: II (100 %) | AD122: PAB (100 %) | AE122: 0.238293143 | AF122: Y3 (100 %) | AG122: 1 | AH122: 2 | AI122: kyllä | AJ122: 0 | AK122: 0.6599318956 | AL122: 4.77 | AM122: 5 | AN122: 0.25 | AO122: 60 | AP122: 0.6 | AQ122: 5.62 | AR122: 1.873333333 | AS122: 8 | AT122: 0 | AU122: 0 | AV122: 1 | AW122: 0 | AX122: 1 | AY122: 0.4625 | AZ122: 0.01 | BA122: 0 | BB122: 0 | BC122: 0 | BD122: 0 | BE122: 0 | BF122: 0 | BG122: 10.4725 | BH122: 3.490833333 | BI122: 1411 | BJ122: 0.3203178207 | BK122: 0.5 | BL122: 0 | BM122: 0 | BN122: 0 | BO122: 1 | BP122: 9 | BQ122: 0.002043132804 | BR122: 0 | BS122: 48 | BT122: 0.48 | BU122: 0.98 | BV122: 0 | BW122: 0 | BX122: 1 | BY122: 3.96 | BZ122: 1.32 | CA122: 20.0525 | CB122: 6.684166667 | CC122: 2 | CE122: 1049.681295 | CF122: 1167325 | CI122: 2 | CJ122: https://www.google.com/maps/@61.50971257,22.89849075,3a,75y,90t/data=!3m3!1e1!3m1!2e0 | CK122: 0 | CL122: 0 | CN122: 0 | CO122: 0 | CP122: 1 | CQ122: 0 | CR122: 6 | CS122: 370 | CT122: 4 | CU122: 0 | CV122: 0 | CW122: 0 | CX122: 0 | CY122: 1411 | CZ122: 0 | DA122: 1 | DB122: 1 | DC122: 0 | DD122: 0 | DE122: 196 | DF122: 0.98 | DH122: 0 | DI122: 0 | DJ122: 0 | DK122: 0 | DL122: 0 | DN122: 9 | DO122: Vanhankirkontie | DP122: Sastamala | DQ122: 0 | DR122: 1411 | DS122: 48 | DT122: 60 (100 %) | DU122: II (100 %) | DV122: PAB (100 %) | DW122: Y3 (100 %) | DX122: 2907 | DY122: 0.6599318956
A123: 12973_1 | B123: 9724.573333 | C123: 12973_1_0 | D123: 87 | E123: 87 | F123: 0 | G123: 6.660666667 | H123: 2.740666667 | I123: 2.253333333 | J123: 1.666666667 | K123: 2 | L123: 0 | M123: Gmaps | N123: Vähä | O123: Yhdys | P123: Stormintie | Q123: Sastamala | R123: 12973 | S123: 1 | T123: 0 | U123: 1 | V123: 1460 | W123: 1460 | X123: 284 | Y123: 18 | Z123: 346 | AA123: 7 | AB123: 40 (100 %) | AC123: II (100 %) | AD123: AB (26 %), PAB (74 %) | AE123: 0.3203028783 | AF123: Y3 (100 %) | AG123: 0 | AH123: 0 | AI123: ei | AJ123: 0 | AK123: 0 | AL123: 5.112 | AM123: 53 | AN123: 2.65 | AO123: 46 | AP123: 0.46 | AQ123: 8.222 | AR123: 2.740666667 | AS123: 5.76 | AT123: 0 | AU123: 0 | AV123: 0 | AW123: 0 | AX123: 1 | AY123: 0 | AZ123: 0 | BA123: 0 | BB123: 0 | BC123: 0 | BD123: 0 | BE123: 0 | BF123: 0 | BG123: 6.76 | BH123: 2.253333333 | BI123: 1462 | BJ123: 1.001369863 | BK123: 1 | BL123: 0 | BM123: 0 | BN123: 0 | BO123: 1 | BP123: 1148 | BQ123: 0.7863013699 | BR123: 1 | BS123: 140 | BT123: 1 | BU123: 0 | BV123: 0 | BW123: 0 | BX123: 1 | BY123: 5 | BZ123: 1.666666667 | CA123: 19.982 | CB123: 6.660666667 | CC123: 2 | CE123: 467.6422023 | CF123: 414640 | CI123: 2 | CJ123: https://www.google.com/maps/@61.33778566,23.02639222,3a,75y,90t/data=!3m3!1e1!3m1!2e0 | CK123: 0 | CL123: 0 | CN123: 0 | CO123: 0 | CP123: 0 | CQ123: 0 | CR123: 1 | CS123: 0 | CT123: 0 | CU123: 0 | CV123: 0 | CW123: 0 | CX123: 0 | CY123: 1462 | CZ123: 0 | DA123: 1 | DB123: 1 | DC123: 0 | DD123: 0 | DE123: 0 | DF123: 0 | DH123: 0 | DI123: 0 | DJ123: 0 | DK123: 0 | DL123: 0 | DN123: 1148 | DO123: Stormintie | DP123: Sastamala | DQ123: 0 | DR123: 1462 | DS123: 140 | DT123: 40 (100 %) | DU123: II (100 %) | DV123: AB (26 %), PAB (74 %) | DW123: Y3 (100 %) | DX123: 0 | DY123: 0
A124: 2742_1 | B124: 34371.02667 | C124: 2742_1_3030 | D124: 88 | E124: 88 | F124: 0 | G124: 6.635333333 | H124: 2.632 | I124: 3.333333333 | J124: 0.67 | K124: 2 | L124: 0 | M124: Gmaps | N124: Vähä | O124: Yhdys | P124: Uudenasemantie | Q124: Parkano | R124: 2742 | S124: 1 | T124: 3030 | U124: 1 | V124: 8210 | W124: 5180 | X124: 397 | Y124: 30 | Z124: 437 | AA124: 19 | AB124: 50 (3 %), 60 (17 %), 80 (83 %) | AC124: Ib (100 %) | AD124: AB (100 %) | AE124: 0 | AF124: Y3 (100 %) | AG124: 0 | AH124: 2 | AI124: ei | AJ124: 0 | AK124: 17.88532819 | AL124: 7.146 | AM124: 10 | AN124: 0.5 | AO124: 25 | AP124: 0.25 | AQ124: 7.896 | AR124: 2.632 | AS124: 8 | AT124: 0 | AU124: 0 | AV124: 1 | AW124: 0 | AX124: 0 | AY124: 0 | AZ124: 0 | BA124: 0 | BB124: 0 | BC124: 0 | BD124: 0 | BE124: 0 | BF124: 1 | BG124: 10 | BH124: 3.333333333 | BI124: 0 | BJ124: 0 | BK124: 0 | BL124: 0 | BM124: 0 | BN124: 0 | BO124: 1 | BP124: 0 | BQ124: 0 | BR124: 0 | BS124: 0 | BT124: 0 | BU124: 0.01 | BV124: 0 | BW124: 0 | BX124: 1 | BY124: 2.01 | BZ124: 0.67 | CA124: 19.906 | CB124: 6.635333333 | CC124: 2 | CE124: 0 | CF124: 2056460 | CI124: 2 | CJ124: https://www.google.com/maps/@62.04665662,23.07495467,3a,75y,90t/data=!3m3!1e1!3m1!2e0 | CK124: 0 | CL124: 0 | CN124: 0 | CO124: 0 | CP124: 1 | CQ124: 0 | CR124: 0 | CS124: 0 | CT124: 0 | CU124: 0 | CV124: 0 | CW124: 0 | CX124: 0 | CY124: 0 | CZ124: 0 | DA124: 1 | DB124: 0 | DC124: 0 | DD124: 0 | DE124: 2 | DF124: 0.01 | DH124: 0 | DI124: 0 | DJ124: 0 | DK124: 1 | DL124: 0 | DN124: 0 | DO124: Uudenasemantie | DP124: Parkano | DQ124: 0 | DR124: 0 | DS124: 0 | DT124: 50 (3 %), 60 (17 %), 80 (83 %) | DU124: Ib (100 %) | DV124: AB (100 %) | DW124: Y3 (100 %) | DX124: 92646 | DY124: 17.88532819
A125: 13139_1 | B125: 30579.2825 | C125: 13139_1_0 | D125: 89 | E125: 89 | F125: 0 | G125: 6.63325 | H125: 3.145333333 | I125: 1.992916667 | J125: 1.495 | K125: 2 | L125: 0 | M125: Gmaps | N125: Vähä | O125: Yhdys | P125: Vanha Tampereentie | Q125: Ikaalinen | R125: 13139 | S125: 1 | T125: 0 | U125: 1 | V125: 4610 | W125: 4610 | X125: 422 | Y125: 12 | Z125: 510 | AA125: 1 | AB125: 40 (2 %), 50 (33 %), 60 (65 %) | AC125: II (100 %) | AD125: AB (24 %), PAB (76 %) | AE125: 0.3037012699 | AF125: Y3 (2 %) | AG125: 1 | AH125: 1 | AI125: kyllä | AJ125: 0 | AK125: 0 | AL125: 7.596 | AM125: 23 | AN125: 1.15 | AO125: 69 | AP125: 0.69 | AQ125: 9.436 | AR125: 3.145333333 | AS125: 3.84 | AT125: 2 | AU125: 0 | AV125: 0 | AW125: 0 | AX125: 0 | AY125: 0.01625 | AZ125: 0.1225 | BA125: 0 | BB125: 0 | BC125: 0 | BD125: 0 | BE125: 0 | BF125: 0 | BG125: 5.97875 | BH125: 1.992916667 | BI125: 115 | BJ125: 0.02494577007 | BK125: 0.5 | BL125: 0 | BM125: 0 | BN125: 0 | BO125: 1 | BP125: 1118 | BQ125: 0.242516269 | BR125: 0 | BS125: 100 | BT125: 1 | BU125: 0.985 | BV125: 0 | BW125: 0 | BX125: 1 | BY125: 4.485 | BZ125: 1.495 | CA125: 19.89975 | CB125: 6.63325 | CC125: 2 | CE125: 1400.062854 | CF125: 1945420 | CI125: 2 | CJ125: https://www.google.com/maps/@61.72891051,23.13240709,3a,75y,90t/data=!3m3!1e1!3m1!2e0 | CK125: 0 | CL125: 0 | CN125: 1 | CO125: 0 | CP125: 0 | CQ125: 0 | CR125: 0 | CS125: 13 | CT125: 49 | CU125: 0 | CV125: 0 | CW125: 0 | CX125: 0 | CY125: 93 | CZ125: 0 | DA125: 1 | DB125: 1 | DC125: 0.5 | DD125: 0 | DE125: 97 | DF125: 0.485 | DH125: 0 | DI125: 0 | DJ125: 0 | DK125: 0 | DL125: 0 | DN125: 1118 | DO125: Vanha Tampereentie | DP125: Ikaalinen | DQ125: 0 | DR125: 115 | DS125: 100 | DT125: 40 (2 %), 50 (33 %), 60 (65 %) | DU125: II (100 %) | DV125: AB (24 %), PAB (76 %) | DW125: Y3 (100 %) | DX125: 0 | DY125: 0
A126: 3481_1 | B126: 25157.61167 | C126: 3481_1_4098 | D126: 90 | E126: 90 | F126: 0 | G126: 6.599583333 | H126: 2.52 | I126: 3.24625 | J126: 0.8333333333 | K126: 2 | L126: 0 | M126: Gmaps | N126: Vähä | O126: Yhdys | P126: Syvinkisalmentie, Tuuhoskyläntie | Q126: Ruovesi | R126: 3481 | S126: 1 | T126: 4098 | U126: 1 | V126: 7910 | W126: 3812 | X126: 375 | Y126: 24 | Z126: 535 | AA126: 5 | AB126: 60 (8 %), 80 (92 %) | AC126: II (100 %) | AD126: PAB (100 %) | AE126: 0.02653338993 | AF126: Y3 (100 %) | AG126: 0 | AH126: 1 | AI126: ei | AJ126: 0 | AK126: 1.735571878 | AL126: 6.75 | AM126: 0 | AN126: 0 | AO126: 81 | AP126: 0.81 | AQ126: 7.56 | AR126: 2.52 | AS126: 7.68 | AT126: 0 | AU126: 0 | AV126: 1 | AW126: 0 | AX126: 1 | AY126: 0.02375 | AZ126: 0.035 | BA126: 0 | BB126: 0 | BC126: 0 | BD126: 0 | BE126: 0 | BF126: 0 | BG126: 9.73875 | BH126: 3.24625 | BI126: 0 | BJ126: 0 | BK126: 0 | BL126: 0 | BM126: 0 | BN126: 0 | BO126: 0 | BP126: 0 | BQ126: 0 | BR126: 0 | BS126: 0 | BT126: 0 | BU126: 1.5 | BV126: 0 | BW126: 0 | BX126: 1 | BY126: 2.5 | BZ126: 0.8333333333 | CA126: 19.79875 | CB126: 6.599583333 | CC126: 2 | CE126: 101.1452824 | CF126: 1429500 | CI126: 2 | CJ126: https://www.google.com/maps/@62.06553902,24.0572463,3a,75y,90t/data=!3m3!1e1!3m1!2e0 | CK126: 0 | CL126: 0 | CN126: 0 | CO126: 0 | CP126: 1 | CQ126: 0 | CR126: 6 | CS126: 19 | CT126: 14 | CU126: 0 | CV126: 0 | CW126: 0 | CX126: 0 | CY126: 0 | CZ126: 0 | DA126: 0 | DB126: 0 | DC126: 0.5 | DD126: 0 | DE126: 245 | DF126: 1 | DH126: 0 | DI126: 0 | DJ126: 0 | DK126: 0 | DL126: 0 | DN126: 0 | DO126: Syvinkisalmentie, Tuuhoskyläntie | DP126: Ruovesi | DQ126: 0 | DR126: 0 | DS126: 0 | DT126: 60 (8 %), 80 (92 %) | DU126: II (100 %) | DV126: PAB (100 %) | DW126: Y3 (100 %) | DX126: 6616 | DY126: 1.735571878
A127: 3413_3 | B127: 17395.84 | C127: 3413_3_3776 | D127: 91 | E127: 91 | F127: 0 | G127: 6.589333333 | H127: 2.339333333 | I127: 3.333333333 | J127: 0.9166666667 | K127: 2 | L127: 0 | M127: Gmaps | N127: Vähä | O127: Yhdys | P127: Asemantie, Sahantie | Q127: Juupajoki | R127: 3413 | S127: 3 | T127: 3776 | U127: 3 | V127: 6416 | W127: 2640 | X127: 341 | Y127: 53 | Z127: 404 | AA127: 33 | AB127: 40 (35 %), 50 (21 %), 80 (44 %) | AC127: Ib (100 %) | AD127: AB (0 %), PAB (100 %) | AE127: 0.7667837314 | AF127: Y3 (100 %) | AG127: 0 | AH127: 0 | AI127: kyllä | AJ127: 0 | AK127: 5.520454545 | AL127: 6.138 | AM127: 1 | AN127: 0.05 | AO127: 83 | AP127: 0.83 | AQ127: 7.018 | AR127: 2.339333333 | AS127: 8 | AT127: 2 | AU127: 0 | AV127: 0 | AW127: 0 | AX127: 0 | AY127: 0 | AZ127: 0 | BA127: 0 | BB127: 0 | BC127: 0 | BD127: 0 | BE127: 0 | BF127: 0 | BG127: 10 | BH127: 3.333333333 | BI127: 2335 | BJ127: 0.884469697 | BK127: 1 | BL127: 0 | BM127: 0 | BN127: 0 | BO127: 0 | BP127: 1234 | BQ127: 0.4674242424 | BR127: 0 | BS127: 75 | BT127: 0.75 | BU127: 0 | BV127: 0 | BW127: 0 | BX127: 1 | BY127: 2.75 | BZ127: 0.9166666667 | CA127: 19.768 | CB127: 6.589333333 | CC127: 2 | CE127: 2024.309051 | CF127: 900240 | CI127: 2 | CJ127: https://www.google.com/maps/@61.80799677,24.37981817,3a,75y,90t/data=!3m3!1e1!3m1!2e0 | CK127: 0 | CL127: 0 | CN127: 1 | CO127: 0 | CP127: 0 | CQ127: 0 | CR127: 0 | CS127: 0 | CT127: 0 | CU127: 0 | CV127: 0 | CW127: 0 | CX127: 0 | CY127: 2348 | CZ127: 0 | DA127: 0 | DB127: 1 | DC127: 0 | DD127: 0 | DE127: 0 | DF127: 0 | DH127: 0 | DI127: 0 | DJ127: 0 | DK127: 0 | DL127: 0 | DN127: 1234 | DO127: Asemantie, Sahantie | DP127: Juupajoki | DQ127: 0 | DR127: 2335 | DS127: 75 | DT127: 40 (35 %), 50 (21 %), 80 (44 %) | DU127: Ib (100 %) | DV127: AB (0 %), PAB (100 %) | DW127: Y3 (100 %) | DX127: 14574 | DY127: 5.520454545
A128: 346_4 | B128: 40940.78367 | C128: 346_4_0 | D128: 92 | E128: 92 | F128: 0 | G128: 6.515083333 | H128: 2.878 | I128: 3.020416667 | J128: 0.6166666667 | K128: 2 | L128: 0 | M128: Gmaps | N128: Vähä | O128: Seutu | P128: Pohjaslahdentie | Q128: Mänttä-Vilppula | R128: 346 | S128: 4 | T128: 0 | U128: 4 | V128: 6284 | W128: 6284 | X128: 458 | Y128: 48 | Z128: 558 | AA128: 24 | AB128: 80 (100 %) | AC128: II (100 %) | AD128: AB (99 %), PAB (1 %) | AE128: 0 | AF128: Y3 (100 %) | AG128: 3 | AH128: 5 | AI128: ei | AJ128: 0 | AK128: 5.91024825 | AL128: 8.244 | AM128: 2 | AN128: 0.1 | AO128: 29 | AP128: 0.29 | AQ128: 8.634 | AR128: 2.878 | AS128: 8 | AT128: 0 | AU128: 0 | AV128: 0 | AW128: 0 | AX128: 0 | AY128: 0.00125 | AZ128: 0.06 | BA128: 0 | BB128: 0 | BC128: 0 | BD128: 0 | BE128: 0 | BF128: 1 | BG128: 9.06125 | BH128: 3.020416667 | BI128: 0 | BJ128: 0 | BK128: 0 | BL128: 0 | BM128: 0 | BN128: 0 | BO128: 0 | BP128: 0 | BQ128: 0 | BR128: 0 | BS128: 0 | BT128: 0 | BU128: 0.85 | BV128: 0 | BW128: 0 | BX128: 1 | BY128: 1.85 | BZ128: 0.6166666667 | CA128: 19.54525 | CB128: 6.515083333 | CC128: 2 | CE128: 0 | CF128: 2878072 | CI128: 2 | CJ128: https://www.google.com/maps/@62.12971089,24.23239754,3a,75y,90t/data=!3m3!1e1!3m1!2e0 | CK128: 0 | CL128: 0 | CN128: 0 | CO128: 0 | CP128: 0 | CQ128: 0 | CR128: 0 | CS128: 1 | CT128: 24 | CU128: 0 | CV128: 0 | CW128: 0 | CX128: 0 | CY128: 0 | CZ128: 0 | DA128: 0 | DB128: 0 | DC128: 0.5 | DD128: 0 | DE128: 70 | DF128: 0.35 | DH128: 0 | DI128: 0 | DJ128: 0 | DK128: 0 | DL128: 1 | DN128: 0 | DO128: Pohjaslahdentie | DP128: Mänttä-Vilppula | DQ128: 0 | DR128: 0 | DS128: 0 | DT128: 80 (100 %) | DU128: II (100 %) | DV128: AB (99 %), PAB (1 %) | DW128: Y3 (100 %) | DX128: 37140 | DY128: 5.91024825
A129: 2983_1 | B129: 25021.382 | C129: 2983_1_0 | D129: 93 | E129: 93 | F129: 0 | G129: 6.494 | H129: 3.814 | I129: 1.613333333 | J129: 1.066666667 | K129: 2 | L129: 0 | M129: Gmaps | N129: Vähä | O129: Yhdys | P129: Valkkistentie | Q129: Vesilahti | R129: 2983 | S129: 1 | T129: 0 | U129: 1 | V129: 3853 | W129: 3853 | X129: 474 | Y129: 12 | Z129: 589 | AA129: 0 | AB129: 50 (48 %), 60 (52 %) | AC129: II (100 %) | AD129: AB (8 %), PAB (92 %) | AE129: 0.4028419458 | AF129: Y3 (100 %) | AG129: 1 | AH129: 1 | AI129: kyllä | AJ129: 0 | AK129: 0 | AL129: 8.532 | AM129: 40 | AN129: 2 | AO129: 91 | AP129: 0.91 | AQ129: 11.442 | AR129: 3.814 | AS129: 3.84 | AT129: 0 | AU129: 0 | AV129: 0 | AW129: 0 | AX129: 1 | AY129: 0 | AZ129: 0 | BA129: 0 | BB129: 0 | BC129: 0 | BD129: 0 | BE129: 0 | BF129: 0 | BG129: 4.84 | BH129: 1.613333333 | BI129: 3013 | BJ129: 0.7819880613 | BK129: 1 | BL129: 0 | BM129: 0 | BN129: 0 | BO129: 0 | BP129: 359 | BQ129: 0.09317415001 | BR129: 0 | BS129: 68 | BT129: 0.68 | BU129: 0.52 | BV129: 0 | BW129: 0 | BX129: 1 | BY129: 3.2 | BZ129: 1.066666667 | CA129: 19.482 | CB129: 6.494 | CC129: 2 | CE129: 1552.150017 | CF129: 1826322 | CI129: 2 | CJ129: https://www.google.com/maps/@61.26637335,23.66156901,3a,75y,90t/data=!3m3!1e1!3m1!2e0 | CK129: 0 | CL129: 0 | CN129: 0 | CO129: 0 | CP129: 0 | CQ129: 0 | CR129: 3 | CS129: 0 | CT129: 0 | CU129: 0 | CV129: 0 | CW129: 0 | CX129: 0 | CY129: 1912 | CZ129: 0 | DA129: 0 | DB129: 1 | DC129: 0.5 | DD129: 0 | DE129: 4 | DF129: 0.02 | DH129: 0 | DI129: 0 | DJ129: 0 | DK129: 0 | DL129: 0 | DN129: 359 | DO129: Valkkistentie | DP129: Vesilahti | DQ129: 0 | DR129: 3013 | DS129: 68 | DT129: 50 (48 %), 60 (52 %) | DU129: II (100 %) | DV129: AB (8 %), PAB (92 %) | DW129: Y3 (100 %) | DX129: 0 | DY129: 0
A130: 3382_2 | B130: 30282.34 | C130: 3382_2_0 | D130: 94 | E130: 94 | F130: 0 | G130: 6.49 | H130: 2.103333333 | I130: 3.24 | J130: 1.146666667 | K130: 2 | L130: 0 | M130: Gmaps | N130: Vähä | O130: Yhdys | P130: Muroleen kanavantie | Q130: Ruovesi | R130: 3382 | S130: 2 | T130: 0 | U130: 2 | V130: 4666 | W130: 4666 | X130: 325 | Y130: 21 | Z130: 606 | AA130: 3 | AB130: 30 (7 %), 40 (11 %), 60 (81 %) | AC130: II (100 %) | AD130: AB (1 %), PAB (99 %) | AE130: 0.02147590778 | AF130: Y3 (100 %) | AG130: 1 | AH130: 1 | AI130: ei | AJ130: H-397 | AK130: 2.432918988 | AL130: 5.85 | AM130: 0 | AN130: 0 | AO130: 46 | AP130: 0.46 | AQ130: 6.31 | AR130: 2.103333333 | AS130: 6.72 | AT130: 2 | AU130: 0 | AV130: 0 | AW130: 0 | AX130: 1 | AY130: 0 | AZ130: 0 | BA130: 0 | BB130: 0 | BC130: 0 | BD130: 0 | BE130: 0 | BF130: 0 | BG130: 9.72 | BH130: 3.24 | BI130: 0 | BJ130: 0 | BK130: 0 | BL130: 0 | BM130: 0 | BN130: 0 | BO130: 0 | BP130: 0 | BQ130: 0 | BR130: 0 | BS130: 23 | BT130: 0.23 | BU130: 1.21 | BV130: 0 | BW130: 1 | BX130: 1 | BY130: 3.44 | BZ130: 1.146666667 | CA130: 19.47 | CB130: 6.49 | CC130: 2 | CE130: 100.2065857 | CF130: 1516450 | CI130: 2 | CJ130: https://www.google.com/maps/@61.82150488,23.95089573,3a,75y,90t/data=!3m3!1e1!3m1!2e0 | CK130: 0 | CL130: 0 | CN130: 1 | CO130: 0 | CP130: 0 | CQ130: 0 | CR130: 1 | CS130: 0 | CT130: 0 | CU130: 0 | CV130: 0 | CW130: 0 | CX130: 0 | CY130: 0 | CZ130: 0 | DA130: 0 | DB130: 0 | DC130: 0.5 | DD130: 0.5 | DE130: 42 | DF130: 0.21 | DH130: 0 | DI130: 1 | DJ130: 0 | DK130: 0 | DL130: 0 | DN130: 0 | DO130: Muroleen kanavantie | DP130: Ruovesi | DQ130: H-397 | DR130: 0 | DS130: 23 | DT130: 30 (7 %), 40 (11 %), 60 (81 %) | DU130: II (100 %) | DV130: AB (1 %), PAB (99 %) | DW130: Y3 (100 %) | DX130: 11352 | DY130: 2.432918988
A131: 12757_1 | B131: 6064.576333 | C131: 12757_1_0 | D131: 95 | E131: 95 | F131: 0 | G131: 6.472333333 | H131: 2.374 | I131: 3.091666667 | J131: 1.006666667 | K131: 2 | L131: 0 | M131: Gmaps | N131: Vähä | O131: Yhdys | P131: Oriniementie | Q131: Punkalaidun | R131: 12757 | S131: 1 | T131: 0 | U131: 1 | V131: 937 | W131: 937 | X131: 364 | Y131: 19 | Z131: 397 | AA131: 6 | AB131: 40 (46 %), 50 (54 %) | AC131: III (100 %) | AD131: AB (35 %), PAB (65 %) | AE131: 0.3487665912 | AF131: Y3 (6 %) | AG131: 0 | AH131: 0 | AI131: ei | AJ131: 0 | AK131: 0.9423692636 | AL131: 6.552 | AM131: 1 | AN131: 0.05 | AO131: 52 | AP131: 0.52 | AQ131: 7.122 | AR131: 2.374 | AS131: 6.08 | AT131: 2 | AU131: 0 | AV131: 0 | AW131: 0 | AX131: 1 | AY131: 0.195 | AZ131: 0 | BA131: 0 | BB131: 0 | BC131: 0 | BD131: 0 | BE131: 0 | BF131: 0 | BG131: 9.275 | BH131: 3.091666667 | BI131: 935 | BJ131: 0.9978655283 | BK131: 1 | BL131: 0 | BM131: 0 | BN131: 0 | BO131: 0 | BP131: 0 | BQ131: 0 | BR131: 0 | BS131: 94 | BT131: 0.94 | BU131: 0.08 | BV131: 0 | BW131: 0 | BX131: 1 | BY131: 3.02 | BZ131: 1.006666667 | CA131: 19.417 | CB131: 6.472333333 | CC131: 2 | CE131: 326.794296 | CF131: 341068 | CI131: 2 | CJ131: https://www.google.com/maps/@61.15145018,23.18135084,3a,75y,90t/data=!3m3!1e1!3m1!2e0 | CK131: 0 | CL131: 0 | CN131: 1 | CO131: 0 | CP131: 0 | CQ131: 0 | CR131: 4 | CS131: 156 | CT131: 0 | CU131: 0 | CV131: 0 | CW131: 0 | CX131: 0 | CY131: 935 | CZ131: 0 | DA131: 0 | DB131: 0 | DC131: 0 | DD131: 0 | DE131: 16 | DF131: 0.08 | DH131: 0 | DI131: 0 | DJ131: 0 | DK131: 0 | DL131: 0 | DN131: 0 | DO131: Oriniementie | DP131: Punkalaidun | DQ131: 0 | DR131: 935 | DS131: 94 | DT131: 40 (46 %), 50 (54 %) | DU131: III (100 %) | DV131: AB (35 %), PAB (65 %) | DW131: Y3 (100 %) | DX131: 883 | DY131: 0.9423692636
A132: 13991_1 | B132: 24481.67625 | C132: 13991_1_220 | D132: 96 | E132: 96 | F132: 0 | G132: 6.46125 | H132: 2.72 | I132: 2.409583333 | J132: 1.331666667 | K132: 2 | L132: 0 | M132: Gmaps | N132: Vähä | O132: Yhdys | P132: Tiihalantie | Q132: Kangasala | R132: 13991 | S132: 1 | T132: 220 | U132: 1 | V132: 4009 | W132: 3789 | X132: 230 | Y132: 13 | Z132: 322 | AA132: 3 | AB132: 50 (17 %), 60 (53 %), 80 (30 %) | AC132: III (100 %) | AD132: AB (15 %), PAB (85 %) | AE132: 0.02913305033 | AF132: Y2 (100 %) | AG132: 0 | AH132: 0 | AI132: kyllä | AJ132: 0 | AK132: 0 | AL132: 4.14 | AM132: 126 | AN132: 3 | AO132: 102 | AP132: 1.02 | AQ132: 8.16 | AR132: 2.72 | AS132: 4.16 | AT132: 2 | AU132: 0 | AV132: 0 | AW132: 0 | AX132: 1 | AY132: 0.06875 | AZ132: 0 | BA132: 0 | BB132: 0 | BC132: 0 | BD132: 0 | BE132: 0 | BF132: 0 | BG132: 7.22875 | BH132: 2.409583333 | BI132: 2385 | BJ132: 0.6294536817 | BK132: 1 | BL132: 0 | BM132: 0 | BN132: 0 | BO132: 1 | BP132: 1759 | BQ132: 0.4642385854 | BR132: 0 | BS132: 48 | BT132: 0.48 | BU132: 0.515 | BV132: 0 | BW132: 0 | BX132: 1 | BY132: 3.995 | BZ132: 1.331666667 | CA132: 19.38375 | CB132: 6.46125 | CC132: 2 | CE132: 110.3851277 | CF132: 871470 | CI132: 2 | CJ132: https://www.google.com/maps/@61.4460415,24.10041296,3a,75y,90t/data=!3m3!1e1!3m1!2e0 | CK132: 0 | CL132: 0 | CN132: 1 | CO132: 0 | CP132: 0 | CQ132: 0 | CR132: 5 | CS132: 55 | CT132: 0 | CU132: 0 | CV132: 0 | CW132: 0 | CX132: 0 | CY132: 2408 | CZ132: 0 | DA132: 1 | DB132: 1 | DC132: 0 | DD132: 0 | DE132: 103 | DF132: 0.515 | DH132: 0 | DI132: 0 | DJ132: 0 | DK132: 0 | DL132: 0 | DN132: 1759 | DO132: Tiihalantie | DP132: Kangasala | DQ132: 0 | DR132: 2385 | DS132: 48 | DT132: 50 (17 %), 60 (53 %), 80 (30 %) | DU132: III (100 %) | DV132: AB (15 %), PAB (85 %) | DW132: Y3 (100 %) | DX132: 0 | DY132: 0
A133: 2981_2 | B133: 20418.9975 | C133: 2981_2_0 | D133: 97 | E133: 97 | F133: 0 | G133: 6.4515 | H133: 2.447333333 | I133: 3.460833333 | J133: 0.5433333333 | K133: 2 | L133: 0 | M133: Gmaps | N133: Vähä | O133: Yhdys | P133: Halkivahantie | Q133: Urjala | R133: 2981 | S133: 2 | T133: 0 | U133: 2 | V133: 3165 | W133: 3165 | X133: 364 | Y133: 31 | Z133: 396 | AA133: 10 | AB133: 80 (100 %) | AC133: III (100 %) | AD133: PAB (100 %) | AE133: 0.03172415348 | AF133: Y3 (100 %) | AG133: 0 | AH133: 1 | AI133: ei | AJ133: 0 | AK133: 4.791469194 | AL133: 6.552 | AM133: 0 | AN133: 0 | AO133: 79 | AP133: 0.79 | AQ133: 7.342 | AR133: 2.447333333 | AS133: 8 | AT133: 0 | AU133: 0 | AV133: 1 | AW133: 0 | AX133: 1 | AY133: 0.3825 | AZ133: 0 | BA133: 0 | BB133: 0 | BC133: 0 | BD133: 0 | BE133: 0 | BF133: 0 | BG133: 10.3825 | BH133: 3.460833333 | BI133: 0 | BJ133: 0 | BK133: 0 | BL133: 0 | BM133: 0 | BN133: 0 | BO133: 0 | BP133: 0 | BQ133: 0 | BR133: 0 | BS133: 0 | BT133: 0 | BU133: 0.63 | BV133: 0 | BW133: 0 | BX133: 1 | BY133: 1.63 | BZ133: 0.5433333333 | CA133: 19.3545 | CB133: 6.4515 | CC133: 2 | CE133: 100.4069458 | CF133: 1152060 | CI133: 2 | CJ133: https://www.google.com/maps/@61.12544339,23.46797029,3a,75y,90t/data=!3m3!1e1!3m1!2e0 | CK133: 0 | CL133: 0 | CN133: 0 | CO133: 0 | CP133: 1 | CQ133: 0 | CR133: 12 | CS133: 306 | CT133: 0 | CU133: 0 | CV133: 0 | CW133: 0 | CX133: 0 | CY133: 0 | CZ133: 0 | DA133: 0 | DB133: 0 | DC133: 0 | DD133: 0 | DE133: 126 | DF133: 0.63 | DH133: 0 | DI133: 0 | DJ133: 0 | DK133: 0 | DL133: 0 | DN133: 0 | DO133: Halkivahantie | DP133: Urjala | DQ133: 0 | DR133: 0 | DS133: 0 | DT133: 80 (100 %) | DU133: III (100 %) | DV133: PAB (100 %) | DW133: Y3 (100 %) | DX133: 15165 | DY133: 4.791469194
A134: 3482_1 | B134: 26627.67708 | C134: 3482_1_0 | D134: 98 | E134: 98 | F134: 0 | G134: 6.439583333 | H134: 2.228 | I134: 3.711583333 | J134: 0.5 | K134: 2 | L134: 0 | M134: Gmaps | N134: Vähä | O134: Yhdys | P134: Haapamäentie | Q134: Mänttä-Vilppula, Keuruu | R134: 3482 | S134: 1 | T134: 0 | U134: 1 | V134: 4135 | W134: 4135 | X134: 338 | Y134: 37 | Z134: 419 | AA134: 19 | AB134: 80 (100 %) | AC134: II (100 %) | AD134: AB (100 %) | AE134: 0 | AF134: Y3 (100 %) | AG134: 0 | AH134: 1 | AI134: ei | AJ134: 0 | AK134: 5.606045949 | AL134: 6.084 | AM134: 0 | AN134: 0 | AO134: 60 | AP134: 0.6 | AQ134: 6.684 | AR134: 2.228 | AS134: 8 | AT134: 0 | AU134: 0 | AV134: 0 | AW134: 0 | AX134: 1 | AY134: 0.04875 | AZ134: 0.06 | BA134: 0.026 | BB134: 0 | BC134: 0 | BD134: 1 | BE134: 1 | BF134: 0 | BG134: 11.13475 | BH134: 3.711583333 | BI134: 0 | BJ134: 0 | BK134: 0 | BL134: 0 | BM134: 0 | BN134: 0 | BO134: 0 | BP134: 0 | BQ134: 0 | BR134: 0 | BS134: 0 | BT134: 0 | BU134: 0.5 | BV134: 0 | BW134: 0 | BX134: 1 | BY134: 1.5 | BZ134: 0.5 | CA134: 19.31875 | CB134: 6.439583333 | CC134: 2 | CE134: 0 | CF134: 1397630 | CI134: 2 | CJ134: https://www.google.com/maps/@62.16148253,24.53645537,3a,75y,90t/data=!3m3!1e1!3m1!2e0 | CK134: 0 | CL134: 1 | CN134: 0 | CO134: 0 | CP134: 0 | CQ134: 0 | CR134: 2 | CS134: 39 | CT134: 24 | CU134: 52 | CV134: 0 | CW134: 0 | CX134: 3 | CY134: 0 | CZ134: 0 | DA134: 0 | DB134: 0 | DC134: 0 | DD134: 0 | DE134: 100 | DF134: 0.5 | DH134: 0 | DI134: 0 | DJ134: 0 | DK134: 0 | DL134: 0 | DN134: 0 | DO134: Haapamäentie | DP134: Mänttä-Vilppula, Keuruu | DQ134: 0 | DR134: 0 | DS134: 0 | DT134: 80 (100 %) | DU134: II (100 %) | DV134: AB (100 %) | DW134: Y3 (100 %) | DX134: 23181 | DY134: 5.606045949
A135: 2790_5 | B135: 38870.4225 | C135: 2790_5_0 | D135: 99 | E135: 99 | F135: 0 | G135: 6.407916667 | H135: 1.906666667 | I135: 3.80625 | J135: 0.695 | K135: 2 | L135: 0 | M135: Gmaps | N135: Vähä | O135: Yhdys | P135: Isonniementie | Q135: Kihniö | R135: 2790 | S135: 5 | T135: 0 | U135: 5 | V135: 6066 | W135: 6066 | X135: 290 | Y135: 23 | Z135: 388 | AA135: 7 | AB135: 80 (100 %) | AC135: III (100 %) | AD135: PAB (100 %) | AE135: 0.591395849 | AF135: Y3 (100 %) | AG135: 0 | AH135: 0 | AI135: ei | AJ135: 0 | AK135: 2.003956479 | AL135: 5.22 | AM135: 0 | AN135: 0 | AO135: 50 | AP135: 0.5 | AQ135: 5.72 | AR135: 1.906666667 | AS135: 7.36 | AT135: 2 | AU135: 0 | AV135: 0 | AW135: 0 | AX135: 1 | AY135: 0.05125 | AZ135: 0.0075 | BA135: 0 | BB135: 0 | BC135: 0 | BD135: 0 | BE135: 0 | BF135: 1 | BG135: 11.41875 | BH135: 3.80625 | BI135: 126 | BJ135: 0.02077151335 | BK135: 0.5 | BL135: 0 | BM135: 0 | BN135: 0 | BO135: 0 | BP135: 0 | BQ135: 0 | BR135: 0 | BS135: 22 | BT135: 0.22 | BU135: 0.365 | BV135: 0 | BW135: 0 | BX135: 1 | BY135: 2.085 | BZ135: 0.695 | CA135: 19.22375 | CB135: 6.407916667 | CC135: 2 | CE135: 3587.40722 | CF135: 1759140 | CI135: 2 | CJ135: https://www.google.com/maps/@62.23050081,23.16389722,3a,75y,90t/data=!3m3!1e1!3m1!2e0 | CK135: 0 | CL135: 0 | CN135: 1 | CO135: 0 | CP135: 0 | CQ135: 0 | CR135: 1 | CS135: 41 | CT135: 3 | CU135: 0 | CV135: 0 | CW135: 0 | CX135: 0 | CY135: 126 | CZ135: 0 | DA135: 0 | DB135: 0 | DC135: 0 | DD135: 0 | DE135: 73 | DF135: 0.365 | DH135: 0 | DI135: 0 | DJ135: 0 | DK135: 1 | DL135: 0 | DN135: 0 | DO135: Isonniementie | DP135: Kihniö | DQ135: 0 | DR135: 126 | DS135: 22 | DT135: 80 (100 %) | DU135: III (100 %) | DV135: PAB (100 %) | DW135: Y3 (100 %) | DX135: 12156 | DY135: 2.003956479
A136: 2521_3 | B136: 27815.681 | C136: 2521_3_0 | D136: 100 | E136: 100 | F136: 0 | G136: 6.407666667 | H136: 3.086 | I136: 2.846666667 | J136: 0.475 | K136: 2 | L136: 0 | M136: Gmaps | N136: Vähä | O136: Yhdys | P136: Sammaljoentie | Q136: Sastamala | R136: 2521 | S136: 3 | T136: 0 | U136: 3 | V136: 4341 | W136: 4341 | X136: 456 | Y136: 22 | Z136: 451 | AA136: 5 | AB136: 70 (100 %) | AC136: III (100 %) | AD136: AB (100 %) | AE136: 0 | AF136: Y3 (100 %) | AG136: 1 | AH136: 1 | AI136: ei | AJ136: 0 | AK136: 2.018428933 | AL136: 8.208 | AM136: 0 | AN136: 0 | AO136: 105 | AP136: 1.05 | AQ136: 9.258 | AR136: 3.086 | AS136: 7.04 | AT136: 0 | AU136: 0 | AV136: 0 | AW136: 0 | AX136: 1 | AY136: 0.5 | AZ136: 0 | BA136: 0 | BB136: 0 | BC136: 0 | BD136: 0 | BE136: 0 | BF136: 0 | BG136: 8.54 | BH136: 2.846666667 | BI136: 0 | BJ136: 0 | BK136: 0 | BL136: 0 | BM136: 0 | BN136: 0 | BO136: 0 | BP136: 0 | BQ136: 0 | BR136: 0 | BS136: 15 | BT136: 0.15 | BU136: 0.275 | BV136: 0 | BW136: 0 | BX136: 1 | BY136: 1.425 | BZ136: 0.475 | CA136: 19.223 | CB136: 6.407666667 | CC136: 2 | CE136: 0 | CF136: 1979496 | CI136: 2 | CJ136: https://www.google.com/maps/@61.27091317,23.07196458,3a,75y,90t/data=!3m3!1e1!3m1!2e0 | CK136: 0 | CL136: 0 | CN136: 0 | CO136: 0 | CP136: 0 | CQ136: 0 | CR136: 4 | CS136: 443 | CT136: 0 | CU136: 0 | CV136: 0 | CW136: 0 | CX136: 0 | CY136: 0 | CZ136: 0 | DA136: 0 | DB136: 0 | DC136: 0 | DD136: 0 | DE136: 55 | DF136: 0.275 | DH136: 0 | DI136: 0 | DJ136: 0 | DK136: 0 | DL136: 0 | DN136: 0 | DO136: Sammaljoentie | DP136: Sastamala | DQ136: 0 | DR136: 0 | DS136: 15 | DT136: 70 (100 %) | DU136: III (100 %) | DV136: AB (100 %) | DW136: Y3 (100 %) | DX136: 8762 | DY136: 2.018428933
A137: 13151_1 | B137: 44563.00333 | C137: 13151_1_0 | D137: 101 | E137: 101 | F137: 0 | G137: 6.407333333 | H137: 2.337333333 | I137: 3.333333333 | J137: 0.7366666667 | K137: 2 | L137: 0 | M137: Gmaps | N137: Vähä | O137: Yhdys | P137: Turkkilantie | Q137: Hämeenkyrö | R137: 13151 | S137: 1 | T137: 0 | U137: 1 | V137: 6955 | W137: 6955 | X137: 209 | Y137: 30 | Z137: 254 | AA137: 1 | AB137: 60 (27 %), 80 (73 %) | AC137: II (100 %) | AD137: AB (95 %), PAB (5 %) | AE137: 0.05748522726 | AF137: Y3 (100 %) | AG137: 2 | AH137: 3 | AI137: kyllä | AJ137: 0 | AK137: 0 | AL137: 3.762 | AM137: 5 | AN137: 0.25 | AO137: 302 | AP137: 3 | AQ137: 7.012 | AR137: 2.337333333 | AS137: 8 | AT137: 0 | AU137: 0 | AV137: 1 | AW137: 0 | AX137: 1 | AY137: 0 | AZ137: 0 | BA137: 0 | BB137: 0 | BC137: 0 | BD137: 0 | BE137: 0 | BF137: 0 | BG137: 10 | BH137: 3.333333333 | BI137: 0 | BJ137: 0 | BK137: 0 | BL137: 0 | BM137: 0 | BN137: 0 | BO137: 1 | BP137: 0 | BQ137: 0 | BR137: 0 | BS137: 20 | BT137: 0.2 | BU137: 0.01 | BV137: 0 | BW137: 0 | BX137: 1 | BY137: 2.21 | BZ137: 0.7366666667 | CA137: 19.222 | CB137: 6.407333333 | CC137: 2 | CE137: 399.8097556 | CF137: 1453595 | CI137: 2 | CJ137: https://www.google.com/maps/@61.66304196,23.27194385,3a,75y,90t/data=!3m3!1e1!3m1!2e0 | CK137: 0 | CL137: 0 | CN137: 0 | CO137: 0 | CP137: 1 | CQ137: 0 | CR137: 1 | CS137: 0 | CT137: 0 | CU137: 0 | CV137: 0 | CW137: 0 | CX137: 0 | CY137: 0 | CZ137: 0 | DA137: 1 | DB137: 0 | DC137: 0 | DD137: 0 | DE137: 2 | DF137: 0.01 | DH137: 0 | DI137: 0 | DJ137: 0 | DK137: 0 | DL137: 0 | DN137: 0 | DO137: Turkkilantie | DP137: Hämeenkyrö | DQ137: 0 | DR137: 0 | DS137: 20 | DT137: 60 (27 %), 80 (73 %) | DU137: II (100 %) | DV137: AB (95 %), PAB (5 %) | DW137: Y3 (100 %) | DX137: 0 | DY137: 0
A138: 13993_1 | B138: 14048.65 | C138: 13993_1_765 | D138: 102 | E138: 102 | F138: 0 | G138: 6.314 | H138: 2.860666667 | I138: 2.146666667 | J138: 1.306666667 | K138: 2 | L138: 0 | M138: Gmaps | N138: Vähä | O138: Yhdys | P138: Herttualantie | Q138: Kangasala | R138: 13993 | S138: 1 | T138: 765 | U138: 1 | V138: 2990 | W138: 2225 | X138: 279 | Y138: 17 | Z138: 330 | AA138: 3 | AB138: 50 (100 %) | AC138: Ic (2 %), II (98 %) | AD138: PAB (100 %) | AE138: 0.155853264 | AF138: Y3 (100 %) | AG138: 0 | AH138: 0 | AI138: kyllä | AJ138: 0 | AK138: 0 | AL138: 5.022 | AM138: 90 | AN138: 3 | AO138: 56 | AP138: 0.56 | AQ138: 8.582 | AR138: 2.860666667 | AS138: 5.44 | AT138: 0 | AU138: 0 | AV138: 0 | AW138: 0 | AX138: 1 | AY138: 0 | AZ138: 0 | BA138: 0 | BB138: 0 | BC138: 0 | BD138: 0 | BE138: 0 | BF138: 0 | BG138: 6.44 | BH138: 2.146666667 | BI138: 2212 | BJ138: 0.9941573034 | BK138: 1 | BL138: 0 | BM138: 0 | BN138: 0 | BO138: 0 | BP138: 2205 | BQ138: 0.991011236 | BR138: 1 | BS138: 92 | BT138: 0.92 | BU138: 0 | BV138: 0 | BW138: 0 | BX138: 1 | BY138: 3.92 | BZ138: 1.306666667 | CA138: 18.942 | CB138: 6.314 | CC138: 2 | CE138: 346.7735124 | CF138: 620775 | CI138: 2 | CJ138: https://www.google.com/maps/@61.45654023,24.08343819,3a,75y,90t/data=!3m3!1e1!3m1!2e0 | CK138: 0 | CL138: 0 | CN138: 0 | CO138: 0 | CP138: 0 | CQ138: 0 | CR138: 1 | CS138: 0 | CT138: 0 | CU138: 0 | CV138: 0 | CW138: 0 | CX138: 0 | CY138: 1001 | CZ138: 0 | DA138: 0 | DB138: 1 | DC138: 0 | DD138: 0 | DE138: 0 | DF138: 0 | DH138: 0 | DI138: 0 | DJ138: 0 | DK138: 0 | DL138: 0 | DN138: 2205 | DO138: Herttualantie | DP138: Kangasala | DQ138: 0 | DR138: 2212 | DS138: 92 | DT138: 50 (100 %) | DU138: Ic (2 %), II (98 %) | DV138: PAB (100 %) | DW138: Y3 (100 %) | DX138: 0 | DY138: 0
A139: 2771_2 | B139: 23449.581 | C139: 2771_2_844 | D139: 103 | E139: 103 | F139: 0 | G139: 6.2935 | H139: 2.602666667 | I139: 2.590833333 | J139: 1.1 | K139: 2 | L139: 0 | M139: Gmaps | N139: Vähä | O139: Yhdys | P139: Kyrönlahdentie | Q139: Ylöjärvi | R139: 2771 | S139: 2 | T139: 844 | U139: 2 | V139: 4570 | W139: 3726 | X139: 376 | Y139: 17 | Z139: 512 | AA139: 3 | AB139: 50 (21 %), 80 (79 %) | AC139: II (100 %) | AD139: PAB (100 %) | AE139: 0.4750771817 | AF139: Y3 (100 %) | AG139: 0 | AH139: 1 | AI139: ei | AJ139: 0 | AK139: 0.9720880301 | AL139: 6.768 | AM139: 4 | AN139: 0.2 | AO139: 84 | AP139: 0.84 | AQ139: 7.808 | AR139: 2.602666667 | AS139: 5.44 | AT139: 0 | AU139: 0 | AV139: 1 | AW139: 0 | AX139: 0 | AY139: 0.2775 | AZ139: 0.055 | BA139: 0 | BB139: 0 | BC139: 0 | BD139: 0 | BE139: 0 | BF139: 1 | BG139: 7.7725 | BH139: 2.590833333 | BI139: 0 | BJ139: 0 | BK139: 0 | BL139: 0 | BM139: 0 | BN139: 0 | BO139: 0 | BP139: 0 | BQ139: 0 | BR139: 0 | BS139: 80 | BT139: 0.8 | BU139: 1.5 | BV139: 0 | BW139: 0 | BX139: 1 | BY139: 3.3 | BZ139: 1.1 | CA139: 18.8805 | CB139: 6.2935 | CC139: 2 | CE139: 1770.137579 | CF139: 1400976 | CI139: 2 | CJ139: https://www.google.com/maps/@61.70860176,23.3958899,3a,75y,90t/data=!3m3!1e1!3m1!2e0 | CK139: 0 | CL139: 0 | CN139: 0 | CO139: 0 | CP139: 1 | CQ139: 0 | CR139: 0 | CS139: 222 | CT139: 22 | CU139: 0 | CV139: 0 | CW139: 0 | CX139: 0 | CY139: 0 | CZ139: 0 | DA139: 0 | DB139: 0 | DC139: 0.5 | DD139: 0 | DE139: 259 | DF139: 1 | DH139: 0 | DI139: 0 | DJ139: 0 | DK139: 1 | DL139: 0 | DN139: 0 | DO139: Kyrönlahdentie | DP139: Ylöjärvi | DQ139: 0 | DR139: 0 | DS139: 80 | DT139: 50 (21 %), 80 (79 %) | DU139: II (100 %) | DV139: PAB (100 %) | DW139: Y3 (100 %) | DX139: 3622 | DY139: 0.9720880301
A140: 2764_1 | B140: 17045.779 | C140: 2764_1_0 | D140: 104 | E140: 104 | F140: 0 | G140: 6.283 | H140: 1.924666667 | I140: 3.346666667 | J140: 1.011666667 | K140: 2 | L140: 0 | M140: Gmaps | N140: Vähä | O140: Yhdys | P140: Poikeluksentie | Q140: Ikaalinen | R140: 2764 | S140: 1 | T140: 0 | U140: 1 | V140: 2713 | W140: 2713 | X140: 298 | Y140: 22 | Z140: 380 | AA140: 6 | AB140: 40 (22 %), 60 (4 %), 80 (74 %) | AC140: III (100 %) | AD140: PAB (100 %) | AE140: 0.7003687578 | AF140: Y3 (100 %) | AG140: 0 | AH140: 0 | AI140: ei | AJ140: 0 | AK140: 2.314780686 | AL140: 5.364 | AM140: 0 | AN140: 0 | AO140: 41 | AP140: 0.41 | AQ140: 5.774 | AR140: 1.924666667 | AS140: 7.04 | AT140: 2 | AU140: 0 | AV140: 0 | AW140: 0 | AX140: 1 | AY140: 0 | AZ140: 0 | BA140: 0 | BB140: 0 | BC140: 0 | BD140: 0 | BE140: 0 | BF140: 0 | BG140: 10.04 | BH140: 3.346666667 | BI140: 2326 | BJ140: 0.8573534832 | BK140: 1 | BL140: 0 | BM140: 0 | BN140: 0 | BO140: 0 | BP140: 0 | BQ140: 0 | BR140: 0 | BS140: 85 | BT140: 0.85 | BU140: 0.185 | BV140: 0 | BW140: 0 | BX140: 1 | BY140: 3.035 | BZ140: 1.011666667 | CA140: 18.849 | CB140: 6.283 | CC140: 2 | CE140: 1900.10044 | CF140: 808474 | CI140: 2 | CJ140: https://www.google.com/maps/@61.77454783,23.27805466,3a,75y,90t/data=!3m3!1e1!3m1!2e0 | CK140: 0 | CL140: 0 | CN140: 1 | CO140: 0 | CP140: 0 | CQ140: 0 | CR140: 1 | CS140: 0 | CT140: 0 | CU140: 0 | CV140: 0 | CW140: 0 | CX140: 0 | CY140: 2326 | CZ140: 0 | DA140: 0 | DB140: 0 | DC140: 0 | DD140: 0 | DE140: 37 | DF140: 0.185 | DH140: 0 | DI140: 0 | DJ140: 0 | DK140: 0 | DL140: 0 | DN140: 0 | DO140: Poikeluksentie | DP140: Ikaalinen | DQ140: 0 | DR140: 2326 | DS140: 85 | DT140: 40 (22 %), 60 (4 %), 80 (74 %) | DU140: III (100 %) | DV140: PAB (100 %) | DW140: Y3 (100 %) | DX140: 6280 | DY140: 2.314780686
A141: 2501_4 | B141: 13686.582 | C141: 2501_4_0 | D141: 105 | E141: 105 | F141: 0 | G141: 6.26675 | H141: 2.941333333 | I141: 2.26875 | J141: 1.056666667 | K141: 2 | L141: 0 | M141: Gmaps | N141: Vähä | O141: Yhdys | P141: Sarkolantie | Q141: Nokia | R141: 2501 | S141: 4 | T141: 0 | U141: 4 | V141: 2184 | W141: 2184 | X141: 373 | Y141: 19 | Z141: 512 | AA141: 3 | AB141: 30 (14 %), 50 (86 %) | AC141: III (100 %) | AD141: PAB (6 %), sora (94 %) | AE141: 0 | AF141: Y3 (100 %) | AG141: 0 | AH141: 1 | AI141: ei | AJ141: 0 | AK141: 0 | AL141: 6.714 | AM141: 30 | AN141: 1.5 | AO141: 61 | AP141: 0.61 | AQ141: 8.824 | AR141: 2.941333333 | AS141: 6.08 | AT141: 0 | AU141: 0 | AV141: 0 | AW141: 0 | AX141: 0 | AY141: 0.35125 | AZ141: 0.375 | BA141: 0 | BB141: 0 | BC141: 0 | BD141: 0 | BE141: 0 | BF141: 0 | BG141: 6.80625 | BH141: 2.26875 | BI141: 0 | BJ141: 0 | BK141: 0 | BL141: 0 | BM141: 0 | BN141: 0 | BO141: 0 | BP141: 0 | BQ141: 0 | BR141: 0 | BS141: 100 | BT141: 1 | BU141: 1.17 | BV141: 0 | BW141: 0 | BX141: 1 | BY141: 3.17 | BZ141: 1.056666667 | CA141: 18.80025 | CB141: 6.26675 | CC141: 2 | CE141: 0 | CF141: 814632 | CI141: 2 | CJ141: https://www.google.com/maps/@61.40544555,23.24906925,3a,75y,90t/data=!3m3!1e1!3m1!2e0 | CK141: 0 | CL141: 0 | CN141: 0 | CO141: 0 | CP141: 0 | CQ141: 0 | CR141: 0 | CS141: 281 | CT141: 150 | CU141: 0 | CV141: 0 | CW141: 0 | CX141: 0 | CY141: 0 | CZ141: 0 | DA141: 0 | DB141: 0 | DC141: 0.5 | DD141: 0 | DE141: 134 | DF141: 0.67 | DH141: 0 | DI141: 0 | DJ141: 0 | DK141: 0 | DL141: 0 | DN141: 0 | DO141: Sarkolantie | DP141: Nokia | DQ141: 0 | DR141: 0 | DS141: 100 | DT141: 30 (14 %), 50 (86 %) | DU141: III (100 %) | DV141: PAB (6 %), sora (94 %) | DW141: Y3 (6 %) | DX141: 0 | DY141: 0
A142: 13603_1 | B142: 36480.213 | C142: 13603_1_0 | D142: 106 | E142: 106 | F142: 0 | G142: 6.237 | H142: 1.805333333 | I142: 3.351666667 | J142: 1.08 | K142: 2 | L142: 0 | M142: Gmaps | N142: Vähä | O142: Yhdys | P142: Hanhisuontie | Q142: Urjala | R142: 13603 | S142: 1 | T142: 0 | U142: 1 | V142: 5849 | W142: 5849 | X142: 132 | Y142: 20 | Z142: 158 | AA142: 9 | AB142: 50 (25 %), 80 (75 %) | AC142: III (100 %) | AD142: AB (1 %), PAB (3 %), SOP (96 %) | AE142: 0.08471855637 | AF142: Y3 (24 %) | AG142: 0 | AH142: 1 | AI142: ei | AJ142: 0 | AK142: 0.9938451017 | AL142: 2.376 | AM142: 56 | AN142: 2.8 | AO142: 24 | AP142: 0.24 | AQ142: 5.416 | AR142: 1.805333333 | AS142: 6.4 | AT142: 0 | AU142: 0 | AV142: 0 | AW142: 1 | AX142: 1 | AY142: 0.155 | AZ142: 0 | BA142: 0.5 | BB142: 0 | BC142: 1 | BD142: 0 | BE142: 0 | BF142: 0 | BG142: 10.055 | BH142: 3.351666667 | BI142: 0 | BJ142: 0 | BK142: 0 | BL142: 0 | BM142: 0 | BN142: 0 | BO142: 1 | BP142: 0 | BQ142: 0 | BR142: 0 | BS142: 24 | BT142: 0.24 | BU142: 1 | BV142: 0 | BW142: 0 | BX142: 1 | BY142: 3.24 | BZ142: 1.08 | CA142: 18.711 | CB142: 6.237 | CC142: 2 | CE142: 495.5188362 | CF142: 772068 | CI142: 2 | CJ142: https://www.google.com/maps/@61.03067766,23.49833668,3a,75y,90t/data=!3m3!1e1!3m1!2e0 | CK142: 0 | CL142: 0 | CN142: 0 | CO142: 0 | CP142: 0 | CQ142: 1 | CR142: 7 | CS142: 124 | CT142: 0 | CU142: 5287 | CV142: 0 | CW142: 1 | CX142: 0 | CY142: 0 | CZ142: 0 | DA142: 1 | DB142: 0 | DC142: 0 | DD142: 0 | DE142: 264 | DF142: 1 | DH142: 0 | DI142: 0 | DJ142: 0 | DK142: 0 | DL142: 0 | DN142: 0 | DO142: Hanhisuontie | DP142: Urjala | DQ142: 0 | DR142: 0 | DS142: 24 | DT142: 50 (25 %), 80 (75 %) | DU142: III (100 %) | DV142: AB (1 %), PAB (3 %), SOP (96 %) | DW142: Y3 (100 %) | DX142: 5813 | DY142: 0.9938451017
A143: 13759_1 | B143: 29312.33333 | C143: 13759_1_0 | D143: 107 | E143: 107 | F143: 0 | G143: 6.236666667 | H143: 2.706666667 | I143: 2.578333333 | J143: 0.9516666667 | K143: 2 | L143: 0 | M143: Gmaps | N143: Vähä | O143: Yhdys | P143: Rautialantie | Q143: Vesilahti | R143: 13759 | S143: 1 | T143: 0 | U143: 1 | V143: 4700 | W143: 4700 | X143: 240 | Y143: 14 | Z143: 293 | AA143: 1 | AB143: 40 (16 %), 50 (9 %), 60 (76 %) | AC143: III (100 %) | AD143: AB (13 %), PAB (1 %), sora (86 %) | AE143: 0.1246389858 | AF143: Y3 (100 %) | AG143: 1 | AH143: 1 | AI143: kyllä | AJ143: 0 | AK143: 0 | AL143: 4.32 | AM143: 398 | AN143: 3 | AO143: 80 | AP143: 0.8 | AQ143: 8.12 | AR143: 2.706666667 | AS143: 4.48 | AT143: 2 | AU143: 0 | AV143: 0 | AW143: 0 | AX143: 1 | AY143: 0.0725 | AZ143: 0.1825 | BA143: 0 | BB143: 0 | BC143: 0 | BD143: 0 | BE143: 0 | BF143: 0 | BG143: 7.735 | BH143: 2.578333333 | BI143: 1630 | BJ143: 0.3468085106 | BK143: 0.5 | BL143: 0 | BM143: 0 | BN143: 0 | BO143: 0 | BP143: 739 | BQ143: 0.1572340426 | BR143: 0 | BS143: 160 | BT143: 1 | BU143: 0.355 | BV143: 0 | BW143: 0 | BX143: 1 | BY143: 2.855 | BZ143: 0.9516666667 | CA143: 18.71 | CB143: 6.236666667 | CC143: 2 | CE143: 585.8032334 | CF143: 1128000 | CI143: 2 | CJ143: https://www.google.com/maps/@61.28966161,23.60054582,3a,75y,90t/data=!3m3!1e1!3m1!2e0 | CK143: 0 | CL143: 0 | CN143: 1 | CO143: 0 | CP143: 0 | CQ143: 0 | CR143: 3 | CS143: 58 | CT143: 73 | CU143: 0 | CV143: 0 | CW143: 0 | CX143: 0 | CY143: 1630 | CZ143: 0 | DA143: 0 | DB143: 1 | DC143: 0 | DD143: 0 | DE143: 71 | DF143: 0.355 | DH143: 0 | DI143: 0 | DJ143: 0 | DK143: 0 | DL143: 0 | DN143: 739 | DO143: Rautialantie | DP143: Vesilahti | DQ143: 0 | DR143: 1630 | DS143: 160 | DT143: 40 (16 %), 50 (9 %), 60 (76 %) | DU143: III (100 %) | DV143: AB (13 %), PAB (1 %), sora (86 %) | DW143: Y3 (14 %) | DX143: 0 | DY143: 0
A144: 14361_1 | B144: 25460.25 | C144: 14361_1_0 | D144: 108 | E144: 108 | F144: 0 | G144: 6.225 | H144: 2.154666667 | I144: 3.348666667 | J144: 0.7216666667 | K144: 2 | L144: 0 | M144: Gmaps | N144: Vähä | O144: Yhdys | P144: Hauhuuntie | Q144: Virrat | R144: 14361 | S144: 1 | T144: 0 | U144: 1 | V144: 4090 | W144: 4090 | X144: 273 | Y144: 18 | Z144: 365 | AA144: 3 | AB144: 60 (100 %) | AC144: III (100 %) | AD144: PAB (71 %), SOP (29 %) | AE144: 0.5622419345 | AF144: Y3 (100 %) | AG144: 1 | AH144: 2 | AI144: ei | AJ144: 0 | AK144: 0.6009779951 | AL144: 4.914 | AM144: 19 | AN144: 0.95 | AO144: 60 | AP144: 0.6 | AQ144: 6.464 | AR144: 2.154666667 | AS144: 5.76 | AT144: 2 | AU144: 0 | AV144: 0 | AW144: 0 | AX144: 1 | AY144: 0.0375 | AZ144: 0.0875 | BA144: 0.161 | BB144: 0 | BC144: 0 | BD144: 1 | BE144: 0 | BF144: 0 | BG144: 10.046 | BH144: 3.348666667 | BI144: 0 | BJ144: 0 | BK144: 0 | BL144: 0 | BM144: 0 | BN144: 0 | BO144: 0 | BP144: 0 | BQ144: 0 | BR144: 0 | BS144: 54 | BT144: 0.54 | BU144: 0.625 | BV144: 0 | BW144: 0 | BX144: 1 | BY144: 2.165 | BZ144: 0.7216666667 | CA144: 18.675 | CB144: 6.225 | CC144: 2 | CE144: 2299.569512 | CF144: 1116570 | CI144: 2 | CJ144: https://www.google.com/maps/@62.1953473,23.83553293,3a,75y,90t/data=!3m3!1e1!3m1!2e0 | CK144: 0 | CL144: 0 | CN144: 1 | CO144: 0 | CP144: 0 | CQ144: 0 | CR144: 1 | CS144: 30 | CT144: 35 | CU144: 322 | CV144: 0 | CW144: 0 | CX144: 1 | CY144: 0 | CZ144: 0 | DA144: 0 | DB144: 0 | DC144: 0 | DD144: 0 | DE144: 125 | DF144: 0.625 | DH144: 0 | DI144: 0 | DJ144: 0 | DK144: 0 | DL144: 0 | DN144: 0 | DO144: Hauhuuntie | DP144: Virrat | DQ144: 0 | DR144: 0 | DS144: 54 | DT144: 60 (100 %) | DU144: III (100 %) | DV144: PAB (71 %), SOP (29 %) | DW144: Y3 (100 %) | DX144: 2458 | DY144: 0.6009779951
A145: 3254_1 | B145: 42825.05033 | C145: 3254_1_2120 | D145: 109 | E145: 109 | F145: 0 | G145: 6.223666667 | H145: 2.008666667 | I145: 3.333333333 | J145: 0.8816666667 | K145: 2 | L145: 0 | M145: Gmaps | N145: Vähä | O145: Yhdys | P145: Korkeentie | Q145: Kuhmoinen | R145: 3254 | S145: 1 | T145: 2120 | U145: 1 | V145: 9001 | W145: 6881 | X145: 322 | Y145: 25 | Z145: 504 | AA145: 7 | AB145: 80 (100 %) | AC145: II (100 %) | AD145: PAB (100 %) | AE145: 0.5231594021 | AF145: Y3 (38 %) | AG145: 0 | AH145: 0 | AI145: ei | AJ145: 0 | AK145: 1.812527249 | AL145: 5.796 | AM145: 0 | AN145: 0 | AO145: 23 | AP145: 0.23 | AQ145: 6.026 | AR145: 2.008666667 | AS145: 8 | AT145: 2 | AU145: 0 | AV145: 0 | AW145: 0 | AX145: 0 | AY145: 0 | AZ145: 0 | BA145: 0 | BB145: 0 | BC145: 0 | BD145: 0 | BE145: 0 | BF145: 0 | BG145: 10 | BH145: 3.333333333 | BI145: 0 | BJ145: 0 | BK145: 0 | BL145: 0 | BM145: 0 | BN145: 0 | BO145: 0 | BP145: 0 | BQ145: 0 | BR145: 0 | BS145: 0 | BT145: 0 | BU145: 1.645 | BV145: 0 | BW145: 0 | BX145: 1 | BY145: 2.645 | BZ145: 0.8816666667 | CA145: 18.671 | CB145: 6.223666667 | CC145: 2 | CE145: 3599.859846 | CF145: 2215682 | CI145: 2 | CJ145: https://www.google.com/maps/@61.49984828,24.92721104,3a,75y,90t/data=!3m3!1e1!3m1!2e0 | CK145: 0 | CL145: 0 | CN145: 1 | CO145: 0 | CP145: 0 | CQ145: 0 | CR145: 0 | CS145: 0 | CT145: 0 | CU145: 0 | CV145: 0 | CW145: 0 | CX145: 0 | CY145: 0 | CZ145: 0 | DA145: 0 | DB145: 0 | DC145: 0.5 | DD145: 0.5 | DE145: 129 | DF145: 0.645 | DH145: 0 | DI145: 0 | DJ145: 0 | DK145: 0 | DL145: 0 | DN145: 0 | DO145: Korkeentie | DP145: Kuhmoinen | DQ145: 0 | DR145: 0 | DS145: 0 | DT145: 80 (100 %) | DU145: II (100 %) | DV145: PAB (100 %) | DW145: Y3 (100 %) | DX145: 12472 | DY145: 1.812527249
A146: 14195_1 | B146: 16572.71067 | C146: 14195_1_2782 | D146: 110 | E146: 110 | F146: 0 | G146: 6.209333333 | H146: 2.662666667 | I146: 3 | J146: 0.5466666667 | K146: 2 | L146: 0 | M146: Gmaps | N146: Vähä | O146: Yhdys | P146: Eerolansuorantie | Q146: Tampere | R146: 14195 | S146: 1 | T146: 2782 | U146: 1 | V146: 5451 | W146: 2669 | X146: 241 | Y146: 38 | Z146: 294 | AA146: 1 | AB146: 50 (8 %), 60 (92 %) | AC146: III (100 %) | AD146: AB (4 %), PAB (96 %) | AE146: 0.6649094598 | AF146: Y3 (100 %) | AG146: 0 | AH146: 0 | AI146: ei | AJ146: 0 | AK146: 0 | AL146: 4.338 | AM146: 604 | AN146: 3 | AO146: 65 | AP146: 0.65 | AQ146: 7.988 | AR146: 2.662666667 | AS146: 8 | AT146: 0 | AU146: 0 | AV146: 0 | AW146: 0 | AX146: 0 | AY146: 0 | AZ146: 0 | BA146: 0 | BB146: 0 | BC146: 0 | BD146: 0 | BE146: 1 | BF146: 0 | BG146: 9 | BH146: 3 | BI146: 0 | BJ146: 0 | BK146: 0 | BL146: 0 | BM146: 0 | BN146: 0 | BO146: 0 | BP146: 0 | BQ146: 0 | BR146: 0 | BS146: 46 | BT146: 0.46 | BU146: 0.18 | BV146: 0 | BW146: 0 | BX146: 1 | BY146: 1.64 | BZ146: 0.5466666667 | CA146: 18.628 | CB146: 6.209333333 | CC146: 2 | CE146: 1774.643348 | CF146: 643229 | CI146: 2 | CJ146: https://www.google.com/maps/@61.57925552,23.87021883,3a,75y,90t/data=!3m3!1e1!3m1!2e0 | CK146: 0 | CL146: 1 | CN146: 0 | CO146: 0 | CP146: 0 | CQ146: 0 | CR146: 0 | CS146: 0 | CT146: 0 | CU146: 0 | CV146: 0 | CW146: 0 | CX146: 0 | CY146: 0 | CZ146: 0 | DA146: 0 | DB146: 0 | DC146: 0 | DD146: 0 | DE146: 36 | DF146: 0.18 | DH146: 0 | DI146: 0 | DJ146: 0 | DK146: 0 | DL146: 0 | DN146: 0 | DO146: Eerolansuorantie | DP146: Tampere | DQ146: 0 | DR146: 0 | DS146: 46 | DT146: 50 (8 %), 60 (92 %) | DU146: III (100 %) | DV146: AB (4 %), PAB (96 %) | DW146: Y3 (100 %) | DX146: 0 | DY146: 0
A147: 12981_1 | B147: 34757.33333 | C147: 12981_1_0 | D147: 111 | E147: 111 | F147: 0 | G147: 6.206666667 | H147: 3.313333333 | I147: 1.493333333 | J147: 1.4 | K147: 2 | L147: 0 | M147: Gmaps | N147: Vähä | O147: Yhdys | P147: Riippiläntie | Q147: Sastamala | R147: 12981 | S147: 1 | T147: 0 | U147: 1 | V147: 5600 | W147: 5600 | X147: 445 | Y147: 14 | Z147: 440 | AA147: 1 | AB147: 30 (2 %), 40 (43 %), 50 (1 %), 60 (54 %) | AC147: Ic (36 %), II (64 %) | AD147: AB (100 %) | AE147: 0.05373530649 | AF147: Y3 (54 %) | AG147: 0 | AH147: 1 | AI147: ei | AJ147: H-2193 | AK147: 0 | AL147: 8.01 | AM147: 13 | AN147: 0.65 | AO147: 128 | AP147: 1.28 | AQ147: 9.94 | AR147: 3.313333333 | AS147: 4.48 | AT147: 0 | AU147: 0 | AV147: 0 | AW147: 0 | AX147: 0 | AY147: 0 | AZ147: 0 | BA147: 0 | BB147: 0 | BC147: 0 | BD147: 0 | BE147: 0 | BF147: 0 | BG147: 4.48 | BH147: 1.493333333 | BI147: 4031 | BJ147: 0.7198214286 | BK147: 1 | BL147: 0 | BM147: 0 | BN147: 0 | BO147: 0 | BP147: 2533 | BQ147: 0.4523214286 | BR147: 0 | BS147: 110 | BT147: 1 | BU147: 0.2 | BV147: 0 | BW147: 1 | BX147: 1 | BY147: 4.2 | BZ147: 1.4 | CA147: 18.62 | CB147: 6.206666667 | CC147: 2 | CE147: 300.9177163 | CF147: 2492000 | CI147: 2 | CJ147: https://www.google.com/maps/@61.40596843,22.98801955,3a,75y,90t/data=!3m3!1e1!3m1!2e0 | CK147: 0 | CL147: 0 | CN147: 0 | CO147: 0 | CP147: 0 | CQ147: 0 | CR147: 0 | CS147: 0 | CT147: 0 | CU147: 0 | CV147: 0 | CW147: 0 | CX147: 0 | CY147: 4031 | CZ147: 0 | DA147: 0 | DB147: 1 | DC147: 0 | DD147: 0 | DE147: 40 | DF147: 0.2 | DH147: 0 | DI147: 1 | DJ147: 0 | DK147: 0 | DL147: 0 | DN147: 2533 | DO147: Riippiläntie | DP147: Sastamala | DQ147: H-2193 | DR147: 4031 | DS147: 110 | DT147: 30 (2 %), 40 (43 %), 50 (1 %), 60 (54 %) | DU147: Ic (36 %), II (64 %) | DV147: AB (100 %) | DW147: Y3 (100 %) | DX147: 0 | DY147: 0
A148: 2492_1 | B148: 11546.62667 | C148: 2492_1_0 | D148: 112 | E148: 112 | F148: 0 | G148: 6.174666667 | H148: 2.528666667 | I148: 3.149333333 | J148: 0.4966666667 | K148: 2 | L148: 0 | M148: Gmaps | N148: Vähä | O148: Yhdys | P148: Putajantie | Q148: Sastamala | R148: 2492 | S148: 1 | T148: 0 | U148: 1 | V148: 1870 | W148: 1870 | X148: 317 | Y148: 20 | Z148: 373 | AA148: 6 | AB148: 80 (100 %) | AC148: III (100 %) | AD148: PAB (100 %) | AE148: 0.214035541 | AF148: Y3 (100 %) | AG148: 1 | AH148: 2 | AI148: ei | AJ148: 0 | AK148: 0.3957219251 | AL148: 5.706 | AM148: 14 | AN148: 0.7 | AO148: 118 | AP148: 1.18 | AQ148: 7.586 | AR148: 2.528666667 | AS148: 6.4 | AT148: 0 | AU148: 0 | AV148: 0 | AW148: 1 | AX148: 1 | AY148: 0.03 | AZ148: 0.0175 | BA148: 0 | BB148: 0.0005 | BC148: 0 | BD148: 1 | BE148: 0 | BF148: 0 | BG148: 9.448 | BH148: 3.149333333 | BI148: 0 | BJ148: 0 | BK148: 0 | BL148: 0 | BM148: 0 | BN148: 0 | BO148: 0 | BP148: 0 | BQ148: 0 | BR148: 0 | BS148: 34 | BT148: 0.34 | BU148: 0.15 | BV148: 0 | BW148: 0 | BX148: 1 | BY148: 1.49 | BZ148: 0.4966666667 | CA148: 18.524 | CB148: 6.174666667 | CC148: 2 | CE148: 400.2464617 | CF148: 592790 | CI148: 2 | CJ148: https://www.google.com/maps/@61.48844223,22.69808285,3a,75y,90t/data=!3m3!1e1!3m1!2e0 | CK148: 0 | CL148: 0 | CN148: 0 | CO148: 0 | CP148: 0 | CQ148: 1 | CR148: 2 | CS148: 24 | CT148: 7 | CU148: 0 | CV148: 10 | CW148: 0 | CX148: 1 | CY148: 0 | CZ148: 0 | DA148: 0 | DB148: 0 | DC148: 0 | DD148: 0 | DE148: 30 | DF148: 0.15 | DH148: 0 | DI148: 0 | DJ148: 0 | DK148: 0 | DL148: 0 | DN148: 0 | DO148: Putajantie | DP148: Sastamala | DQ148: 0 | DR148: 0 | DS148: 34 | DT148: 80 (100 %) | DU148: III (100 %) | DV148: PAB (100 %) | DW148: Y3 (100 %) | DX148: 740 | DY148: 0.3957219251
A149: 13572_1 | B149: 5906.481 | C149: 13572_1_0 | D149: 113 | E149: 113 | F149: 0 | G149: 6.159 | H149: 2.680666667 | I149: 2.8 | J149: 0.6783333333 | K149: 2 | L149: 0 | M149: Gmaps | N149: Vähä | O149: Yhdys | P149: Kreiviläntie | Q149: Urjala, Forssa | R149: 13572 | S149: 1 | T149: 0 | U149: 1 | V149: 959 | W149: 959 | X149: 219 | Y149: 20 | Z149: 267 | AA149: 8 | AB149: 60 (100 %) | AC149: III (100 %) | AD149: AB (100 %) | AE149: 0.1040592399 | AF149: Y3 (100 %) | AG149: 0 | AH149: 0 | AI149: ei | AJ149: H-1269 | AK149: 0.8717413973 | AL149: 3.942 | AM149: 56 | AN149: 2.8 | AO149: 130 | AP149: 1.3 | AQ149: 8.042 | AR149: 2.680666667 | AS149: 6.4 | AT149: 2 | AU149: 0 | AV149: 0 | AW149: 0 | AX149: 0 | AY149: 0 | AZ149: 0 | BA149: 0 | BB149: 0 | BC149: 0 | BD149: 0 | BE149: 0 | BF149: 0 | BG149: 8.4 | BH149: 2.8 | BI149: 0 | BJ149: 0 | BK149: 0 | BL149: 0 | BM149: 0 | BN149: 0 | BO149: 1 | BP149: 0 | BQ149: 0 | BR149: 0 | BS149: 0 | BT149: 0 | BU149: 0.035 | BV149: 0 | BW149: 0 | BX149: 1 | BY149: 2.035 | BZ149: 0.6783333333 | CA149: 18.477 | CB149: 6.159 | CC149: 2 | CE149: 99.79281109 | CF149: 210021 | CI149: 2 | CJ149: https://www.google.com/maps/@60.98754812,23.45343131,3a,75y,90t/data=!3m3!1e1!3m1!2e0 | CK149: 0 | CL149: 0 | CN149: 1 | CO149: 0 | CP149: 0 | CQ149: 0 | CR149: 0 | CS149: 0 | CT149: 0 | CU149: 0 | CV149: 0 | CW149: 0 | CX149: 0 | CY149: 0 | CZ149: 0 | DA149: 1 | DB149: 0 | DC149: 0 | DD149: 0 | DE149: 7 | DF149: 0.035 | DH149: 0 | DI149: 0 | DJ149: 0 | DK149: 0 | DL149: 0 | DN149: 0 | DO149: Kreiviläntie | DP149: Urjala, Forssa | DQ149: H-1269 | DR149: 0 | DS149: 0 | DT149: 60 (100 %) | DU149: III (100 %) | DV149: AB (100 %) | DW149: Y3 (100 %) | DX149: 836 | DY149: 0.8717413973
A150: 14207_1 | B150: 34665.05067 | C150: 14207_1_2060 | D150: 114 | E150: 114 | F150: 0 | G150: 6.138666667 | H150: 3.465333333 | I150: 1.86 | J150: 0.8133333333 | K150: 2 | L150: 0 | M150: Gmaps | N150: Vähä | O150: Yhdys | P150: Siitamantie | Q150: Kangasala | R150: 14207 | S150: 1 | T150: 2060 | U150: 1 | V150: 7707 | W150: 5647 | X150: 397 | Y150: 13 | Z150: 556 | AA150: 1 | AB150: 30 (7 %), 60 (45 %), 80 (48 %) | AC150: II (100 %) | AD150: PAB (39 %), sora (61 %) | AE150: 0.9345235866 | AF150: Y3 (100 %) | AG150: 1 | AH150: 1 | AI150: ei | AJ150: 0 | AK150: 0.06410483443 | AL150: 7.146 | AM150: 48 | AN150: 2.4 | AO150: 85 | AP150: 0.85 | AQ150: 10.396 | AR150: 3.465333333 | AS150: 4.16 | AT150: 0 | AU150: 0 | AV150: 0 | AW150: 0 | AX150: 1 | AY150: 0 | AZ150: 0.42 | BA150: 0 | BB150: 0 | BC150: 0 | BD150: 0 | BE150: 0 | BF150: 0 | BG150: 5.58 | BH150: 1.86 | BI150: 0 | BJ150: 0 | BK150: 0 | BL150: 0 | BM150: 0 | BN150: 0 | BO150: 0 | BP150: 686 | BQ150: 0.1214804321 | BR150: 0 | BS150: 75 | BT150: 0.75 | BU150: 0.69 | BV150: 0 | BW150: 0 | BX150: 1 | BY150: 2.44 | BZ150: 0.8133333333 | CA150: 18.416 | CB150: 6.138666667 | CC150: 2 | CE150: 5277.254693 | CF150: 2241859 | CI150: 2 | CJ150: https://www.google.com/maps/@61.5417479,24.08631545,3a,75y,90t/data=!3m3!1e1!3m1!2e0 | CK150: 0 | CL150: 0 | CN150: 0 | CO150: 0 | CP150: 0 | CQ150: 0 | CR150: 1 | CS150: 0 | CT150: 168 | CU150: 0 | CV150: 0 | CW150: 0 | CX150: 0 | CY150: 0 | CZ150: 0 | DA150: 0 | DB150: 1 | DC150: 0.5 | DD150: 0 | DE150: 38 | DF150: 0.19 | DH150: 0 | DI150: 0 | DJ150: 0 | DK150: 0 | DL150: 0 | DN150: 686 | DO150: Siitamantie | DP150: Kangasala | DQ150: 0 | DR150: 0 | DS150: 75 | DT150: 30 (7 %), 60 (45 %), 80 (48 %) | DU150: II (100 %) | DV150: PAB (39 %), sora (61 %) | DW150: Y3 (39 %) | DX150: 362 | DY150: 0.06410483443
A151: 13791_1 | B151: 59704.414 | C151: 13791_1_0 | D151: 115 | E151: 115 | F151: 0 | G151: 6.10225 | H151: 2.326 | I151: 3.37125 | J151: 0.405 | K151: 2 | L151: 0 | M151: Gmaps | N151: Vähä | O151: Yhdys | P151: Pinsiöntie, Porin yhdystie | Q151: Hämeenkyrö, Nokia | R151: 13791 | S151: 1 | T151: 0 | U151: 1 | V151: 9784 | W151: 9784 | X151: 191 | Y151: 19 | Z151: 210 | AA151: 3 | AB151: 40 (8 %), 50 (10 %), 60 (38 %), 80 (44 %) | AC151: III (100 %) | AD151: AB (41 %), PAB (8 %), sora (51 %) | AE151: 0.1027279888 | AF151: Y3 (100 %) | AG151: 0 | AH151: 4 | AI151: kyllä | AJ151: 0 | AK151: 0.2674775143 | AL151: 3.438 | AM151: 30 | AN151: 1.5 | AO151: 204 | AP151: 2.04 | AQ151: 6.978 | AR151: 2.326 | AS151: 6.08 | AT151: 0 | AU151: 0 | AV151: 1 | AW151: 0 | AX151: 1 | AY151: 0.01625 | AZ151: 0.0175 | BA151: 0 | BB151: 0 | BC151: 0 | BD151: 1 | BE151: 0 | BF151: 1 | BG151: 10.11375 | BH151: 3.37125 | BI151: 0 | BJ151: 0 | BK151: 0 | BL151: 0 | BM151: 0 | BN151: 0 | BO151: 0 | BP151: 0 | BQ151: 0 | BR151: 0 | BS151: 18 | BT151: 0.18 | BU151: 0.035 | BV151: 0 | BW151: 0 | BX151: 1 | BY151: 1.215 | BZ151: 0.405 | CA151: 18.30675 | CB151: 6.10225 | CC151: 2 | CE151: 1005.090643 | CF151: 1868744 | CI151: 2 | CJ151: https://www.google.com/maps/@61.50058563,23.43602848,3a,75y,90t/data=!3m3!1e1!3m1!2e0 | CK151: 0 | CL151: 0 | CN151: 0 | CO151: 0 | CP151: 1 | CQ151: 0 | CR151: 1 | CS151: 13 | CT151: 7 | CU151: 0 | CV151: 0 | CW151: 0 | CX151: 2 | CY151: 0 | CZ151: 0 | DA151: 0 | DB151: 0 | DC151: 0 | DD151: 0 | DE151: 7 | DF151: 0.035 | DH151: 0 | DI151: 0 | DJ151: 0 | DK151: 1 | DL151: 0 | DN151: 0 | DO151: Pinsiöntie, Porin yhdystie | DP151: Hämeenkyrö, Nokia | DQ151: 0 | DR151: 0 | DS151: 18 | DT151: 40 (8 %), 50 (10 %), 60 (38 %), 80 (44 %) | DU151: III (100 %) | DV151: AB (41 %), PAB (8 %), sora (51 %) | DW151: Y3 (49 %) | DX151: 2617 | DY151: 0.2674775143
A152: 2981_3 | B152: 38318.00083 | C152: 2981_3_0 | D152: 116 | E152: 116 | F152: 0 | G152: 6.072583333 | H152: 1.881333333 | I152: 3.449583333 | J152: 0.7416666667 | K152: 2 | L152: 0 | M152: Gmaps | N152: Vähä | O152: Yhdys | P152: Halkivahantie | Q152: Urjala | R152: 2981 | S152: 3 | T152: 0 | U152: 3 | V152: 6310 | W152: 6310 | X152: 278 | Y152: 26 | Z152: 299 | AA152: 8 | AB152: 80 (100 %) | AC152: III (100 %) | AD152: AB (1 %), PAB (99 %) | AE152: 0.03215298788 | AF152: Y3 (47 %) | AG152: 0 | AH152: 0 | AI152: ei | AJ152: 0 | AK152: 2.493660856 | AL152: 5.004 | AM152: 0 | AN152: 0 | AO152: 64 | AP152: 0.64 | AQ152: 5.644 | AR152: 1.881333333 | AS152: 8 | AT152: 0 | AU152: 0 | AV152: 1 | AW152: 0 | AX152: 1 | AY152: 0.34875 | AZ152: 0 | BA152: 0 | BB152: 0 | BC152: 0 | BD152: 0 | BE152: 0 | BF152: 0 | BG152: 10.34875 | BH152: 3.449583333 | BI152: 0 | BJ152: 0 | BK152: 0 | BL152: 0 | BM152: 0 | BN152: 0 | BO152: 0 | BP152: 0 | BQ152: 0 | BR152: 0 | BS152: 71 | BT152: 0.71 | BU152: 0.515 | BV152: 0 | BW152: 0 | BX152: 1 | BY152: 2.225 | BZ152: 0.7416666667 | CA152: 18.21775 | CB152: 6.072583333 | CC152: 2 | CE152: 202.8853535 | CF152: 1754180 | CI152: 2 | CJ152: https://www.google.com/maps/@61.17034363,23.39848518,3a,75y,90t/data=!3m3!1e1!3m1!2e0 | CK152: 0 | CL152: 0 | CN152: 0 | CO152: 0 | CP152: 1 | CQ152: 0 | CR152: 1 | CS152: 279 | CT152: 0 | CU152: 0 | CV152: 0 | CW152: 0 | CX152: 0 | CY152: 0 | CZ152: 0 | DA152: 0 | DB152: 0 | DC152: 0 | DD152: 0 | DE152: 103 | DF152: 0.515 | DH152: 0 | DI152: 0 | DJ152: 0 | DK152: 0 | DL152: 0 | DN152: 0 | DO152: Halkivahantie | DP152: Urjala | DQ152: 0 | DR152: 0 | DS152: 71 | DT152: 80 (100 %) | DU152: III (100 %) | DV152: AB (1 %), PAB (99 %) | DW152: Y3 (100 %) | DX152: 15735 | DY152: 2.493660856
A153: 3382_3 | B153: 43922.91667 | C153: 3382_3_0 | D153: 117 | E153: 117 | F153: 0 | G153: 6.041666667 | H153: 2.09 | I153: 2.74 | J153: 1.211666667 | K153: 2 | L153: 0 | M153: Gmaps | N153: Vähä | O153: Yhdys | P153: Muroleen kanavantie | Q153: Ruovesi, Ylöjärvi | R153: 3382 | S153: 3 | T153: 0 | U153: 3 | V153: 7270 | W153: 7270 | X153: 325 | Y153: 21 | Z153: 606 | AA153: 3 | AB153: 30 (2 %), 40 (2 %), 60 (2 %), 80 (96 %) | AC153: II (100 %) | AD153: AB (0 %), PAB (100 %) | AE153: 0.04085394019 | AF153: Y3 (100 %) | AG153: 1 | AH153: 2 | AI153: ei | AJ153: 0 | AK153: 2.772764787 | AL153: 5.85 | AM153: 0 | AN153: 0 | AO153: 42 | AP153: 0.42 | AQ153: 6.27 | AR153: 2.09 | AS153: 6.72 | AT153: 0 | AU153: 0 | AV153: 0 | AW153: 0 | AX153: 1 | AY153: 0.5 | AZ153: 0 | BA153: 0 | BB153: 0 | BC153: 0 | BD153: 0 | BE153: 0 | BF153: 0 | BG153: 8.22 | BH153: 2.74 | BI153: 0 | BJ153: 0 | BK153: 0 | BL153: 0 | BM153: 0 | BN153: 0 | BO153: 0 | BP153: 0 | BQ153: 0 | BR153: 0 | BS153: 24 | BT153: 0.24 | BU153: 1.395 | BV153: 0 | BW153: 1 | BX153: 1 | BY153: 3.635 | BZ153: 1.211666667 | CA153: 18.125 | CB153: 6.041666667 | CC153: 2 | CE153: 297.0081452 | CF153: 2362750 | CI153: 2 | CJ153: https://www.google.com/maps/@61.85542502,23.90702377,3a,75y,90t/data=!3m3!1e1!3m1!2e0 | CK153: 0 | CL153: 0 | CN153: 0 | CO153: 0 | CP153: 0 | CQ153: 0 | CR153: 1 | CS153: 606 | CT153: 0 | CU153: 0 | CV153: 0 | CW153: 0 | CX153: 0 | CY153: 0 | CZ153: 0 | DA153: 0 | DB153: 0 | DC153: 0.5 | DD153: 0.5 | DE153: 79 | DF153: 0.395 | DH153: 0 | DI153: 1 | DJ153: 0 | DK153: 0 | DL153: 0 | DN153: 0 | DO153: Muroleen kanavantie | DP153: Ruovesi, Ylöjärvi | DQ153: 0 | DR153: 0 | DS153: 24 | DT153: 30 (2 %), 40 (2 %), 60 (2 %), 80 (96 %) | DU153: II (100 %) | DV153: AB (0 %), PAB (100 %) | DW153: Y3 (100 %) | DX153: 20158 | DY153: 2.772764787
A154: 12829_5 | B154: 18930.90618 | C154: 12829_5_3963 | D154: 118 | E154: 118 | F154: 0 | G154: 6.034716667 | H154: 1.748 | I154: 3.846716667 | J154: 0.44 | K154: 2 | L154: 0 | M154: Gmaps | N154: Vähä | O154: Yhdys | P154: Kiikan-Illon tie | Q154: Sastamala | R154: 12829 | S154: 5 | T154: 3963 | U154: 5 | V154: 7100 | W154: 3137 | X154: 243 | Y154: 29 | Z154: 267 | AA154: 2 | AB154: 50 (74 %), 80 (26 %) | AC154: III (100 %) | AD154: PAB (2 %), sora (98 %) | AE154: 0 | AF154: Y3 (100 %) | AG154: 0 | AH154: 0 | AI154: ei | AJ154: 0 | AK154: 0.02454574434 | AL154: 4.374 | AM154: 8 | AN154: 0.4 | AO154: 47 | AP154: 0.47 | AQ154: 5.244 | AR154: 1.748 | AS154: 8 | AT154: 2 | AU154: 0 | AV154: 0 | AW154: 0 | AX154: 1 | AY154: 0.04375 | AZ154: 0 | BA154: 0 | BB154: 0.4964 | BC154: 0 | BD154: 0 | BE154: 0 | BF154: 0 | BG154: 11.54015 | BH154: 3.846716667 | BI154: 0 | BJ154: 0 | BK154: 0 | BL154: 0 | BM154: 0 | BN154: 0 | BO154: 0 | BP154: 0 | BQ154: 0 | BR154: 0 | BS154: 23 | BT154: 0.23 | BU154: 0.09 | BV154: 0 | BW154: 0 | BX154: 1 | BY154: 1.32 | BZ154: 0.44 | CA154: 18.10415 | CB154: 6.034716667 | CC154: 2 | CE154: 0 | CF154: 762291 | CI154: 2 | CJ154: https://www.google.com/maps/@61.21294307,22.95613148,3a,75y,90t/data=!3m3!1e1!3m1!2e0 | CK154: 0 | CL154: 0 | CN154: 1 | CO154: 0 | CP154: 0 | CQ154: 0 | CR154: 3 | CS154: 35 | CT154: 0 | CU154: 0 | CV154: 9928 | CW154: 0 | CX154: 0 | CY154: 0 | CZ154: 0 | DA154: 0 | DB154: 0 | DC154: 0 | DD154: 0 | DE154: 18 | DF154: 0.09 | DH154: 0 | DI154: 0 | DJ154: 0 | DK154: 0 | DL154: 0 | DN154: 0 | DO154: Kiikan-Illon tie | DP154: Sastamala | DQ154: 0 | DR154: 0 | DS154: 23 | DT154: 50 (74 %), 80 (26 %) | DU154: III (100 %) | DV154: PAB (2 %), sora (98 %) | DW154: Y3 (2 %) | DX154: 77 | DY154: 0.02454574434
A155: 2621_2 | B155: 15744.673 | C155: 2621_2_0 | D155: 119 | E155: 119 | F155: 0 | G155: 6.004833333 | H155: 2.460666667 | I155: 2.819166667 | J155: 0.725 | K155: 2 | L155: 0 | M155: Gmaps | N155: Vähä | O155: Yhdys | P155: Trossitie | Q155: Hämeenkyrö | R155: 2621 | S155: 2 | T155: 0 | U155: 2 | V155: 2622 | W155: 2622 | X155: 344 | Y155: 20 | Z155: 438 | AA155: 1 | AB155: 40 (34 %), 50 (6 %), 60 (60 %) | AC155: III (100 %) | AD155: PAB (100 %) | AE155: 0.4195676484 | AF155: Y3 (100 %) | AG155: 0 | AH155: 1 | AI155: kyllä | AJ155: 0 | AK155: 0 | AL155: 6.192 | AM155: 6 | AN155: 0.3 | AO155: 89 | AP155: 0.89 | AQ155: 7.382 | AR155: 2.460666667 | AS155: 6.4 | AT155: 2 | AU155: 0 | AV155: 0 | AW155: 0 | AX155: 0 | AY155: 0.0575 | AZ155: 0 | BA155: 0 | BB155: 0 | BC155: 0 | BD155: 0 | BE155: 0 | BF155: 0 | BG155: 8.4575 | BH155: 2.819166667 | BI155: 2615 | BJ155: 0.9973302822 | BK155: 1 | BL155: 0 | BM155: 0 | BN155: 0 | BO155: 0 | BP155: 0 | BQ155: 0 | BR155: 0 | BS155: 15 | BT155: 0.15 | BU155: 0.025 | BV155: 0 | BW155: 0 | BX155: 1 | BY155: 2.175 | BZ155: 0.725 | CA155: 18.0145 | CB155: 6.004833333 | CC155: 2 | CE155: 1100.106374 | CF155: 901968 | CI155: 2 | CJ155: https://www.google.com/maps/@61.59694829,23.18240561,3a,75y,90t/data=!3m3!1e1!3m1!2e0 | CK155: 0 | CL155: 0 | CN155: 1 | CO155: 0 | CP155: 0 | CQ155: 0 | CR155: 0 | CS155: 46 | CT155: 0 | CU155: 0 | CV155: 0 | CW155: 0 | CX155: 0 | CY155: 2615 | CZ155: 0 | DA155: 0 | DB155: 0 | DC155: 0 | DD155: 0 | DE155: 5 | DF155: 0.025 | DH155: 0 | DI155: 0 | DJ155: 0 | DK155: 0 | DL155: 0 | DN155: 0 | DO155: Trossitie | DP155: Hämeenkyrö | DQ155: 0 | DR155: 2615 | DS155: 15 | DT155: 40 (34 %), 50 (6 %), 60 (60 %) | DU155: III (100 %) | DV155: PAB (100 %) | DW155: Y3 (100 %) | DX155: 0 | DY155: 0
A156: 16981_1 | B156: 53654.63675 | C156: 16981_1_0 | D156: 120 | E156: 120 | F156: 0 | G156: 5.97025 | H156: 1.900666667 | I156: 3.069583333 | J156: 1 | K156: 2 | L156: 0 | M156: Gmaps | N156: Vähä | O156: Yhdys | P156: Ruolahdentie | Q156: Kuhmoinen | R156: 16981 | S156: 1 | T156: 0 | U156: 1 | V156: 8987 | W156: 8987 | X156: 254 | Y156: 19 | Z156: 363 | AA156: 3 | AB156: 60 (4 %), 80 (96 %) | AC156: III (100 %) | AD156: PAB (100 %) | AE156: 0.4339419133 | AF156: Y3 (100 %) | AG156: 0 | AH156: 1 | AI156: ei | AJ156: 0 | AK156: 2.092244353 | AL156: 4.572 | AM156: 17 | AN156: 0.85 | AO156: 28 | AP156: 0.28 | AQ156: 5.702 | AR156: 1.900666667 | AS156: 6.08 | AT156: 2 | AU156: 0 | AV156: 0 | AW156: 0 | AX156: 1 | AY156: 0.12875 | AZ156: 0 | BA156: 0 | BB156: 0 | BC156: 0 | BD156: 0 | BE156: 0 | BF156: 0 | BG156: 9.20875 | BH156: 3.069583333 | BI156: 0 | BJ156: 0 | BK156: 0 | BL156: 0 | BM156: 0 | BN156: 0 | BO156: 0 | BP156: 0 | BQ156: 0 | BR156: 0 | BS156: 0 | BT156: 0 | BU156: 1 | BV156: 0 | BW156: 1 | BX156: 1 | BY156: 3 | BZ156: 1 | CA156: 17.91075 | CB156: 5.97025 | CC156: 2 | CE156: 3899.835975 | CF156: 2282698 | CI156: 2 | CJ156: https://www.google.com/maps/@61.58638733,25.21266423,3a,75y,90t/data=!3m3!1e1!3m1!2e0 | CK156: 0 | CL156: 0 | CN156: 1 | CO156: 0 | CP156: 0 | CQ156: 0 | CR156: 2 | CS156: 103 | CT156: 0 | CU156: 0 | CV156: 0 | CW156: 0 | CX156: 0 | CY156: 0 | CZ156: 0 | DA156: 0 | DB156: 0 | DC156: 0 | DD156: 0 | DE156: 244 | DF156: 1 | DH156: 0 | DI156: 1 | DJ156: 0 | DK156: 0 | DL156: 0 | DN156: 0 | DO156: Ruolahdentie | DP156: Kuhmoinen | DQ156: 0 | DR156: 0 | DS156: 0 | DT156: 60 (4 %), 80 (96 %) | DU156: III (100 %) | DV156: PAB (100 %) | DW156: Y3 (100 %) | DX156: 18803 | DY156: 2.092244353
A157: 3280_5 | B157: 8711.576667 | C157: 3280_5_0 | D157: 121 | E157: 121 | F157: 0 | G157: 5.966833333 | H157: 1.172666667 | I157: 4.004166667 | J157: 0.79 | K157: 2 | L157: 0 | M157: Gmaps | N157: Vähä | O157: Yhdys | P157: Vinkiäntie | Q157: Orivesi | R157: 3280 | S157: 5 | T157: 0 | U157: 5 | V157: 1460 | W157: 1460 | X157: 176 | Y157: 28 | Z157: 211 | AA157: 13 | AB157: 50 (22 %), 80 (78 %) | AC157: III (100 %) | AD157: PAB (100 %) | AE157: 0.8630311806 | AF157: Y3 (100 %) | AG157: 0 | AH157: 0 | AI157: ei | AJ157: 0 | AK157: 6.114383562 | AL157: 3.168 | AM157: 0 | AN157: 0 | AO157: 35 | AP157: 0.35 | AQ157: 3.518 | AR157: 1.172666667 | AS157: 8 | AT157: 2 | AU157: 0 | AV157: 0 | AW157: 0 | AX157: 1 | AY157: 0.0125 | AZ157: 0 | BA157: 0 | BB157: 0 | BC157: 0 | BD157: 0 | BE157: 1 | BF157: 0 | BG157: 12.0125 | BH157: 4.004166667 | BI157: 0 | BJ157: 0 | BK157: 0 | BL157: 0 | BM157: 0 | BN157: 0 | BO157: 0 | BP157: 0 | BQ157: 0 | BR157: 0 | BS157: 37 | BT157: 0.37 | BU157: 1 | BV157: 0 | BW157: 0 | BX157: 1 | BY157: 2.37 | BZ157: 0.79 | CA157: 17.9005 | CB157: 5.966833333 | CC157: 2 | CE157: 1260.025524 | CF157: 256960 | CI157: 2 | CJ157: https://www.google.com/maps/@61.64792826,24.75498381,3a,75y,90t/data=!3m3!1e1!3m1!2e0 | CK157: 0 | CL157: 1 | CN157: 1 | CO157: 0 | CP157: 0 | CQ157: 0 | CR157: 2 | CS157: 10 | CT157: 0 | CU157: 0 | CV157: 0 | CW157: 0 | CX157: 0 | CY157: 0 | CZ157: 0 | DA157: 0 | DB157: 0 | DC157: 0 | DD157: 0 | DE157: 269 | DF157: 1 | DH157: 0 | DI157: 0 | DJ157: 0 | DK157: 0 | DL157: 0 | DN157: 0 | DO157: Vinkiäntie | DP157: Orivesi | DQ157: 0 | DR157: 0 | DS157: 37 | DT157: 50 (22 %), 80 (78 %) | DU157: III (100 %) | DV157: PAB (100 %) | DW157: Y3 (100 %) | DX157: 8927 | DY157: 6.114383562
A158: 2986_2 | B158: 28211.3435 | C158: 2986_2_1776 | D158: 122 | E158: 122 | F158: 0 | G158: 5.94925 | H158: 2.398 | I158: 2.967916667 | J158: 0.5833333333 | K158: 2 | L158: 0 | M158: Gmaps | N158: Vähä | O158: Yhdys | P158: Vesilahdentie | Q158: Punkalaidun | R158: 2986 | S158: 2 | T158: 1776 | U158: 2 | V158: 6518 | W158: 4742 | X158: 353 | Y158: 18 | Z158: 392 | AA158: 4 | AB158: 50 (20 %), 80 (80 %) | AC158: II (100 %) | AD158: AB (100 %) | AE158: 0 | AF158: Y3 (100 %) | AG158: 0 | AH158: 1 | AI158: ei | AJ158: 0 | AK158: 1.760649515 | AL158: 6.354 | AM158: 0 | AN158: 0 | AO158: 84 | AP158: 0.84 | AQ158: 7.194 | AR158: 2.398 | AS158: 5.76 | AT158: 2 | AU158: 0 | AV158: 0 | AW158: 0 | AX158: 1 | AY158: 0.14375 | AZ158: 0 | BA158: 0 | BB158: 0 | BC158: 0 | BD158: 0 | BE158: 0 | BF158: 0 | BG158: 8.90375 | BH158: 2.967916667 | BI158: 898 | BJ158: 0.1893715732 | BK158: 0.5 | BL158: 0 | BM158: 0 | BN158: 0 | BO158: 0 | BP158: 0 | BQ158: 0 | BR158: 0 | BS158: 16 | BT158: 0.16 | BU158: 0.09 | BV158: 0 | BW158: 0 | BX158: 1 | BY158: 1.75 | BZ158: 0.5833333333 | CA158: 17.84775 | CB158: 5.94925 | CC158: 2 | CE158: 0 | CF158: 1673926 | CI158: 2 | CJ158: https://www.google.com/maps/@61.16566806,23.18835,3a,75y,90t/data=!3m3!1e1!3m1!2e0 | CK158: 0 | CL158: 0 | CN158: 1 | CO158: 0 | CP158: 0 | CQ158: 0 | CR158: 2 | CS158: 115 | CT158: 0 | CU158: 0 | CV158: 0 | CW158: 0 | CX158: 0 | CY158: 898 | CZ158: 0 | DA158: 0 | DB158: 0 | DC158: 0 | DD158: 0 | DE158: 18 | DF158: 0.09 | DH158: 0 | DI158: 0 | DJ158: 0 | DK158: 0 | DL158: 0 | DN158: 0 | DO158: Vesilahdentie | DP158: Punkalaidun | DQ158: 0 | DR158: 898 | DS158: 16 | DT158: 50 (20 %), 80 (80 %) | DU158: II (100 %) | DV158: AB (100 %) | DW158: Y3 (100 %) | DX158: 8349 | DY158: 1.760649515
A159: 14193_1 | B159: 23271.73333 | C159: 14193_1_4215 | D159: 123 | E159: 123 | F159: 0 | G159: 5.936666667 | H159: 3.026666667 | I159: 2.453333333 | J159: 0.4566666667 | K159: 2 | L159: 0 | M159: Gmaps | N159: Vähä | O159: Yhdys | P159: Aitoniementie | Q159: Tampere | R159: 14193 | S159: 1 | T159: 4215 | U159: 1 | V159: 8135 | W159: 3920 | X159: 310 | Y159: 23 | Z159: 378 | AA159: 11 | AB159: 50 (100 %) | AC159: III (100 %) | AD159: PAB (100 %) | AE159: 0.5193149785 | AF159: Y3 (14 %) | AG159: 0 | AH159: 0 | AI159: ei | AJ159: 0 | AK159: 0 | AL159: 5.58 | AM159: 112 | AN159: 3 | AO159: 50 | AP159: 0.5 | AQ159: 9.08 | AR159: 3.026666667 | AS159: 7.36 | AT159: 0 | AU159: 0 | AV159: 0 | AW159: 0 | AX159: 0 | AY159: 0 | AZ159: 0 | BA159: 0 | BB159: 0 | BC159: 0 | BD159: 0 | BE159: 0 | BF159: 0 | BG159: 7.36 | BH159: 2.453333333 | BI159: 0 | BJ159: 0 | BK159: 0 | BL159: 0 | BM159: 0 | BN159: 0 | BO159: 0 | BP159: 0 | BQ159: 0 | BR159: 0 | BS159: 17 | BT159: 0.17 | BU159: 0.2 | BV159: 0 | BW159: 0 | BX159: 1 | BY159: 1.37 | BZ159: 0.4566666667 | CA159: 17.81 | CB159: 5.936666667 | CC159: 2 | CE159: 2035.714716 | CF159: 1215200 | CI159: 2 | CJ159: https://www.google.com/maps/@61.54219066,23.86592532,3a,75y,90t/data=!3m3!1e1!3m1!2e0 | CK159: 0 | CL159: 0 | CN159: 0 | CO159: 0 | CP159: 0 | CQ159: 0 | CR159: 0 | CS159: 0 | CT159: 0 | CU159: 0 | CV159: 0 | CW159: 0 | CX159: 0 | CY159: 0 | CZ159: 0 | DA159: 0 | DB159: 0 | DC159: 0 | DD159: 0 | DE159: 40 | DF159: 0.2 | DH159: 0 | DI159: 0 | DJ159: 0 | DK159: 0 | DL159: 0 | DN159: 0 | DO159: Aitoniementie | DP159: Tampere | DQ159: 0 | DR159: 0 | DS159: 17 | DT159: 50 (100 %) | DU159: III (100 %) | DV159: PAB (100 %) | DW159: Y3 (100 %) | DX159: 0 | DY159: 0
A160: 14014_1 | B160: 11274.44167 | C160: 14014_1_0 | D160: 124 | E160: 124 | F160: 0 | G160: 5.933916667 | H160: 3.129333333 | I160: 1.957916667 | J160: 0.8466666667 | K160: 2 | L160: 0 | M160: Gmaps | N160: Vähä | O160: Yhdys | P160: Haapasaarentie | Q160: Kangasala | R160: 14014 | S160: 1 | T160: 0 | U160: 1 | V160: 1900 | W160: 1900 | X160: 306 | Y160: 15 | Z160: 443 | AA160: 2 | AB160: 40 (26 %), 50 (53 %), 80 (21 %) | AC160: III (100 %) | AD160: PAB (100 %) | AE160: 0.05258546926 | AF160: Y3 (3 %) | AG160: 1 | AH160: 1 | AI160: ei | AJ160: 0 | AK160: 0 | AL160: 5.508 | AM160: 134 | AN160: 3 | AO160: 88 | AP160: 0.88 | AQ160: 9.388 | AR160: 3.129333333 | AS160: 4.8 | AT160: 0 | AU160: 0 | AV160: 0 | AW160: 0 | AX160: 1 | AY160: 0.07375 | AZ160: 0 | BA160: 0 | BB160: 0 | BC160: 0 | BD160: 0 | BE160: 0 | BF160: 0 | BG160: 5.87375 | BH160: 1.957916667 | BI160: 0 | BJ160: 0 | BK160: 0 | BL160: 0 | BM160: 0 | BN160: 0 | BO160: 0 | BP160: 0 | BQ160: 0 | BR160: 0 | BS160: 64 | BT160: 0.64 | BU160: 0.9 | BV160: 0 | BW160: 0 | BX160: 1 | BY160: 2.54 | BZ160: 0.8466666667 | CA160: 17.80175 | CB160: 5.933916667 | CC160: 2 | CE160: 99.91239159 | CF160: 581400 | CI160: 2 | CJ160: https://www.google.com/maps/@61.47884249,24.43210124,3a,75y,90t/data=!3m3!1e1!3m1!2e0 | CK160: 0 | CL160: 0 | CN160: 0 | CO160: 0 | CP160: 0 | CQ160: 0 | CR160: 1 | CS160: 59 | CT160: 0 | CU160: 0 | CV160: 0 | CW160: 0 | CX160: 0 | CY160: 0 | CZ160: 0 | DA160: 0 | DB160: 0 | DC160: 0 | DD160: 0 | DE160: 180 | DF160: 0.9 | DH160: 0 | DI160: 0 | DJ160: 0 | DK160: 0 | DL160: 0 | DN160: 0 | DO160: Haapasaarentie | DP160: Kangasala | DQ160: 0 | DR160: 0 | DS160: 64 | DT160: 40 (26 %), 50 (53 %), 80 (21 %) | DU160: III (100 %) | DV160: PAB (100 %) | DW160: Y3 (100 %) | DX160: 0 | DY160: 0
A161: 13341_2 | B161: 13283.38667 | C161: 13341_2_0 | D161: 125 | E161: 125 | F161: 0 | G161: 5.930083333 | H161: 2.244666667 | I161: 3.12375 | J161: 0.5616666667 | K161: 2 | L161: 0 | M161: Gmaps | N161: Vähä | O161: Yhdys | P161: Kankarintie | Q161: Kihniö | R161: 13341 | S161: 2 | T161: 0 | U161: 2 | V161: 2240 | W161: 2240 | X161: 293 | Y161: 23 | Z161: 357 | AA161: 5 | AB161: 50 (17 %), 60 (22 %), 80 (61 %) | AC161: II (100 %) | AD161: PAB (100 %) | AE161: 0 | AF161: Y3 (100 %) | AG161: 0 | AH161: 0 | AI161: ei | AJ161: 0 | AK161: 1.054464286 | AL161: 5.274 | AM161: 2 | AN161: 0.1 | AO161: 136 | AP161: 1.36 | AQ161: 6.734 | AR161: 2.244666667 | AS161: 7.36 | AT161: 0 | AU161: 0 | AV161: 0 | AW161: 0 | AX161: 1 | AY161: 0.01125 | AZ161: 0 | BA161: 0 | BB161: 0 | BC161: 0 | BD161: 1 | BE161: 0 | BF161: 0 | BG161: 9.37125 | BH161: 3.12375 | BI161: 0 | BJ161: 0 | BK161: 0 | BL161: 0 | BM161: 0 | BN161: 0 | BO161: 0 | BP161: 0 | BQ161: 0 | BR161: 0 | BS161: 62 | BT161: 0.62 | BU161: 0.065 | BV161: 0 | BW161: 0 | BX161: 1 | BY161: 1.685 | BZ161: 0.5616666667 | CA161: 17.79025 | CB161: 5.930083333 | CC161: 2 | CE161: 0 | CF161: 656320 | CI161: 2 | CJ161: https://www.google.com/maps/@62.19010887,23.07509428,3a,75y,90t/data=!3m3!1e1!3m1!2e0 | CK161: 0 | CL161: 0 | CN161: 0 | CO161: 0 | CP161: 0 | CQ161: 0 | CR161: 1 | CS161: 9 | CT161: 0 | CU161: 0 | CV161: 0 | CW161: 0 | CX161: 1 | CY161: 0 | CZ161: 0 | DA161: 0 | DB161: 0 | DC161: 0 | DD161: 0 | DE161: 13 | DF161: 0.065 | DH161: 0 | DI161: 0 | DJ161: 0 | DK161: 0 | DL161: 0 | DN161: 0 | DO161: Kankarintie | DP161: Kihniö | DQ161: 0 | DR161: 0 | DS161: 62 | DT161: 50 (17 %), 60 (22 %), 80 (61 %) | DU161: II (100 %) | DV161: PAB (100 %) | DW161: Y3 (100 %) | DX161: 2362 | DY161: 1.054464286
A162: 3280_4 | B162: 33827.579 | C162: 3280_4_0 | D162: 126 | E162: 126 | F162: 0 | G162: 5.894333333 | H162: 1.162666667 | I162: 4.065 | J162: 0.6666666667 | K162: 2 | L162: 0 | M162: Gmaps | N162: Vähä | O162: Yhdys | P162: Vinkiäntie | Q162: Orivesi, Jämsä | R162: 3280 | S162: 4 | T162: 0 | U162: 4 | V162: 5739 | W162: 5739 | X162: 176 | Y162: 28 | Z162: 211 | AA162: 13 | AB162: 80 (100 %) | AC162: III (100 %) | AD162: PAB (100 %) | AE162: 0 | AF162: Y3 (100 %) | AG162: 0 | AH162: 0 | AI162: ei | AJ162: 0 | AK162: 2.031887088 | AL162: 3.168 | AM162: 0 | AN162: 0 | AO162: 32 | AP162: 0.32 | AQ162: 3.488 | AR162: 1.162666667 | AS162: 8 | AT162: 2 | AU162: 0 | AV162: 0 | AW162: 0 | AX162: 1 | AY162: 0.025 | AZ162: 0.17 | BA162: 0 | BB162: 0 | BC162: 0 | BD162: 0 | BE162: 1 | BF162: 0 | BG162: 12.195 | BH162: 4.065 | BI162: 0 | BJ162: 0 | BK162: 0 | BL162: 0 | BM162: 0 | BN162: 0 | BO162: 0 | BP162: 0 | BQ162: 0 | BR162: 0 | BS162: 0 | BT162: 0 | BU162: 1 | BV162: 0 | BW162: 0 | BX162: 1 | BY162: 2 | BZ162: 0.6666666667 | CA162: 17.683 | CB162: 5.894333333 | CC162: 2 | CE162: 0 | CF162: 1010064 | CI162: 2 | CJ162: https://www.google.com/maps/@61.68667343,24.80517422,3a,75y,90t/data=!3m3!1e1!3m1!2e0 | CK162: 0 | CL162: 1 | CN162: 1 | CO162: 0 | CP162: 0 | CQ162: 0 | CR162: 3 | CS162: 20 | CT162: 68 | CU162: 0 | CV162: 0 | CW162: 0 | CX162: 0 | CY162: 0 | CZ162: 0 | DA162: 0 | DB162: 0 | DC162: 0 | DD162: 0 | DE162: 349 | DF162: 1 | DH162: 0 | DI162: 0 | DJ162: 0 | DK162: 0 | DL162: 0 | DN162: 0 | DO162: Vinkiäntie | DP162: Orivesi, Jämsä | DQ162: 0 | DR162: 0 | DS162: 0 | DT162: 80 (100 %) | DU162: III (100 %) | DV162: PAB (100 %) | DW162: Y3 (100 %) | DX162: 11661 | DY162: 2.031887088
A163: 14349_1 | B163: 103059.9901 | C163: 14349_1_0 | D163: 127 | E163: 127 | F163: 0 | G163: 5.867683333 | H163: 1.99 | I163: 3.221016667 | J163: 0.6566666667 | K163: 2 | L163: 0 | M163: Gmaps | N163: Vähä | O163: Yhdys | P163: Tammikoskentie, Tammikyläntie | Q163: Ruovesi, Mänttä-Vilppula | R163: 14349 | S163: 1 | T163: 0 | U163: 1 | V163: 17564 | W163: 17564 | X163: 255 | Y163: 20 | Z163: 280 | AA163: 6 | AB163: 60 (3 %), 80 (97 %) | AC163: III (100 %) | AD163: PAB (100 %) | AE163: 0.2648531678 | AF163: Y3 (66 %) | AG163: 0 | AH163: 0 | AI163: ei | AJ163: 0 | AK163: 0.6097130494 | AL163: 4.59 | AM163: 7 | AN163: 0.35 | AO163: 103 | AP163: 1.03 | AQ163: 5.97 | AR163: 1.99 | AS163: 6.4 | AT163: 2 | AU163: 0 | AV163: 0 | AW163: 0 | AX163: 1 | AY163: 0.00375 | AZ163: 0 | BA163: 0 | BB163: 0.2593 | BC163: 0 | BD163: 0 | BE163: 0 | BF163: 0 | BG163: 9.66305 | BH163: 3.221016667 | BI163: 0 | BJ163: 0 | BK163: 0 | BL163: 0 | BM163: 0 | BN163: 0 | BO163: 0 | BP163: 0 | BQ163: 0 | BR163: 0 | BS163: 29 | BT163: 0.29 | BU163: 0.68 | BV163: 0 | BW163: 0 | BX163: 1 | BY163: 1.97 | BZ163: 0.6566666667 | CA163: 17.60305 | CB163: 5.867683333 | CC163: 2 | CE163: 4651.88104 | CF163: 4478820 | CI163: 2 | CJ163: https://www.google.com/maps/@62.05034558,24.44431331,3a,75y,90t/data=!3m3!1e1!3m1!2e0 | CK163: 0 | CL163: 0 | CN163: 1 | CO163: 0 | CP163: 0 | CQ163: 0 | CR163: 7 | CS163: 3 | CT163: 0 | CU163: 0 | CV163: 5186 | CW163: 0 | CX163: 0 | CY163: 0 | CZ163: 0 | DA163: 0 | DB163: 0 | DC163: 0 | DD163: 0 | DE163: 136 | DF163: 0.68 | DH163: 0 | DI163: 0 | DJ163: 0 | DK163: 0 | DL163: 0 | DN163: 0 | DO163: Tammikoskentie, Tammikyläntie | DP163: Ruovesi, Mänttä-Vilppula | DQ163: 0 | DR163: 0 | DS163: 29 | DT163: 60 (3 %), 80 (97 %) | DU163: III (100 %) | DV163: PAB (100 %) | DW163: Y3 (100 %) | DX163: 10709 | DY163: 0.6097130494
A164: 2481_1 | B164: 5480.985583 | C164: 2481_1_2450 | D164: 128 | E164: 128 | F164: 0 | G164: 5.862016667 | H164: 2.37 | I164: 3.07035 | J164: 0.4216666667 | K164: 2 | L164: 0 | M164: Gmaps | N164: Vähä | O164: Yhdys | P164: Villiläntie | Q164: Sastamala, Huittinen | R164: 2481 | S164: 1 | T164: 2450 | U164: 1 | V164: 3385 | W164: 935 | X164: 360 | Y164: 15 | Z164: 477 | AA164: 3 | AB164: 60 (100 %) | AC164: II (100 %) | AD164: PAB (100 %) | AE164: 0 | AF164: Y3 (100 %) | AG164: 0 | AH164: 0 | AI164: ei | AJ164: 0 | AK164: 0 | AL164: 6.48 | AM164: 1 | AN164: 0.05 | AO164: 58 | AP164: 0.58 | AQ164: 7.11 | AR164: 2.37 | AS164: 4.8 | AT164: 0 | AU164: 0 | AV164: 0 | AW164: 0 | AX164: 1 | AY164: 0 | AZ164: 0 | BA164: 0 | BB164: 0.41105 | BC164: 1 | BD164: 1 | BE164: 1 | BF164: 0 | BG164: 9.21105 | BH164: 3.07035 | BI164: 0 | BJ164: 0 | BK164: 0 | BL164: 0 | BM164: 0 | BN164: 0 | BO164: 0 | BP164: 411 | BQ164: 0.4395721925 | BR164: 0 | BS164: 26 | BT164: 0.26 | BU164: 0.005 | BV164: 0 | BW164: 0 | BX164: 1 | BY164: 1.265 | BZ164: 0.4216666667 | CA164: 17.58605 | CB164: 5.862016667 | CC164: 2 | CE164: 0 | CF164: 336600 | CI164: 2 | CJ164: https://www.google.com/maps/@61.26809224,22.65093215,3a,75y,90t/data=!3m3!1e1!3m1!2e0 | CK164: 0 | CL164: 1 | CN164: 0 | CO164: 0 | CP164: 0 | CQ164: 0 | CR164: 3 | CS164: 0 | CT164: 0 | CU164: 0 | CV164: 8221 | CW164: 1 | CX164: 2 | CY164: 0 | CZ164: 0 | DA164: 0 | DB164: 1 | DC164: 0 | DD164: 0 | DE164: 1 | DF164: 0.005 | DH164: 0 | DI164: 0 | DJ164: 0 | DK164: 0 | DL164: 0 | DN164: 411 | DO164: Villiläntie | DP164: Sastamala, Huittinen | DQ164: 0 | DR164: 0 | DS164: 26 | DT164: 60 (100 %) | DU164: II (100 %) | DV164: PAB (100 %) | DW164: Y3 (100 %) | DX164: 0 | DY164: 0
A165: =CONCATENATE(R165,"_",S165) -> 13341_1 | B165: =G165*W165 -> 32924.306 | C165: =CONCATENATE(R165,"_",S165,"_",T165) -> 13341_1_0 | D165: =COUNTIFS($N$37:$N$1308,"Vähä",$G$37:$G$1308,">"&G165)+1 -> 129 | E165: 129 | F165: =E165-D165 -> 0 | G165: =CB165 -> 5.856333333 | H165: =AR165 -> 1.931333333 | I165: =BH165 -> 3.423333333 | J165: =BZ165 -> 0.5016666667 | K165: =CC165 -> 2 | L165: =K165-CI165 -> 0 | M165: =HYPERLINK(CJ165,"Gmaps") -> Gmaps | N165: =IF(X165<$K$6,"Vähä","Vilkas") -> Vähä | O165: =IF(R165<40,"Valta",IF(R165<100,"Kanta",IF(R165<1000,"Seutu",IF(R165>999,"Yhdys")))) -> Yhdys | P165: =DO165 -> Kankarintie | Q165: =DP165 -> Parkano, Kihniö | R165: 13341 | S165: 1 | T165: 0 | U165: 1 | V165: 5622 | W165: =V165-T165 -> 5622 | X165: 248 | Y165: 19 | Z165: 306 | AA165: 6 | AB165: =+DT165 -> 80 (100 %) | AC165: =+DU165 -> III (100 %) | AD165: =+DV165 -> AB (1 %), PAB (99 %) | AE165: 0.01785962426 | AF165: Y3 (5 %) | AG165: 0 | AH165: 1 | AI165: ei | AJ165: =+DQ165 -> 0 | AK165: =DY165 -> 1.944681608 | AL165: =+IF(X165>=$K$6,$F$5,($F$5/($K$6))*X165) -> 4.464 | AM165: 13 | AN165: =+IF(AM165>=$L$15,$J$15,IF(AM165<($L$15),AM165*($J$15/($L$15)),)) -> 0.65 | AO165: 68 | AP165: =+IF(AO165>=$L$11,$J$11,IF(AO165<($L$11),AO165*($J$11/($L$11)),)) -> 0.68 | AQ165: =SUM(AL165,AN165,AP165) -> 5.794 | AR165: =+AQ165*$H$5 -> 1.931333333 | AS165: =+IF(Y165=0,0,IF(Y165>$K$7,$F$9,($F$9/$K$7)*Y165)) -> 6.08 | AT165: =IF(CN165>0,$F$10,0) -> 2 | AU165: =IF(CO165>0,$F$11,0) -> 0 | AV165: =IF(CP165>0,$F$12,0) -> 0 | AW165: =IF(CQ165>0,$F$13,0) -> 0 | AX165: =IF(CR165>0,$F$14,0) -> 1 | AY165: =+IF(CS165>=$L$23,$J$23,IF(CS165<($L$23),CS165*($J$23/($L$23)),)) -> 0.1875 | AZ165: =+IF(CT165>=$L$24,$J$24,IF(CT165<($L$24),CT165*($J$24/($L$24)),)) -> 0.0025 | BA165: =+IF(CU165>=$L$25,$J$25,IF(CU165<($L$25),CU165*($J$25/($L$25)),)) -> 0 | BB165: =+IF(CV165>=$L$26,$J$26,IF(CV165<($L$26),CV165*($J$26/($L$26)),)) -> 0 | BC165: =IF(CW165>0,$F$16,0) -> 0 | BD165: =+IF(CX165>0,$F$17,0) -> 1 | BE165: =+IF(CL165>0,$F$18,0) -> 0 | BF165: =+IF(SUM(DK165:DL165)>0,$F$19,0) -> 0 | BG165: =SUM(AS165:BF165) -> 10.27 | BH165: =+BG165*$H$9 -> 3.423333333 | BI165: =+DR165 -> 0 | BJ165: =BI165/W165 -> 0 | BK165: =IF(BJ165>0,IF(BJ165>=$L$19,$J$19,IF(BJ165<$L$19,$J$20,0)),0) -> 0 | BL165: 0 | BM165: =BL165/W165 -> 0 | BN165: =IF(BM165,$F$22,0) -> 0 | BO165: =IF(DA165=1,$F$23,0) -> 0 | BP165: =+DN165 -> 0 | BQ165: =BP165/W165 -> 0 | BR165: =+IF(BQ165>=$K$4,$F$24,0) -> 0 | BS165: =DS165 -> 36 | BT165: =IF(BS165>0,IF(BS165>100,$F$25,BS165*$F$25/100),0) -> 0.36 | BU165: =DC165+DD165+DF165 -> 0.145 | BV165: =IF(DH165>0,$F$27,0) -> 0 | BW165: =IF(DI165>0,$F$28,0) -> 0 | BX165: =IF(DJ165=0,$F$29,0) -> 1 | BY165: =SUM(BK165,BN165,BT165,BO165,BR165,BU165,BV165,BW165,BX165) -> 1.505 | BZ165: =+BY165*$H$21 -> 0.5016666667 | CA165: =SUM(AQ165,BG165,BY165) -> 17.569 | CB165: =SUM(AR165,BH165,BZ165) -> 5.856333333 | CC165: =+IF(CB165>=$W$14*$CC$25,1,IF(CB165>=$W$15*$CC$25,2,IF(CB165>=$W$16*$CC$25,3,IF(CB165>=0,4,"Ei pisteitä")))) -> 2 | CE165: =AE165*W165 -> 100.4068076 | CF165: =X165*W165 -> 1394256 | CI165: 2 | CJ165: https://www.google.com/maps/@62.17095477,22.98016377,3a,75y,90t/data=!3m3!1e1!3m1!2e0 | CK165: 0 | CL165: 0 | CN165: 1 | CO165: 0 | CP165: 0 | CQ165: 0 | CR165: 2 | CS165: 150 | CT165: 1 | CU165: 0 | CV165: 0 | CW165: 0 | CX165: 1 | CY165: 0 | CZ165: 0 | DA165: 0 | DB165: 0 | DC165: =+IF(Z165>$K$8,$F$26/4,0) -> 0 | DD165: =+IF(Z165/X165>1.5,$F$26/4,0) -> 0 | DE165: 29 | DF165: =IF(DE165>200,$F$26/2,$F$26/2/200*DE165) -> 0.145 | DH165: 0 | DI165: 0 | DJ165: 0 | DK165: 0 | DL165: 0 | DN165: 0 | DO165: Kankarintie | DP165: Parkano, Kihniö | DQ165: 0 | DR165: 0 | DS165: 36 | DT165: 80 (100 %) | DU165: III (100 %) | DV165: AB (1 %), PAB (99 %) | DW165: Y3 (100 %) | DX165: 10933 | DY165: =DX165/W165 -> 1.944681608
A166: 3422_1 | B166: 13369.01333 | C166: 3422_1_0 | D166: 130 | E166: 130 | F166: 0 | G166: 5.853333333 | H166: 2.206666667 | I166: 3.12 | J166: 0.5266666667 | K166: 2 | L166: 0 | M166: Gmaps | N166: Vähä | O166: Yhdys | P166: Lylyntie | Q166: Juupajoki | R166: 3422 | S166: 1 | T166: 0 | U166: 1 | V166: 2284 | W166: 2284 | X166: 310 | Y166: 23 | Z166: 366 | AA166: 7 | AB166: 50 (100 %) | AC166: III (100 %) | AD166: AB (2 %), PAB (98 %) | AE166: 0.1752825658 | AF166: Y3 (100 %) | AG166: 0 | AH166: 0 | AI166: ei | AJ166: 0 | AK166: 1.897548161 | AL166: 5.58 | AM166: 14 | AN166: 0.7 | AO166: 34 | AP166: 0.34 | AQ166: 6.62 | AR166: 2.206666667 | AS166: 7.36 | AT166: 0 | AU166: 0 | AV166: 0 | AW166: 0 | AX166: 1 | AY166: 0 | AZ166: 0 | BA166: 0 | BB166: 0 | BC166: 0 | BD166: 0 | BE166: 1 | BF166: 0 | BG166: 9.36 | BH166: 3.12 | BI166: 0 | BJ166: 0 | BK166: 0 | BL166: 0 | BM166: 0 | BN166: 0 | BO166: 0 | BP166: 0 | BQ166: 0 | BR166: 0 | BS166: 34 | BT166: 0.34 | BU166: 0.24 | BV166: 0 | BW166: 0 | BX166: 1 | BY166: 1.58 | BZ166: 0.5266666667 | CA166: 17.56 | CB166: 5.853333333 | CC166: 2 | CE166: 400.3453802 | CF166: 708040 | CI166: 2 | CJ166: https://www.google.com/maps/@61.88545339,24.50660816,3a,75y,90t/data=!3m3!1e1!3m1!2e0 | CK166: 0 | CL166: 1 | CN166: 0 | CO166: 0 | CP166: 0 | CQ166: 0 | CR166: 1 | CS166: 0 | CT166: 0 | CU166: 0 | CV166: 0 | CW166: 0 | CX166: 0 | CY166: 0 | CZ166: 0 | DA166: 0 | DB166: 0 | DC166: 0 | DD166: 0 | DE166: 48 | DF166: 0.24 | DH166: 0 | DI166: 0 | DJ166: 0 | DK166: 0 | DL166: 0 | DN166: 0 | DO166: Lylyntie | DP166: Juupajoki | DQ166: 0 | DR166: 0 | DS166: 34 | DT166: 50 (100 %) | DU166: III (100 %) | DV166: AB (2 %), PAB (98 %) | DW166: Y3 (100 %) | DX166: 4334 | DY166: 1.897548161
A167: 2981_2 | B167: 21517.57333 | C167: 2981_2_3165 | D167: 131 | E167: 131 | F167: 0 | G167: 5.847166667 | H167: 1.864666667 | I167: 3.4575 | J167: 0.525 | K167: 2 | L167: 0 | M167: Gmaps | N167: Vähä | O167: Yhdys | P167: Halkivahantie | Q167: Urjala | R167: 2981 | S167: 2 | T167: 3165 | U167: 2 | V167: 6845 | W167: 3680 | X167: 278 | Y167: 26 | Z167: 299 | AA167: 8 | AB167: 80 (100 %) | AC167: III (100 %) | AD167: PAB (100 %) | AE167: 0 | AF167: Y3 (100 %) | AG167: 0 | AH167: 0 | AI167: ei | AJ167: 0 | AK167: 2.826358696 | AL167: 5.004 | AM167: 0 | AN167: 0 | AO167: 59 | AP167: 0.59 | AQ167: 5.594 | AR167: 1.864666667 | AS167: 8 | AT167: 0 | AU167: 0 | AV167: 1 | AW167: 0 | AX167: 1 | AY167: 0.3725 | AZ167: 0 | BA167: 0 | BB167: 0 | BC167: 0 | BD167: 0 | BE167: 0 | BF167: 0 | BG167: 10.3725 | BH167: 3.4575 | BI167: 0 | BJ167: 0 | BK167: 0 | BL167: 0 | BM167: 0 | BN167: 0 | BO167: 0 | BP167: 0 | BQ167: 0 | BR167: 0 | BS167: 0 | BT167: 0 | BU167: 0.575 | BV167: 0 | BW167: 0 | BX167: 1 | BY167: 1.575 | BZ167: 0.525 | CA167: 17.5415 | CB167: 5.847166667 | CC167: 2 | CE167: 0 | CF167: 1023040 | CI167: 2 | CJ167: https://www.google.com/maps/@61.14930889,23.44948628,3a,75y,90t/data=!3m3!1e1!3m1!2e0 | CK167: 0 | CL167: 0 | CN167: 0 | CO167: 0 | CP167: 1 | CQ167: 0 | CR167: 3 | CS167: 298 | CT167: 0 | CU167: 0 | CV167: 0 | CW167: 0 | CX167: 0 | CY167: 0 | CZ167: 0 | DA167: 0 | DB167: 0 | DC167: 0 | DD167: 0 | DE167: 115 | DF167: 0.575 | DH167: 0 | DI167: 0 | DJ167: 0 | DK167: 0 | DL167: 0 | DN167: 0 | DO167: Halkivahantie | DP167: Urjala | DQ167: 0 | DR167: 0 | DS167: 0 | DT167: 80 (100 %) | DU167: III (100 %) | DV167: PAB (100 %) | DW167: Y3 (100 %) | DX167: 10401 | DY167: 2.826358696
A168: 13739_1 | B168: 41763.38133 | C168: 13739_1_0 | D168: 132 | E168: 132 | F168: 0 | G168: 5.842666667 | H168: 1.843333333 | I168: 3.154333333 | J168: 0.845 | K168: 2 | L168: 0 | M168: Gmaps | N168: Vähä | O168: Yhdys | P168: Pyhällöntie | Q168: Lempäälä, Akaa | R168: 13739 | S168: 1 | T168: 0 | U168: 1 | V168: 7148 | W168: 7148 | X168: 180 | Y168: 20 | Z168: 220 | AA168: 6 | AB168: 40 (16 %), 50 (19 %), 60 (66 %) | AC168: III (100 %) | AD168: AB (8 %), PAB (31 %), sora (62 %) | AE168: 0.1444208442 | AF168: Y3 (100 %) | AG168: 0 | AH168: 0 | AI168: kyllä | AJ168: 0 | AK168: 0 | AL168: 3.24 | AM168: 20 | AN168: 1 | AO168: 129 | AP168: 1.29 | AQ168: 5.53 | AR168: 1.843333333 | AS168: 6.4 | AT168: 0 | AU168: 0 | AV168: 0 | AW168: 0 | AX168: 1 | AY168: 0.1725 | AZ168: 0.5 | BA168: 0.3905 | BB168: 0 | BC168: 0 | BD168: 1 | BE168: 0 | BF168: 0 | BG168: 9.463 | BH168: 3.154333333 | BI168: 3972 | BJ168: 0.5556799105 | BK168: 1 | BL168: 0 | BM168: 0 | BN168: 0 | BO168: 0 | BP168: 37 | BQ168: 0.005176273083 | BR168: 0 | BS168: 26 | BT168: 0.26 | BU168: 0.275 | BV168: 0 | BW168: 0 | BX168: 1 | BY168: 2.535 | BZ168: 0.845 | CA168: 17.528 | CB168: 5.842666667 | CC168: 2 | CE168: 1032.320194 | CF168: 1286640 | CI168: 2 | CJ168: https://www.google.com/maps/@61.26680605,23.74550806,3a,75y,90t/data=!3m3!1e1!3m1!2e0 | CK168: 0 | CL168: 0 | CN168: 0 | CO168: 0 | CP168: 0 | CQ168: 0 | CR168: 5 | CS168: 138 | CT168: 308 | CU168: 781 | CV168: 0 | CW168: 0 | CX168: 1 | CY168: 127 | CZ168: 0 | DA168: 0 | DB168: 1 | DC168: 0 | DD168: 0 | DE168: 55 | DF168: 0.275 | DH168: 0 | DI168: 0 | DJ168: 0 | DK168: 0 | DL168: 0 | DN168: 37 | DO168: Pyhällöntie | DP168: Lempäälä, Akaa | DQ168: 0 | DR168: 3972 | DS168: 26 | DT168: 40 (16 %), 50 (19 %), 60 (66 %) | DU168: III (100 %) | DV168: AB (8 %), PAB (31 %), sora (62 %) | DW168: Y3 (38 %) | DX168: 0 | DY168: 0
A169: 3022_5 | B169: 36081.41667 | C169: 3022_5_1152 | D169: 133 | E169: 133 | F169: 0 | G169: 5.819583333 | H169: 2.583333333 | I169: 2.284583333 | J169: 0.9516666667 | K169: 2 | L169: 0 | M169: Gmaps | N169: Vähä | O169: Yhdys | P169: Vanha Rantatie | Q169: Lempäälä | R169: 3022 | S169: 5 | T169: 1152 | U169: 5 | V169: 7352 | W169: 6200 | X169: 355 | Y169: 15 | Z169: 458 | AA169: 2 | AB169: 60 (39 %), 80 (61 %) | AC169: III (100 %) | AD169: PAB (100 %) | AE169: 0.6301499679 | AF169: Y3 (100 %) | AG169: 1 | AH169: 2 | AI169: ei | AJ169: 0 | AK169: 0.1883870968 | AL169: 6.39 | AM169: 12 | AN169: 0.6 | AO169: 76 | AP169: 0.76 | AQ169: 7.75 | AR169: 2.583333333 | AS169: 4.8 | AT169: 2 | AU169: 0 | AV169: 0 | AW169: 0 | AX169: 0 | AY169: 0.05375 | AZ169: 0 | BA169: 0 | BB169: 0 | BC169: 0 | BD169: 0 | BE169: 0 | BF169: 0 | BG169: 6.85375 | BH169: 2.284583333 | BI169: 4480 | BJ169: 0.7225806452 | BK169: 1 | BL169: 0 | BM169: 0 | BN169: 0 | BO169: 0 | BP169: 449 | BQ169: 0.07241935484 | BR169: 0 | BS169: 48 | BT169: 0.48 | BU169: 0.375 | BV169: 0 | BW169: 0 | BX169: 1 | BY169: 2.855 | BZ169: 0.9516666667 | CA169: 17.45875 | CB169: 5.819583333 | CC169: 2 | CE169: 3906.929801 | CF169: 2201000 | CI169: 2 | CJ169: https://www.google.com/maps/@61.36798287,23.57346539,3a,75y,90t/data=!3m3!1e1!3m1!2e0 | CK169: 0 | CL169: 0 | CN169: 1 | CO169: 0 | CP169: 0 | CQ169: 0 | CR169: 0 | CS169: 43 | CT169: 0 | CU169: 0 | CV169: 0 | CW169: 0 | CX169: 0 | CY169: 1700 | CZ169: 0 | DA169: 0 | DB169: 1 | DC169: 0 | DD169: 0 | DE169: 75 | DF169: 0.375 | DH169: 0 | DI169: 0 | DJ169: 0 | DK169: 0 | DL169: 0 | DN169: 449 | DO169: Vanha Rantatie | DP169: Lempäälä | DQ169: 0 | DR169: 4480 | DS169: 48 | DT169: 60 (39 %), 80 (61 %) | DU169: III (100 %) | DV169: PAB (100 %) | DW169: Y3 (100 %) | DX169: 1168 | DY169: 0.1883870968
A170: 12993_1 | B170: 23053.50125 | C170: 12993_1_0 | D170: 134 | E170: 134 | F170: 0 | G170: 5.81425 | H170: 1.898 | I170: 3.437916667 | J170: 0.4783333333 | K170: 2 | L170: 0 | M170: Gmaps | N170: Vähä | O170: Yhdys | P170: Kärppälänraitti, Masontie | Q170: Sastamala | R170: 12993 | S170: 1 | T170: 0 | U170: 1 | V170: 3965 | W170: 3965 | X170: 158 | Y170: 22 | Z170: 189 | AA170: 0 | AB170: 40 (20 %), 60 (10 %), 80 (69 %) | AC170: III (100 %) | AD170: AB (3 %), sora (97 %) | AE170: 0 | AF170: Y3 (100 %) | AG170: 0 | AH170: 0 | AI170: ei | AJ170: 0 | AK170: 0.2658259773 | AL170: 2.844 | AM170: 52 | AN170: 2.6 | AO170: 25 | AP170: 0.25 | AQ170: 5.694 | AR170: 1.898 | AS170: 7.04 | AT170: 2 | AU170: 0 | AV170: 0 | AW170: 0 | AX170: 1 | AY170: 0.25625 | AZ170: 0.0175 | BA170: 0 | BB170: 0 | BC170: 0 | BD170: 0 | BE170: 0 | BF170: 0 | BG170: 10.31375 | BH170: 3.437916667 | BI170: 0 | BJ170: 0 | BK170: 0 | BL170: 0 | BM170: 0 | BN170: 0 | BO170: 0 | BP170: 0 | BQ170: 0 | BR170: 0 | BS170: 26 | BT170: 0.26 | BU170: 0.175 | BV170: 0 | BW170: 0 | BX170: 1 | BY170: 1.435 | BZ170: 0.4783333333 | CA170: 17.44275 | CB170: 5.81425 | CC170: 2 | CE170: 0 | CF170: 626470 | CI170: 2 | CJ170: https://www.google.com/maps/@61.37217591,23.10413273,3a,75y,90t/data=!3m3!1e1!3m1!2e0 | CK170: 0 | CL170: 0 | CN170: 1 | CO170: 0 | CP170: 0 | CQ170: 0 | CR170: 1 | CS170: 205 | CT170: 7 | CU170: 0 | CV170: 0 | CW170: 0 | CX170: 0 | CY170: 0 | CZ170: 0 | DA170: 0 | DB170: 0 | DC170: 0 | DD170: 0 | DE170: 35 | DF170: 0.175 | DH170: 0 | DI170: 0 | DJ170: 0 | DK170: 0 | DL170: 0 | DN170: 0 | DO170: Kärppälänraitti, Masontie | DP170: Sastamala | DQ170: 0 | DR170: 0 | DS170: 26 | DT170: 40 (20 %), 60 (10 %), 80 (69 %) | DU170: III (100 %) | DV170: AB (3 %), sora (97 %) | DW170: Y3 (3 %) | DX170: 1054 | DY170: 0.2658259773
A171: 3312_3 | B171: 33555.9475 | C171: 3312_3_0 | D171: 135 | E171: 135 | F171: 0 | G171: 5.7905 | H171: 2.334666667 | I171: 2.8025 | J171: 0.6533333333 | K171: 2 | L171: 0 | M171: Gmaps | N171: Vähä | O171: Yhdys | P171: Länsi-Teiskontie | Q171: Ylöjärvi | R171: 3312 | S171: 3 | T171: 0 | U171: 3 | V171: 5795 | W171: 5795 | X171: 378 | Y171: 20 | Z171: 416 | AA171: 3 | AB171: 80 (100 %) | AC171: II (100 %) | AD171: PAB (0 %), sora (100 %) | AE171: 0 | AF171: Y3 (100 %) | AG171: 0 | AH171: 0 | AI171: ei | AJ171: 0 | AK171: 0 | AL171: 6.804 | AM171: 0 | AN171: 0 | AO171: 20 | AP171: 0.2 | AQ171: 7.004 | AR171: 2.334666667 | AS171: 6.4 | AT171: 2 | AU171: 0 | AV171: 0 | AW171: 0 | AX171: 0 | AY171: 0.0075 | AZ171: 0 | BA171: 0 | BB171: 0 | BC171: 0 | BD171: 0 | BE171: 0 | BF171: 0 | BG171: 8.4075 | BH171: 2.8025 | BI171: 0 | BJ171: 0 | BK171: 0 | BL171: 0 | BM171: 0 | BN171: 0 | BO171: 0 | BP171: 0 | BQ171: 0 | BR171: 0 | BS171: 51 | BT171: 0.51 | BU171: 0.45 | BV171: 0 | BW171: 0 | BX171: 1 | BY171: 1.96 | BZ171: 0.6533333333 | CA171: 17.3715 | CB171: 5.7905 | CC171: 2 | CE171: 0 | CF171: 2190510 | CI171: 2 | CJ171: https://www.google.com/maps/@61.72069944,23.70094726,3a,75y,90t/data=!3m3!1e1!3m1!2e0 | CK171: 0 | CL171: 0 | CN171: 1 | CO171: 0 | CP171: 0 | CQ171: 0 | CR171: 0 | CS171: 6 | CT171: 0 | CU171: 0 | CV171: 0 | CW171: 0 | CX171: 0 | CY171: 0 | CZ171: 0 | DA171: 0 | DB171: 0 | DC171: 0 | DD171: 0 | DE171: 90 | DF171: 0.45 | DH171: 0 | DI171: 0 | DJ171: 0 | DK171: 0 | DL171: 0 | DN171: 0 | DO171: Länsi-Teiskontie | DP171: Ylöjärvi | DQ171: 0 | DR171: 0 | DS171: 51 | DT171: 80 (100 %) | DU171: II (100 %) | DV171: PAB (0 %), sora (100 %) | DW171: Y3 (0 %) | DX171: 0 | DY171: 0
A172: 2470_6 | B172: 16182.202 | C172: 2470_6_0 | D172: 136 | E172: 136 | F172: 0 | G172: 5.767 | H172: 2.472 | I172: 2.666666667 | J172: 0.6283333333 | K172: 2 | L172: 0 | M172: Gmaps | N172: Vähä | O172: Yhdys | P172: Kauvatsantie | Q172: Sastamala, Kokemäki | R172: 2470 | S172: 6 | T172: 0 | U172: 6 | V172: 2806 | W172: 2806 | X172: 382 | Y172: 28 | Z172: 450 | AA172: 9 | AB172: 30 (3 %), 40 (3 %), 60 (63 %), 80 (30 %) | AC172: II (100 %) | AD172: AB (100 %) | AE172: 0 | AF172: Y3 (100 %) | AG172: 0 | AH172: 0 | AI172: kyllä | AJ172: 0 | AK172: 1.275481112 | AL172: 6.876 | AM172: 0 | AN172: 0 | AO172: 54 | AP172: 0.54 | AQ172: 7.416 | AR172: 2.472 | AS172: 8 | AT172: 0 | AU172: 0 | AV172: 0 | AW172: 0 | AX172: 0 | AY172: 0 | AZ172: 0 | BA172: 0 | BB172: 0 | BC172: 0 | BD172: 0 | BE172: 0 | BF172: 0 | BG172: 8 | BH172: 2.666666667 | BI172: 1004 | BJ172: 0.3578047042 | BK172: 0.5 | BL172: 0 | BM172: 0 | BN172: 0 | BO172: 0 | BP172: 1019 | BQ172: 0.363150392 | BR172: 0 | BS172: 36 | BT172: 0.36 | BU172: 0.025 | BV172: 0 | BW172: 0 | BX172: 1 | BY172: 1.885 | BZ172: 0.6283333333 | CA172: 17.301 | CB172: 5.767 | CC172: 2 | CE172: 0 | CF172: 1071892 | CI172: 2 | CJ172: https://www.google.com/maps/@61.42299185,22.54017808,3a,75y,90t/data=!3m3!1e1!3m1!2e0 | CK172: 0 | CL172: 0 | CN172: 0 | CO172: 0 | CP172: 0 | CQ172: 0 | CR172: 0 | CS172: 0 | CT172: 0 | CU172: 0 | CV172: 0 | CW172: 0 | CX172: 0 | CY172: 1004 | CZ172: 0 | DA172: 0 | DB172: 1 | DC172: 0 | DD172: 0 | DE172: 5 | DF172: 0.025 | DH172: 0 | DI172: 0 | DJ172: 0 | DK172: 0 | DL172: 0 | DN172: 1019 | DO172: Kauvatsantie | DP172: Sastamala, Kokemäki | DQ172: 0 | DR172: 1004 | DS172: 36 | DT172: 30 (3 %), 40 (3 %), 60 (63 %), 80 (30 %) | DU172: II (100 %) | DV172: AB (100 %) | DW172: Y3 (100 %) | DX172: 3579 | DY172: 1.275481112
A173: 12835_1 | B173: 3094.015 | C173: 12835_1_0 | D173: 137 | E173: 137 | F173: 0 | G173: 5.761666667 | H173: 2.736666667 | I173: 2.175 | J173: 0.85 | K173: 2 | L173: 0 | M173: Gmaps | N173: Vähä | O173: Yhdys | P173: Kämmäkäntie | Q173: Sastamala | R173: 12835 | S173: 1 | T173: 0 | U173: 1 | V173: 537 | W173: 537 | X173: 395 | Y173: 17 | Z173: 511 | AA173: 5 | AB173: 80 (100 %) | AC173: III (100 %) | AD173: PAB (100 %) | AE173: 1 | AF173: Y3 (100 %) | AG173: 0 | AH173: 0 | AI173: ei | AJ173: 0 | AK173: 0.009310986965 | AL173: 7.11 | AM173: 8 | AN173: 0.4 | AO173: 70 | AP173: 0.7 | AQ173: 8.21 | AR173: 2.736666667 | AS173: 5.44 | AT173: 0 | AU173: 0 | AV173: 1 | AW173: 0 | AX173: 0 | AY173: 0.085 | AZ173: 0 | BA173: 0 | BB173: 0 | BC173: 0 | BD173: 0 | BE173: 0 | BF173: 0 | BG173: 6.525 | BH173: 2.175 | BI173: 0 | BJ173: 0 | BK173: 0 | BL173: 0 | BM173: 0 | BN173: 0 | BO173: 0 | BP173: 0 | BQ173: 0 | BR173: 0 | BS173: 65 | BT173: 0.65 | BU173: 0.9 | BV173: 0 | BW173: 0 | BX173: 1 | BY173: 2.55 | BZ173: 0.85 | CA173: 17.285 | CB173: 5.761666667 | CC173: 2 | CE173: 537 | CF173: 212115 | CI173: 2 | CJ173: https://www.google.com/maps/@61.28740138,22.92831373,3a,75y,90t/data=!3m3!1e1!3m1!2e0 | CK173: 0 | CL173: 0 | CN173: 0 | CO173: 0 | CP173: 1 | CQ173: 0 | CR173: 0 | CS173: 68 | CT173: 0 | CU173: 0 | CV173: 0 | CW173: 0 | CX173: 0 | CY173: 0 | CZ173: 0 | DA173: 0 | DB173: 0 | DC173: 0.5 | DD173: 0 | DE173: 80 | DF173: 0.4 | DH173: 0 | DI173: 0 | DJ173: 0 | DK173: 0 | DL173: 0 | DN173: 0 | DO173: Kämmäkäntie | DP173: Sastamala | DQ173: 0 | DR173: 0 | DS173: 65 | DT173: 80 (100 %) | DU173: III (100 %) | DV173: PAB (100 %) | DW173: Y3 (100 %) | DX173: 5 | DY173: 0.009310986965
A174: 3383_1 | B174: 44257.28125 | C174: 3383_1_0 | D174: 138 | E174: 138 | F174: 0 | G174: 5.760416667 | H174: 1.663333333 | I174: 3.377083333 | J174: 0.72 | K174: 2 | L174: 0 | M174: Gmaps | N174: Vähä | O174: Yhdys | P174: Muroleentie | Q174: Ruovesi | R174: 3383 | S174: 1 | T174: 0 | U174: 1 | V174: 7683 | W174: 7683 | X174: 250 | Y174: 15 | Z174: 365 | AA174: 3 | AB174: 50 (17 %), 80 (83 %) | AC174: III (100 %) | AD174: PAB (100 %) | AE174: 0.06534745313 | AF174: Y3 (100 %) | AG174: 1 | AH174: 1 | AI174: ei | AJ174: 0 | AK174: 2.659508005 | AL174: 4.5 | AM174: 0 | AN174: 0 | AO174: 49 | AP174: 0.49 | AQ174: 4.99 | AR174: 1.663333333 | AS174: 4.8 | AT174: 2 | AU174: 0 | AV174: 1 | AW174: 0 | AX174: 1 | AY174: 0.29875 | AZ174: 0.0325 | BA174: 0 | BB174: 0 | BC174: 0 | BD174: 1 | BE174: 0 | BF174: 0 | BG174: 10.13125 | BH174: 3.377083333 | BI174: 0 | BJ174: 0 | BK174: 0 | BL174: 0 | BM174: 0 | BN174: 0 | BO174: 0 | BP174: 0 | BQ174: 0 | BR174: 0 | BS174: 16 | BT174: 0.16 | BU174: 1 | BV174: 0 | BW174: 0 | BX174: 1 | BY174: 2.16 | BZ174: 0.72 | CA174: 17.28125 | CB174: 5.760416667 | CC174: 2 | CE174: 502.0644824 | CF174: 1920750 | CI174: 2 | CJ174: https://www.google.com/maps/@61.8611771,24.04696974,3a,75y,90t/data=!3m3!1e1!3m1!2e0 | CK174: 0 | CL174: 0 | CN174: 1 | CO174: 0 | CP174: 1 | CQ174: 0 | CR174: 4 | CS174: 239 | CT174: 13 | CU174: 0 | CV174: 0 | CW174: 0 | CX174: 1 | CY174: 0 | CZ174: 0 | DA174: 0 | DB174: 0 | DC174: 0 | DD174: 0 | DE174: 326 | DF174: 1 | DH174: 0 | DI174: 0 | DJ174: 0 | DK174: 0 | DL174: 0 | DN174: 0 | DO174: Muroleentie | DP174: Ruovesi | DQ174: 0 | DR174: 0 | DS174: 16 | DT174: 50 (17 %), 80 (83 %) | DU174: III (100 %) | DV174: PAB (100 %) | DW174: Y3 (100 %) | DX174: 20433 | DY174: 2.659508005
A175: 13773_1 | B175: 33496.76733 | C175: 13773_1_0 | D175: 139 | E175: 139 | F175: 0 | G175: 5.759416667 | H175: 2.464 | I175: 2.497083333 | J175: 0.7983333333 | K175: 2 | L175: 0 | M175: Gmaps | N175: Vähä | O175: Yhdys | P175: Ahtialantie, Lastustentie | Q175: Lempäälä | R175: 13773 | S175: 1 | T175: 0 | U175: 1 | V175: 5816 | W175: 5816 | X175: 184 | Y175: 10 | Z175: 225 | AA175: 0 | AB175: 40 (0 %), 50 (15 %), 60 (63 %), 80 (23 %) | AC175: III (100 %) | AD175: AB (15 %), PAB (14 %), sora (71 %) | AE175: 0.1190902589 | AF175: Y3 (100 %) | AG175: 0 | AH175: 1 | AI175: ei | AJ175: 0 | AK175: 0 | AL175: 3.312 | AM175: 724 | AN175: 3 | AO175: 108 | AP175: 1.08 | AQ175: 7.392 | AR175: 2.464 | AS175: 3.2 | AT175: 2 | AU175: 0 | AV175: 0 | AW175: 0 | AX175: 1 | AY175: 0.03125 | AZ175: 0.26 | BA175: 0 | BB175: 0 | BC175: 0 | BD175: 1 | BE175: 0 | BF175: 0 | BG175: 7.49125 | BH175: 2.497083333 | BI175: 3722 | BJ175: 0.6399587345 | BK175: 1 | BL175: 0 | BM175: 0 | BN175: 0 | BO175: 0 | BP175: 0 | BQ175: 0 | BR175: 0 | BS175: 30 | BT175: 0.3 | BU175: 0.095 | BV175: 0 | BW175: 0 | BX175: 1 | BY175: 2.395 | BZ175: 0.7983333333 | CA175: 17.27825 | CB175: 5.759416667 | CC175: 2 | CE175: 692.6289455 | CF175: 1070144 | CI175: 2 | CJ175: https://www.google.com/maps/@61.32496115,23.89751017,3a,75y,90t/data=!3m3!1e1!3m1!2e0 | CK175: 0 | CL175: 0 | CN175: 1 | CO175: 0 | CP175: 0 | CQ175: 0 | CR175: 4 | CS175: 25 | CT175: 104 | CU175: 0 | CV175: 0 | CW175: 0 | CX175: 2 | CY175: 3722 | CZ175: 0 | DA175: 0 | DB175: 0 | DC175: 0 | DD175: 0 | DE175: 19 | DF175: 0.095 | DH175: 0 | DI175: 0 | DJ175: 0 | DK175: 0 | DL175: 0 | DN175: 0 | DO175: Ahtialantie, Lastustentie | DP175: Lempäälä | DQ175: 0 | DR175: 3722 | DS175: 30 | DT175: 40 (0 %), 50 (15 %), 60 (63 %), 80 (23 %) | DU175: III (100 %) | DV175: AB (15 %), PAB (14 %), sora (71 %) | DW175: Y3 (29 %) | DX175: 0 | DY175: 0
A176: 3312_2 | B176: 32469.41067 | C176: 3312_2_0 | D176: 140 | E176: 140 | F176: 0 | G176: 5.748833333 | H176: 2.358 | I176: 2.8025 | J176: 0.5883333333 | K176: 2 | L176: 0 | M176: Gmaps | N176: Vähä | O176: Yhdys | P176: Länsi-Teiskontie | Q176: Ylöjärvi | R176: 3312 | S176: 2 | T176: 0 | U176: 2 | V176: 5648 | W176: 5648 | X176: 378 | Y176: 20 | Z176: 416 | AA176: 3 | AB176: 80 (100 %) | AC176: II (100 %) | AD176: sora (100 %) | AE176: 0 | AF176: Y3 (100 %) | AG176: 0 | AH176: 1 | AI176: ei | AJ176: 0 | AK176: 0.8206444759 | AL176: 6.804 | AM176: 0 | AN176: 0 | AO176: 27 | AP176: 0.27 | AQ176: 7.074 | AR176: 2.358 | AS176: 6.4 | AT176: 2 | AU176: 0 | AV176: 0 | AW176: 0 | AX176: 0 | AY176: 0.0075 | AZ176: 0 | BA176: 0 | BB176: 0 | BC176: 0 | BD176: 0 | BE176: 0 | BF176: 0 | BG176: 8.4075 | BH176: 2.8025 | BI176: 0 | BJ176: 0 | BK176: 0 | BL176: 0 | BM176: 0 | BN176: 0 | BO176: 0 | BP176: 0 | BQ176: 0 | BR176: 0 | BS176: 18 | BT176: 0.18 | BU176: 0.585 | BV176: 0 | BW176: 0 | BX176: 1 | BY176: 1.765 | BZ176: 0.5883333333 | CA176: 17.2465 | CB176: 5.748833333 | CC176: 2 | CE176: 0 | CF176: 2134944 | CI176: 2 | CJ176: https://www.google.com/maps/@61.72672241,23.60187837,3a,75y,90t/data=!3m3!1e1!3m1!2e0 | CK176: 0 | CL176: 0 | CN176: 1 | CO176: 0 | CP176: 0 | CQ176: 0 | CR176: 0 | CS176: 6 | CT176: 0 | CU176: 0 | CV176: 0 | CW176: 0 | CX176: 0 | CY176: 0 | CZ176: 0 | DA176: 0 | DB176: 0 | DC176: 0 | DD176: 0 | DE176: 117 | DF176: 0.585 | DH176: 0 | DI176: 0 | DJ176: 0 | DK176: 0 | DL176: 0 | DN176: 0 | DO176: Länsi-Teiskontie | DP176: Ylöjärvi | DQ176: 0 | DR176: 0 | DS176: 18 | DT176: 80 (100 %) | DU176: II (100 %) | DV176: sora (100 %) | DX176: 4635 | DY176: 0.8206444759
A177: 3221_1 | B177: 26032.33283 | C177: 3221_1_0 | D177: 141 | E177: 141 | F177: 0 | G177: 5.725166667 | H177: 2.096 | I177: 2.7375 | J177: 0.8916666667 | K177: 2 | L177: 0 | M177: Gmaps | N177: Vähä | O177: Yhdys | P177: Vuolijoentie | Q177: Pälkäne | R177: 3221 | S177: 1 | T177: 0 | U177: 1 | V177: 4547 | W177: 4547 | X177: 146 | Y177: 10 | Z177: 178 | AA177: 3 | AB177: 50 (9 %), 60 (91 %) | AC177: III (100 %) | AD177: AB (2 %), sora (98 %) | AE177: 0 | AF177: Y3 (46 %) | AG177: 0 | AH177: 0 | AI177: ei | AJ177: 0 | AK177: 1.064877941 | AL177: 2.628 | AM177: 69 | AN177: 3 | AO177: 66 | AP177: 0.66 | AQ177: 6.288 | AR177: 2.096 | AS177: 3.2 | AT177: 2 | AU177: 0 | AV177: 0 | AW177: 0 | AX177: 1 | AY177: 0 | AZ177: 0.0125 | BA177: 0 | BB177: 0 | BC177: 0 | BD177: 1 | BE177: 1 | BF177: 0 | BG177: 8.2125 | BH177: 2.7375 | BI177: 0 | BJ177: 0 | BK177: 0 | BL177: 0 | BM177: 0 | BN177: 0 | BO177: 1 | BP177: 0 | BQ177: 0 | BR177: 0 | BS177: 45 | BT177: 0.45 | BU177: 0.225 | BV177: 0 | BW177: 0 | BX177: 1 | BY177: 2.675 | BZ177: 0.8916666667 | CA177: 17.1755 | CB177: 5.725166667 | CC177: 2 | CE177: 0 | CF177: 663862 | CI177: 2 | CJ177: https://www.google.com/maps/@61.2652609,24.39043528,3a,75y,90t/data=!3m3!1e1!3m1!2e0 | CK177: 0 | CL177: 2 | CN177: 1 | CO177: 0 | CP177: 0 | CQ177: 0 | CR177: 8 | CS177: 0 | CT177: 5 | CU177: 0 | CV177: 0 | CW177: 0 | CX177: 2 | CY177: 0 | CZ177: 0 | DA177: 1 | DB177: 0 | DC177: 0 | DD177: 0 | DE177: 45 | DF177: 0.225 | DH177: 0 | DI177: 0 | DJ177: 0 | DK177: 0 | DL177: 0 | DN177: 0 | DO177: Vuolijoentie | DP177: Pälkäne | DQ177: 0 | DR177: 0 | DS177: 45 | DT177: 50 (9 %), 60 (91 %) | DU177: III (100 %) | DV177: AB (2 %), sora (98 %) | DW177: Y3 (2 %) | DX177: 4842 | DY177: 1.064877941
A178: 3313_4 | B178: 8511.49625 | C178: 3313_4_4290 | D178: 142 | E178: 142 | F178: 0 | G178: 5.71625 | H178: 2.833333333 | I178: 2.259583333 | J178: 0.6233333333 | K178: 2 | L178: 0 | M178: Gmaps | N178: Vähä | O178: Yhdys | P178: Parkkuuntie | Q178: Ylöjärvi | R178: 3313 | S178: 4 | T178: 4290 | U178: 4 | V178: 5779 | W178: 1489 | X178: 285 | Y178: 18 | Z178: 347 | AA178: 4 | AB178: 80 (100 %) | AC178: III (100 %) | AD178: PAB (100 %) | AE178: 0.4623708145 | AF178: Y3 (2 %) | AG178: 0 | AH178: 0 | AI178: ei | AJ178: 0 | AK178: 1.9435863 | AL178: 5.13 | AM178: 98 | AN178: 3 | AO178: 37 | AP178: 0.37 | AQ178: 8.5 | AR178: 2.833333333 | AS178: 5.76 | AT178: 0 | AU178: 0 | AV178: 0 | AW178: 0 | AX178: 1 | AY178: 0.01875 | AZ178: 0 | BA178: 0 | BB178: 0 | BC178: 0 | BD178: 0 | BE178: 0 | BF178: 0 | BG178: 6.77875 | BH178: 2.259583333 | BI178: 0 | BJ178: 0 | BK178: 0 | BL178: 0 | BM178: 0 | BN178: 0 | BO178: 0 | BP178: 0 | BQ178: 0 | BR178: 0 | BS178: 21 | BT178: 0.21 | BU178: 0.66 | BV178: 0 | BW178: 0 | BX178: 1 | BY178: 1.87 | BZ178: 0.6233333333 | CA178: 17.14875 | CB178: 5.71625 | CC178: 2 | CE178: 688.4701428 | CF178: 424365 | CI178: 2 | CJ178: https://www.google.com/maps/@61.81861923,23.69832134,3a,75y,90t/data=!3m3!1e1!3m1!2e0 | CK178: 0 | CL178: 0 | CN178: 0 | CO178: 0 | CP178: 0 | CQ178: 0 | CR178: 1 | CS178: 15 | CT178: 0 | CU178: 0 | CV178: 0 | CW178: 0 | CX178: 0 | CY178: 0 | CZ178: 0 | DA178: 0 | DB178: 0 | DC178: 0 | DD178: 0 | DE178: 132 | DF178: 0.66 | DH178: 0 | DI178: 0 | DJ178: 0 | DK178: 0 | DL178: 0 | DN178: 0 | DO178: Parkkuuntie | DP178: Ylöjärvi | DQ178: 0 | DR178: 0 | DS178: 21 | DT178: 80 (100 %) | DU178: III (100 %) | DV178: PAB (100 %) | DW178: Y3 (100 %) | DX178: 2894 | DY178: 1.9435863
A179: 12985_1 | B179: 4874.632 | C179: 12985_1_0 | D179: 143 | E179: 143 | F179: 0 | G179: 5.708 | H179: 2.134666667 | I179: 3.176666667 | J179: 0.3966666667 | K179: 2 | L179: 0 | M179: Gmaps | N179: Vähä | O179: Yhdys | P179: Vatajantie | Q179: Sastamala | R179: 12985 | S179: 1 | T179: 0 | U179: 1 | V179: 854 | W179: 854 | X179: 198 | Y179: 20 | Z179: 217 | AA179: 0 | AB179: 60 (100 %) | AC179: III (100 %) | AD179: PAB (68 %), sora (32 %) | AE179: 0.8571263408 | AF179: Y3 (100 %) | AG179: 0 | AH179: 0 | AI179: ei | AJ179: 0 | AK179: 0 | AL179: 3.564 | AM179: 51 | AN179: 2.55 | AO179: 29 | AP179: 0.29 | AQ179: 6.404 | AR179: 2.134666667 | AS179: 6.4 | AT179: 2 | AU179: 0 | AV179: 0 | AW179: 0 | AX179: 1 | AY179: 0 | AZ179: 0.13 | BA179: 0 | BB179: 0 | BC179: 0 | BD179: 0 | BE179: 0 | BF179: 0 | BG179: 9.53 | BH179: 3.176666667 | BI179: 0 | BJ179: 0 | BK179: 0 | BL179: 0 | BM179: 0 | BN179: 0 | BO179: 0 | BP179: 0 | BQ179: 0 | BR179: 0 | BS179: 18 | BT179: 0.18 | BU179: 0.01 | BV179: 0 | BW179: 0 | BX179: 1 | BY179: 1.19 | BZ179: 0.3966666667 | CA179: 17.124 | CB179: 5.708 | CC179: 2 | CE179: 731.9858951 | CF179: 169092 | CI179: 2 | CJ179: https://www.google.com/maps/@61.35516394,23.07936669,3a,75y,90t/data=!3m3!1e1!3m1!2e0 | CK179: 0 | CL179: 0 | CN179: 1 | CO179: 0 | CP179: 0 | CQ179: 0 | CR179: 1 | CS179: 0 | CT179: 52 | CU179: 0 | CV179: 0 | CW179: 0 | CX179: 0 | CY179: 0 | CZ179: 0 | DA179: 0 | DB179: 0 | DC179: 0 | DD179: 0 | DE179: 2 | DF179: 0.01 | DH179: 0 | DI179: 0 | DJ179: 0 | DK179: 0 | DL179: 0 | DN179: 0 | DO179: Vatajantie | DP179: Sastamala | DQ179: 0 | DR179: 0 | DS179: 18 | DT179: 60 (100 %) | DU179: III (100 %) | DV179: PAB (68 %), sora (32 %) | DW179: Y3 (68 %) | DX179: 0 | DY179: 0
A180: 2621_1 | B180: 23520.6075 | C180: 2621_1_0 | D180: 144 | E180: 144 | F180: 0 | G180: 5.7075 | H180: 1.923333333 | I180: 2.664166667 | J180: 1.12 | K180: 2 | L180: 0 | M180: Gmaps | N180: Vähä | O180: Yhdys | P180: Trossitie | Q180: Hämeenkyrö | R180: 2621 | S180: 1 | T180: 0 | U180: 1 | V180: 4121 | W180: 4121 | X180: 260 | Y180: 18 | Z180: 368 | AA180: 5 | AB180: 40 (29 %), 50 (3 %), 60 (24 %), 80 (44 %) | AC180: III (100 %) | AD180: PAB (100 %) | AE180: 0.2683202965 | AF180: Y3 (100 %) | AG180: 0 | AH180: 0 | AI180: kyllä | AJ180: 0 | AK180: 0.09148264984 | AL180: 4.68 | AM180: 8 | AN180: 0.4 | AO180: 69 | AP180: 0.69 | AQ180: 5.77 | AR180: 1.923333333 | AS180: 5.76 | AT180: 0 | AU180: 0 | AV180: 0 | AW180: 0 | AX180: 1 | AY180: 0.2325 | AZ180: 0 | BA180: 0 | BB180: 0 | BC180: 0 | BD180: 1 | BE180: 0 | BF180: 0 | BG180: 7.9925 | BH180: 2.664166667 | BI180: 2550 | BJ180: 0.6187818491 | BK180: 1 | BL180: 0 | BM180: 0 | BN180: 0 | BO180: 1 | BP180: 0 | BQ180: 0 | BR180: 0 | BS180: 31 | BT180: 0.31 | BU180: 0.05 | BV180: 0 | BW180: 0 | BX180: 1 | BY180: 3.36 | BZ180: 1.12 | CA180: 17.1225 | CB180: 5.7075 | CC180: 2 | CE180: 1105.747942 | CF180: 1071460 | CI180: 2 | CJ180: https://www.google.com/maps/@61.59078275,23.11078743,3a,75y,90t/data=!3m3!1e1!3m1!2e0 | CK180: 0 | CL180: 0 | CN180: 0 | CO180: 0 | CP180: 0 | CQ180: 0 | CR180: 1 | CS180: 186 | CT180: 0 | CU180: 0 | CV180: 0 | CW180: 0 | CX180: 1 | CY180: 2550 | CZ180: 0 | DA180: 1 | DB180: 0 | DC180: 0 | DD180: 0 | DE180: 10 | DF180: 0.05 | DH180: 0 | DI180: 0 | DJ180: 0 | DK180: 0 | DL180: 0 | DN180: 0 | DO180: Trossitie | DP180: Hämeenkyrö | DQ180: 0 | DR180: 2550 | DS180: 31 | DT180: 40 (29 %), 50 (3 %), 60 (24 %), 80 (44 %) | DU180: III (100 %) | DV180: PAB (100 %) | DW180: Y3 (100 %) | DX180: 377 | DY180: 0.09148264984
A181: 13081_2 | B181: 47335.76783 | C181: 13081_2_0 | D181: 145 | E181: 145 | F181: 0 | G181: 5.705166667 | H181: 2.169333333 | I181: 3.050833333 | J181: 0.485 | K181: 2 | L181: 0 | M181: Gmaps | N181: Vähä | O181: Yhdys | P181: Takamaantie | Q181: Hämeenkyrö | R181: 13081 | S181: 2 | T181: 0 | U181: 2 | V181: 8297 | W181: 8297 | X181: 311 | Y181: 18 | Z181: 374 | AA181: 5 | AB181: 60 (16 %), 80 (84 %) | AC181: II (100 %) | AD181: PAB (66 %), sora (34 %) | AE181: 0.1999180243 | AF181: Y3 (100 %) | AG181: 0 | AH181: 1 | AI181: ei | AJ181: 0 | AK181: 1.062432204 | AL181: 5.598 | AM181: 3 | AN181: 0.15 | AO181: 76 | AP181: 0.76 | AQ181: 6.508 | AR181: 2.169333333 | AS181: 5.76 | AT181: 2 | AU181: 0 | AV181: 0 | AW181: 0 | AX181: 1 | AY181: 0.36 | AZ181: 0.0325 | BA181: 0 | BB181: 0 | BC181: 0 | BD181: 0 | BE181: 0 | BF181: 0 | BG181: 9.1525 | BH181: 3.050833333 | BI181: 0 | BJ181: 0 | BK181: 0 | BL181: 0 | BM181: 0 | BN181: 0 | BO181: 0 | BP181: 0 | BQ181: 0 | BR181: 0 | BS181: 36 | BT181: 0.36 | BU181: 0.095 | BV181: 0 | BW181: 0 | BX181: 1 | BY181: 1.455 | BZ181: 0.485 | CA181: 17.1155 | CB181: 5.705166667 | CC181: 2 | CE181: 1658.719847 | CF181: 2580367 | CI181: 2 | CJ181: https://www.google.com/maps/@61.62058741,23.07815225,3a,75y,90t/data=!3m3!1e1!3m1!2e0 | CK181: 0 | CL181: 0 | CN181: 1 | CO181: 0 | CP181: 0 | CQ181: 0 | CR181: 1 | CS181: 288 | CT181: 13 | CU181: 0 | CV181: 0 | CW181: 0 | CX181: 0 | CY181: 0 | CZ181: 0 | DA181: 0 | DB181: 0 | DC181: 0 | DD181: 0 | DE181: 19 | DF181: 0.095 | DH181: 0 | DI181: 0 | DJ181: 0 | DK181: 0 | DL181: 0 | DN181: 0 | DO181: Takamaantie | DP181: Hämeenkyrö | DQ181: 0 | DR181: 0 | DS181: 36 | DT181: 60 (16 %), 80 (84 %) | DU181: II (100 %) | DV181: PAB (66 %), sora (34 %) | DW181: Y3 (66 %) | DX181: 8815 | DY181: 1.062432204
A182: 14199_1 | B182: 29573.628 | C182: 14199_1_5420 | D182: 146 | E182: 146 | F182: 0 | G182: 5.6785 | H182: 2.242666667 | I182: 2.825833333 | J182: 0.61 | K182: 2 | L182: 0 | M182: Gmaps | N182: Vähä | O182: Yhdys | P182: Viitapohjantie | Q182: Tampere | R182: 14199 | S182: 1 | T182: 5420 | U182: 1 | V182: 10628 | W182: 5208 | X182: 176 | Y182: 17 | Z182: 210 | AA182: 2 | AB182: 50 (16 %), 60 (16 %), 80 (68 %) | AC182: II (100 %) | AD182: AB (18 %), PAB (82 %) | AE182: 0.005294388816 | AF182: Y3 (100 %) | AG182: 0 | AH182: 0 | AI182: ei | AJ182: 0 | AK182: 0.803187404 | AL182: 3.168 | AM182: 128 | AN182: 3 | AO182: 56 | AP182: 0.56 | AQ182: 6.728 | AR182: 2.242666667 | AS182: 5.44 | AT182: 2 | AU182: 0 | AV182: 0 | AW182: 0 | AX182: 0 | AY182: 0.0375 | AZ182: 0 | BA182: 0 | BB182: 0 | BC182: 0 | BD182: 1 | BE182: 0 | BF182: 0 | BG182: 8.4775 | BH182: 2.825833333 | BI182: 0 | BJ182: 0 | BK182: 0 | BL182: 0 | BM182: 0 | BN182: 0 | BO182: 0 | BP182: 0 | BQ182: 0 | BR182: 0 | BS182: 58 | BT182: 0.58 | BU182: 0.25 | BV182: 0 | BW182: 0 | BX182: 1 | BY182: 1.83 | BZ182: 0.61 | CA182: 17.0355 | CB182: 5.6785 | CC182: 2 | CE182: 27.57317695 | CF182: 916608 | CI182: 2 | CJ182: https://www.google.com/maps/@61.6370138,23.95998575,3a,75y,90t/data=!3m3!1e1!3m1!2e0 | CK182: 0 | CL182: 0 | CN182: 1 | CO182: 0 | CP182: 0 | CQ182: 0 | CR182: 0 | CS182: 30 | CT182: 0 | CU182: 0 | CV182: 0 | CW182: 0 | CX182: 1 | CY182: 0 | CZ182: 0 | DA182: 0 | DB182: 0 | DC182: 0 | DD182: 0 | DE182: 50 | DF182: 0.25 | DH182: 0 | DI182: 0 | DJ182: 0 | DK182: 0 | DL182: 0 | DN182: 0 | DO182: Viitapohjantie | DP182: Tampere | DQ182: 0 | DR182: 0 | DS182: 58 | DT182: 50 (16 %), 60 (16 %), 80 (68 %) | DU182: II (100 %) | DV182: AB (18 %), PAB (82 %) | DW182: Y3 (100 %) | DX182: 4183 | DY182: 0.803187404
A183: 14352_1 | B183: 7032.746667 | C183: 14352_1_0 | D183: 147 | E183: 147 | F183: 0 | G183: 5.653333333 | H183: 2.04 | I183: 2.28 | J183: 1.333333333 | K183: 2 | L183: 0 | M183: Gmaps | N183: Vähä | O183: Yhdys | P183: Tehtaantie | Q183: Mänttä-Vilppula | R183: 14352 | S183: 1 | T183: 0 | U183: 1 | V183: 1244 | W183: 1244 | X183: 210 | Y183: 12 | Z183: 244 | AA183: 6 | AB183: 50 (100 %) | AC183: II (100 %) | AD183: AB (100 %) | AE183: 0.1157273114 | AG183: 0 | AH183: 0 | AI183: kyllä | AJ183: H-541 | AK183: 0 | AL183: 3.78 | AM183: 11 | AN183: 0.55 | AO183: 179 | AP183: 1.79 | AQ183: 6.12 | AR183: 2.04 | AS183: 3.84 | AT183: 0 | AU183: 0 | AV183: 0 | AW183: 0 | AX183: 1 | AY183: 0 | AZ183: 0 | BA183: 0 | BB183: 0 | BC183: 0 | BD183: 1 | BE183: 1 | BF183: 0 | BG183: 6.84 | BH183: 2.28 | BI183: 1242 | BJ183: 0.998392283 | BK183: 1 | BL183: 0 | BM183: 0 | BN183: 0 | BO183: 0 | BP183: 726 | BQ183: 0.5836012862 | BR183: 1 | BS183: 210 | BT183: 1 | BU183: 0 | BV183: 0 | BW183: 0 | BX183: 1 | BY183: 4 | BZ183: 1.333333333 | CA183: 16.96 | CB183: 5.653333333 | CC183: 2 | CE183: 143.9647753 | CF183: 261240 | CI183: 2 | CJ183: https://www.google.com/maps/@62.1279312,24.50561909,3a,75y,90t/data=!3m3!1e1!3m1!2e0 | CK183: 0 | CL183: 1 | CN183: 0 | CO183: 0 | CP183: 0 | CQ183: 0 | CR183: 2 | CS183: 0 | CT183: 0 | CU183: 0 | CV183: 0 | CW183: 0 | CX183: 2 | CY183: 1242 | CZ183: 0 | DA183: 0 | DB183: 1 | DC183: 0 | DD183: 0 | DE183: 0 | DF183: 0 | DH183: 0 | DI183: 0 | DJ183: 0 | DK183: 0 | DL183: 0 | DN183: 726 | DO183: Tehtaantie | DP183: Mänttä-Vilppula | DQ183: H-541 | DR183: 1242 | DS183: 210 | DT183: 50 (100 %) | DU183: II (100 %) | DV183: AB (100 %) | DW183: Y3 (100 %) | DX183: 0 | DY183: 0
A184: 2986_3 | B184: 12308.66358 | C184: 2986_3_0 | D184: 148 | E184: 148 | F184: 0 | G184: 5.638416667 | H184: 2.481333333 | I184: 2.64375 | J184: 0.5133333333 | K184: 2 | L184: 0 | M184: Gmaps | N184: Vähä | O184: Yhdys | P184: Vesilahdentie | Q184: Punkalaidun, Urjala | R184: 2986 | S184: 3 | T184: 0 | U184: 3 | V184: 2183 | W184: 2183 | X184: 353 | Y184: 18 | Z184: 392 | AA184: 4 | AB184: 60 (37 %), 80 (63 %) | AC184: II (100 %) | AD184: AB (100 %) | AE184: 0 | AF184: Y3 (100 %) | AG184: 0 | AH184: 0 | AI184: ei | AJ184: 0 | AK184: 1.866697206 | AL184: 6.354 | AM184: 0 | AN184: 0 | AO184: 109 | AP184: 1.09 | AQ184: 7.444 | AR184: 2.481333333 | AS184: 5.76 | AT184: 2 | AU184: 0 | AV184: 0 | AW184: 0 | AX184: 0 | AY184: 0.17125 | AZ184: 0 | BA184: 0 | BB184: 0 | BC184: 0 | BD184: 0 | BE184: 0 | BF184: 0 | BG184: 7.93125 | BH184: 2.64375 | BI184: 0 | BJ184: 0 | BK184: 0 | BL184: 0 | BM184: 0 | BN184: 0 | BO184: 0 | BP184: 0 | BQ184: 0 | BR184: 0 | BS184: 15 | BT184: 0.15 | BU184: 0.39 | BV184: 0 | BW184: 0 | BX184: 1 | BY184: 1.54 | BZ184: 0.5133333333 | CA184: 16.91525 | CB184: 5.638416667 | CC184: 2 | CE184: 0 | CF184: 770599 | CI184: 2 | CJ184: https://www.google.com/maps/@61.1837845,23.2597219,3a,75y,90t/data=!3m3!1e1!3m1!2e0 | CK184: 0 | CL184: 0 | CN184: 1 | CO184: 0 | CP184: 0 | CQ184: 0 | CR184: 0 | CS184: 137 | CT184: 0 | CU184: 0 | CV184: 0 | CW184: 0 | CX184: 0 | CY184: 0 | CZ184: 0 | DA184: 0 | DB184: 0 | DC184: 0 | DD184: 0 | DE184: 78 | DF184: 0.39 | DH184: 0 | DI184: 0 | DJ184: 0 | DK184: 0 | DL184: 0 | DN184: 0 | DO184: Vesilahdentie | DP184: Punkalaidun, Urjala | DQ184: 0 | DR184: 0 | DS184: 15 | DT184: 60 (37 %), 80 (63 %) | DU184: II (100 %) | DV184: AB (100 %) | DW184: Y3 (100 %) | DX184: 4075 | DY184: 1.866697206
A185: 2501_2 | B185: 25153.975 | C185: 2501_2_0 | D185: 149 | E185: 149 | F185: 0 | G185: 5.621 | H185: 1.892666667 | I185: 2.685 | J185: 1.043333333 | K185: 2 | L185: 0 | M185: Gmaps | N185: Vähä | O185: Yhdys | P185: Kutalantie | Q185: Sastamala | R185: 2501 | S185: 2 | T185: 0 | U185: 2 | V185: 4475 | W185: 4475 | X185: 271 | Y185: 14 | Z185: 501 | AA185: 1 | AB185: 50 (47 %), 60 (44 %), 80 (10 %) | AC185: III (100 %) | AD185: AB (2 %), PAB (21 %), sora (76 %) | AE185: 0.2145293521 | AF185: Y3 (52 %) | AG185: 0 | AH185: 0 | AI185: ei | AJ185: H-2200 | AK185: 0 | AL185: 4.878 | AM185: 0 | AN185: 0 | AO185: 80 | AP185: 0.8 | AQ185: 5.678 | AR185: 1.892666667 | AS185: 4.48 | AT185: 2 | AU185: 0 | AV185: 0 | AW185: 0 | AX185: 1 | AY185: 0.035 | AZ185: 0.485 | BA185: 0.055 | BB185: 0 | BC185: 0 | BD185: 0 | BE185: 0 | BF185: 0 | BG185: 8.055 | BH185: 2.685 | BI185: 0 | BJ185: 0 | BK185: 0 | BL185: 0 | BM185: 0 | BN185: 0 | BO185: 0 | BP185: 0 | BQ185: 0 | BR185: 0 | BS185: 29 | BT185: 0.29 | BU185: 1.84 | BV185: 0 | BW185: 0 | BX185: 1 | BY185: 3.13 | BZ185: 1.043333333 | CA185: 16.863 | CB185: 5.621 | CC185: 2 | CE185: 960.0188504 | CF185: 1212725 | CI185: 2 | CJ185: https://www.google.com/maps/@61.41944603,23.09042345,3a,75y,90t/data=!3m3!1e1!3m1!2e0 | CK185: 0 | CL185: 0 | CN185: 1 | CO185: 0 | CP185: 0 | CQ185: 0 | CR185: 2 | CS185: 28 | CT185: 194 | CU185: 110 | CV185: 0 | CW185: 0 | CX185: 0 | CY185: 0 | CZ185: 0 | DA185: 0 | DB185: 0 | DC185: 0.5 | DD185: 0.5 | DE185: 168 | DF185: 0.84 | DH185: 0 | DI185: 0 | DJ185: 0 | DK185: 0 | DL185: 0 | DN185: 0 | DO185: Kutalantie | DP185: Sastamala | DQ185: H-2200 | DR185: 0 | DS185: 29 | DT185: 50 (47 %), 60 (44 %), 80 (10 %) | DU185: III (100 %) | DV185: AB (2 %), PAB (21 %), sora (76 %) | DW185: Y3 (24 %) | DX185: 0 | DY185: 0
A186: 13311_2 | B186: 19485.214 | C186: 13311_2_0 | D186: 150 | E186: 150 | F186: 0 | G186: 5.534 | H186: 1.440666667 | I186: 3.68 | J186: 0.4133333333 | K186: 2 | L186: 0 | M186: Gmaps | N186: Vähä | O186: Yhdys | P186: Alkkiantie | Q186: Parkano, Karvia | R186: 13311 | S186: 2 | T186: 0 | U186: 2 | V186: 3521 | W186: 3521 | X186: 214 | Y186: 22 | Z186: 255 | AA186: 7 | AB186: 80 (100 %) | AC186: III (100 %) | AD186: SOP (52 %), sora (48 %) | AE186: 0.2192195904 | AF186: Y3 (100 %) | AG186: 0 | AH186: 0 | AI186: ei | AJ186: 0 | AK186: 0.520306731 | AL186: 3.852 | AM186: 0 | AN186: 0 | AO186: 47 | AP186: 0.47 | AQ186: 4.322 | AR186: 1.440666667 | AS186: 7.04 | AT186: 2 | AU186: 0 | AV186: 0 | AW186: 1 | AX186: 1 | AY186: 0 | AZ186: 0 | BA186: 0 | BB186: 0 | BC186: 0 | BD186: 0 | BE186: 0 | BF186: 0 | BG186: 11.04 | BH186: 3.68 | BI186: 0 | BJ186: 0 | BK186: 0 | BL186: 0 | BM186: 0 | BN186: 0 | BO186: 0 | BP186: 0 | BQ186: 0 | BR186: 0 | BS186: 16 | BT186: 0.16 | BU186: 0.08 | BV186: 0 | BW186: 0 | BX186: 1 | BY186: 1.24 | BZ186: 0.4133333333 | CA186: 16.602 | CB186: 5.534 | CC186: 2 | CE186: 771.8721777 | CF186: 753494 | CI186: 2 | CJ186: https://www.google.com/maps/@62.16201881,22.91613736,3a,75y,90t/data=!3m3!1e1!3m1!2e0 | CK186: 0 | CL186: 0 | CN186: 1 | CO186: 0 | CP186: 0 | CQ186: 2 | CR186: 1 | CS186: 0 | CT186: 0 | CU186: 0 | CV186: 0 | CW186: 0 | CX186: 0 | CY186: 0 | CZ186: 0 | DA186: 0 | DB186: 0 | DC186: 0 | DD186: 0 | DE186: 16 | DF186: 0.08 | DH186: 0 | DI186: 0 | DJ186: 0 | DK186: 0 | DL186: 0 | DN186: 0 | DO186: Alkkiantie | DP186: Parkano, Karvia | DQ186: 0 | DR186: 0 | DS186: 16 | DT186: 80 (100 %) | DU186: III (100 %) | DV186: SOP (52 %), sora (48 %) | DW186: Y3 (52 %) | DX186: 1832 | DY186: 0.520306731
A187: 12819_3 | B187: 27048.13833 | C187: 12819_3_0 | D187: 151 | E187: 151 | F187: 0 | G187: 5.525666667 | H187: 2.710666667 | I187: 1.9 | J187: 0.915 | K187: 2 | L187: 0 | M187: Gmaps | N187: Vähä | O187: Yhdys | P187: Keikyäntie | Q187: Sastamala | R187: 12819 | S187: 3 | T187: 0 | U187: 3 | V187: 4895 | W187: 4895 | X187: 239 | Y187: 10 | Z187: 328 | AA187: 2 | AB187: 40 (17 %), 50 (44 %), 80 (40 %) | AC187: Ic (17 %), III (83 %) | AD187: AB (14 %), PAB (86 %) | AE187: 0 | AF187: Y3 (20 %) | AG187: 1 | AH187: 2 | AI187: ei | AJ187: 0 | AK187: 0 | AL187: 4.302 | AM187: 62 | AN187: 3 | AO187: 83 | AP187: 0.83 | AQ187: 8.132 | AR187: 2.710666667 | AS187: 3.2 | AT187: 0 | AU187: 0 | AV187: 0 | AW187: 0 | AX187: 0 | AY187: 0 | AZ187: 0.5 | BA187: 0 | BB187: 0 | BC187: 1 | BD187: 0 | BE187: 0 | BF187: 1 | BG187: 5.7 | BH187: 1.9 | BI187: 1996 | BJ187: 0.4077630235 | BK187: 0.5 | BL187: 0 | BM187: 0 | BN187: 0 | BO187: 1 | BP187: 19 | BQ187: 0.003881511747 | BR187: 0 | BS187: 18 | BT187: 0.18 | BU187: 0.065 | BV187: 0 | BW187: 0 | BX187: 1 | BY187: 2.745 | BZ187: 0.915 | CA187: 16.577 | CB187: 5.525666667 | CC187: 2 | CE187: 0 | CF187: 1169905 | CI187: 2 | CJ187: https://www.google.com/maps/@61.26558357,22.70008032,3a,75y,90t/data=!3m3!1e1!3m1!2e0 | CK187: 0 | CL187: 0 | CN187: 0 | CO187: 0 | CP187: 0 | CQ187: 0 | CR187: 0 | CS187: 0 | CT187: 443 | CU187: 0 | CV187: 0 | CW187: 1 | CX187: 0 | CY187: 1996 | CZ187: 0 | DA187: 1 | DB187: 1 | DC187: 0 | DD187: 0 | DE187: 13 | DF187: 0.065 | DH187: 0 | DI187: 0 | DJ187: 0 | DK187: 1 | DL187: 0 | DN187: 19 | DO187: Keikyäntie | DP187: Sastamala | DQ187: 0 | DR187: 1996 | DS187: 18 | DT187: 40 (17 %), 50 (44 %), 80 (40 %) | DU187: Ic (17 %), III (83 %) | DV187: AB (14 %), PAB (86 %) | DW187: Y3 (100 %) | DX187: 0 | DY187: 0
A188: 308_2 | B188: 5482.45 | C188: 308_2_3415 | D188: 152 | E188: 152 | F188: 0 | G188: 5.51 | H188: 2.39 | I188: 2.453333333 | J188: 0.6666666667 | K188: 2 | L188: 0 | M188: Gmaps | N188: Vähä | O188: Seutu | P188: Varikontie | Q188: Pirkkala | R188: 308 | S188: 2 | T188: 3415 | U188: 2 | V188: 4410 | W188: 995 | X188: 215 | Y188: 23 | Z188: 263 | AA188: 7 | AB188: 50 (41 %), 80 (59 %) | AC188: Is (100 %) | AD188: AB (100 %) | AE188: 0.009988656541 | AF188: Y3 (0 %) | AG188: 0 | AH188: 0 | AI188: ei | AJ188: 0 | AK188: 0 | AL188: 3.87 | AM188: 81 | AN188: 3 | AO188: 30 | AP188: 0.3 | AQ188: 7.17 | AR188: 2.39 | AS188: 7.36 | AT188: 0 | AU188: 0 | AV188: 0 | AW188: 0 | AX188: 0 | AY188: 0 | AZ188: 0 | BA188: 0 | BB188: 0 | BC188: 0 | BD188: 0 | BE188: 0 | BF188: 0 | BG188: 7.36 | BH188: 2.453333333 | BI188: 0 | BJ188: 0 | BK188: 0 | BL188: 0 | BM188: 0 | BN188: 0 | BO188: 0 | BP188: 505 | BQ188: 0.5075376884 | BR188: 1 | BS188: 0 | BT188: 0 | BU188: 0 | BV188: 0 | BW188: 0 | BX188: 1 | BY188: 2 | BZ188: 0.6666666667 | CA188: 16.53 | CB188: 5.51 | CC188: 2 | CE188: 9.938713258 | CF188: 213925 | CI188: 2 | CJ188: https://www.google.com/maps/@61.42171196,23.61623347,3a,75y,90t/data=!3m3!1e1!3m1!2e0 | CK188: 0 | CL188: 0 | CN188: 0 | CO188: 0 | CP188: 0 | CQ188: 0 | CR188: 0 | CS188: 0 | CT188: 0 | CU188: 0 | CV188: 0 | CW188: 0 | CX188: 0 | CY188: 0 | CZ188: 0 | DA188: 0 | DB188: 1 | DC188: 0 | DD188: 0 | DE188: 0 | DF188: 0 | DH188: 0 | DI188: 0 | DJ188: 0 | DK188: 0 | DL188: 0 | DN188: 505 | DO188: Varikontie | DP188: Pirkkala | DQ188: 0 | DR188: 0 | DS188: 0 | DT188: 50 (41 %), 80 (59 %) | DU188: Is (100 %) | DV188: AB (100 %) | DW188: Y2 (100 %) | DX188: 0 | DY188: 0
A189: 13972_1 | B189: 14195.508 | C189: 13972_1_0 | D189: 153 | E189: 153 | F189: 0 | G189: 5.414 | H189: 1.484 | I189: 2.816666667 | J189: 1.113333333 | K189: 2 | L189: 0 | M189: Gmaps | N189: Vähä | O189: Yhdys | P189: Silmontie | Q189: Pälkäne | R189: 13972 | S189: 1 | T189: 0 | U189: 1 | V189: 2622 | W189: 2622 | X189: 194 | Y189: 17 | Z189: 229 | AA189: 2 | AB189: 40 (36 %), 50 (10 %), 60 (54 %) | AC189: III (100 %) | AD189: AB (18 %), PAB (82 %) | AE189: 0.8092363096 | AF189: Y3 (100 %) | AG189: 0 | AH189: 0 | AI189: ei | AJ189: 0 | AK189: 1.144927536 | AL189: 3.492 | AM189: 9 | AN189: 0.45 | AO189: 51 | AP189: 0.51 | AQ189: 4.452 | AR189: 1.484 | AS189: 5.44 | AT189: 0 | AU189: 0 | AV189: 0 | AW189: 0 | AX189: 1 | AY189: 0.01 | AZ189: 0 | BA189: 0 | BB189: 0 | BC189: 0 | BD189: 1 | BE189: 1 | BF189: 0 | BG189: 8.45 | BH189: 2.816666667 | BI189: 2615 | BJ189: 0.9973302822 | BK189: 1 | BL189: 0 | BM189: 0 | BN189: 0 | BO189: 0 | BP189: 1314 | BQ189: 0.5011441648 | BR189: 1 | BS189: 28 | BT189: 0.28 | BU189: 0.06 | BV189: 0 | BW189: 0 | BX189: 1 | BY189: 3.34 | BZ189: 1.113333333 | CA189: 16.242 | CB189: 5.414 | CC189: 2 | CE189: 2121.817604 | CF189: 508668 | CI189: 2 | CJ189: https://www.google.com/maps/@61.3495633,24.53013589,3a,75y,90t/data=!3m3!1e1!3m1!2e0 | CK189: 0 | CL189: 2 | CN189: 0 | CO189: 0 | CP189: 0 | CQ189: 0 | CR189: 6 | CS189: 8 | CT189: 0 | CU189: 0 | CV189: 0 | CW189: 0 | CX189: 1 | CY189: 2615 | CZ189: 0 | DA189: 0 | DB189: 1 | DC189: 0 | DD189: 0 | DE189: 12 | DF189: 0.06 | DH189: 0 | DI189: 0 | DJ189: 0 | DK189: 0 | DL189: 0 | DN189: 1314 | DO189: Silmontie | DP189: Pälkäne | DQ189: 0 | DR189: 2615 | DS189: 28 | DT189: 40 (36 %), 50 (10 %), 60 (54 %) | DU189: III (100 %) | DV189: AB (18 %), PAB (82 %) | DW189: Y3 (100 %) | DX189: 3002 | DY189: 1.144927536
A190: 3073_1 | B190: 7379.694667 | C190: 3073_1_2611 | D190: 154 | E190: 154 | F190: 0 | G190: 5.410333333 | H190: 2.295333333 | I190: 2.173333333 | J190: 0.9416666667 | K190: 2 | L190: 0 | M190: Gmaps | N190: Vähä | O190: Yhdys | P190: Uskilantie | Q190: Valkeakoski, Hattula | R190: 3073 | S190: 1 | T190: 2611 | U190: 1 | V190: 3975 | W190: 1364 | X190: 267 | Y190: 11 | Z190: 325 | AA190: 1 | AB190: 50 (85 %), 80 (15 %) | AC190: II (2 %), III (98 %) | AD190: PAB (5 %), sora (95 %) | AE190: 0 | AF190: Y3 (6 %) | AG190: 0 | AH190: 0 | AI190: ei | AJ190: 0 | AK190: 0.007331378299 | AL190: 4.806 | AM190: 25 | AN190: 1.25 | AO190: 83 | AP190: 0.83 | AQ190: 6.886 | AR190: 2.295333333 | AS190: 3.52 | AT190: 2 | AU190: 0 | AV190: 0 | AW190: 0 | AX190: 1 | AY190: 0 | AZ190: 0 | BA190: 0 | BB190: 0 | BC190: 0 | BD190: 0 | BE190: 0 | BF190: 0 | BG190: 6.52 | BH190: 2.173333333 | BI190: 0 | BJ190: 0 | BK190: 0 | BL190: 0 | BM190: 0 | BN190: 0 | BO190: 1 | BP190: 0 | BQ190: 0 | BR190: 0 | BS190: 57 | BT190: 0.57 | BU190: 0.255 | BV190: 0 | BW190: 0 | BX190: 1 | BY190: 2.825 | BZ190: 0.9416666667 | CA190: 16.231 | CB190: 5.410333333 | CC190: 2 | CE190: 0 | CF190: 364188 | CI190: 2 | CJ190: https://www.google.com/maps/@61.23001537,24.24407688,3a,75y,90t/data=!3m3!1e1!3m1!2e0 | CK190: 0 | CL190: 0 | CN190: 1 | CO190: 0 | CP190: 0 | CQ190: 0 | CR190: 1 | CS190: 0 | CT190: 0 | CU190: 0 | CV190: 0 | CW190: 0 | CX190: 0 | CY190: 0 | CZ190: 0 | DA190: 1 | DB190: 0 | DC190: 0 | DD190: 0 | DE190: 51 | DF190: 0.255 | DH190: 0 | DI190: 0 | DJ190: 0 | DK190: 0 | DL190: 0 | DN190: 0 | DO190: Uskilantie | DP190: Valkeakoski, Hattula | DQ190: 0 | DR190: 0 | DS190: 57 | DT190: 50 (85 %), 80 (15 %) | DU190: II (2 %), III (98 %) | DV190: PAB (5 %), sora (95 %) | DW190: Y3 (5 %) | DX190: 10 | DY190: 0.007331378299
A191: 2790_6 | B191: 52560.925 | C191: 2790_6_0 | D191: 155 | E191: 155 | F191: 0 | G191: 5.404166667 | H191: 1.826666667 | I191: 3.1225 | J191: 0.455 | K191: 2 | L191: 0 | M191: Gmaps | N191: Vähä | O191: Yhdys | P191: Isoniementie, Isonniementie | Q191: Virrat, Kihniö | R191: 2790 | S191: 6 | T191: 0 | U191: 6 | V191: 9726 | W191: 9726 | X191: 290 | Y191: 23 | Z191: 388 | AA191: 7 | AB191: 80 (100 %) | AC191: III (100 %) | AD191: PAB (100 %) | AE191: 0.4447924094 | AF191: Y3 (100 %) | AG191: 1 | AH191: 1 | AI191: ei | AJ191: 0 | AK191: 1.997121119 | AL191: 5.22 | AM191: 0 | AN191: 0 | AO191: 26 | AP191: 0.26 | AQ191: 5.48 | AR191: 1.826666667 | AS191: 7.36 | AT191: 0 | AU191: 0 | AV191: 0 | AW191: 0 | AX191: 1 | AY191: 0 | AZ191: 0.0075 | BA191: 0 | BB191: 0 | BC191: 0 | BD191: 0 | BE191: 0 | BF191: 1 | BG191: 9.3675 | BH191: 3.1225 | BI191: 0 | BJ191: 0 | BK191: 0 | BL191: 0 | BM191: 0 | BN191: 0 | BO191: 0 | BP191: 0 | BQ191: 0 | BR191: 0 | BS191: 16 | BT191: 0.16 | BU191: 0.205 | BV191: 0 | BW191: 0 | BX191: 1 | BY191: 1.365 | BZ191: 0.455 | CA191: 16.2125 | CB191: 5.404166667 | CC191: 2 | CE191: 4326.050974 | CF191: 2820540 | CI191: 2 | CJ191: https://www.google.com/maps/@62.27308244,23.22036311,3a,75y,90t/data=!3m3!1e1!3m1!2e0 | CK191: 0 | CL191: 0 | CN191: 0 | CO191: 0 | CP191: 0 | CQ191: 0 | CR191: 1 | CS191: 0 | CT191: 3 | CU191: 0 | CV191: 0 | CW191: 0 | CX191: 0 | CY191: 0 | CZ191: 0 | DA191: 0 | DB191: 0 | DC191: 0 | DD191: 0 | DE191: 41 | DF191: 0.205 | DH191: 0 | DI191: 0 | DJ191: 0 | DK191: 1 | DL191: 0 | DN191: 0 | DO191: Isoniementie, Isonniementie | DP191: Virrat, Kihniö | DQ191: 0 | DR191: 0 | DS191: 16 | DT191: 80 (100 %) | DU191: III (100 %) | DV191: PAB (100 %) | DW191: Y3 (100 %) | DX191: 19424 | DY191: 1.997121119
A192: 2764_2 | B192: 31326.1265 | C192: 2764_2_0 | D192: 156 | E192: 156 | F192: 0 | G192: 5.3705 | H192: 1.941333333 | I192: 3.014166667 | J192: 0.415 | K192: 2 | L192: 0 | M192: Gmaps | N192: Vähä | O192: Yhdys | P192: Poikeluksentie | Q192: Ikaalinen | R192: 2764 | S192: 2 | T192: 0 | U192: 2 | V192: 5833 | W192: 5833 | X192: 298 | Y192: 22 | Z192: 380 | AA192: 6 | AB192: 50 (14 %), 60 (7 %), 80 (79 %) | AC192: III (100 %) | AD192: PAB (100 %) | AE192: 0.7132995929 | AF192: Y3 (29 %) | AG192: 0 | AH192: 0 | AI192: ei | AJ192: 0 | AK192: 2.117263844 | AL192: 5.364 | AM192: 0 | AN192: 0 | AO192: 46 | AP192: 0.46 | AQ192: 5.824 | AR192: 1.941333333 | AS192: 7.04 | AT192: 2 | AU192: 0 | AV192: 0 | AW192: 0 | AX192: 0 | AY192: 0.0025 | AZ192: 0 | BA192: 0 | BB192: 0 | BC192: 0 | BD192: 0 | BE192: 0 | BF192: 0 | BG192: 9.0425 | BH192: 3.014166667 | BI192: 0 | BJ192: 0 | BK192: 0 | BL192: 0 | BM192: 0 | BN192: 0 | BO192: 0 | BP192: 0 | BQ192: 0 | BR192: 0 | BS192: 0 | BT192: 0 | BU192: 0.245 | BV192: 0 | BW192: 0 | BX192: 1 | BY192: 1.245 | BZ192: 0.415 | CA192: 16.1115 | CB192: 5.3705 | CC192: 2 | CE192: 4160.676526 | CF192: 1738234 | CI192: 2 | CJ192: https://www.google.com/maps/@61.79527082,23.2986882,3a,75y,90t/data=!3m3!1e1!3m1!2e0 | CK192: 0 | CL192: 0 | CN192: 1 | CO192: 0 | CP192: 0 | CQ192: 0 | CR192: 0 | CS192: 2 | CT192: 0 | CU192: 0 | CV192: 0 | CW192: 0 | CX192: 0 | CY192: 0 | CZ192: 0 | DA192: 0 | DB192: 0 | DC192: 0 | DD192: 0 | DE192: 49 | DF192: 0.245 | DH192: 0 | DI192: 0 | DJ192: 0 | DK192: 0 | DL192: 0 | DN192: 0 | DO192: Poikeluksentie | DP192: Ikaalinen | DQ192: 0 | DR192: 0 | DS192: 0 | DT192: 50 (14 %), 60 (7 %), 80 (79 %) | DU192: III (100 %) | DV192: PAB (100 %) | DW192: Y3 (100 %) | DX192: 12350 | DY192: 2.117263844
A193: 13157_1 | B193: 44869.065 | C193: 13157_1_0 | D193: 157 | E193: 157 | F193: 0 | G193: 5.3175 | H193: 2.923333333 | I193: 1.834166667 | J193: 0.56 | K193: 2 | L193: 0 | M193: Gmaps | N193: Vähä | O193: Yhdys | P193: Joenkulmantie, Pentinmaantie | Q193: Hämeenkyrö | R193: 13157 | S193: 1 | T193: 0 | U193: 1 | V193: 8438 | W193: 8438 | X193: 240 | Y193: 14 | Z193: 265 | AA193: 3 | AB193: 50 (63 %), 80 (37 %) | AC193: III (100 %) | AD193: AB (1 %), PAB (0 %), sora (99 %) | AE193: 0 | AF193: Y3 (100 %) | AG193: 0 | AH193: 1 | AI193: kyllä | AJ193: 0 | AK193: 0 | AL193: 4.32 | AM193: 54 | AN193: 2.7 | AO193: 175 | AP193: 1.75 | AQ193: 8.77 | AR193: 2.923333333 | AS193: 4.48 | AT193: 0 | AU193: 0 | AV193: 0 | AW193: 0 | AX193: 1 | AY193: 0 | AZ193: 0.0225 | BA193: 0 | BB193: 0 | BC193: 0 | BD193: 0 | BE193: 0 | BF193: 0 | BG193: 5.5025 | BH193: 1.834166667 | BI193: 0 | BJ193: 0 | BK193: 0 | BL193: 0 | BM193: 0 | BN193: 0 | BO193: 0 | BP193: 0 | BQ193: 0 | BR193: 0 | BS193: 34 | BT193: 0.34 | BU193: 0.34 | BV193: 0 | BW193: 0 | BX193: 1 | BY193: 1.68 | BZ193: 0.56 | CA193: 15.9525 | CB193: 5.3175 | CC193: 2 | CE193: 0 | CF193: 2025120 | CI193: 2 | CJ193: https://www.google.com/maps/@61.57938976,23.46219332,3a,75y,90t/data=!3m3!1e1!3m1!2e0 | CK193: 0 | CL193: 0 | CN193: 0 | CO193: 0 | CP193: 0 | CQ193: 0 | CR193: 4 | CS193: 0 | CT193: 9 | CU193: 0 | CV193: 0 | CW193: 0 | CX193: 0 | CY193: 0 | CZ193: 0 | DA193: 0 | DB193: 0 | DC193: 0 | DD193: 0 | DE193: 68 | DF193: 0.34 | DH193: 0 | DI193: 0 | DJ193: 0 | DK193: 0 | DL193: 0 | DN193: 0 | DO193: Joenkulmantie, Pentinmaantie | DP193: Hämeenkyrö | DQ193: 0 | DR193: 0 | DS193: 34 | DT193: 50 (63 %), 80 (37 %) | DU193: III (100 %) | DV193: AB (1 %), PAB (0 %), sora (99 %) | DW193: Y3 (1 %) | DX193: 0 | DY193: 0
A194: 3350_4 | B194: 65373.0935 | C194: 3350_4_0 | D194: 158 | E194: 158 | F194: 0 | G194: 5.31575 | H194: 1.848666667 | I194: 2.907083333 | J194: 0.56 | K194: 2 | L194: 0 | M194: Gmaps | N194: Vähä | O194: Yhdys | P194: Itä-Aureentie, Kuruntie | Q194: Kihniö, Ylöjärvi | R194: 3350 | S194: 4 | T194: 0 | U194: 4 | V194: 12298 | W194: 12298 | X194: 277 | Y194: 14 | Z194: 381 | AA194: 2 | AB194: 50 (4 %), 60 (8 %), 80 (88 %) | AC194: II (5 %), III (95 %) | AD194: AB (1 %), PAB (98 %) | AE194: 0.1870314916 | AF194: Y3 (100 %) | AG194: 0 | AH194: 3 | AI194: ei | AJ194: 0 | AK194: 1.773784355 | AL194: 4.986 | AM194: 0 | AN194: 0 | AO194: 56 | AP194: 0.56 | AQ194: 5.546 | AR194: 1.848666667 | AS194: 4.48 | AT194: 2 | AU194: 0 | AV194: 0 | AW194: 0 | AX194: 1 | AY194: 0.02875 | AZ194: 0.2125 | BA194: 0 | BB194: 0 | BC194: 0 | BD194: 0 | BE194: 0 | BF194: 1 | BG194: 8.72125 | BH194: 2.907083333 | BI194: 0 | BJ194: 0 | BK194: 0 | BL194: 0 | BM194: 0 | BN194: 0 | BO194: 0 | BP194: 0 | BQ194: 0 | BR194: 0 | BS194: 17 | BT194: 0.17 | BU194: 0.51 | BV194: 0 | BW194: 0 | BX194: 1 | BY194: 1.68 | BZ194: 0.56 | CA194: 15.94725 | CB194: 5.31575 | CC194: 2 | CE194: 2300.113284 | CF194: 3406546 | CI194: 2 | CJ194: https://www.google.com/maps/@62.08602395,23.40327328,3a,75y,90t/data=!3m3!1e1!3m1!2e0 | CK194: 0 | CL194: 0 | CN194: 1 | CO194: 0 | CP194: 0 | CQ194: 0 | CR194: 1 | CS194: 23 | CT194: 85 | CU194: 0 | CV194: 0 | CW194: 0 | CX194: 0 | CY194: 0 | CZ194: 0 | DA194: 0 | DB194: 0 | DC194: 0 | DD194: 0 | DE194: 102 | DF194: 0.51 | DH194: 0 | DI194: 0 | DJ194: 0 | DK194: 1 | DL194: 0 | DN194: 0 | DO194: Itä-Aureentie, Kuruntie | DP194: Kihniö, Ylöjärvi | DQ194: 0 | DR194: 0 | DS194: 17 | DT194: 50 (4 %), 60 (8 %), 80 (88 %) | DU194: II (5 %), III (95 %) | DV194: AB (1 %), PAB (98 %) | DW194: Y3 (100 %) | DX194: 21814 | DY194: 1.773784355
A195: 13738_1 | B195: 18141.39567 | C195: 13738_1_0 | D195: 159 | E195: 159 | F195: 0 | G195: 5.293666667 | H195: 2.652 | I195: 1.733333333 | J195: 0.9083333333 | K195: 2 | L195: 0 | M195: Gmaps | N195: Vähä | O195: Yhdys | P195: Riitiäläntie | Q195: Lempäälä, Akaa | R195: 13738 | S195: 1 | T195: 0 | U195: 1 | V195: 3427 | W195: 3427 | X195: 372 | Y195: 10 | Z195: 459 | AA195: 0 | AB195: 60 (100 %) | AC195: III (100 %) | AD195: AB (8 %), PAB (92 %) | AE195: 0.320857749 | AF195: Y3 (100 %) | AG195: 0 | AH195: 1 | AI195: kyllä | AJ195: 0 | AK195: 0 | AL195: 6.696 | AM195: 20 | AN195: 1 | AO195: 26 | AP195: 0.26 | AQ195: 7.956 | AR195: 2.652 | AS195: 3.2 | AT195: 0 | AU195: 0 | AV195: 0 | AW195: 0 | AX195: 1 | AY195: 0 | AZ195: 0 | BA195: 0 | BB195: 0 | BC195: 0 | BD195: 1 | BE195: 0 | BF195: 0 | BG195: 5.2 | BH195: 1.733333333 | BI195: 1813 | BJ195: 0.5290341406 | BK195: 1 | BL195: 0 | BM195: 0 | BN195: 0 | BO195: 0 | BP195: 778 | BQ195: 0.2270207178 | BR195: 0 | BS195: 72 | BT195: 0.72 | BU195: 0.005 | BV195: 0 | BW195: 0 | BX195: 1 | BY195: 2.725 | BZ195: 0.9083333333 | CA195: 15.881 | CB195: 5.293666667 | CC195: 2 | CE195: 1099.579506 | CF195: 1274844 | CI195: 2 | CJ195: https://www.google.com/maps/@61.26425183,23.74439369,3a,75y,90t/data=!3m3!1e1!3m1!2e0 | CK195: 0 | CL195: 0 | CN195: 0 | CO195: 0 | CP195: 0 | CQ195: 0 | CR195: 5 | CS195: 0 | CT195: 0 | CU195: 0 | CV195: 0 | CW195: 0 | CX195: 1 | CY195: 138 | CZ195: 0 | DA195: 0 | DB195: 1 | DC195: 0 | DD195: 0 | DE195: 1 | DF195: 0.005 | DH195: 0 | DI195: 0 | DJ195: 0 | DK195: 0 | DL195: 0 | DN195: 778 | DO195: Riitiäläntie | DP195: Lempäälä, Akaa | DQ195: 0 | DR195: 1813 | DS195: 72 | DT195: 60 (100 %) | DU195: III (100 %) | DV195: AB (8 %), PAB (92 %) | DW195: Y3 (100 %) | DX195: 0 | DY195: 0
A196: 2771_3 | B196: 31274.82 | C196: 2771_3_0 | D196: 160 | E196: 160 | F196: 0 | G196: 5.274 | H196: 2.124 | I196: 2.493333333 | J196: 0.6566666667 | K196: 2 | L196: 0 | M196: Gmaps | N196: Vähä | O196: Yhdys | P196: Kyrönlahdentie | Q196: Ylöjärvi | R196: 2771 | S196: 3 | T196: 0 | U196: 3 | V196: 5930 | W196: 5930 | X196: 304 | Y196: 14 | Z196: 384 | AA196: 2 | AB196: 50 (3 %), 60 (33 %), 70 (64 %) | AC196: III (100 %) | AD196: PAB (100 %) | AE196: 0.08421788612 | AF196: Y3 (100 %) | AG196: 0 | AH196: 1 | AI196: ei | AJ196: 0 | AK196: 1.254806071 | AL196: 5.472 | AM196: 4 | AN196: 0.2 | AO196: 70 | AP196: 0.7 | AQ196: 6.372 | AR196: 2.124 | AS196: 4.48 | AT196: 0 | AU196: 0 | AV196: 1 | AW196: 0 | AX196: 1 | AY196: 0 | AZ196: 0 | BA196: 0 | BB196: 0 | BC196: 0 | BD196: 1 | BE196: 0 | BF196: 0 | BG196: 7.48 | BH196: 2.493333333 | BI196: 0 | BJ196: 0 | BK196: 0 | BL196: 0 | BM196: 0 | BN196: 0 | BO196: 0 | BP196: 0 | BQ196: 0 | BR196: 0 | BS196: 51 | BT196: 0.51 | BU196: 0.46 | BV196: 0 | BW196: 0 | BX196: 1 | BY196: 1.97 | BZ196: 0.6566666667 | CA196: 15.822 | CB196: 5.274 | CC196: 2 | CE196: 499.4120647 | CF196: 1802720 | CI196: 2 | CJ196: https://www.google.com/maps/@61.72804442,23.43938305,3a,75y,90t/data=!3m3!1e1!3m1!2e0 | CK196: 0 | CL196: 0 | CN196: 0 | CO196: 0 | CP196: 1 | CQ196: 0 | CR196: 1 | CS196: 0 | CT196: 0 | CU196: 0 | CV196: 0 | CW196: 0 | CX196: 1 | CY196: 0 | CZ196: 0 | DA196: 0 | DB196: 0 | DC196: 0 | DD196: 0 | DE196: 92 | DF196: 0.46 | DH196: 0 | DI196: 0 | DJ196: 0 | DK196: 0 | DL196: 0 | DN196: 0 | DO196: Kyrönlahdentie | DP196: Ylöjärvi | DQ196: 0 | DR196: 0 | DS196: 51 | DT196: 50 (3 %), 60 (33 %), 70 (64 %) | DU196: III (100 %) | DV196: PAB (100 %) | DW196: Y3 (100 %) | DX196: 7441 | DY196: 1.254806071
A197: 13355_1 | B197: 6315.2 | C197: 13355_1_0 | D197: 161 | E197: 161 | F197: 0 | G197: 5.262666667 | H197: 1.622666667 | I197: 3.12 | J197: 0.52 | K197: 2 | L197: 0 | M197: Gmaps | N197: Vähä | O197: Yhdys | P197: Aurejärventie | Q197: Parkano | R197: 13355 | S197: 1 | T197: 0 | U197: 1 | V197: 1200 | W197: 1200 | X197: 221 | Y197: 23 | Z197: 262 | AA197: 10 | AB197: 60 (100 %) | AC197: III (100 %) | AD197: AB (100 %) | AE197: 0 | AF197: Y3 (100 %) | AG197: 0 | AH197: 0 | AI197: ei | AJ197: 0 | AK197: 0 | AL197: 3.978 | AM197: 8 | AN197: 0.4 | AO197: 49 | AP197: 0.49 | AQ197: 4.868 | AR197: 1.622666667 | AS197: 7.36 | AT197: 0 | AU197: 0 | AV197: 0 | AW197: 0 | AX197: 0 | AY197: 0 | AZ197: 0 | BA197: 0 | BB197: 0 | BC197: 0 | BD197: 1 | BE197: 0 | BF197: 1 | BG197: 9.36 | BH197: 3.12 | BI197: 0 | BJ197: 0 | BK197: 0 | BL197: 0 | BM197: 0 | BN197: 0 | BO197: 0 | BP197: 0 | BQ197: 0 | BR197: 0 | BS197: 30 | BT197: 0.3 | BU197: 0.26 | BV197: 0 | BW197: 0 | BX197: 1 | BY197: 1.56 | BZ197: 0.52 | CA197: 15.788 | CB197: 5.262666667 | CC197: 2 | CE197: 0 | CF197: 265200 | CI197: 2 | CJ197: https://www.google.com/maps/@61.9823899,23.31671713,3a,75y,90t/data=!3m3!1e1!3m1!2e0 | CK197: 0 | CL197: 0 | CN197: 0 | CO197: 0 | CP197: 0 | CQ197: 0 | CR197: 0 | CS197: 0 | CT197: 0 | CU197: 0 | CV197: 0 | CW197: 0 | CX197: 1 | CY197: 0 | CZ197: 0 | DA197: 0 | DB197: 0 | DC197: 0 | DD197: 0 | DE197: 52 | DF197: 0.26 | DH197: 0 | DI197: 0 | DJ197: 0 | DK197: 1 | DL197: 0 | DN197: 0 | DO197: Aurejärventie | DP197: Parkano | DQ197: 0 | DR197: 0 | DS197: 30 | DT197: 60 (100 %) | DU197: III (100 %) | DV197: AB (100 %) | DW197: Y3 (100 %) | DX197: 0 | DY197: 0
A198: 12961_1 | B198: 12116.61667 | C198: 12961_1_5445 | D198: 162 | E198: 162 | F198: 0 | G198: 5.256666667 | H198: 1.89 | I198: 2.813333333 | J198: 0.5533333333 | K198: 2 | L198: 0 | M198: Gmaps | N198: Vähä | O198: Yhdys | P198: Hartolankoskentie, Kaukolantie | Q198: Sastamala | R198: 12961 | S198: 1 | T198: 5445 | U198: 1 | V198: 7750 | W198: 2305 | X198: 275 | Y198: 17 | Z198: 318 | AA198: 2 | AB198: 50 (100 %) | AC198: III (100 %) | AD198: AB (3 %), PAB (97 %) | AE198: 0.2365432832 | AF198: Y3 (100 %) | AG198: 0 | AH198: 0 | AI198: ei | AJ198: 0 | AK198: 0.5609544469 | AL198: 4.95 | AM198: 0 | AN198: 0 | AO198: 72 | AP198: 0.72 | AQ198: 5.67 | AR198: 1.89 | AS198: 5.44 | AT198: 2 | AU198: 0 | AV198: 0 | AW198: 0 | AX198: 1 | AY198: 0 | AZ198: 0 | BA198: 0 | BB198: 0 | BC198: 0 | BD198: 0 | BE198: 0 | BF198: 0 | BG198: 8.44 | BH198: 2.813333333 | BI198: 0 | BJ198: 0 | BK198: 0 | BL198: 0 | BM198: 0 | BN198: 0 | BO198: 0 | BP198: 582 | BQ198: 0.252494577 | BR198: 0 | BS198: 66 | BT198: 0.66 | BU198: 0 | BV198: 0 | BW198: 0 | BX198: 1 | BY198: 1.66 | BZ198: 0.5533333333 | CA198: 15.77 | CB198: 5.256666667 | CC198: 2 | CE198: 545.2322678 | CF198: 633875 | CI198: 2 | CJ198: https://www.google.com/maps/@61.34870677,22.83867789,3a,75y,90t/data=!3m3!1e1!3m1!2e0 | CK198: 0 | CL198: 0 | CN198: 1 | CO198: 0 | CP198: 0 | CQ198: 0 | CR198: 2 | CS198: 0 | CT198: 0 | CU198: 0 | CV198: 0 | CW198: 0 | CX198: 0 | CY198: 0 | CZ198: 0 | DA198: 0 | DB198: 1 | DC198: 0 | DD198: 0 | DE198: 0 | DF198: 0 | DH198: 0 | DI198: 0 | DJ198: 0 | DK198: 0 | DL198: 0 | DN198: 582 | DO198: Hartolankoskentie, Kaukolantie | DP198: Sastamala | DQ198: 0 | DR198: 0 | DS198: 66 | DT198: 50 (100 %) | DU198: III (100 %) | DV198: AB (3 %), PAB (97 %) | DW198: Y3 (100 %) | DX198: 1293 | DY198: 0.5609544469
A199: 14308_1 | B199: 11466.29867 | C199: 14308_1_0 | D199: 163 | E199: 163 | F199: 0 | G199: 5.245333333 | H199: 2.305333333 | I199: 1.958333333 | J199: 0.9816666667 | K199: 2 | L199: 0 | M199: Gmaps | N199: Vähä | O199: Yhdys | P199: Sahantie | Q199: Ruovesi | R199: 14308 | S199: 1 | T199: 0 | U199: 1 | V199: 2186 | W199: 2186 | X199: 297 | Y199: 12 | Z199: 420 | AA199: 2 | AB199: 50 (41 %), 60 (59 %) | AC199: II (100 %) | AD199: PAB (100 %) | AE199: 0.4374268876 | AF199: Y3 (100 %) | AG199: 1 | AH199: 2 | AI199: ei | AJ199: 0 | AK199: 0 | AL199: 5.346 | AM199: 18 | AN199: 0.9 | AO199: 67 | AP199: 0.67 | AQ199: 6.916 | AR199: 2.305333333 | AS199: 3.84 | AT199: 0 | AU199: 0 | AV199: 0 | AW199: 0 | AX199: 1 | AY199: 0 | AZ199: 0.035 | BA199: 0 | BB199: 0 | BC199: 0 | BD199: 1 | BE199: 0 | BF199: 0 | BG199: 5.875 | BH199: 1.958333333 | BI199: 2182 | BJ199: 0.9981701738 | BK199: 1 | BL199: 0 | BM199: 0 | BN199: 0 | BO199: 0 | BP199: 0 | BQ199: 0 | BR199: 0 | BS199: 41 | BT199: 0.41 | BU199: 0.535 | BV199: 0 | BW199: 0 | BX199: 1 | BY199: 2.945 | BZ199: 0.9816666667 | CA199: 15.736 | CB199: 5.245333333 | CC199: 2 | CE199: 956.2151763 | CF199: 649242 | CI199: 2 | CJ199: https://www.google.com/maps/@61.90976146,24.12053435,3a,75y,90t/data=!3m3!1e1!3m1!2e0 | CK199: 0 | CL199: 0 | CN199: 0 | CO199: 0 | CP199: 0 | CQ199: 0 | CR199: 3 | CS199: 0 | CT199: 14 | CU199: 0 | CV199: 0 | CW199: 0 | CX199: 1 | CY199: 2182 | CZ199: 0 | DA199: 0 | DB199: 0 | DC199: 0 | DD199: 0 | DE199: 107 | DF199: 0.535 | DH199: 0 | DI199: 0 | DJ199: 0 | DK199: 0 | DL199: 0 | DN199: 0 | DO199: Sahantie | DP199: Ruovesi | DQ199: 0 | DR199: 2182 | DS199: 41 | DT199: 50 (41 %), 60 (59 %) | DU199: II (100 %) | DV199: PAB (100 %) | DW199: Y3 (100 %) | DX199: 0 | DY199: 0
